Workbook

Sheet Instructions
I2: Validation - Croisement des tables
B3: Instructions:
A4: 1 | B4: Dupliquer votre modèle de détermination avant de passer aux étapes suivantes. | I4: Ovoltotrec | J4: Rapport GTYF | K4: Rapport ECONO
A5: 2 | B5: Coller les OUTPUTs ci-dessous dans votre modèle de détermination. | I5: =VLOOKUP("Ovoltotrec",Output!$C:$AM,8,FALSE) -> 1774800 | J5: =VLOOKUP("OVOLTOTREC",GTYF!$C:$AQ,8,FALSE)=I5 -> TRUE | K5: =VLOOKUP("OVOLTOTREC",Econo!$C:$AQ,8,FALSE)=I5 -> TRUE
B6: Outputs pour Cahier_Détermination_2023
A7: 3 | B7: Ajouter l'agrégat FCIMPROD_SNAT au thème 5 de la section LANSCAPE de votre modèle et les courbes SNAT
B8: *AGGREGATE FCIMPROD_SNAT FCxxxx
A9: 4 | B9: Copier coller la syntaxe TARGET_GTYF_DET, TARGET_ECONO, TARGET AREA, TARGET DETAIL (voir plus bas) dans la section "Reports" du scénario de détermination.
B10: *TARGET GTYF_DET.dbf
B11: *TARGET_ECONO.dbf
B12: *TARGET AREA.dbf et *TARGET DETAIL.dbf
A13: 5 | B13: Insérer la syntaxe économique dans les sections Output, Lanscape, …
A14: 6 | B14: Compiler le scénario (Faire une fleche sur vos scénarios)
A15: 7 | B15: Ouvrir vos rapports Output, GTYF et ECONO directement de WS. Contrôle A --> Contrôle C
A16: 8 | B16: Copier/coller vos rapports Output, GTYF et ECONO dans les onglets appropriés. Attention de respecter le nombres de colonnes. Les onglets Output, GTYF et ECONO sont préformatés et contiennent des formules aux colonnes AM à AP.
A17: 9 | B17: Valider que la cellule I5 indique vrai lorsque vous aurez collé vos données dans les onglets "Output", "GTYF" et ÉCONO" pour s'assurer que les données proviennent de la même optimisation.
A18: 10 | B18: Utiliser le fichier DBF pour copier/coller votre calendrier de COS dans l'onglet Cedule_COS et y ajouter les COS absents (COS fermés ou toujours ouverts) et compléter leur calendrier par des "0" ou des "1".
A19: 11 | B19: Compléter toutes les cellules et onglets de couleur | D19: jaune
A20: 12 | B20: Notez que les tableaux 9, 10, 13, 15 et 17 ont des instructions particulières

Sheet Suivi_modif
B2: Modifications apportées au cahier:
B3: Version originale (v1) | C3: Version de départ
B4: Version modifiée 2 novembre 2021 (v2) | C4: Correction du calcul de % de sapin en P0 (cellule O9)
B5: Version modifiée 4 novembre 2021 (v3) | C5: Correction du % récolte volume sur pied destiné à l'aménagement (Tableau - CelluleV59)
B6: Version modifiée 4 novembre 2021 (v3) | C6: Correction des valideurs Vrai/Faux (Tableau - Cellule W101, W102, W103)
B7: Version modifiée 8 novembre 2021 (v4) | C7: Onglet "UTA" - Amélioration de la syntaxe des rechercheV
B8: Version modifiée 8 novembre 2021 (v4) | C8: Tableau 3 - ligne 50: changé la police de caractère pour du Arial
B9: Version modifiée 9 novembre 2021 (v5) | C9: Onglet "Target_ECONO": La syntaxe du rapport a été corrigée.
B10: Version modifiée 11 novembre 2021 (v6) | C10: Tableau 1 - Entente Crie - Correction pour considérer le code "EXEC" pour les UA avec Entente Crie | E10: Intégrée dans ma version V5
B11: Version modifiée 15 novembre 2021 (v7) | C11: Tableau 3 - Ligne 49 en caractère gras - ligne 51 en caractère normal sont corriger dans le cahier. | E11: Intégrée dans ma version V5
B12: Version modifiée 19 novembre 2021 (v8) | C12: Tableau 9 - Dernière ligne du tableau effacée | E12: Intégrée dans ma version V5
B13: Version modifiée 22 novembre 2021 (v9) | C13: Tableau 4 - Première colonne (ha/an) changé la mise en forme pour avoir des 0 ha/an au lieu de "-" Voir figure --> Format: Nombre - Utiliser séparateur de millier - sans décimales | E13: Intégrée dans ma version V5
C15: tab8 : corrigé arrondi 25 nov2021 prelo3
D16: Vérification 12 nov 2021 PRElo3
D17: output | E17: ok valeur correspond à WS 14_sc_det
E18: ok bon nombre de lignes
D19: gtyf | E19: ok valeur correspond à WS 14_sc_det
E20: ok bon nombre de lignes
D21: econo | E21: ok valeur correspond à WS 14_sc_det
E22: ok bon nombre de lignes
D24: tableau | E24: sup: provient du cahier det de septembre, pas de l'outil d'Éric
E25: tab 1 -3 | F25: valeur de fichier consignation et cahier det de septembre2021
E26: bonne ua d'indiquée ¢ O34
E27: tab 8 | F27: valeur de fichier consignation et cahier det de septembre2021
E28: tab 13 | F28: ??? somme arrondi à 100 m³
D29: figure | E29: aspect visuel ok, échelle ok
E30: fig 6 | F30: ok même que cahier det septembre
E31: fig 9b-c | F31: ok même que cahier det septembre
E32: fig 19 | F32: ok bon nombre UTR
E33: fig 22 | F33: ok pas de seuil
D34: uta | E34: Correction faite , pas le bon nombre d'UTA
E35: pas de délai de restauration

Sheet Tableaux
T1: Instructions : Compléter les cellules oranges | AB1: Avec l'utilisation de l'outil à Éric
B2: PROER1 : vous pouvez utiliser l'outil FoxPro pour compléter les cellules oranges : | T2: 1) Cellule V11 : Inscrire la superficie totale brute de la carte WS
B3: l'outil intérroge la carte Woodstock et met les valeurs dans un fichier Excel | T3: 2) Cellule V15 : Inscrire la superficie WS des GS RP1 et RP2 (ça ne devrait être que du EXEX et EXTI)
B4: interroge_carte_WS_pour cahier_analyse.FXP | T4: 3) Cellule V24 : Inscrire la superficie WS des GS RP3 à RP9 sur INC
B5: T:\Donnees\Courant\CPF_2023-2028\Comite_Vague_2\30_Phase1\32_Sce1\Outils | T5: 4) Cellule V25 : Inscrire la superficie WS des GS SNAT sur INC (qui ne sont pas des RP)
T6: 5) Cellules L20 à S21 : Inscrire la superficie de la carte WS pour chacune des cases oranges
B7: Catégories | I7: Superficie | Z7: Total | AA7: Sup_aff
I8: ha | J8: % | V8: Période | Z8: Total | AA8: Sup_empche
B9: Superficie totale du territoire d'analyse (EXHU exclu) | I9: =V11-V16 -> 628931.1 | J9: =IFERROR(I9/I9,"-") -> 1 | K9: 630414.1 | S9: =LEFT(B$25,10) -> Tableau 1. | T9: Output | U9: Superficie | V9: 0 | Z9: Total | AA9: Sup_ecot
B10: Pertes (emprise chemin, écotone, improductif) | I10: =U20+V20+Y20 -> 13021.3 | J10: =I10/I9 -> 0.0207038577 | K10: 13021.3 | S10: =LEFT(B$25,10) -> Tableau 1. | T10: OSUPTOT | U10: WS | V10: =VLOOKUP(T10,Output!$C:$H,6,FALSE) -> 617397.1 | Z10: INC | AA10: Sup_brivAB
B11: Territoire improductif (EXEX + EXTI) | I11: =SUM(V13:V14) -> 199236.5 | J11: =I11/I9 -> 0.3167858928 | K11: 199236.5 | S11: Tableau 1. | U11: Brute | V11: 630414.1 | X11: Sup_soustraite : | Y11: =T20+U20+V20+Y20+AA20 -> 16989.2 | Z11: INC | AA11: Sup_brivCD
B12: sans possibilité de remise en production | I12: =I11-I13 -> 199236.5 | J12: - | K12: 199236.5 | S12: Tableau 1. | U12: pertes | V12: =U20+V20+Y20 -> 13021.3 | X12: Sup nette : | Y12: =V11-Y11 -> 613424.9 | Z12: Total | AA12: Sup_impro
B13: avec possibilité de remise en production (RP1 et RP2) | I13: =V15 -> 0 | J13: - | K13: 0 | S13: Tableau 1. | T13: OSUPEXEX | U13: EXEX | V13: =VLOOKUP(T13,Output!$C:$H,6,FALSE) -> 105059.4 | Z13: Total | AA13: Sup_pentf
K14: 1483 | L14: =K9-K14 -> 628931.1 | S14: Tableau 1. | T14: OSUPEXTI | U14: EXTI | V14: =VLOOKUP(T14,Output!$C:$H,6,FALSE) -> 94177.1 | X14: Superficie | Y14: sup_redu | Z14: INC | AA14: Sup_pentf
B15: Territoire inclus dans l’UA mais exclu des activités d'aménagement (EXIN) | I15: =V17+X17+Y17 -> 73122.2 | J15: =I15/I9 -> 0.1162642458 | K15: 73122.2 | S15: Tableau 1. | U15: RP1/RP2 | V15: 0 | X15: Superficie | Y15: sup_redu
B16: pentes abruptes et sommets (codes F et S) --> potentiellement récoltables | I16: =AA21 -> 1588.5 | J16: - | K16: 1588.5 | S16: Tableau 1. | T16: OSUPEXHU | U16: EXHU | V16: =VLOOKUP(T16,Output!$C:$H,6,FALSE) -> 1483 | X16: EXEC | Y16: EXEC
B17: bandes riveraines (densité AB) --> potentiellement récoltables | I17: =W21 -> 17614.6 | J17: - | K17: 17614.6 | S17: Tableau 1. | T17: OSUPEXIN | U17: EXIN | V17: =VLOOKUP(T17,Output!$C:$H,6,FALSE) -> 54689 | X17: 16953.7 | Y17: 1479.5
B18: bandes riveraines (densité CD) --> potentiellement récoltables | I18: =X21 -> 12492.1 | J18: - | K18: 12492.1 | S18: Tableau 1. | T18: ↓ | U18: ↓ | V18: ↓ | Y18: ↓ | AA18: ↓
B19: autres | I19: =I15-I16-I17-I18 -> 41427 | K19: 41427 | S19: Tableau 1. | T19: Sup_aff | U19: Sup_empche | V19: Sup_ecot | W19: Sup_brivAB | X19: Sup_brivCD | Y19: Sup_impro | Z19: Sup_aut | AA19: Sup_pentf
B20: Territoire destiné à l'aménagement forestier (INC) | I20: =V22 -> 343555.4 | J20: =I20/I9 -> 0.5462528407 | K20: 343555.4 | S20: Tableau 1. | T20: 2124.9 | U20: 7058 | V20: 4039 | Y20: 1924.3 | AA20: 1843 | AB20: Total
B21: forestier exploitable | I21: =V22-I22-I23 -> 311440.6 | J21: - | K21: 311440.6 | S21: Tableau 1. | W21: 17614.6 | X21: 12492.1 | AA21: 1588.5 | AB21: INC
B22: forestier inexploitable avec possibilité de remise en production (RP3 à RP15) | I22: =V24 -> 4383.3 | J22: - | K22: 4383.3 | S22: Tableau 1. | T22: OSUPINC | U22: INC | V22: =VLOOKUP(T22,Output!$C:$H,6,FALSE) -> 343555.4
B23: forestier inexploitable sans possibilité de remise en production (SNAT) | I23: =V25 -> 27731.5 | J23: - | K23: 27731.5 | S23: Tableau 1.
S24: Tableau 1. | U24: RP3 à RP9 | V24: 4383.3
B25: Tableau 1. Répartition de la superficie de l'unité d'aménagement pas catégorie de territoire | S25: Tableau 1. | U25: SNAT | V25: 27731.5
B26: Catégories | F26: Superficies
F27: Hectares | G27: %
B28: Superficie totale de l’unité d’aménagement | F28: =ROUND(I9,-1) -> 628930 | G28: =F28/F28 -> 1 | H28: 628930
B29: Retraits de superficie
B30: Territoire non forestier | F30: =ROUND(I10+I11,-1) -> 212260 | G30: =F30/F28 -> 0.3374938387 | H30: 212260
B31: Territoire forestier peu productif (30 à 50 m³/ha) | F31: =ROUND(I22+I23,-1) -> 32110 | G31: =F31/F28 -> 0.05105496637 | H31: 32110
B32: Territoire forestier exclu de l’aménagement | F32: =ROUND(F28-F30-F31-F33,-1) -> 73120 | G32: =F32/F28 -> 0.1162609511 | H32: 73120 | N32: À compléter UA : | O32: UA:
B33: Superficie destinée à l’aménagement forestier | F33: =ROUND(I21,-1) -> 311440 | G33: =F33/F28 -> 0.4951902437 | H33: 311440 | O33: 02664 | T33: Légende | U33: Output | V33: P2@P6
S34: =LEFT(B$46,10) -> Tableau 3. | T34: Sepm | U34: OVOLGSEPMREC | V34: =IFERROR(VLOOKUP($U34,Output!$C:$AM,37,FALSE)/5,0) -> 317133.538
S35: Tableau 3.
S36: Tableau 3. | T36: Tho | U36: OVOLTHOREC | V36: =IFERROR(VLOOKUP($U36,Output!$C:$AM,37,FALSE)/5,0) -> 5.3472
S37: Tableau 3. | T37: Pru | U37: OVOLPRUREC | V37: =IFERROR(VLOOKUP($U37,Output!$C:$AM,37,FALSE)/5,0) -> 0
S38: Tableau 3. | T38: Pins | U38: OVOLGPINSREC | V38: =IFERROR(VLOOKUP($U38,Output!$C:$AM,37,FALSE)/5,0) -> 1.1148
S39: Tableau 3. | T39: Peu | U39: OVOLGPEUREC | V39: =IFERROR(VLOOKUP($U39,Output!$C:$AM,37,FALSE)/5,0) -> 7393.4348
S40: Tableau 3. | T40: Bop | U40: OVOLGBPREC | V40: =IFERROR(VLOOKUP($U40,Output!$C:$AM,37,FALSE)/5,0) -> 30426.5652
S41: Tableau 3. | T41: Boj | U41: OVOLBOJREC | V41: =IFERROR(VLOOKUP($U41,Output!$C:$AM,37,FALSE)/5,0) -> 0
S42: Tableau 3. | T42: Ers | U42: OVOLERSREC | V42: =IFERROR(VLOOKUP($U42,Output!$C:$AM,37,FALSE)/5,0) -> 0
S43: Tableau 3. | T43: Err | U43: OVOLGEROREC | V43: =IFERROR(VLOOKUP($U43,Output!$C:$AM,37,FALSE)/5,0) -> 0
S44: Tableau 3. | T44: Autre .F. (Auf) | V44: =V47-V42-V41 -> 0
S45: Tableau 3. | T45: résineux | U45: OVOLGRREC | V45: =IFERROR(VLOOKUP($U45,Output!$C:$AM,37,FALSE)/5,0) -> 317140
B46: Tableau 3. Possibilités forestières par essence ou par groupe d’essences et écart avec la période 2018-2023 | S46: Tableau 3. | T46: intolérant | U46: OVOLGFIREC | V46: =IFERROR(VLOOKUP($U46,Output!$C:$AM,37,FALSE)/5,0) -> 37820
B47: Périodes | C47: ="Possibilités forestières (m"&CHAR(179)&" bruts/an)" -> Possibilités forestières (m³ bruts/an) | S47: Tableau 3. | T47: Tolérant | U47: OVOLGFTREC | V47: =IFERROR(VLOOKUP($U47,Output!$C:$AM,37,FALSE)/5,0) -> 0
C48: SEPM | D48: Thuya | E48: Pruche | F48: Pins blanc et rouge | G48: Peupliers | H48: Bouleau à papier | I48: Bouleau jaune | J48: Érables à sucre et rouge | K48: Autres feuillus durs | L48: Total | N48: Possibilité forestière unitaire (PAC / Sup destinée à l'aménagement) | S48: Tableau 3. | T48: Total récoltés | U48: OVOLTOTREC | V48: =IFERROR(VLOOKUP($U48,Output!$C:$AM,37,FALSE)/5,0) -> 354960
B49: 2023-2028 | C49: =ROUND(V$34,-2) -> 317100 | D49: =ROUND(V$36,-2) -> 0 | E49: =ROUND(V$37,-2) -> 0 | F49: =ROUND(V$38,-2) -> 0 | G49: =ROUND(V$39,-2) -> 7400 | H49: =ROUND(V$40,-2) -> 30400 | I49: =ROUND(V$41,-2) -> 0 | J49: =ROUND(V$50,-2) -> 0 | K49: =ROUND(V$44,-2) -> 0 | L49: =SUM(C49:K49) -> 354900 | N49: =V57 -> 1.139737991 | S49: Tableau 3. | T49: FN sur pied | U49: OVOLGFNREC | V49: =IFERROR(VLOOKUP($U49,Output!$C:$AM,37,FALSE)/5,0) -> 0
C50: =C49/$L$49 -> 0.8934911243 | D50: 0 | E50: 0 | F50: 0 | G50: 0.02085094393 | H50: 0.08565793181 | I50: 0 | J50: 0 | K50: 0 | L50: =SUM(C50:K50) -> 1 | S50: Tableau 3. | T50: ER | V50: =V42+V43 -> 0
B51: 2018-2023 | C51: =VLOOKUP($O$33,DataLocal!$A$6:$W$35,13,FALSE) -> 294600 | D51: =VLOOKUP($O$33,DataLocal!$A$6:$W$35,14,FALSE) -> 300 | E51: =VLOOKUP($O$33,DataLocal!$A$6:$W$35,15,FALSE) -> 0 | F51: =VLOOKUP($O$33,DataLocal!$A$6:$W$35,16,FALSE) -> 0 | G51: =VLOOKUP($O$33,DataLocal!$A$6:$W$35,17,FALSE) -> 8900 | H51: =VLOOKUP($O$33,DataLocal!$A$6:$W$35,18,FALSE) -> 20100 | I51: =VLOOKUP($O$33,DataLocal!$A$6:$W$35,19,FALSE) -> 0 | J51: =VLOOKUP($O$33,DataLocal!$A$6:$W$35,20,FALSE) -> 0 | K51: =VLOOKUP($O$33,DataLocal!$A$6:$W$35,21,FALSE) -> 0 | L51: =VLOOKUP($O$33,DataLocal!$A$6:$W$35,23,FALSE) -> 323900 | N51: % du volume sur pied initial | S51: Tableau 3. | U51: OVOLSABREC | V51: =IFERROR(VLOOKUP($U51,Output!$C:$AM,37,FALSE)/5,0) -> 30750.576
B52: Écart | C52: =IFERROR((C49/C$51)-1,0) -> 0.07637474542 | D52: -1 | E52: 0 | F52: 0 | G52: -0.1685393258 | H52: 0.5124378109 | I52: 0 | J52: 0 | K52: 0 | L52: 0.09570855202 | N52: =V59 -> 0.01943708247 | S52: Tableau 3. | U52: OVOLGEPXREC | V52: =IFERROR(VLOOKUP($U52,Output!$C:$AM,37,FALSE)/5,0) -> 226511.8948
B53: ="Répartition de la composante SEPM des possibilités forestières 2023-2028 : sapin ("&IFERROR(ROUND(V51/V34*100,0),0)&"%), épinettes ("&IFERROR(ROUND(V52/V34*100,0),0)&"%), pin gris ("&IFERROR(ROUND(V53/V34*100,0),0)&"%) et mélèzes ("&IFERROR(ROUND(V54/V34*100,0),0)&"%)." -> Répartition de la composante SEPM des possibilités forestières 2023-2028 : sapin (10%), épinettes (71%), pin gris (19%) et mélèzes (0%). | S53: Tableau 3. | U53: OVOLGPGREC | V53: =IFERROR(VLOOKUP($U53,Output!$C:$AM,37,FALSE)/5,0) -> 58816.372
B54: ="Répartition de la composante Érables à sucre et rouge des possibilités forestières 2023-2028 : érable à sucre("&IFERROR(ROUND(V42/(V42+V43)*100,0),0)&"%) et érable rouge ("&IFERROR(ROUND(V43/(V42+V43)*100,0),0)&"%)." -> Répartition de la composante Érables à sucre et rouge des possibilités forestières 2023-2028 : érable à sucre(0%) et érable rouge (0%). | S54: Tableau 3. | U54: OVOLGMLREC | V54: =IFERROR(VLOOKUP($U54,Output!$C:$AM,37,FALSE)/5,0) -> 1054.696
B55: Copier/Coller le tableau ci-dessus avec les lignes 53 et 54 | S55: Tableau 3. | U55: OSUPINC | V55: =IFERROR(VLOOKUP($U55,Output!$C:$AM,6,FALSE),0) -> 343555.4
C56: 317100 | D56: 0 | E56: - | F56: 0 | G56: 7400 | H56: 30400 | I56: - | J56: - | K56: - | L56: 354900 | S56: Tableau 3. | U56: OVOLTOTPIEDINC | V56: =IFERROR(VLOOKUP($U56,Output!$C:$AM,7,FALSE),0) -> 18894616.57
C57: 0.07637474542 | D57: -1 | E57: - | F57: - | G57: -0.1685393258 | H57: 0.5124378109 | I57: - | J57: - | K57: - | L57: 0.09570855202 | S57: Tableau 3. | U57: Possibilité forestière unitaire | V57: =IFERROR(V48/F33,0) -> 1.139737991
S58: Tableau 3. | U58: % récolte volume sur pied
U59: % récolte volume sur pied destiné à l'aménagement | V59: =V48/Figures!V19 -> 0.01943708247
B61: Tableau 4. Répartition des superficies récoltées et des possibilités forestières par grand type de forêt
B62: Grands types de forêt | D62: Superficie récoltée* | H62: Possibilités forestières* | S62: =LEFT(B$61,10) -> Tableau 4. | V62: Output total non arrondi | W62: Écart entre la somme du tableau et le output total
D63: Coupes totales | F63: Coupes partielles | H63: Résineux | J63: Feuillus tolérants | L63: Feuillus intolérants | N63: Total | S63: Tableau 4. | T63: Total | Z63: P2 à P6
D64: ha/an | E64: % | F64: ha/an | G64: % | H64: m³ bruts/an | I64: % | J64: ="m"&CHAR(179)&" bruts/an" -> m³ bruts/an | K64: % | L64: ="m"&CHAR(179)&" bruts/an" -> m³ bruts/an | M64: % | N64: ="m"&CHAR(179)&" bruts/an" -> m³ bruts/an | O64: % | S64: Tableau 4. | T64: ha/an | U64: % | Y64: Famille de courbe | Z64: OSUPINC | AA64: OSUPREALREGAFIN | AB64: OSUPREALREGAPAR | AC64: OSUPREALREGAPRE | AD64: OVOLGRREC | AE64: OVOLGAURREC | AF64: OVOLGFIREC | AG64: OVOLGFTREC | AH64: OVOLTOTREC
B65: Bétulaies blanches | D65: =ROUND(AA65/5,-1) -> 100 | E65: =IFERROR(D65/D$79,0) -> 0.03289473684 | F65: =ROUND(AB65/5,-1) -> 0 | G65: =IFERROR(F65/F$79,0) -> 0 | H65: =ROUND(AD65/5,-2) -> 1200 | I65: =IFERROR(H65/H$79,0) -> 0.003785488959 | J65: =ROUND(AG65/5,-2) -> 0 | K65: =IFERROR(J65/J$79,0) -> 0 | L65: =ROUND(AF65/5,-2) -> 11600 | M65: =L65/L$79 -> 0.3076923077 | N65: =H65+J65+L65 -> 12800 | O65: =N65/$N$79 -> 0.03608683394 | S65: Tableau 4. | T65: =D65+F65 -> 100 | U65: =IFERROR(T65/T$79,0) -> 0.0303030303 | V65: =(AA65+AB65)/5 -> 97.1708 | W65: =T65-V65 -> 2.8292 | Y65: (FCTYF_BOP) | Z65: =VLOOKUP(Z$64&$Y65,GTYF!$C:$AP,6,FALSE) -> 6660.6 | AA65: =VLOOKUP(AA$64&$Y65,GTYF!$C:$AP,37,FALSE) -> 485.854 | AB65: =VLOOKUP(AB$64&$Y65,GTYF!$C:$AP,37,FALSE) -> 0 | AC65: =VLOOKUP(AC$64&$Y65,GTYF!$C:$AP,37,FALSE) -> 485.854 | AD65: =VLOOKUP(AD$64&$Y65,GTYF!$C:$AP,37,FALSE) -> 6199.282 | AE65: =VLOOKUP(AE$64&$Y65,GTYF!$C:$AP,37,FALSE) -> 0 | AF65: =VLOOKUP(AF$64&$Y65,GTYF!$C:$AP,37,FALSE) -> 58169.782 | AG65: =VLOOKUP(AG$64&$Y65,GTYF!$C:$AP,37,FALSE) -> 0 | AH65: =VLOOKUP(AH$64&$Y65,GTYF!$C:$AP,37,FALSE) -> 64369.068
B66: Bétulaies blanches à résineux | D66: 100 | E66: =IFERROR(D66/D$79,0) -> 0.03289473684 | F66: 0 | G66: =IFERROR(F66/F$79,0) -> 0 | H66: =ROUND(AD66/5,-2) -> 6300 | I66: =IFERROR(H66/H$79,0) -> 0.01987381703 | J66: =ROUND(AG66/5,-2) -> 0 | K66: 0 | L66: =ROUND(AF66/5,-2) -> 8800 | M66: =L66/L$79 -> 0.2334217507 | N66: =H66+J66+L66 -> 15100 | O66: 0.04257118692 | S66: Tableau 4. | T66: 100 | U66: =IFERROR(T66/T$79,0) -> 0.0303030303 | V66: =(AA66+AB66)/5 -> 99.0916 | W66: 0.9084 | Y66: (FCTYF_BOPR) | Z66: =VLOOKUP(Z$64&$Y66,GTYF!$C:$AP,6,FALSE) -> 6722.5 | AA66: =VLOOKUP(AA$64&$Y66,GTYF!$C:$AP,37,FALSE) -> 495.458 | AB66: =VLOOKUP(AB$64&$Y66,GTYF!$C:$AP,37,FALSE) -> 0 | AC66: =VLOOKUP(AC$64&$Y66,GTYF!$C:$AP,37,FALSE) -> 495.458 | AD66: =VLOOKUP(AD$64&$Y66,GTYF!$C:$AP,37,FALSE) -> 31495.442 | AE66: =VLOOKUP(AE$64&$Y66,GTYF!$C:$AP,37,FALSE) -> 0 | AF66: =VLOOKUP(AF$64&$Y66,GTYF!$C:$AP,37,FALSE) -> 44103.176 | AG66: =VLOOKUP(AG$64&$Y66,GTYF!$C:$AP,37,FALSE) -> 0 | AH66: =VLOOKUP(AH$64&$Y66,GTYF!$C:$AP,37,FALSE) -> 75598.62
B67: Cédrières | D67: 0 | E67: 0 | F67: 0 | G67: 0 | H67: =ROUND(AD67/5,-2) -> 0 | I67: 0 | J67: 0 | K67: 0 | L67: 0 | M67: 0 | N67: 0 | O67: 0 | S67: Tableau 4. | T67: 0 | U67: 0 | V67: =(AA67+AB67)/5 -> 0 | W67: 0 | Y67: (FCTYF_THO) | Z67: =VLOOKUP(Z$64&$Y67,GTYF!$C:$AP,6,FALSE) -> 0 | AA67: =VLOOKUP(AA$64&$Y67,GTYF!$C:$AP,37,FALSE) -> 0 | AB67: =VLOOKUP(AB$64&$Y67,GTYF!$C:$AP,37,FALSE) -> 0 | AC67: =VLOOKUP(AC$64&$Y67,GTYF!$C:$AP,37,FALSE) -> 0 | AD67: =VLOOKUP(AD$64&$Y67,GTYF!$C:$AP,37,FALSE) -> 0 | AE67: =VLOOKUP(AE$64&$Y67,GTYF!$C:$AP,37,FALSE) -> 0 | AF67: =VLOOKUP(AF$64&$Y67,GTYF!$C:$AP,37,FALSE) -> 0 | AG67: =VLOOKUP(AG$64&$Y67,GTYF!$C:$AP,37,FALSE) -> 0 | AH67: =VLOOKUP(AH$64&$Y67,GTYF!$C:$AP,37,FALSE) -> 0
B68: Érablières rouges | D68: 0 | E68: 0 | F68: 0 | G68: 0 | H68: 0 | I68: 0 | J68: 0 | K68: 0 | L68: 0 | M68: 0 | N68: 0 | O68: 0 | S68: Tableau 4. | T68: 0 | U68: 0 | V68: =(AA68+AB68)/5 -> 0 | W68: 0 | Y68: (FCTYF_ERO) | Z68: =VLOOKUP(Z$64&$Y68,GTYF!$C:$AP,6,FALSE) -> 0 | AA68: =VLOOKUP(AA$64&$Y68,GTYF!$C:$AP,37,FALSE) -> 0 | AB68: =VLOOKUP(AB$64&$Y68,GTYF!$C:$AP,37,FALSE) -> 0 | AC68: =VLOOKUP(AC$64&$Y68,GTYF!$C:$AP,37,FALSE) -> 0 | AD68: =VLOOKUP(AD$64&$Y68,GTYF!$C:$AP,37,FALSE) -> 0 | AE68: =VLOOKUP(AE$64&$Y68,GTYF!$C:$AP,37,FALSE) -> 0 | AF68: =VLOOKUP(AF$64&$Y68,GTYF!$C:$AP,37,FALSE) -> 0 | AG68: =VLOOKUP(AG$64&$Y68,GTYF!$C:$AP,37,FALSE) -> 0 | AH68: =VLOOKUP(AH$64&$Y68,GTYF!$C:$AP,37,FALSE) -> 0
B69: Feuillus tolérants | D69: 0 | E69: 0 | F69: 0 | G69: 0 | H69: 0 | I69: 0 | J69: 0 | K69: 0 | L69: 0 | M69: 0 | N69: 0 | O69: 0 | S69: Tableau 4. | T69: 0 | U69: 0 | V69: 0 | W69: 0 | Y69: (FCTYF_FT) | Z69: =VLOOKUP(Z$64&$Y69,GTYF!$C:$AP,6,FALSE) -> 0 | AA69: =VLOOKUP(AA$64&$Y69,GTYF!$C:$AP,37,FALSE) -> 0 | AB69: =VLOOKUP(AB$64&$Y69,GTYF!$C:$AP,37,FALSE) -> 0 | AC69: =VLOOKUP(AC$64&$Y69,GTYF!$C:$AP,37,FALSE) -> 0 | AD69: =VLOOKUP(AD$64&$Y69,GTYF!$C:$AP,37,FALSE) -> 0 | AE69: =VLOOKUP(AE$64&$Y69,GTYF!$C:$AP,37,FALSE) -> 0 | AF69: =VLOOKUP(AF$64&$Y69,GTYF!$C:$AP,37,FALSE) -> 0 | AG69: =VLOOKUP(AG$64&$Y69,GTYF!$C:$AP,37,FALSE) -> 0 | AH69: =VLOOKUP(AH$64&$Y69,GTYF!$C:$AP,37,FALSE) -> 0
B70: Feuillus tolérants à résineux | D70: 0 | E70: 0 | F70: 0 | G70: 0 | H70: 0 | I70: 0 | J70: 0 | K70: 0 | L70: 0 | M70: 0 | N70: 0 | O70: 0 | S70: Tableau 4. | T70: 0 | U70: 0 | V70: 0 | W70: 0 | Y70: (FCTYF_FTR) | Z70: =VLOOKUP(Z$64&$Y70,GTYF!$C:$AP,6,FALSE) -> 0 | AA70: =VLOOKUP(AA$64&$Y70,GTYF!$C:$AP,37,FALSE) -> 0 | AB70: =VLOOKUP(AB$64&$Y70,GTYF!$C:$AP,37,FALSE) -> 0 | AC70: =VLOOKUP(AC$64&$Y70,GTYF!$C:$AP,37,FALSE) -> 0 | AD70: =VLOOKUP(AD$64&$Y70,GTYF!$C:$AP,37,FALSE) -> 0 | AE70: =VLOOKUP(AE$64&$Y70,GTYF!$C:$AP,37,FALSE) -> 0 | AF70: =VLOOKUP(AF$64&$Y70,GTYF!$C:$AP,37,FALSE) -> 0 | AG70: =VLOOKUP(AG$64&$Y70,GTYF!$C:$AP,37,FALSE) -> 0 | AH70: =VLOOKUP(AH$64&$Y70,GTYF!$C:$AP,37,FALSE) -> 0
B71: Pessières | D71: =ROUND(AA71/5,-1) -> 2100 | E71: 0.6907894737 | F71: 260 | G71: 1 | H71: 232700 | I71: 0.7340694006 | J71: 0 | K71: 0 | L71: 8100 | M71: 0.2148541114 | N71: 240800 | O71: 0.6788835636 | S71: Tableau 4. | T71: 2360 | U71: 0.7151515152 | V71: 2358.2448 | W71: =T71-V71 -> 1.7552 | Y71: (FCTYF_EPX) | Z71: =VLOOKUP(Z$64&$Y71,GTYF!$C:$AP,6,FALSE) -> 231599.8 | AA71: =VLOOKUP(AA$64&$Y71,GTYF!$C:$AP,37,FALSE) -> 10477.224 | AB71: =VLOOKUP(AB$64&$Y71,GTYF!$C:$AP,37,FALSE) -> 1314 | AC71: =VLOOKUP(AC$64&$Y71,GTYF!$C:$AP,37,FALSE) -> 11791.224 | AD71: =VLOOKUP(AD$64&$Y71,GTYF!$C:$AP,37,FALSE) -> 1163439.02 | AE71: =VLOOKUP(AE$64&$Y71,GTYF!$C:$AP,37,FALSE) -> 26.736 | AF71: =VLOOKUP(AF$64&$Y71,GTYF!$C:$AP,37,FALSE) -> 40595.6 | AG71: =VLOOKUP(AG$64&$Y71,GTYF!$C:$AP,37,FALSE) -> 0 | AH71: =VLOOKUP(AH$64&$Y71,GTYF!$C:$AP,37,FALSE) -> 1204034.62
B72: Peupleraies | D72: 0 | E72: 0 | F72: 0 | G72: 0 | H72: 0 | I72: 0 | J72: 0 | K72: 0 | L72: 0 | M72: 0 | N72: 0 | O72: 0 | S72: Tableau 4. | T72: 0 | U72: 0 | V72: 0 | W72: 0 | Y72: (FCTYF_PEU) | Z72: =VLOOKUP(Z$64&$Y72,GTYF!$C:$AP,6,FALSE) -> 0 | AA72: =VLOOKUP(AA$64&$Y72,GTYF!$C:$AP,37,FALSE) -> 0 | AB72: =VLOOKUP(AB$64&$Y72,GTYF!$C:$AP,37,FALSE) -> 0 | AC72: =VLOOKUP(AC$64&$Y72,GTYF!$C:$AP,37,FALSE) -> 0 | AD72: =VLOOKUP(AD$64&$Y72,GTYF!$C:$AP,37,FALSE) -> 0 | AE72: =VLOOKUP(AE$64&$Y72,GTYF!$C:$AP,37,FALSE) -> 0 | AF72: =VLOOKUP(AF$64&$Y72,GTYF!$C:$AP,37,FALSE) -> 0 | AG72: =VLOOKUP(AG$64&$Y72,GTYF!$C:$AP,37,FALSE) -> 0 | AH72: =VLOOKUP(AH$64&$Y72,GTYF!$C:$AP,37,FALSE) -> 0
B73: Peupleraies à résineux | D73: 0 | E73: 0 | F73: 0 | G73: 0 | H73: 0 | I73: 0 | J73: 0 | K73: 0 | L73: 0 | M73: 0 | N73: 0 | O73: 0 | S73: Tableau 4. | T73: 0 | U73: 0 | V73: 0 | W73: 0 | Y73: (FCTYF_PEUR) | Z73: =VLOOKUP(Z$64&$Y73,GTYF!$C:$AP,6,FALSE) -> 0 | AA73: =VLOOKUP(AA$64&$Y73,GTYF!$C:$AP,37,FALSE) -> 0 | AB73: =VLOOKUP(AB$64&$Y73,GTYF!$C:$AP,37,FALSE) -> 0 | AC73: =VLOOKUP(AC$64&$Y73,GTYF!$C:$AP,37,FALSE) -> 0 | AD73: =VLOOKUP(AD$64&$Y73,GTYF!$C:$AP,37,FALSE) -> 0 | AE73: =VLOOKUP(AE$64&$Y73,GTYF!$C:$AP,37,FALSE) -> 0 | AF73: =VLOOKUP(AF$64&$Y73,GTYF!$C:$AP,37,FALSE) -> 0 | AG73: =VLOOKUP(AG$64&$Y73,GTYF!$C:$AP,37,FALSE) -> 0 | AH73: =VLOOKUP(AH$64&$Y73,GTYF!$C:$AP,37,FALSE) -> 0
B74: Pinèdes blanches | D74: 0 | E74: 0 | F74: 0 | G74: 0 | H74: 0 | I74: 0 | J74: 0 | K74: 0 | L74: 0 | M74: 0 | N74: 0 | O74: 0 | S74: Tableau 4. | T74: 0 | U74: 0 | V74: 0 | W74: 0 | Y74: (FCTYF_PIN) | Z74: =VLOOKUP(Z$64&$Y74,GTYF!$C:$AP,6,FALSE) -> 0 | AA74: =VLOOKUP(AA$64&$Y74,GTYF!$C:$AP,37,FALSE) -> 0 | AB74: =VLOOKUP(AB$64&$Y74,GTYF!$C:$AP,37,FALSE) -> 0 | AC74: =VLOOKUP(AC$64&$Y74,GTYF!$C:$AP,37,FALSE) -> 0 | AD74: =VLOOKUP(AD$64&$Y74,GTYF!$C:$AP,37,FALSE) -> 0 | AE74: =VLOOKUP(AE$64&$Y74,GTYF!$C:$AP,37,FALSE) -> 0 | AF74: =VLOOKUP(AF$64&$Y74,GTYF!$C:$AP,37,FALSE) -> 0 | AG74: =VLOOKUP(AG$64&$Y74,GTYF!$C:$AP,37,FALSE) -> 0 | AH74: =VLOOKUP(AH$64&$Y74,GTYF!$C:$AP,37,FALSE) -> 0
B75: Pinèdes grises | D75: 410 | E75: 0.1348684211 | F75: 0 | G75: 0 | H75: 39700 | I75: 0.1252365931 | J75: 0 | K75: 0 | L75: 700 | M75: 0.01856763926 | N75: 40400 | O75: 0.1138990696 | S75: Tableau 4. | T75: 410 | U75: 0.1242424242 | V75: 410.9252 | W75: -0.9252 | Y75: (FCTYF_PIG) | Z75: =VLOOKUP(Z$64&$Y75,GTYF!$C:$AP,6,FALSE) -> 26978.5 | AA75: =VLOOKUP(AA$64&$Y75,GTYF!$C:$AP,37,FALSE) -> 2035.626 | AB75: =VLOOKUP(AB$64&$Y75,GTYF!$C:$AP,37,FALSE) -> 19 | AC75: =VLOOKUP(AC$64&$Y75,GTYF!$C:$AP,37,FALSE) -> 2054.626 | AD75: =VLOOKUP(AD$64&$Y75,GTYF!$C:$AP,37,FALSE) -> 198685.194 | AE75: =VLOOKUP(AE$64&$Y75,GTYF!$C:$AP,37,FALSE) -> 5.574 | AF75: =VLOOKUP(AF$64&$Y75,GTYF!$C:$AP,37,FALSE) -> 3741.782 | AG75: =VLOOKUP(AG$64&$Y75,GTYF!$C:$AP,37,FALSE) -> 0 | AH75: =VLOOKUP(AH$64&$Y75,GTYF!$C:$AP,37,FALSE) -> 202426.976
B76: Prucheraies | D76: 0 | E76: 0 | F76: 0 | G76: 0 | H76: 0 | I76: 0 | J76: 0 | K76: 0 | L76: 0 | M76: 0 | N76: 0 | O76: 0 | S76: Tableau 4. | T76: 0 | U76: 0 | V76: 0 | W76: 0 | Y76: (FCTYF_PRU) | Z76: =VLOOKUP(Z$64&$Y76,GTYF!$C:$AP,6,FALSE) -> 0 | AA76: =VLOOKUP(AA$64&$Y76,GTYF!$C:$AP,37,FALSE) -> 0 | AB76: =VLOOKUP(AB$64&$Y76,GTYF!$C:$AP,37,FALSE) -> 0 | AC76: =VLOOKUP(AC$64&$Y76,GTYF!$C:$AP,37,FALSE) -> 0 | AD76: =VLOOKUP(AD$64&$Y76,GTYF!$C:$AP,37,FALSE) -> 0 | AE76: =VLOOKUP(AE$64&$Y76,GTYF!$C:$AP,37,FALSE) -> 0 | AF76: =VLOOKUP(AF$64&$Y76,GTYF!$C:$AP,37,FALSE) -> 0 | AG76: =VLOOKUP(AG$64&$Y76,GTYF!$C:$AP,37,FALSE) -> 0 | AH76: =VLOOKUP(AH$64&$Y76,GTYF!$C:$AP,37,FALSE) -> 0
B77: Résineux à feuillus | D77: 150 | E77: 0.04934210526 | F77: 0 | G77: 0 | H77: 12700 | I77: 0.04006309148 | J77: 0 | K77: 0 | L77: 6700 | M77: 0.1777188329 | N77: 19400 | O77: 0.0546941077 | S77: Tableau 4. | T77: 150 | U77: 0.04545454545 | V77: 146.8232 | W77: 3.1768 | Y77: (FCTYF_RF) | Z77: =VLOOKUP(Z$64&$Y77,GTYF!$C:$AP,6,FALSE) -> 33362.7 | AA77: =VLOOKUP(AA$64&$Y77,GTYF!$C:$AP,37,FALSE) -> 734.116 | AB77: =VLOOKUP(AB$64&$Y77,GTYF!$C:$AP,37,FALSE) -> 0 | AC77: =VLOOKUP(AC$64&$Y77,GTYF!$C:$AP,37,FALSE) -> 734.116 | AD77: =VLOOKUP(AD$64&$Y77,GTYF!$C:$AP,37,FALSE) -> 63706.95 | AE77: =VLOOKUP(AE$64&$Y77,GTYF!$C:$AP,37,FALSE) -> 0 | AF77: =VLOOKUP(AF$64&$Y77,GTYF!$C:$AP,37,FALSE) -> 33686.748 | AG77: =VLOOKUP(AG$64&$Y77,GTYF!$C:$AP,37,FALSE) -> 0 | AH77: =VLOOKUP(AH$64&$Y77,GTYF!$C:$AP,37,FALSE) -> 97393.696
B78: Sapinières | D78: 180 | E78: 0.05921052632 | F78: 0 | G78: 0 | H78: 24400 | I78: 0.07697160883 | J78: =ROUND(AG78/5,-2) -> 0 | K78: 0 | L78: 1800 | M78: 0.04774535809 | N78: 26200 | O78: 0.07386523823 | S78: Tableau 4. | T78: 180 | U78: 0.05454545455 | V78: 183.268 | W78: -3.268 | Y78: (FCTYF_SAB) | Z78: =VLOOKUP(Z$64&$Y78,GTYF!$C:$AP,6,FALSE) -> 6116.5 | AA78: =VLOOKUP(AA$64&$Y78,GTYF!$C:$AP,37,FALSE) -> 916.34 | AB78: =VLOOKUP(AB$64&$Y78,GTYF!$C:$AP,37,FALSE) -> 0 | AC78: =VLOOKUP(AC$64&$Y78,GTYF!$C:$AP,37,FALSE) -> 916.34 | AD78: =VLOOKUP(AD$64&$Y78,GTYF!$C:$AP,37,FALSE) -> 122174.114 | AE78: =VLOOKUP(AE$64&$Y78,GTYF!$C:$AP,37,FALSE) -> 0 | AF78: =VLOOKUP(AF$64&$Y78,GTYF!$C:$AP,37,FALSE) -> 8802.906 | AG78: =VLOOKUP(AG$64&$Y78,GTYF!$C:$AP,37,FALSE) -> 0 | AH78: =VLOOKUP(AH$64&$Y78,GTYF!$C:$AP,37,FALSE) -> 130977.018
B79: Total | D79: =SUM(D65:D78) -> 3040 | E79: =SUM(E65:E78) -> 1 | F79: =SUM(F65:F78) -> 260 | G79: =SUM(G65:G78) -> 1 | H79: =SUM(H65:H78) -> 317000 | I79: =SUM(I65:I78) -> 1 | J79: 0 | K79: 0 | L79: 37700 | M79: 1 | N79: =SUM(N65:N78) -> 354700 | O79: 1 | S79: Tableau 4. | T79: =SUM(T65:T78) -> 3300 | U79: =SUM(U65:U78) -> 1 | V79: =SUM(V65:V78) -> 3295.5236 | W79: 4.4764 | Y79: Somme | Z79: =SUM(Z65:Z78) -> 311440.6 | AA79: =SUM(AA65:AA78) -> 15144.618 | AB79: =SUM(AB65:AB78) -> 1333 | AC79: =SUM(AC65:AC78) -> 16477.618
B80: * Les superficies sont arrondies à la dizaine près et les volumes à la centaine près. Cette opération peut engendrer de légères distorsions sur les sommes | S80: Tableau 4. | Y80: Total (Output) | Z80: =VLOOKUP(Z$64,Output!$C:$AP,6,FALSE) -> 343555.4
Y81: Écart | Z81: =Z79-Z80 -> -32114.8
N82: Écart de possibilité
N83: =Instructions!I5/5-N79 -> 260 | O83: Valideur
B84: Tableau 8. Traitements commerciaux supportant les possibilités forestières
B85: Traitements commerciaux (récolte) | G85: Superficie annuelle moyenne (ha/an) | H85: Superficie antérieure (ha/an) | I85: Écart (ha/an)
T88: Légende | U88: Name | V88: PERIOD2@6
B89: Coupe avec protection de la régénération et des sols (CPRS) | G89: =IFERROR(ROUND(V89,-1),0)-G90-G91 -> 3030 | H89: =IFERROR(ROUND(VLOOKUP(O33,DataLocal!$A:$BH,37,FALSE),-1),0) -> 3650 | I89: =G89-H89 -> -620 | J89: 3030 | K89: 3650 | S89: =LEFT(B$84,10) -> Tableau 8. | T89: Coupes avec protection de la régénération et des sols (CPRS) | U89: OSUPCT | V89: =IFERROR(VLOOKUP(U89,Output!$C:$AQ,37,FALSE)/5,"0000") -> 3028.9236
B90: Coupe avec protection des petites tiges marchandes (CPPTM) | G90: =IFERROR(ROUND(V90,-1),0) -> 0 | H90: =IFERROR(ROUND(VLOOKUP(O33,DataLocal!$A:$BH,38,FALSE),-1),0) -> 50 | I90: =G90-H90 -> -50 | J90: 0 | K90: 50 | S90: Tableau 8. | T90: Coupe avec protection des petites tiges marchandes (CPPTM) | U90: OSUPREALACPPTM | V90: =IFERROR(VLOOKUP(U90,Output!$C:$AQ,37,FALSE)/5,"0000") -> 0
B91: Coupe avec réserve de semenciers (CRS) | G91: =IFERROR(ROUND(V91,-1),0) -> 0 | H91: =IFERROR(ROUND(VLOOKUP(33,DataLocal!$A:$BH,39,FALSE),-1),0) -> 0 | I91: 0 | J91: 0 | K91: 0 | S91: Tableau 8. | T91: Coupe avec réserve de semenciers (CRS) | U91: OSUPREALACRS | V91: =IFERROR(VLOOKUP(U91,Output!$C:$AQ,37,FALSE)/5,"0000") -> 0
B92: Total des coupes finales | G92: =SUM(G89:G91) -> 3030 | H92: =SUM(H89:H91) -> 3700 | I92: -670 | J92: 3030 | K92: 3700 | S92: Tableau 8.
B93: Éclaircie commerciale | G93: =IFERROR(ROUND(V93,-1),0) -> 20 | H93: =IFERROR(ROUND(VLOOKUP(O33,DataLocal!$A:$BH,40,FALSE),-1),0) -> 80 | I93: -60 | J93: 20 | K93: 80 | S93: Tableau 8. | T93: Éclaircie commerciale (EC) | U93: OSUPEC_SEPM | V93: =IFERROR(VLOOKUP(U93,Output!$C:$AQ,37,FALSE)/5,"0000") -> 19
B94: Coupe progressive régulière | G94: =IFERROR(ROUND(V94+V95,-1),0) -> 0 | H94: =IFERROR(ROUND(VLOOKUP(O33,DataLocal!$A:$BH,41,FALSE),-1),0) -> 0 | I94: 0 | J94: 0 | K94: 0 | S94: Tableau 8. | T94: Coupe progressive régulière initiale (CPROG) | U94: OSUPCPROG_INI | V94: =IFERROR(VLOOKUP(U94,Output!$C:$AQ,37,FALSE)/5,"0000") -> 0000
B95: Coupe progressive irrégulière à régénération lente (CPIL) | G95: =IFERROR(ROUND(V96+V97,-1),0) -> 250 | H95: =IFERROR(ROUND(VLOOKUP(O33,DataLocal!$A:$BH,42,FALSE),-1),0) -> 110 | I95: 140 | J95: 250 | K95: 110 | S95: Tableau 8. | T95: Coupe progressive régulière finale (CPROG) | U95: OSUPCPROG_FIN | V95: =IFERROR(VLOOKUP(U95,Output!$C:$AQ,37,FALSE)/5,"0000") -> 0000
B96: Coupe progressive irrégulière à couvert permanent (CPICP) | G96: =IFERROR(ROUND(V98,-1),0) -> 0 | H96: =IFERROR(ROUND(VLOOKUP(O33,DataLocal!$A:$BH,43,FALSE),-1),0) -> 0 | I96: 0 | J96: 0 | K96: 0 | S96: Tableau 8. | T96: Coupe progessive irrégulière initiale (CPIRL) | U96: OSUPCPIRL_INI | V96: =IFERROR(VLOOKUP(U96,Output!$C:$AQ,37,FALSE)/5,"0000") -> 247.6
B97: Coupes de jardinage ou d'amélioration | G97: =IFERROR(ROUND(V99,-1),0) -> 0 | H97: =IFERROR(ROUND(VLOOKUP(O33,DataLocal!$A:$BH,44,FALSE),-1),0) -> 0 | I97: 0 | J97: 0 | K97: 0 | T97: Coupe progessive irrégulière finale (CPIRL) | U97: OSUPCPIRL_FIN | V97: =IFERROR(VLOOKUP(U97,Output!$C:$AQ,37,FALSE)/5,"0000") -> 0
B98: Total des coupes partielles | G98: =SUM(G93:G97) -> 270 | H98: =SUM(H93:H97) -> 190 | I98: 80 | J98: 270 | K98: 190 | S98: =LEFT(B$84,10) -> Tableau 8. | T98: Coupe à couvert permanent (CPICP) | U98: OSUPCPICP | V98: =IFERROR(VLOOKUP(U98,Output!$C:$AQ,37,FALSE)/5,"0000") -> 0000
B99: Total des activités de récolte | G99: =G92+G98 -> 3300 | H99: =H98+H92 -> 3890 | I99: -590 | J99: 3300 | K99: 3890 | S99: =LEFT(B$84,10) -> Tableau 8. | T99: Coupe de jardinage (CJ) | U99: OSUPCJ | V99: =IFERROR(VLOOKUP(U99,Output!$C:$AQ,37,FALSE)/5,"0000") -> 0000
B100: % des coupes totales / récolte | G100: =IFERROR(G92/G99,0) -> 0.9181818182 | H100: =IFERROR(H92/H99,0) -> 0.9511568123 | I100: =ROUND(G100-H100,2) -> -0.03 | J100: 0.9181818182 | K100: 0.9511568123 | W100: Valideur
B101: % des coupes partielles / récolte | G101: =IFERROR(G98/G99,0) -> 0.08181818182 | H101: =IFERROR(H98/H99,0) -> 0.04884318766 | I101: =ROUND(G101-H101,2) -> 0.03 | J101: 0.08181818182 | K101: 0.04884318766 | S101: =LEFT(B$84,10) -> Tableau 8. | U101: OSUPREALREGAPAR | V101: =VLOOKUP(U101,Output!$C:$AQ,37,FALSE)/5 -> 266.6 | W101: =ROUND(SUM(V93:V99),0)=ROUND(V101,0) -> TRUE
B102: Coupes partielles de peuplements résineux | G102: =ROUND((AB67+AB71+AB75+AB76+AB77+AB78)/5,-1) -> 270 | H102: =IFERROR(ROUND(VLOOKUP(O33,DataLocal!$A:$BH,45,FALSE),-1),0) -> 190 | I102: 80 | S102: =LEFT(B$84,10) -> Tableau 8. | U102: OSUPREALREGAFIN | V102: =VLOOKUP(U102,Output!$C:$AQ,37,FALSE)/5 -> 3028.9236 | W102: =ROUND((V89),0)=ROUND(V102,0) -> TRUE
B103: Coupes partielles de peuplements de feuillus tolérants et de pins | G103: =(AB69+AB70+AB74)/5 -> 0 | H103: =IFERROR(ROUND(VLOOKUP(O33,DataLocal!$A:$BH,46,FALSE),-1),0) -> 0 | I103: 0 | S103: =LEFT(B$84,10) -> Tableau 8. | U103: OSUPREALREGAPRE | V103: =VLOOKUP(U103,Output!$C:$AQ,37,FALSE)/5 -> 3295.5236 | W103: =ROUND(V89+SUM(V93:V99),0)=ROUND(V103,0) -> TRUE
B109: Tableau 9. Variables descriptives reliées aux coupes partielles et totales par grand type de forêt | L109: La CRV est-elle compabilisée avec les coupes partielles (regaPar)?
B110: Grands types de forêt | E110: Coupes partielles | H110: Coupes totales | L110: Si Oui - Remplacer alors les valeurs (colonne H et I) par celles-ci
E111: Rotation moyenne | F111: Prélèvement moyen | G111: Surface terrière moyenne avant coupe | H111: Âge moyen des peuplements | I111: Volume moyen toutes essences | J111: Dimension des bois SEPM | M111: Âge moyen des peuplements | N111: Volume moyen toutes essences
S113: Référence Tableau 63 du cahier d'analyse VF
E115: Années | F115: ="m"&CHAR(179)&"/ha" -> m³/ha | G115: ="m"&CHAR(178)&"/ha" -> m²/ha | H115: Années | I115: ="m"&CHAR(179)&"/an" -> m³/an | J115: ="dcm"&CHAR(179)&"/tige" -> dcm³/tige | M115: Années | N115: ="m"&CHAR(179)&"/an" -> m³/an | S115: =LEFT(B$109,10) -> Tableau 9. | V115: OSUPREALREGAPRE | W115: OSUPINC | X115: OVOLGSEPMRECREGAFIN | Y115: ONBTGSEPMRECREGAFIN | Z115: OVOLTOTRECACT | AA115: OVOLTOTRECACFP | AB115: OVOLTOTRECACRS | AC115: OVOLTOTRECACPPTM | AD115: OSUPREALREGAFIN | AE115: OVOLTOTRECACRV | AF115: OAGETOTRECACT | AG115: OAGETOTRECACFP | AH115: OAGETOTRECACRS | AI115: OAGETOTRECACPPTM | AJ115: OSUPREALREGAFIN | AK115: OAGETOTRECACRV | AM115: OVOLTOTRECaEC | AN115: OVOLTOTRECaEC2 | AO115: OVOLTOTRECaEC3 | AP115: OVOLTOTRECaCA | AQ115: OVOLTOTRECaCA2 | AR115: OVOLTOTRECaCPROG | AS115: OVOLTOTRECaCPIL | AT115: OVOLTOTRECaCPIP | AU115: OVOLTOTRECaCPFORT | AV115: OVOLTOTRECaCPFAIBL | AW115: OVOLTOTRECaCP | AX115: OVOLTOTRECaCPJ | AY115: OVOLTOTRECaCJ | AZ115: SOMME | BA115: OSUPREALREGAPAR
B116: =T116 -> Bétulaies blanches | E116: - | F116: =IFERROR($AZ116/$BA116,"-") -> - | G116: - | H116: =IFERROR(($AF116+$AG116+$AH116+$AI116+$AK116)/$AJ116*5,"-") -> 94.94891469 | I116: =IFERROR(($Z116+$AA116+$AB116+$AC116+$AE116)/$AD116,"-") -> 132.4864424 | J116: =(IFERROR(X116/Y116*1000,"-")) -> 102.5071218 | M116: =IFERROR(($AF116+$AG116+$AH116+$AI116)/$AJ116*5,"-") -> 94.94891469 | N116: =IFERROR(($Z116+$AA116+$AB116+$AC116)/$AD116,"-") -> 132.4864424 | S116: =LEFT(B$109,10) -> Tableau 9. | T116: Bétulaies blanches | U116: (FCTYF_BOP) | V116: =VLOOKUP(V$115&$U116,GTYF!$C:$AQ,37,FALSE) -> 485.854 | W116: =VLOOKUP(W$115&$U116,GTYF!$C:$AQ,6,FALSE) -> 6660.6 | X116: =VLOOKUP(X$115&$U116,GTYF!$C:$AQ,37,FALSE) -> 6199.282 | Y116: =VLOOKUP(Y$115&$U116,GTYF!$C:$AQ,37,FALSE) -> 60476.598 | Z116: =VLOOKUP(Z$115&$U116,GTYF!$C:$AQ,37,FALSE) -> 64369.068 | AA116: =VLOOKUP(AA$115&$U116,GTYF!$C:$AQ,37,FALSE) -> 0 | AB116: =VLOOKUP(AB$115&$U116,GTYF!$C:$AQ,37,FALSE) -> 0 | AC116: =VLOOKUP(AC$115&$U116,GTYF!$C:$AQ,37,FALSE) -> 0 | AD116: =VLOOKUP(AD$115&$U116,GTYF!$C:$AQ,37,FALSE) -> 485.854 | AE116: =VLOOKUP(AE$115&$U116,GTYF!$C:$AQ,37,FALSE) -> 0 | AF116: =VLOOKUP(AF$115&$U116,GTYF!$C:$AQ,37,FALSE) -> 9226.262 | AG116: =VLOOKUP(AG$115&$U116,GTYF!$C:$AQ,37,FALSE) -> 0 | AH116: =VLOOKUP(AH$115&$U116,GTYF!$C:$AQ,37,FALSE) -> 0 | AI116: =VLOOKUP(AI$115&$U116,GTYF!$C:$AQ,37,FALSE) -> 0 | AJ116: =VLOOKUP(AJ$115&$U116,GTYF!$C:$AQ,37,FALSE) -> 485.854 | AK116: =VLOOKUP(AK$115&$U116,GTYF!$C:$AQ,37,FALSE) -> 0 | AM116: =VLOOKUP(AM$115&$U116,GTYF!$C:$AQ,37,FALSE) -> 0 | AN116: =VLOOKUP(AN$115&$U116,GTYF!$C:$AQ,37,FALSE) -> 0 | AO116: =VLOOKUP(AO$115&$U116,GTYF!$C:$AQ,37,FALSE) -> 0 | AP116: =VLOOKUP(AP$115&$U116,GTYF!$C:$AQ,37,FALSE) -> 0 | AQ116: =VLOOKUP(AQ$115&$U116,GTYF!$C:$AQ,37,FALSE) -> 0 | AR116: =VLOOKUP(AR$115&$U116,GTYF!$C:$AQ,37,FALSE) -> 0 | AS116: =VLOOKUP(AS$115&$U116,GTYF!$C:$AQ,37,FALSE) -> 0 | AT116: =VLOOKUP(AT$115&$U116,GTYF!$C:$AQ,37,FALSE) -> 0 | AU116: =VLOOKUP(AU$115&$U116,GTYF!$C:$AQ,37,FALSE) -> 0 | AV116: =VLOOKUP(AV$115&$U116,GTYF!$C:$AQ,37,FALSE) -> 0 | AW116: =VLOOKUP(AW$115&$U116,GTYF!$C:$AQ,37,FALSE) -> 0 | AX116: =VLOOKUP(AX$115&$U116,GTYF!$C:$AQ,37,FALSE) -> 0 | AY116: =VLOOKUP(AY$115&$U116,GTYF!$C:$AQ,37,FALSE) -> 0 | AZ116: =SUM(AM116:AY116) -> 0 | BA116: =VLOOKUP(BA$115&$U116,GTYF!$C:$AQ,37,FALSE) -> 0
B117: Bétulaies blanches à résineux | E117: - | F117: - | G117: - | H117: =IFERROR(($AF117+$AG117+$AH117+$AI117+$AK117)/$AJ117*5,"-") -> 100.059117 | I117: =IFERROR(($Z117+$AA117+$AB117+$AC117+$AE117)/$AD117,"-") -> 152.5833068 | J117: =(IFERROR(X117/Y117*1000,"-")) -> 158.4007242 | M117: =IFERROR(($AF117+$AG117+$AH117+$AI117)/$AJ117*5,"-") -> 100.059117 | N117: =IFERROR(($Z117+$AA117+$AB117+$AC117)/$AD117,"-") -> 152.5833068 | S117: Tableau 9. | T117: Bétulaies blanches à résineux | U117: (FCTYF_BOPR) | V117: =VLOOKUP(V$115&$U117,GTYF!$C:$AQ,37,FALSE) -> 495.458 | W117: =VLOOKUP(W$115&$U117,GTYF!$C:$AQ,6,FALSE) -> 6722.5 | X117: =VLOOKUP(X$115&$U117,GTYF!$C:$AQ,37,FALSE) -> 31495.442 | Y117: =VLOOKUP(Y$115&$U117,GTYF!$C:$AQ,37,FALSE) -> 198833.952 | Z117: =VLOOKUP(Z$115&$U117,GTYF!$C:$AQ,37,FALSE) -> 75598.62 | AA117: =VLOOKUP(AA$115&$U117,GTYF!$C:$AQ,37,FALSE) -> 0 | AB117: =VLOOKUP(AB$115&$U117,GTYF!$C:$AQ,37,FALSE) -> 0 | AC117: =VLOOKUP(AC$115&$U117,GTYF!$C:$AQ,37,FALSE) -> 0 | AD117: =VLOOKUP(AD$115&$U117,GTYF!$C:$AQ,37,FALSE) -> 495.458 | AE117: =VLOOKUP(AE$115&$U117,GTYF!$C:$AQ,37,FALSE) -> 0 | AF117: =VLOOKUP(AF$115&$U117,GTYF!$C:$AQ,37,FALSE) -> 9915.018 | AG117: =VLOOKUP(AG$115&$U117,GTYF!$C:$AQ,37,FALSE) -> 0 | AH117: =VLOOKUP(AH$115&$U117,GTYF!$C:$AQ,37,FALSE) -> 0 | AI117: =VLOOKUP(AI$115&$U117,GTYF!$C:$AQ,37,FALSE) -> 0 | AJ117: =VLOOKUP(AJ$115&$U117,GTYF!$C:$AQ,37,FALSE) -> 495.458 | AK117: =VLOOKUP(AK$115&$U117,GTYF!$C:$AQ,37,FALSE) -> 0 | AM117: =VLOOKUP(AM$115&$U117,GTYF!$C:$AQ,37,FALSE) -> 0 | AN117: =VLOOKUP(AN$115&$U117,GTYF!$C:$AQ,37,FALSE) -> 0 | AO117: =VLOOKUP(AO$115&$U117,GTYF!$C:$AQ,37,FALSE) -> 0 | AP117: =VLOOKUP(AP$115&$U117,GTYF!$C:$AQ,37,FALSE) -> 0 | AQ117: =VLOOKUP(AQ$115&$U117,GTYF!$C:$AQ,37,FALSE) -> 0 | AR117: =VLOOKUP(AR$115&$U117,GTYF!$C:$AQ,37,FALSE) -> 0 | AS117: =VLOOKUP(AS$115&$U117,GTYF!$C:$AQ,37,FALSE) -> 0 | AT117: =VLOOKUP(AT$115&$U117,GTYF!$C:$AQ,37,FALSE) -> 0 | AU117: =VLOOKUP(AU$115&$U117,GTYF!$C:$AQ,37,FALSE) -> 0 | AV117: =VLOOKUP(AV$115&$U117,GTYF!$C:$AQ,37,FALSE) -> 0 | AW117: =VLOOKUP(AW$115&$U117,GTYF!$C:$AQ,37,FALSE) -> 0 | AX117: =VLOOKUP(AX$115&$U117,GTYF!$C:$AQ,37,FALSE) -> 0 | AY117: =VLOOKUP(AY$115&$U117,GTYF!$C:$AQ,37,FALSE) -> 0 | AZ117: =SUM(AM117:AY117) -> 0 | BA117: =VLOOKUP(BA$115&$U117,GTYF!$C:$AQ,37,FALSE) -> 0
B118: Cédrières | E118: - | F118: - | G118: - | H118: =IFERROR(($AF118+$AG118+$AH118+$AI118+$AK118)/$AJ118*5,"-") -> - | I118: - | J118: =(IFERROR(X118/Y118*1000,"-")) -> - | M118: - | N118: - | S118: Tableau 9. | T118: Cédrières | U118: (FCTYF_THO) | V118: =VLOOKUP(V$115&$U118,GTYF!$C:$AQ,37,FALSE) -> 0 | W118: =VLOOKUP(W$115&$U118,GTYF!$C:$AQ,6,FALSE) -> 0 | X118: =VLOOKUP(X$115&$U118,GTYF!$C:$AQ,37,FALSE) -> 0 | Y118: =VLOOKUP(Y$115&$U118,GTYF!$C:$AQ,37,FALSE) -> 0 | Z118: =VLOOKUP(Z$115&$U118,GTYF!$C:$AQ,37,FALSE) -> 0 | AA118: =VLOOKUP(AA$115&$U118,GTYF!$C:$AQ,37,FALSE) -> 0 | AB118: =VLOOKUP(AB$115&$U118,GTYF!$C:$AQ,37,FALSE) -> 0 | AC118: =VLOOKUP(AC$115&$U118,GTYF!$C:$AQ,37,FALSE) -> 0 | AD118: =VLOOKUP(AD$115&$U118,GTYF!$C:$AQ,37,FALSE) -> 0 | AE118: =VLOOKUP(AE$115&$U118,GTYF!$C:$AQ,37,FALSE) -> 0 | AF118: =VLOOKUP(AF$115&$U118,GTYF!$C:$AQ,37,FALSE) -> 0 | AG118: =VLOOKUP(AG$115&$U118,GTYF!$C:$AQ,37,FALSE) -> 0 | AH118: =VLOOKUP(AH$115&$U118,GTYF!$C:$AQ,37,FALSE) -> 0 | AI118: =VLOOKUP(AI$115&$U118,GTYF!$C:$AQ,37,FALSE) -> 0 | AJ118: =VLOOKUP(AJ$115&$U118,GTYF!$C:$AQ,37,FALSE) -> 0 | AK118: =VLOOKUP(AK$115&$U118,GTYF!$C:$AQ,37,FALSE) -> 0 | AM118: =VLOOKUP(AM$115&$U118,GTYF!$C:$AQ,37,FALSE) -> 0 | AN118: =VLOOKUP(AN$115&$U118,GTYF!$C:$AQ,37,FALSE) -> 0 | AO118: =VLOOKUP(AO$115&$U118,GTYF!$C:$AQ,37,FALSE) -> 0 | AP118: =VLOOKUP(AP$115&$U118,GTYF!$C:$AQ,37,FALSE) -> 0 | AQ118: =VLOOKUP(AQ$115&$U118,GTYF!$C:$AQ,37,FALSE) -> 0 | AR118: =VLOOKUP(AR$115&$U118,GTYF!$C:$AQ,37,FALSE) -> 0 | AS118: =VLOOKUP(AS$115&$U118,GTYF!$C:$AQ,37,FALSE) -> 0 | AT118: =VLOOKUP(AT$115&$U118,GTYF!$C:$AQ,37,FALSE) -> 0 | AU118: =VLOOKUP(AU$115&$U118,GTYF!$C:$AQ,37,FALSE) -> 0 | AV118: =VLOOKUP(AV$115&$U118,GTYF!$C:$AQ,37,FALSE) -> 0 | AW118: =VLOOKUP(AW$115&$U118,GTYF!$C:$AQ,37,FALSE) -> 0 | AX118: =VLOOKUP(AX$115&$U118,GTYF!$C:$AQ,37,FALSE) -> 0 | AY118: =VLOOKUP(AY$115&$U118,GTYF!$C:$AQ,37,FALSE) -> 0 | AZ118: 0 | BA118: =VLOOKUP(BA$115&$U118,GTYF!$C:$AQ,37,FALSE) -> 0
B119: Érablières rouges | E119: - | F119: - | G119: - | H119: - | I119: - | J119: - | M119: - | N119: - | S119: Tableau 9. | T119: Érablières rouges | U119: (FCTYF_ERO) | V119: =VLOOKUP(V$115&$U119,GTYF!$C:$AQ,37,FALSE) -> 0 | W119: =VLOOKUP(W$115&$U119,GTYF!$C:$AQ,6,FALSE) -> 0 | X119: =VLOOKUP(X$115&$U119,GTYF!$C:$AQ,37,FALSE) -> 0 | Y119: =VLOOKUP(Y$115&$U119,GTYF!$C:$AQ,37,FALSE) -> 0 | Z119: =VLOOKUP(Z$115&$U119,GTYF!$C:$AQ,37,FALSE) -> 0 | AA119: =VLOOKUP(AA$115&$U119,GTYF!$C:$AQ,37,FALSE) -> 0 | AB119: =VLOOKUP(AB$115&$U119,GTYF!$C:$AQ,37,FALSE) -> 0 | AC119: =VLOOKUP(AC$115&$U119,GTYF!$C:$AQ,37,FALSE) -> 0 | AD119: =VLOOKUP(AD$115&$U119,GTYF!$C:$AQ,37,FALSE) -> 0 | AE119: =VLOOKUP(AE$115&$U119,GTYF!$C:$AQ,37,FALSE) -> 0 | AF119: =VLOOKUP(AF$115&$U119,GTYF!$C:$AQ,37,FALSE) -> 0 | AG119: =VLOOKUP(AG$115&$U119,GTYF!$C:$AQ,37,FALSE) -> 0 | AH119: =VLOOKUP(AH$115&$U119,GTYF!$C:$AQ,37,FALSE) -> 0 | AI119: =VLOOKUP(AI$115&$U119,GTYF!$C:$AQ,37,FALSE) -> 0 | AJ119: =VLOOKUP(AJ$115&$U119,GTYF!$C:$AQ,37,FALSE) -> 0 | AK119: =VLOOKUP(AK$115&$U119,GTYF!$C:$AQ,37,FALSE) -> 0 | AM119: =VLOOKUP(AM$115&$U119,GTYF!$C:$AQ,37,FALSE) -> 0 | AN119: =VLOOKUP(AN$115&$U119,GTYF!$C:$AQ,37,FALSE) -> 0 | AO119: =VLOOKUP(AO$115&$U119,GTYF!$C:$AQ,37,FALSE) -> 0 | AP119: =VLOOKUP(AP$115&$U119,GTYF!$C:$AQ,37,FALSE) -> 0 | AQ119: =VLOOKUP(AQ$115&$U119,GTYF!$C:$AQ,37,FALSE) -> 0 | AR119: =VLOOKUP(AR$115&$U119,GTYF!$C:$AQ,37,FALSE) -> 0 | AS119: =VLOOKUP(AS$115&$U119,GTYF!$C:$AQ,37,FALSE) -> 0 | AT119: =VLOOKUP(AT$115&$U119,GTYF!$C:$AQ,37,FALSE) -> 0 | AU119: =VLOOKUP(AU$115&$U119,GTYF!$C:$AQ,37,FALSE) -> 0 | AV119: =VLOOKUP(AV$115&$U119,GTYF!$C:$AQ,37,FALSE) -> 0 | AW119: =VLOOKUP(AW$115&$U119,GTYF!$C:$AQ,37,FALSE) -> 0 | AX119: =VLOOKUP(AX$115&$U119,GTYF!$C:$AQ,37,FALSE) -> 0 | AY119: =VLOOKUP(AY$115&$U119,GTYF!$C:$AQ,37,FALSE) -> 0 | AZ119: 0 | BA119: =VLOOKUP(BA$115&$U119,GTYF!$C:$AQ,37,FALSE) -> 0
B120: Feuillus tolérants | E120: - | F120: - | G120: - | H120: - | I120: - | J120: - | M120: - | N120: - | S120: Tableau 9. | T120: Feuillus tolérants | U120: (FCTYF_FT) | V120: =VLOOKUP(V$115&$U120,GTYF!$C:$AQ,37,FALSE) -> 0 | W120: =VLOOKUP(W$115&$U120,GTYF!$C:$AQ,6,FALSE) -> 0 | X120: =VLOOKUP(X$115&$U120,GTYF!$C:$AQ,37,FALSE) -> 0 | Y120: =VLOOKUP(Y$115&$U120,GTYF!$C:$AQ,37,FALSE) -> 0 | Z120: =VLOOKUP(Z$115&$U120,GTYF!$C:$AQ,37,FALSE) -> 0 | AA120: =VLOOKUP(AA$115&$U120,GTYF!$C:$AQ,37,FALSE) -> 0 | AB120: =VLOOKUP(AB$115&$U120,GTYF!$C:$AQ,37,FALSE) -> 0 | AC120: =VLOOKUP(AC$115&$U120,GTYF!$C:$AQ,37,FALSE) -> 0 | AD120: =VLOOKUP(AD$115&$U120,GTYF!$C:$AQ,37,FALSE) -> 0 | AE120: =VLOOKUP(AE$115&$U120,GTYF!$C:$AQ,37,FALSE) -> 0 | AF120: =VLOOKUP(AF$115&$U120,GTYF!$C:$AQ,37,FALSE) -> 0 | AG120: =VLOOKUP(AG$115&$U120,GTYF!$C:$AQ,37,FALSE) -> 0 | AH120: =VLOOKUP(AH$115&$U120,GTYF!$C:$AQ,37,FALSE) -> 0 | AI120: =VLOOKUP(AI$115&$U120,GTYF!$C:$AQ,37,FALSE) -> 0 | AJ120: =VLOOKUP(AJ$115&$U120,GTYF!$C:$AQ,37,FALSE) -> 0 | AK120: =VLOOKUP(AK$115&$U120,GTYF!$C:$AQ,37,FALSE) -> 0 | AM120: =VLOOKUP(AM$115&$U120,GTYF!$C:$AQ,37,FALSE) -> 0 | AN120: =VLOOKUP(AN$115&$U120,GTYF!$C:$AQ,37,FALSE) -> 0 | AO120: =VLOOKUP(AO$115&$U120,GTYF!$C:$AQ,37,FALSE) -> 0 | AP120: =VLOOKUP(AP$115&$U120,GTYF!$C:$AQ,37,FALSE) -> 0 | AQ120: =VLOOKUP(AQ$115&$U120,GTYF!$C:$AQ,37,FALSE) -> 0 | AR120: =VLOOKUP(AR$115&$U120,GTYF!$C:$AQ,37,FALSE) -> 0 | AS120: =VLOOKUP(AS$115&$U120,GTYF!$C:$AQ,37,FALSE) -> 0 | AT120: =VLOOKUP(AT$115&$U120,GTYF!$C:$AQ,37,FALSE) -> 0 | AU120: =VLOOKUP(AU$115&$U120,GTYF!$C:$AQ,37,FALSE) -> 0 | AV120: =VLOOKUP(AV$115&$U120,GTYF!$C:$AQ,37,FALSE) -> 0 | AW120: =VLOOKUP(AW$115&$U120,GTYF!$C:$AQ,37,FALSE) -> 0 | AX120: =VLOOKUP(AX$115&$U120,GTYF!$C:$AQ,37,FALSE) -> 0 | AY120: =VLOOKUP(AY$115&$U120,GTYF!$C:$AQ,37,FALSE) -> 0 | AZ120: 0 | BA120: =VLOOKUP(BA$115&$U120,GTYF!$C:$AQ,37,FALSE) -> 0
B121: Feuillus tolérants à résineux | E121: - | F121: =IFERROR($AZ121/$BA121,"-") -> - | G121: - | H121: - | I121: - | J121: - | M121: - | N121: - | S121: Tableau 9. | T121: Feuillus tolérants à résineux | U121: (FCTYF_FTR) | V121: =VLOOKUP(V$115&$U121,GTYF!$C:$AQ,37,FALSE) -> 0 | W121: =VLOOKUP(W$115&$U121,GTYF!$C:$AQ,6,FALSE) -> 0 | X121: =VLOOKUP(X$115&$U121,GTYF!$C:$AQ,37,FALSE) -> 0 | Y121: =VLOOKUP(Y$115&$U121,GTYF!$C:$AQ,37,FALSE) -> 0 | Z121: =VLOOKUP(Z$115&$U121,GTYF!$C:$AQ,37,FALSE) -> 0 | AA121: =VLOOKUP(AA$115&$U121,GTYF!$C:$AQ,37,FALSE) -> 0 | AB121: =VLOOKUP(AB$115&$U121,GTYF!$C:$AQ,37,FALSE) -> 0 | AC121: =VLOOKUP(AC$115&$U121,GTYF!$C:$AQ,37,FALSE) -> 0 | AD121: =VLOOKUP(AD$115&$U121,GTYF!$C:$AQ,37,FALSE) -> 0 | AE121: =VLOOKUP(AE$115&$U121,GTYF!$C:$AQ,37,FALSE) -> 0 | AF121: =VLOOKUP(AF$115&$U121,GTYF!$C:$AQ,37,FALSE) -> 0 | AG121: =VLOOKUP(AG$115&$U121,GTYF!$C:$AQ,37,FALSE) -> 0 | AH121: =VLOOKUP(AH$115&$U121,GTYF!$C:$AQ,37,FALSE) -> 0 | AI121: =VLOOKUP(AI$115&$U121,GTYF!$C:$AQ,37,FALSE) -> 0 | AJ121: =VLOOKUP(AJ$115&$U121,GTYF!$C:$AQ,37,FALSE) -> 0 | AK121: =VLOOKUP(AK$115&$U121,GTYF!$C:$AQ,37,FALSE) -> 0 | AM121: =VLOOKUP(AM$115&$U121,GTYF!$C:$AQ,37,FALSE) -> 0 | AN121: =VLOOKUP(AN$115&$U121,GTYF!$C:$AQ,37,FALSE) -> 0 | AO121: =VLOOKUP(AO$115&$U121,GTYF!$C:$AQ,37,FALSE) -> 0 | AP121: =VLOOKUP(AP$115&$U121,GTYF!$C:$AQ,37,FALSE) -> 0 | AQ121: =VLOOKUP(AQ$115&$U121,GTYF!$C:$AQ,37,FALSE) -> 0 | AR121: =VLOOKUP(AR$115&$U121,GTYF!$C:$AQ,37,FALSE) -> 0 | AS121: =VLOOKUP(AS$115&$U121,GTYF!$C:$AQ,37,FALSE) -> 0 | AT121: =VLOOKUP(AT$115&$U121,GTYF!$C:$AQ,37,FALSE) -> 0 | AU121: =VLOOKUP(AU$115&$U121,GTYF!$C:$AQ,37,FALSE) -> 0 | AV121: =VLOOKUP(AV$115&$U121,GTYF!$C:$AQ,37,FALSE) -> 0 | AW121: =VLOOKUP(AW$115&$U121,GTYF!$C:$AQ,37,FALSE) -> 0 | AX121: =VLOOKUP(AX$115&$U121,GTYF!$C:$AQ,37,FALSE) -> 0 | AY121: =VLOOKUP(AY$115&$U121,GTYF!$C:$AQ,37,FALSE) -> 0 | AZ121: =SUM(AM121:AY121) -> 0 | BA121: =VLOOKUP(BA$115&$U121,GTYF!$C:$AQ,37,FALSE) -> 0
B122: Pessières | E122: 48 | F122: 73.50997108 | G122: 28 | H122: >120 | I122: 105.6999944 | J122: 105.5213054 | M122: 137.6495892 | N122: 105.6999944 | S122: Tableau 9. | T122: Pessières | U122: (FCTYF_EPX) | V122: =VLOOKUP(V$115&$U122,GTYF!$C:$AQ,37,FALSE) -> 11791.224 | W122: =VLOOKUP(W$115&$U122,GTYF!$C:$AQ,6,FALSE) -> 231599.8 | X122: =VLOOKUP(X$115&$U122,GTYF!$C:$AQ,37,FALSE) -> 1070336.984 | Y122: =VLOOKUP(Y$115&$U122,GTYF!$C:$AQ,37,FALSE) -> 10143325.84 | Z122: =VLOOKUP(Z$115&$U122,GTYF!$C:$AQ,37,FALSE) -> 1098615.768 | AA122: =VLOOKUP(AA$115&$U122,GTYF!$C:$AQ,37,FALSE) -> 8826.75 | AB122: =VLOOKUP(AB$115&$U122,GTYF!$C:$AQ,37,FALSE) -> 0 | AC122: =VLOOKUP(AC$115&$U122,GTYF!$C:$AQ,37,FALSE) -> 0 | AD122: =VLOOKUP(AD$115&$U122,GTYF!$C:$AQ,37,FALSE) -> 10477.224 | AE122: =VLOOKUP(AE$115&$U122,GTYF!$C:$AQ,37,FALSE) -> 0 | AF122: =VLOOKUP(AF$115&$U122,GTYF!$C:$AQ,37,FALSE) -> 286482.412 | AG122: =VLOOKUP(AG$115&$U122,GTYF!$C:$AQ,37,FALSE) -> 1954.704 | AH122: =VLOOKUP(AH$115&$U122,GTYF!$C:$AQ,37,FALSE) -> 0 | AI122: =VLOOKUP(AI$115&$U122,GTYF!$C:$AQ,37,FALSE) -> 0 | AJ122: =VLOOKUP(AJ$115&$U122,GTYF!$C:$AQ,37,FALSE) -> 10477.224 | AK122: =VLOOKUP(AK$115&$U122,GTYF!$C:$AQ,37,FALSE) -> 0 | AM122: =VLOOKUP(AM$115&$U122,GTYF!$C:$AQ,37,FALSE) -> 2185 | AN122: =VLOOKUP(AN$115&$U122,GTYF!$C:$AQ,37,FALSE) -> 0 | AO122: =VLOOKUP(AO$115&$U122,GTYF!$C:$AQ,37,FALSE) -> 0 | AP122: =VLOOKUP(AP$115&$U122,GTYF!$C:$AQ,37,FALSE) -> 0 | AQ122: =VLOOKUP(AQ$115&$U122,GTYF!$C:$AQ,37,FALSE) -> 0 | AR122: =VLOOKUP(AR$115&$U122,GTYF!$C:$AQ,37,FALSE) -> 0 | AS122: =VLOOKUP(AS$115&$U122,GTYF!$C:$AQ,37,FALSE) -> 94407.102 | AT122: =VLOOKUP(AT$115&$U122,GTYF!$C:$AQ,37,FALSE) -> 0 | AU122: =VLOOKUP(AU$115&$U122,GTYF!$C:$AQ,37,FALSE) -> 0 | AV122: =VLOOKUP(AV$115&$U122,GTYF!$C:$AQ,37,FALSE) -> 0 | AW122: =VLOOKUP(AW$115&$U122,GTYF!$C:$AQ,37,FALSE) -> 0 | AX122: =VLOOKUP(AX$115&$U122,GTYF!$C:$AQ,37,FALSE) -> 0 | AY122: =VLOOKUP(AY$115&$U122,GTYF!$C:$AQ,37,FALSE) -> 0 | AZ122: 96592.102 | BA122: =VLOOKUP(BA$115&$U122,GTYF!$C:$AQ,37,FALSE) -> 1314
B123: Peupleraies | E123: - | F123: - | G123: - | H123: - | I123: - | J123: - | M123: - | N123: - | S123: Tableau 9. | T123: Peupleraies | U123: (FCTYF_PEU) | V123: =VLOOKUP(V$115&$U123,GTYF!$C:$AQ,37,FALSE) -> 0 | W123: =VLOOKUP(W$115&$U123,GTYF!$C:$AQ,6,FALSE) -> 0 | X123: =VLOOKUP(X$115&$U123,GTYF!$C:$AQ,37,FALSE) -> 0 | Y123: =VLOOKUP(Y$115&$U123,GTYF!$C:$AQ,37,FALSE) -> 0 | Z123: =VLOOKUP(Z$115&$U123,GTYF!$C:$AQ,37,FALSE) -> 0 | AA123: =VLOOKUP(AA$115&$U123,GTYF!$C:$AQ,37,FALSE) -> 0 | AB123: =VLOOKUP(AB$115&$U123,GTYF!$C:$AQ,37,FALSE) -> 0 | AC123: =VLOOKUP(AC$115&$U123,GTYF!$C:$AQ,37,FALSE) -> 0 | AD123: =VLOOKUP(AD$115&$U123,GTYF!$C:$AQ,37,FALSE) -> 0 | AE123: =VLOOKUP(AE$115&$U123,GTYF!$C:$AQ,37,FALSE) -> 0 | AF123: =VLOOKUP(AF$115&$U123,GTYF!$C:$AQ,37,FALSE) -> 0 | AG123: =VLOOKUP(AG$115&$U123,GTYF!$C:$AQ,37,FALSE) -> 0 | AH123: =VLOOKUP(AH$115&$U123,GTYF!$C:$AQ,37,FALSE) -> 0 | AI123: =VLOOKUP(AI$115&$U123,GTYF!$C:$AQ,37,FALSE) -> 0 | AJ123: =VLOOKUP(AJ$115&$U123,GTYF!$C:$AQ,37,FALSE) -> 0 | AK123: =VLOOKUP(AK$115&$U123,GTYF!$C:$AQ,37,FALSE) -> 0 | AM123: =VLOOKUP(AM$115&$U123,GTYF!$C:$AQ,37,FALSE) -> 0 | AN123: =VLOOKUP(AN$115&$U123,GTYF!$C:$AQ,37,FALSE) -> 0 | AO123: =VLOOKUP(AO$115&$U123,GTYF!$C:$AQ,37,FALSE) -> 0 | AP123: =VLOOKUP(AP$115&$U123,GTYF!$C:$AQ,37,FALSE) -> 0 | AQ123: =VLOOKUP(AQ$115&$U123,GTYF!$C:$AQ,37,FALSE) -> 0 | AR123: =VLOOKUP(AR$115&$U123,GTYF!$C:$AQ,37,FALSE) -> 0 | AS123: =VLOOKUP(AS$115&$U123,GTYF!$C:$AQ,37,FALSE) -> 0 | AT123: =VLOOKUP(AT$115&$U123,GTYF!$C:$AQ,37,FALSE) -> 0 | AU123: =VLOOKUP(AU$115&$U123,GTYF!$C:$AQ,37,FALSE) -> 0 | AV123: =VLOOKUP(AV$115&$U123,GTYF!$C:$AQ,37,FALSE) -> 0 | AW123: =VLOOKUP(AW$115&$U123,GTYF!$C:$AQ,37,FALSE) -> 0 | AX123: =VLOOKUP(AX$115&$U123,GTYF!$C:$AQ,37,FALSE) -> 0 | AY123: =VLOOKUP(AY$115&$U123,GTYF!$C:$AQ,37,FALSE) -> 0 | AZ123: 0 | BA123: =VLOOKUP(BA$115&$U123,GTYF!$C:$AQ,37,FALSE) -> 0
B124: Peupleraies à résineux | E124: - | F124: - | G124: - | H124: - | I124: - | J124: - | M124: - | N124: - | S124: Tableau 9. | T124: Peupleraies à résineux | U124: (FCTYF_PEUR) | V124: =VLOOKUP(V$115&$U124,GTYF!$C:$AQ,37,FALSE) -> 0 | W124: =VLOOKUP(W$115&$U124,GTYF!$C:$AQ,6,FALSE) -> 0 | X124: =VLOOKUP(X$115&$U124,GTYF!$C:$AQ,37,FALSE) -> 0 | Y124: =VLOOKUP(Y$115&$U124,GTYF!$C:$AQ,37,FALSE) -> 0 | Z124: =VLOOKUP(Z$115&$U124,GTYF!$C:$AQ,37,FALSE) -> 0 | AA124: =VLOOKUP(AA$115&$U124,GTYF!$C:$AQ,37,FALSE) -> 0 | AB124: =VLOOKUP(AB$115&$U124,GTYF!$C:$AQ,37,FALSE) -> 0 | AC124: =VLOOKUP(AC$115&$U124,GTYF!$C:$AQ,37,FALSE) -> 0 | AD124: =VLOOKUP(AD$115&$U124,GTYF!$C:$AQ,37,FALSE) -> 0 | AE124: =VLOOKUP(AE$115&$U124,GTYF!$C:$AQ,37,FALSE) -> 0 | AF124: =VLOOKUP(AF$115&$U124,GTYF!$C:$AQ,37,FALSE) -> 0 | AG124: =VLOOKUP(AG$115&$U124,GTYF!$C:$AQ,37,FALSE) -> 0 | AH124: =VLOOKUP(AH$115&$U124,GTYF!$C:$AQ,37,FALSE) -> 0 | AI124: =VLOOKUP(AI$115&$U124,GTYF!$C:$AQ,37,FALSE) -> 0 | AJ124: =VLOOKUP(AJ$115&$U124,GTYF!$C:$AQ,37,FALSE) -> 0 | AK124: =VLOOKUP(AK$115&$U124,GTYF!$C:$AQ,37,FALSE) -> 0 | AM124: =VLOOKUP(AM$115&$U124,GTYF!$C:$AQ,37,FALSE) -> 0 | AN124: =VLOOKUP(AN$115&$U124,GTYF!$C:$AQ,37,FALSE) -> 0 | AO124: =VLOOKUP(AO$115&$U124,GTYF!$C:$AQ,37,FALSE) -> 0 | AP124: =VLOOKUP(AP$115&$U124,GTYF!$C:$AQ,37,FALSE) -> 0 | AQ124: =VLOOKUP(AQ$115&$U124,GTYF!$C:$AQ,37,FALSE) -> 0 | AR124: =VLOOKUP(AR$115&$U124,GTYF!$C:$AQ,37,FALSE) -> 0 | AS124: =VLOOKUP(AS$115&$U124,GTYF!$C:$AQ,37,FALSE) -> 0 | AT124: =VLOOKUP(AT$115&$U124,GTYF!$C:$AQ,37,FALSE) -> 0 | AU124: =VLOOKUP(AU$115&$U124,GTYF!$C:$AQ,37,FALSE) -> 0 | AV124: =VLOOKUP(AV$115&$U124,GTYF!$C:$AQ,37,FALSE) -> 0 | AW124: =VLOOKUP(AW$115&$U124,GTYF!$C:$AQ,37,FALSE) -> 0 | AX124: =VLOOKUP(AX$115&$U124,GTYF!$C:$AQ,37,FALSE) -> 0 | AY124: =VLOOKUP(AY$115&$U124,GTYF!$C:$AQ,37,FALSE) -> 0 | AZ124: 0 | BA124: =VLOOKUP(BA$115&$U124,GTYF!$C:$AQ,37,FALSE) -> 0
B125: Pinèdes blanches | E125: - | F125: - | G125: - | H125: - | I125: - | J125: - | M125: - | N125: - | S125: Tableau 9. | T125: Pinèdes blanches | U125: (FCTYF_PIN) | V125: =VLOOKUP(V$115&$U125,GTYF!$C:$AQ,37,FALSE) -> 0 | W125: =VLOOKUP(W$115&$U125,GTYF!$C:$AQ,6,FALSE) -> 0 | X125: =VLOOKUP(X$115&$U125,GTYF!$C:$AQ,37,FALSE) -> 0 | Y125: =VLOOKUP(Y$115&$U125,GTYF!$C:$AQ,37,FALSE) -> 0 | Z125: =VLOOKUP(Z$115&$U125,GTYF!$C:$AQ,37,FALSE) -> 0 | AA125: =VLOOKUP(AA$115&$U125,GTYF!$C:$AQ,37,FALSE) -> 0 | AB125: =VLOOKUP(AB$115&$U125,GTYF!$C:$AQ,37,FALSE) -> 0 | AC125: =VLOOKUP(AC$115&$U125,GTYF!$C:$AQ,37,FALSE) -> 0 | AD125: =VLOOKUP(AD$115&$U125,GTYF!$C:$AQ,37,FALSE) -> 0 | AE125: =VLOOKUP(AE$115&$U125,GTYF!$C:$AQ,37,FALSE) -> 0 | AF125: =VLOOKUP(AF$115&$U125,GTYF!$C:$AQ,37,FALSE) -> 0 | AG125: =VLOOKUP(AG$115&$U125,GTYF!$C:$AQ,37,FALSE) -> 0 | AH125: =VLOOKUP(AH$115&$U125,GTYF!$C:$AQ,37,FALSE) -> 0 | AI125: =VLOOKUP(AI$115&$U125,GTYF!$C:$AQ,37,FALSE) -> 0 | AJ125: =VLOOKUP(AJ$115&$U125,GTYF!$C:$AQ,37,FALSE) -> 0 | AK125: =VLOOKUP(AK$115&$U125,GTYF!$C:$AQ,37,FALSE) -> 0 | AM125: =VLOOKUP(AM$115&$U125,GTYF!$C:$AQ,37,FALSE) -> 0 | AN125: =VLOOKUP(AN$115&$U125,GTYF!$C:$AQ,37,FALSE) -> 0 | AO125: =VLOOKUP(AO$115&$U125,GTYF!$C:$AQ,37,FALSE) -> 0 | AP125: =VLOOKUP(AP$115&$U125,GTYF!$C:$AQ,37,FALSE) -> 0 | AQ125: =VLOOKUP(AQ$115&$U125,GTYF!$C:$AQ,37,FALSE) -> 0 | AR125: =VLOOKUP(AR$115&$U125,GTYF!$C:$AQ,37,FALSE) -> 0 | AS125: =VLOOKUP(AS$115&$U125,GTYF!$C:$AQ,37,FALSE) -> 0 | AT125: =VLOOKUP(AT$115&$U125,GTYF!$C:$AQ,37,FALSE) -> 0 | AU125: =VLOOKUP(AU$115&$U125,GTYF!$C:$AQ,37,FALSE) -> 0 | AV125: =VLOOKUP(AV$115&$U125,GTYF!$C:$AQ,37,FALSE) -> 0 | AW125: =VLOOKUP(AW$115&$U125,GTYF!$C:$AQ,37,FALSE) -> 0 | AX125: =VLOOKUP(AX$115&$U125,GTYF!$C:$AQ,37,FALSE) -> 0 | AY125: =VLOOKUP(AY$115&$U125,GTYF!$C:$AQ,37,FALSE) -> 0 | AZ125: 0 | BA125: =VLOOKUP(BA$115&$U125,GTYF!$C:$AQ,37,FALSE) -> 0
B126: Pinèdes grises | E126: - | F126: - | G126: - | H126: 94.62577114 | I126: 99.06597577 | J126: 100.4417423 | M126: 94.62577114 | N126: 99.06597577 | S126: Tableau 9. | T126: Pinèdes grises | U126: (FCTYF_PIG) | V126: =VLOOKUP(V$115&$U126,GTYF!$C:$AQ,37,FALSE) -> 2054.626 | W126: =VLOOKUP(W$115&$U126,GTYF!$C:$AQ,6,FALSE) -> 26978.5 | X126: =VLOOKUP(X$115&$U126,GTYF!$C:$AQ,37,FALSE) -> 197921.712 | Y126: =VLOOKUP(Y$115&$U126,GTYF!$C:$AQ,37,FALSE) -> 1970512.532 | Z126: =VLOOKUP(Z$115&$U126,GTYF!$C:$AQ,37,FALSE) -> 173252.202 | AA126: =VLOOKUP(AA$115&$U126,GTYF!$C:$AQ,37,FALSE) -> 28409.074 | AB126: =VLOOKUP(AB$115&$U126,GTYF!$C:$AQ,37,FALSE) -> 0 | AC126: =VLOOKUP(AC$115&$U126,GTYF!$C:$AQ,37,FALSE) -> 0 | AD126: =VLOOKUP(AD$115&$U126,GTYF!$C:$AQ,37,FALSE) -> 2035.626 | AE126: =VLOOKUP(AE$115&$U126,GTYF!$C:$AQ,37,FALSE) -> 0 | AF126: =VLOOKUP(AF$115&$U126,GTYF!$C:$AQ,37,FALSE) -> 35947.998 | AG126: =VLOOKUP(AG$115&$U126,GTYF!$C:$AQ,37,FALSE) -> 2576.538 | AH126: =VLOOKUP(AH$115&$U126,GTYF!$C:$AQ,37,FALSE) -> 0 | AI126: =VLOOKUP(AI$115&$U126,GTYF!$C:$AQ,37,FALSE) -> 0 | AJ126: =VLOOKUP(AJ$115&$U126,GTYF!$C:$AQ,37,FALSE) -> 2035.626 | AK126: =VLOOKUP(AK$115&$U126,GTYF!$C:$AQ,37,FALSE) -> 0 | AM126: =VLOOKUP(AM$115&$U126,GTYF!$C:$AQ,37,FALSE) -> 765.7 | AN126: =VLOOKUP(AN$115&$U126,GTYF!$C:$AQ,37,FALSE) -> 0 | AO126: =VLOOKUP(AO$115&$U126,GTYF!$C:$AQ,37,FALSE) -> 0 | AP126: =VLOOKUP(AP$115&$U126,GTYF!$C:$AQ,37,FALSE) -> 0 | AQ126: =VLOOKUP(AQ$115&$U126,GTYF!$C:$AQ,37,FALSE) -> 0 | AR126: =VLOOKUP(AR$115&$U126,GTYF!$C:$AQ,37,FALSE) -> 0 | AS126: =VLOOKUP(AS$115&$U126,GTYF!$C:$AQ,37,FALSE) -> 0 | AT126: =VLOOKUP(AT$115&$U126,GTYF!$C:$AQ,37,FALSE) -> 0 | AU126: =VLOOKUP(AU$115&$U126,GTYF!$C:$AQ,37,FALSE) -> 0 | AV126: =VLOOKUP(AV$115&$U126,GTYF!$C:$AQ,37,FALSE) -> 0 | AW126: =VLOOKUP(AW$115&$U126,GTYF!$C:$AQ,37,FALSE) -> 0 | AX126: =VLOOKUP(AX$115&$U126,GTYF!$C:$AQ,37,FALSE) -> 0 | AY126: =VLOOKUP(AY$115&$U126,GTYF!$C:$AQ,37,FALSE) -> 0 | AZ126: 765.7 | BA126: =VLOOKUP(BA$115&$U126,GTYF!$C:$AQ,37,FALSE) -> 19
B127: Prucheraies | E127: - | F127: - | G127: - | H127: - | I127: - | J127: - | M127: - | N127: - | S127: Tableau 9. | T127: Prucheraies | U127: (FCTYF_PRU) | V127: =VLOOKUP(V$115&$U127,GTYF!$C:$AQ,37,FALSE) -> 0 | W127: =VLOOKUP(W$115&$U127,GTYF!$C:$AQ,6,FALSE) -> 0 | X127: =VLOOKUP(X$115&$U127,GTYF!$C:$AQ,37,FALSE) -> 0 | Y127: =VLOOKUP(Y$115&$U127,GTYF!$C:$AQ,37,FALSE) -> 0 | Z127: =VLOOKUP(Z$115&$U127,GTYF!$C:$AQ,37,FALSE) -> 0 | AA127: =VLOOKUP(AA$115&$U127,GTYF!$C:$AQ,37,FALSE) -> 0 | AB127: =VLOOKUP(AB$115&$U127,GTYF!$C:$AQ,37,FALSE) -> 0 | AC127: =VLOOKUP(AC$115&$U127,GTYF!$C:$AQ,37,FALSE) -> 0 | AD127: =VLOOKUP(AD$115&$U127,GTYF!$C:$AQ,37,FALSE) -> 0 | AE127: =VLOOKUP(AE$115&$U127,GTYF!$C:$AQ,37,FALSE) -> 0 | AF127: =VLOOKUP(AF$115&$U127,GTYF!$C:$AQ,37,FALSE) -> 0 | AG127: =VLOOKUP(AG$115&$U127,GTYF!$C:$AQ,37,FALSE) -> 0 | AH127: =VLOOKUP(AH$115&$U127,GTYF!$C:$AQ,37,FALSE) -> 0 | AI127: =VLOOKUP(AI$115&$U127,GTYF!$C:$AQ,37,FALSE) -> 0 | AJ127: =VLOOKUP(AJ$115&$U127,GTYF!$C:$AQ,37,FALSE) -> 0 | AK127: =VLOOKUP(AK$115&$U127,GTYF!$C:$AQ,37,FALSE) -> 0 | AM127: =VLOOKUP(AM$115&$U127,GTYF!$C:$AQ,37,FALSE) -> 0 | AN127: =VLOOKUP(AN$115&$U127,GTYF!$C:$AQ,37,FALSE) -> 0 | AO127: =VLOOKUP(AO$115&$U127,GTYF!$C:$AQ,37,FALSE) -> 0 | AP127: =VLOOKUP(AP$115&$U127,GTYF!$C:$AQ,37,FALSE) -> 0 | AQ127: =VLOOKUP(AQ$115&$U127,GTYF!$C:$AQ,37,FALSE) -> 0 | AR127: =VLOOKUP(AR$115&$U127,GTYF!$C:$AQ,37,FALSE) -> 0 | AS127: =VLOOKUP(AS$115&$U127,GTYF!$C:$AQ,37,FALSE) -> 0 | AT127: =VLOOKUP(AT$115&$U127,GTYF!$C:$AQ,37,FALSE) -> 0 | AU127: =VLOOKUP(AU$115&$U127,GTYF!$C:$AQ,37,FALSE) -> 0 | AV127: =VLOOKUP(AV$115&$U127,GTYF!$C:$AQ,37,FALSE) -> 0 | AW127: =VLOOKUP(AW$115&$U127,GTYF!$C:$AQ,37,FALSE) -> 0 | AX127: =VLOOKUP(AX$115&$U127,GTYF!$C:$AQ,37,FALSE) -> 0 | AY127: =VLOOKUP(AY$115&$U127,GTYF!$C:$AQ,37,FALSE) -> 0 | AZ127: 0 | BA127: =VLOOKUP(BA$115&$U127,GTYF!$C:$AQ,37,FALSE) -> 0
B128: Résineux à feuillus | E128: - | F128: - | G128: - | H128: 92.70021359 | I128: 132.6679925 | J128: 140.4096499 | M128: 92.70021359 | N128: 132.6679925 | S128: Tableau 9. | T128: Résineux à feuillus | U128: (FCTYF_RF) | V128: =VLOOKUP(V$115&$U128,GTYF!$C:$AQ,37,FALSE) -> 734.116 | W128: =VLOOKUP(W$115&$U128,GTYF!$C:$AQ,6,FALSE) -> 33362.7 | X128: =VLOOKUP(X$115&$U128,GTYF!$C:$AQ,37,FALSE) -> 63706.95 | Y128: =VLOOKUP(Y$115&$U128,GTYF!$C:$AQ,37,FALSE) -> 453722.02 | Z128: =VLOOKUP(Z$115&$U128,GTYF!$C:$AQ,37,FALSE) -> 97393.696 | AA128: =VLOOKUP(AA$115&$U128,GTYF!$C:$AQ,37,FALSE) -> 0 | AB128: =VLOOKUP(AB$115&$U128,GTYF!$C:$AQ,37,FALSE) -> 0 | AC128: =VLOOKUP(AC$115&$U128,GTYF!$C:$AQ,37,FALSE) -> 0 | AD128: =VLOOKUP(AD$115&$U128,GTYF!$C:$AQ,37,FALSE) -> 734.116 | AE128: =VLOOKUP(AE$115&$U128,GTYF!$C:$AQ,37,FALSE) -> 0 | AF128: =VLOOKUP(AF$115&$U128,GTYF!$C:$AQ,37,FALSE) -> 13610.542 | AG128: =VLOOKUP(AG$115&$U128,GTYF!$C:$AQ,37,FALSE) -> 0 | AH128: =VLOOKUP(AH$115&$U128,GTYF!$C:$AQ,37,FALSE) -> 0 | AI128: =VLOOKUP(AI$115&$U128,GTYF!$C:$AQ,37,FALSE) -> 0 | AJ128: =VLOOKUP(AJ$115&$U128,GTYF!$C:$AQ,37,FALSE) -> 734.116 | AK128: =VLOOKUP(AK$115&$U128,GTYF!$C:$AQ,37,FALSE) -> 0 | AM128: =VLOOKUP(AM$115&$U128,GTYF!$C:$AQ,37,FALSE) -> 0 | AN128: =VLOOKUP(AN$115&$U128,GTYF!$C:$AQ,37,FALSE) -> 0 | AO128: =VLOOKUP(AO$115&$U128,GTYF!$C:$AQ,37,FALSE) -> 0 | AP128: =VLOOKUP(AP$115&$U128,GTYF!$C:$AQ,37,FALSE) -> 0 | AQ128: =VLOOKUP(AQ$115&$U128,GTYF!$C:$AQ,37,FALSE) -> 0 | AR128: =VLOOKUP(AR$115&$U128,GTYF!$C:$AQ,37,FALSE) -> 0 | AS128: =VLOOKUP(AS$115&$U128,GTYF!$C:$AQ,37,FALSE) -> 0 | AT128: =VLOOKUP(AT$115&$U128,GTYF!$C:$AQ,37,FALSE) -> 0 | AU128: =VLOOKUP(AU$115&$U128,GTYF!$C:$AQ,37,FALSE) -> 0 | AV128: =VLOOKUP(AV$115&$U128,GTYF!$C:$AQ,37,FALSE) -> 0 | AW128: =VLOOKUP(AW$115&$U128,GTYF!$C:$AQ,37,FALSE) -> 0 | AX128: =VLOOKUP(AX$115&$U128,GTYF!$C:$AQ,37,FALSE) -> 0 | AY128: =VLOOKUP(AY$115&$U128,GTYF!$C:$AQ,37,FALSE) -> 0 | AZ128: 0 | BA128: =VLOOKUP(BA$115&$U128,GTYF!$C:$AQ,37,FALSE) -> 0
B129: Sapinières | E129: - | F129: - | G129: - | H129: 79.36382784 | I129: 142.9349565 | J129: 118.8868577 | M129: =IFERROR(($AF129+$AG129+$AH129+$AI129)/$AJ129*5,"-") -> 79.36382784 | N129: 142.9349565 | S129: Tableau 9. | T129: Sapinières | U129: (FCTYF_SAB) | V129: =VLOOKUP(V$115&$U129,GTYF!$C:$AQ,37,FALSE) -> 916.34 | W129: =VLOOKUP(W$115&$U129,GTYF!$C:$AQ,6,FALSE) -> 6116.5 | X129: =VLOOKUP(X$115&$U129,GTYF!$C:$AQ,37,FALSE) -> 122174.114 | Y129: =VLOOKUP(Y$115&$U129,GTYF!$C:$AQ,37,FALSE) -> 1027650.292 | Z129: =VLOOKUP(Z$115&$U129,GTYF!$C:$AQ,37,FALSE) -> 130977.018 | AA129: =VLOOKUP(AA$115&$U129,GTYF!$C:$AQ,37,FALSE) -> 0 | AB129: =VLOOKUP(AB$115&$U129,GTYF!$C:$AQ,37,FALSE) -> 0 | AC129: =VLOOKUP(AC$115&$U129,GTYF!$C:$AQ,37,FALSE) -> 0 | AD129: =VLOOKUP(AD$115&$U129,GTYF!$C:$AQ,37,FALSE) -> 916.34 | AE129: =VLOOKUP(AE$115&$U129,GTYF!$C:$AQ,37,FALSE) -> 0 | AF129: =VLOOKUP(AF$115&$U129,GTYF!$C:$AQ,37,FALSE) -> 14544.85 | AG129: =VLOOKUP(AG$115&$U129,GTYF!$C:$AQ,37,FALSE) -> 0 | AH129: =VLOOKUP(AH$115&$U129,GTYF!$C:$AQ,37,FALSE) -> 0 | AI129: =VLOOKUP(AI$115&$U129,GTYF!$C:$AQ,37,FALSE) -> 0 | AJ129: =VLOOKUP(AJ$115&$U129,GTYF!$C:$AQ,37,FALSE) -> 916.34 | AK129: =VLOOKUP(AK$115&$U129,GTYF!$C:$AQ,37,FALSE) -> 0 | AM129: =VLOOKUP(AM$115&$U129,GTYF!$C:$AQ,37,FALSE) -> 0 | AN129: =VLOOKUP(AN$115&$U129,GTYF!$C:$AQ,37,FALSE) -> 0 | AO129: =VLOOKUP(AO$115&$U129,GTYF!$C:$AQ,37,FALSE) -> 0 | AP129: =VLOOKUP(AP$115&$U129,GTYF!$C:$AQ,37,FALSE) -> 0 | AQ129: =VLOOKUP(AQ$115&$U129,GTYF!$C:$AQ,37,FALSE) -> 0 | AR129: =VLOOKUP(AR$115&$U129,GTYF!$C:$AQ,37,FALSE) -> 0 | AS129: =VLOOKUP(AS$115&$U129,GTYF!$C:$AQ,37,FALSE) -> 0 | AT129: =VLOOKUP(AT$115&$U129,GTYF!$C:$AQ,37,FALSE) -> 0 | AU129: =VLOOKUP(AU$115&$U129,GTYF!$C:$AQ,37,FALSE) -> 0 | AV129: =VLOOKUP(AV$115&$U129,GTYF!$C:$AQ,37,FALSE) -> 0 | AW129: =VLOOKUP(AW$115&$U129,GTYF!$C:$AQ,37,FALSE) -> 0 | AX129: =VLOOKUP(AX$115&$U129,GTYF!$C:$AQ,37,FALSE) -> 0 | AY129: =VLOOKUP(AY$115&$U129,GTYF!$C:$AQ,37,FALSE) -> 0 | AZ129: 0 | BA129: =VLOOKUP(BA$115&$U129,GTYF!$C:$AQ,37,FALSE) -> 0
S130: Tableau 9. | T130: Tous les GTYF | V130: =SUM(V116:V129) -> 16477.618 | W130: =SUM(W116:W129) -> 311440.6 | X130: 1491834.484 | Y130: 13854521.24 | Z130: 1640206.372 | AA130: 37235.824 | AB130: 0 | AC130: 0 | AD130: 15144.618 | AE130: 0 | AF130: 369727.082 | AG130: 4531.242 | AH130: 0 | AI130: 0 | AJ130: 15144.618 | AK130: 0
L131: Les statistiques portants sur les coupes partielles proviennent d'un Script R et sont disponibles ici:
L132: T:\Donnees\02_Courant\01_CPF\01_UA\0XXXX\70_Determination\72_Rapport\01_Cahier_DET\Tableau_9
B133: Tableau 10. Traitements non commerciaux supportant les possibilités forestières
B134: Traitements non commerciaux | F134: Superficie annuelle moyenne (ha/an) | G134: Superficie antérieure (ha/an) | H134: Écart (ha/an)
X135: Exemple U03772
B138: Ligniculture (essences à croissance rapide) | F138: =ROUND(V139,-1) -> 0 | G138: =IFERROR(ROUND(VLOOKUP(O33,DataLocal!$A:$BH,47,FALSE),-1),0) -> 0 | H138: =F138-G138 -> 0 | I138: 0 | J138: 0 | K138: Le texte en rouge demande à l'analyste de valider la nature exacte du traitement et les superficies - variable selon la vague et l'UA - veuillez ensuite mettre en noir et supprimer la remarque si elle ne s'applique pas (si DEG_1 ne contient pas de regarni)
B139: Plantation intensive (2 000 plants/ha) | F139: =ROUND(V140,-1) -> 20 | G139: =IFERROR(ROUND(VLOOKUP(O33,DataLocal!$A:$BH,48,FALSE),-1),0) -> 210 | H139: =F139-G139 -> -190 | I139: 20 | J139: 210 | S139: =LEFT(B$133,11) -> Tableau 10. | T139: Plantation ligniculture (pins, feuillus) | U139: OSUPPL_PPF | V139: =IFERROR(VLOOKUP(U139,Output!C:AQ,37,FALSE),0)/5 -> 0
B140: Plantation de base (1 600 plants/ha) | F140: =ROUND(V141,-1) -> 1060 | G140: =IFERROR(ROUND(VLOOKUP(O33,DataLocal!$A:$BH,49,FALSE),-1),0) -> 1450 | H140: -390 | I140: 1060 | J140: 1450 | S140: Tableau 10. | T140: Plantation intensive | U140: OSUPPL_SEPM_I | V140: =IFERROR(VLOOKUP(U140,Output!C:AQ,37,FALSE),0)/5 -> 22.8944
B141: Regarni | F141: =ROUND(V142,-1) -> 0 | G141: =IFERROR(ROUND(VLOOKUP(O33,DataLocal!$A:$BH,50,FALSE),-1),0) -> 0 | H141: 0 | I141: 0 | J141: 0 | S141: Tableau 10. | T141: Plantation de base | U141: OSUPPL_SEPM_E | V141: =IFERROR(VLOOKUP(U141,Output!C:AQ,37,FALSE),0)/5 -> 1064.1656
B142: % des plantations dans les coupes totales | F142: =IFERROR(SUM(F138:F140)/G92,0) -> 0.3564356436 | G142: =IFERROR(SUM(G138:G140)/H92,0) -> 0.4486486486 | H142: -0.09221300508 | I142: 0.3564356436 | J142: 0.4486486486 | S142: Tableau 10. | T142: Regarni | U142: OSUPREG | V142: =IFERROR(VLOOKUP(U142,Output!C:AQ,37,FALSE),0)/5 -> 0
B143: Total des travaux de reboisement | F143: =ROUND(SUM(F138:F141),-1) -> 1080 | G143: =ROUND(SUM(G138:G141),-1) -> 1660 | H143: -580 | I143: 1080.356436 | J143: 1660 | S143: Tableau 10.
B144: Nettoiement (régénération naturelle et plantation) | F144: =ROUND(V145,-1) -> 30 | G144: =IFERROR(ROUND(VLOOKUP(O33,DataLocal!$A:$BH,51,FALSE),-1),0) -> 320 | H144: -290 | I144: 30 | J144: 320 | S144: Tableau 10.
B145: Éclaircie précommerciale | F145: =ROUND(V146,-1) -> 0 | G145: =IFERROR(ROUND(VLOOKUP(O33,DataLocal!$A:$BH,52,FALSE),-1),0) -> 0 | H145: 0 | I145: 0 | J145: 0 | S145: Tableau 10. | T145: Nettoiement | U145: OSUPREALNET | V145: =IFERROR(VLOOKUP(U145,Output!C:AQ,37,FALSE),0)/5 -> 25.3
B146: Dégagement de la régénération naturelle (et regarni) | F146: =ROUND(V147,-1) -> 0 | G146: =IFERROR(ROUND(VLOOKUP(O33,DataLocal!$A:$BH,53,FALSE),-1),0) -> 0 | H146: 0 | I146: 0 | J146: 0 | S146: Tableau 10. | T146: Éclaircie précommerciale de la régénération naturelle | U146: OSUPREALEPC | V146: =IFERROR(VLOOKUP(U146,Output!C:AQ,37,FALSE),0)/5 -> 0 | X146: Exemple U09751
B147: Dégagement des plantations | F147: =ROUND(V148,-1) -> 40 | G147: =IFERROR(ROUND(VLOOKUP(O33,DataLocal!$A:$BH,54,FALSE),-1),0) -> 120 | H147: -80 | I147: 40 | J147: 120 | S147: Tableau 10. | T147: Dégagement de la régénération naturelle | U147: OSUPDEG_2 | V147: =IFERROR(VLOOKUP(U147,Output!C:AQ,37,FALSE),0)/5 -> 0
B148: Élagage | F148: =ROUND(V149,-1) -> 0 | G148: =IFERROR(ROUND(VLOOKUP(O33,DataLocal!$A:$BN,66,FALSE),-1),0) -> 0 | H148: 0 | I148: 0 | J148: 0 | S148: Tableau 10. | T148: Dégagement de plantation | U148: OSUPDEG_1 | V148: =IFERROR(VLOOKUP(U148,Output!C:AQ,37,FALSE),0)/5 -> 41.3
B149: Total des travaux d'éducation | F149: =SUM(F144:F148) -> 70 | G149: =SUM(G144:G148) -> 440 | H149: -370 | I149: 70 | J149: 440 | S149: Tableau 10. | T149: Élagage (plantation) | U149: OSUPELAG | V149: =IFERROR(VLOOKUP(U149,Output!C:AQ,37,FALSE),0)/5 -> 0
B150: Scarifiage partiel | F150: =ROUND(V152,-1) -> 120 | G150: =IFERROR(ROUND(VLOOKUP(O33,DataLocal!$A:$BH,58,FALSE),-1),0) -> 110 | H150: 10 | I150: 120 | J150: 110 | S150: Tableau 10. | U150: OSUPSCA_LIGN | V150: =IFERROR(VLOOKUP(U150,Output!C:AQ,37,FALSE),0)/5 -> 0
B151: Scarifiage en plein | F151: =ROUND(V153+V150+V151,-1) -> 1090 | G151: =IFERROR(ROUND(VLOOKUP(O33,DataLocal!$A:$BH,59,FALSE),-1),0) -> 1660 | H151: -570 | I151: 1090 | J151: 1660 | S151: Tableau 10. | U151: OSUPSCA_LRD | V151: =IFERROR(VLOOKUP(U151,Output!C:AQ,37,FALSE),0)/5 -> 0
B152: Total de la préparation de terrain | F152: =IFERROR(SUM(F150:F151),0) -> 1210 | G152: =IFERROR(SUM(G150:G151),0) -> 1770 | H152: -560 | I152: 1210 | J152: 1770 | S152: Tableau 10. | U152: OSUPSCA_PART | V152: =IFERROR(VLOOKUP(U152,Output!C:AQ,37,FALSE),0)/5 -> 123.8
B153: Total des travaux sans récolte | F153: =F152+F149+F143 -> 2360 | G153: =G152+G149+G143 -> 3870 | H153: -1510 | I153: 2360.356436 | J153: 3870 | S153: Tableau 10. | U153: OSUPSCA_REG | V153: =IFERROR(VLOOKUP(U153,Output!C:AQ,37,FALSE),0)/5 -> 1087.06
B154: * Peut aussi comprendre du dégagement de regarni
B159: Tableau 13 : Variation du volume sur pied à court, moyen et long terme
B160: Essences | C160: Volume moyen sur pied (m3) | G160: Volume moyen sur pied (%) | L160: % du volume total | U160: colonne | V160: 37 | W160: 38 | X160: 39 | Y160: 40 | AF160: 37 | AG160: 38 | AH160: 39 | AI160: 40
C161: 2023 à 2048 | D161: 2048 à 2073 | E161: 2073 à 2118 | F161: 2118 à 2168 | G161: =C161 -> 2023 à 2048 | H161: =D161 -> 2048 à 2073 | I161: 2073 à 2118 | J161: 2118 à 2168 | V161: Volume moyen sur pied (m3) | Z161: Volume moyen sur pied (%) | AF161: Volume dans courbe SNAT
B162: =T163 -> Sapin baumier | C162: =ROUND(V163-AF163,-2) -> 891600 | D162: =ROUND(W163-AG163,-2) -> 735300 | E162: 677100 | F162: 597900 | G162: =C162/C$176 -> 0.04820006595 | H162: =D162/D$176 -> 0.03888521643 | I162: =E162/E$176 -> 0.03623820559 | J162: =F162/F$176 -> 0.03225545413 | L162: 2023 à 2048 | T162: Légende | U162: Name | V162: p 2 à 6 | W162: p 7 à 11 | X162: p 12 à 20 | Y162: p 21 à 30 | Z162: p 2 à 6 | AA162: p 7 à 11 | AB162: p 12 à 20 | AC162: p 21 à 30 | AE162: Name | AF162: p 2 à 6 | AG162: p 7 à 11 | AH162: p 12 à 20 | AI162: p 21 à 30
B163: =T164 -> Épinettes | C163: =ROUND(V164-AF164,-2) -> 11901200 | D163: 12126600 | E163: 11485500 | F163: 10696800 | G163: 0.6433811406 | H163: 0.6412967027 | I163: 0.614700798 | J163: 0.5770699812 | L163: =C162/C$176 -> 0.04820006595 | S163: =LEFT(B$159,11) -> Tableau 13 | T163: Sapin baumier | U163: OVOLSABPIEDINC | V163: =VLOOKUP($U163,Output!$C:$AQ,V$160,FALSE) -> 908978.6 | W163: =VLOOKUP($U163,Output!$C:$AQ,W$160,FALSE) -> 741994.862 | X163: =VLOOKUP($U163,Output!$C:$AQ,X$160,FALSE) -> 691197.9744 | Y163: =VLOOKUP($U163,Output!$C:$AQ,Y$160,FALSE) -> 621125.23 | Z163: =V163/V$178 -> 0.04724701221 | AA163: =W163/W$178 -> 0.03778478567 | AB163: =X163/X$178 -> 0.03519804335 | AC163: =Y163/Y$178 -> 0.03162971186 | AE163: OVOLSABPIEDSNAT | AF163: =VLOOKUP($AE163,Output!$C:$AQ,AF$160,FALSE) -> 17336.77 | AG163: =VLOOKUP($AE163,Output!$C:$AQ,AG$160,FALSE) -> 6704.118 | AH163: =VLOOKUP($AE163,Output!$C:$AQ,AH$160,FALSE) -> 14117.62778 | AI163: =VLOOKUP($AE163,Output!$C:$AQ,AI$160,FALSE) -> 23241.097
B164: =T165 -> Pin gris | C164: 3315900 | D164: 3810700 | E164: 4605700 | F164: 5313200 | G164: 0.1792581861 | H164: 0.201523044 | I164: 0.246495796 | J164: 0.2866360243 | L164: 0.6433811406 | S164: Tableau 13 | T164: Épinettes | U164: OVOLgEpxPIEDINC | V164: =VLOOKUP($U164,Output!$C:$AQ,V$160,FALSE) -> 12568407.53 | W164: =VLOOKUP($U164,Output!$C:$AQ,W$160,FALSE) -> 12789192.8 | X164: =VLOOKUP($U164,Output!$C:$AQ,X$160,FALSE) -> 12347641.2 | Y164: =VLOOKUP($U164,Output!$C:$AQ,Y$160,FALSE) -> 11689760.49 | Z164: 0.6532823809 | AA164: 0.65126719 | AB164: 0.6287819501 | AC164: 0.5952805299 | AE164: OVOLgEpxPIEDSNAT | AF164: =VLOOKUP($AE164,Output!$C:$AQ,AF$160,FALSE) -> 667252.078 | AG164: =VLOOKUP($AE164,Output!$C:$AQ,AG$160,FALSE) -> 662634.002 | AH164: =VLOOKUP($AE164,Output!$C:$AQ,AH$160,FALSE) -> 862171.7611 | AI164: =VLOOKUP($AE164,Output!$C:$AQ,AI$160,FALSE) -> 992970.613
B165: =T166 -> Mélèzes | C165: 108100 | D165: 133900 | E165: 140700 | F165: 133600 | G165: 0.005843906606 | H165: 0.007081096803 | I165: 0.007530225265 | J165: 0.007207440495 | L165: 0.1792581861 | S165: Tableau 13 | T165: Pin gris | U165: OVOLgPgPIEDINC | V165: =VLOOKUP($U165,Output!$C:$AQ,V$160,FALSE) -> 3359274.53 | W165: =VLOOKUP($U165,Output!$C:$AQ,W$160,FALSE) -> 3856125.37 | X165: =VLOOKUP($U165,Output!$C:$AQ,X$160,FALSE) -> 4664855.582 | Y165: =VLOOKUP($U165,Output!$C:$AQ,Y$160,FALSE) -> 5378543.336 | Z165: 0.1746088244 | AA165: 0.1963664145 | AB165: 0.2375495807 | AC165: 0.2738928766 | AE165: OVOLgPgPIEDSNAT | AF165: =VLOOKUP($AE165,Output!$C:$AQ,AF$160,FALSE) -> 43384.622 | AG165: =VLOOKUP($AE165,Output!$C:$AQ,AG$160,FALSE) -> 45406.12 | AH165: =VLOOKUP($AE165,Output!$C:$AQ,AH$160,FALSE) -> 59197.50667 | AI165: =VLOOKUP($AE165,Output!$C:$AQ,AI$160,FALSE) -> 65329.254
B166: Thuya | C166: =ROUND(V167-AF167,-2) -> 300 | D166: 200 | E166: 0 | F166: 0 | G166: 1.621805718e-05 | H166: 1.057669425e-05 | I166: 0 | J166: 0 | L166: 0.005843906606 | S166: Tableau 13 | T166: Mélèzes | U166: OVOLgMlPIEDINC | V166: =VLOOKUP($U166,Output!$C:$AQ,V$160,FALSE) -> 119948.556 | W166: =VLOOKUP($U166,Output!$C:$AQ,W$160,FALSE) -> 146286.454 | X166: =VLOOKUP($U166,Output!$C:$AQ,X$160,FALSE) -> 156782.5622 | Y166: =VLOOKUP($U166,Output!$C:$AQ,Y$160,FALSE) -> 151391.281 | Z166: 0.006234702214 | AA166: 0.007449380843 | AB166: 0.007983876726 | AC166: 0.007709335195 | AE166: OVOLGMlPIEDSNAT | AF166: =VLOOKUP($AE166,Output!$C:$AQ,AF$160,FALSE) -> 11828.292 | AG166: =VLOOKUP($AE166,Output!$C:$AQ,AG$160,FALSE) -> 12366.652 | AH166: =VLOOKUP($AE166,Output!$C:$AQ,AH$160,FALSE) -> 16093.38778 | AI166: =VLOOKUP($AE166,Output!$C:$AQ,AI$160,FALSE) -> 17824.17
B167: Pruche | C167: 0 | D167: 0 | E167: 0 | F167: 0 | G167: 0 | H167: 0 | I167: 0 | J167: 0 | L167: 1.621805718e-05 | S167: Tableau 13 | T167: Thuya | U167: OVOLTHOPIEDINC | V167: =VLOOKUP($U167,Output!$C:$AQ,V$160,FALSE) -> 315.816 | W167: =VLOOKUP($U167,Output!$C:$AQ,W$160,FALSE) -> 182.574 | X167: =VLOOKUP($U167,Output!$C:$AQ,X$160,FALSE) -> 15.63 | Y167: =VLOOKUP($U167,Output!$C:$AQ,Y$160,FALSE) -> 0 | Z167: 1.641552662e-05 | AA167: 9.297260414e-06 | AB167: 7.959303092e-07 | AC167: 0 | AE167: OVOLTHOPIEDSNAT | AF167: =VLOOKUP($AE167,Output!$C:$AQ,AF$160,FALSE) -> 0 | AG167: =VLOOKUP($AE167,Output!$C:$AQ,AG$160,FALSE) -> 0 | AH167: =VLOOKUP($AE167,Output!$C:$AQ,AH$160,FALSE) -> 0 | AI167: =VLOOKUP($AE167,Output!$C:$AQ,AI$160,FALSE) -> 0
B168: Pins blanc et rouge | C168: 0 | D168: 0 | E168: 0 | F168: 0 | G168: 0 | H168: 0 | I168: 0 | J168: 0 | L168: 0 | S168: Tableau 13 | T168: Pruche | U168: OVOLPRUPIEDINC | V168: =VLOOKUP($U168,Output!$C:$AQ,V$160,FALSE) -> 0 | W168: =VLOOKUP($U168,Output!$C:$AQ,W$160,FALSE) -> 0 | X168: =VLOOKUP($U168,Output!$C:$AQ,X$160,FALSE) -> 0 | Y168: =VLOOKUP($U168,Output!$C:$AQ,Y$160,FALSE) -> 0 | Z168: 0 | AA168: 0 | AB168: 0 | AC168: 0 | AE168: OVOLPRUPIEDSNAT | AF168: =VLOOKUP($AE168,Output!$C:$AQ,AF$160,FALSE) -> 0 | AG168: =VLOOKUP($AE168,Output!$C:$AQ,AG$160,FALSE) -> 0 | AH168: =VLOOKUP($AE168,Output!$C:$AQ,AH$160,FALSE) -> 0 | AI168: =VLOOKUP($AE168,Output!$C:$AQ,AI$160,FALSE) -> 0
B169: Peupliers | C169: 665500 | D169: 619300 | E169: 428000 | F169: 435200 | G169: 0.03597705686 | H169: 0.03275073376 | I169: 0.02290644217 | J169: 0.02347812952 | L169: 0 | S169: Tableau 13 | T169: Pins blanc et rouge | U169: OVOLGPINSPIEDINC | V169: =VLOOKUP($U169,Output!$C:$AQ,V$160,FALSE) -> 19.258 | W169: =VLOOKUP($U169,Output!$C:$AQ,W$160,FALSE) -> 0.592 | X169: =VLOOKUP($U169,Output!$C:$AQ,X$160,FALSE) -> 0 | Y169: =VLOOKUP($U169,Output!$C:$AQ,Y$160,FALSE) -> 0 | Z169: 1.00099492e-06 | AA169: 3.014656066e-08 | AB169: 0 | AC169: 0 | AE169: OVOLGPINSCPIEDSNAT | AF169: =VLOOKUP($AE169,Output!$C:$AQ,AF$160,FALSE) -> 0 | AG169: =VLOOKUP($AE169,Output!$C:$AQ,AG$160,FALSE) -> 0 | AH169: =VLOOKUP($AE169,Output!$C:$AQ,AH$160,FALSE) -> 0 | AI169: =VLOOKUP($AE169,Output!$C:$AQ,AI$160,FALSE) -> 0
B170: Bouleau à papier | C170: 1615200 | D170: 1483500 | E170: 1347800 | F170: 1359700 | G170: 0.08731801988 | H170: 0.07845262963 | I170: 0.07213388494 | J170: 0.07335297037 | L170: 0.03597705686 | S170: Tableau 13 | T170: Peupliers | U170: OVOLGPEUPIEDINC | V170: =VLOOKUP($U170,Output!$C:$AQ,V$160,FALSE) -> 665896.396 | W170: =VLOOKUP($U170,Output!$C:$AQ,W$160,FALSE) -> 619600.328 | X170: =VLOOKUP($U170,Output!$C:$AQ,X$160,FALSE) -> 428424.4911 | Y170: =VLOOKUP($U170,Output!$C:$AQ,Y$160,FALSE) -> 435756.068 | Z170: 0.03461205264 | AA170: 0.0315520589 | AB170: 0.02181676505 | AC170: 0.02219011273 | AE170: OVOLPEUPIEDSNAT | AF170: =VLOOKUP($AE170,Output!$C:$AQ,AF$160,FALSE) -> 384.31 | AG170: =VLOOKUP($AE170,Output!$C:$AQ,AG$160,FALSE) -> 256.21 | AH170: =VLOOKUP($AE170,Output!$C:$AQ,AH$160,FALSE) -> 427.01 | AI170: =VLOOKUP($AE170,Output!$C:$AQ,AI$160,FALSE) -> 535.01
B171: Bouleau jaune | C171: 0 | D171: 0 | E171: 0 | F171: 0 | G171: 0 | H171: 0 | I171: 0 | J171: 0 | L171: 0.08731801988 | S171: Tableau 13 | T171: Bouleau à papier | U171: OVOLgBpPIEDINC | V171: =VLOOKUP($U171,Output!$C:$AQ,V$160,FALSE) -> 1616018.184 | W171: =VLOOKUP($U171,Output!$C:$AQ,W$160,FALSE) -> 1484014.69 | X171: =VLOOKUP($U171,Output!$C:$AQ,X$160,FALSE) -> 1348480.219 | Y171: =VLOOKUP($U171,Output!$C:$AQ,Y$160,FALSE) -> 1360821.258 | Z171: 0.08399761102 | AA171: 0.07557084268 | AB171: 0.06866898769 | AC171: 0.06929743344 | AE171: OVOLgBpPIEDSNAT | AF171: =VLOOKUP($AE171,Output!$C:$AQ,AF$160,FALSE) -> 768.626 | AG171: =VLOOKUP($AE171,Output!$C:$AQ,AG$160,FALSE) -> 512.414 | AH171: =VLOOKUP($AE171,Output!$C:$AQ,AH$160,FALSE) -> 727.6755556 | AI171: =VLOOKUP($AE171,Output!$C:$AQ,AI$160,FALSE) -> 1087.745
B172: Érable rouge | C172: 0 | D172: 0 | E172: 0 | F172: 0 | G172: 0 | H172: 0 | I172: 0 | J172: 0 | L172: 0 | S172: Tableau 13 | T172: Bouleau jaune | U172: OVOLBOJPIEDINC | V172: =VLOOKUP($U172,Output!$C:$AQ,V$160,FALSE) -> 0 | W172: =VLOOKUP($U172,Output!$C:$AQ,W$160,FALSE) -> 0 | X172: =VLOOKUP($U172,Output!$C:$AQ,X$160,FALSE) -> 0 | Y172: =VLOOKUP($U172,Output!$C:$AQ,Y$160,FALSE) -> 0 | Z172: 0 | AA172: 0 | AB172: 0 | AC172: 0 | AE172: OVOLBOJPIEDSNAT | AF172: =VLOOKUP($AE172,Output!$C:$AQ,AF$160,FALSE) -> 0 | AG172: =VLOOKUP($AE172,Output!$C:$AQ,AG$160,FALSE) -> 0 | AH172: =VLOOKUP($AE172,Output!$C:$AQ,AH$160,FALSE) -> 0 | AI172: =VLOOKUP($AE172,Output!$C:$AQ,AI$160,FALSE) -> 0
B173: Érable à sucre | C173: 0 | D173: 0 | E173: 0 | F173: 0 | G173: 0 | H173: 0 | I173: 0 | J173: 0 | L173: 0 | S173: Tableau 13 | T173: Érable rouge | U173: OVOLgEroPIEDINC | V173: =VLOOKUP($U173,Output!$C:$AQ,V$160,FALSE) -> 0 | W173: =VLOOKUP($U173,Output!$C:$AQ,W$160,FALSE) -> 0 | X173: =VLOOKUP($U173,Output!$C:$AQ,X$160,FALSE) -> 0 | Y173: =VLOOKUP($U173,Output!$C:$AQ,Y$160,FALSE) -> 0 | Z173: 0 | AA173: 0 | AB173: 0 | AC173: 0 | AE173: OVOLgEroPIEDSNAT | AF173: =VLOOKUP($AE173,Output!$C:$AQ,AF$160,FALSE) -> 0 | AG173: =VLOOKUP($AE173,Output!$C:$AQ,AG$160,FALSE) -> 0 | AH173: =VLOOKUP($AE173,Output!$C:$AQ,AH$160,FALSE) -> 0 | AI173: =VLOOKUP($AE173,Output!$C:$AQ,AI$160,FALSE) -> 0
B174: Autres feuillus durs | C174: =ROUND(V175-AF175,-2) -> 0 | D174: 0 | E174: 0 | F174: 0 | G174: 0 | H174: 0 | I174: 0 | J174: 0 | L174: 0 | S174: Tableau 13 | T174: Érable à sucre | U174: OVOLERSPIEDINC | V174: =VLOOKUP($U174,Output!$C:$AQ,V$160,FALSE) -> 0 | W174: =VLOOKUP($U174,Output!$C:$AQ,W$160,FALSE) -> 0 | X174: =VLOOKUP($U174,Output!$C:$AQ,X$160,FALSE) -> 0 | Y174: =VLOOKUP($U174,Output!$C:$AQ,Y$160,FALSE) -> 0 | Z174: 0 | AA174: 0 | AB174: 0 | AC174: 0 | AE174: OVOLERSPIEDSNAT | AF174: =VLOOKUP($AE174,Output!$C:$AQ,AF$160,FALSE) -> 0 | AG174: =VLOOKUP($AE174,Output!$C:$AQ,AG$160,FALSE) -> 0 | AH174: =VLOOKUP($AE174,Output!$C:$AQ,AH$160,FALSE) -> 0 | AI174: =VLOOKUP($AE174,Output!$C:$AQ,AI$160,FALSE) -> 0
B175: Autres essences | C175: =IF($L$163<0.0095,C162,0)+IF($L$164<0.0095,C163,0)+IF($L$165<0.0095,C164,0)+IF($L$166<0.0095,C165,0)+IF($L$167<0.0095,C166,0)+IF($L$168<0.0095,C167,0)+IF($L$169<0.0095,C168,0)+IF($L$170<0.0095,C169,0)+IF($L$171<0.0095,C170,0)+IF($L$172<0.0095,C171,0)+IF($L$173<0.0095,C172,0)+IF($L$174<0.0095,C173+0)+IF($L$175<0.0095,C174,0) -> 108400 | D175: =IF($L$163<0.0095,D162,0)+IF($L$164<0.0095,D163,0)+IF($L$165<0.0095,D164,0)+IF($L$166<0.0095,D165,0)+IF($L$167<0.0095,D166,0)+IF($L$168<0.0095,D167,0)+IF($L$169<0.0095,D168,0)+IF($L$170<0.0095,D169,0)+IF($L$171<0.0095,D170,0)+IF($L$172<0.0095,D171,0)+IF($L$173<0.0095,D172,0)+IF($L$174<0.0095,D173+0)+IF($L$175<0.0095,D174,0) -> 134100 | E175: =IF($L$163<0.0095,E162,0)+IF($L$164<0.0095,E163,0)+IF($L$165<0.0095,E164,0)+IF($L$166<0.0095,E165,0)+IF($L$167<0.0095,E166,0)+IF($L$168<0.0095,E167,0)+IF($L$169<0.0095,E168,0)+IF($L$170<0.0095,E169,0)+IF($L$171<0.0095,E170,0)+IF($L$172<0.0095,E171,0)+IF($L$173<0.0095,E172,0)+IF($L$174<0.0095,E173+0)+IF($L$175<0.0095,E174,0) -> 140700 | F175: =IF($L$163<0.0095,F162,0)+IF($L$164<0.0095,F163,0)+IF($L$165<0.0095,F164,0)+IF($L$166<0.0095,F165,0)+IF($L$167<0.0095,F166,0)+IF($L$168<0.0095,F167,0)+IF($L$169<0.0095,F168,0)+IF($L$170<0.0095,F169,0)+IF($L$171<0.0095,F170,0)+IF($L$172<0.0095,F171,0)+IF($L$173<0.0095,F172,0)+IF($L$174<0.0095,F173+0)+IF($L$175<0.0095,F174,0) -> 133600 | G175: 0.005860124663 | H175: 0.007091673497 | I175: 0.007530225265 | J175: 0.007207440495 | L175: 0 | S175: Tableau 13 | T175: Autres feuillus durs | V175: =V178-V176-V174-V173-V172-V171-V170-V169-V168-V167 -> -6.760956239e-10 | W175: =W178-W176-W174-W173-W172-W171-W170-W169-W168-W167 -> 2.011404376e-10 | X175: =X178-X176-X174-X173-X172-X171-X170-X169-X168-X167 -> 0.00444444607 | Y175: =Y178-Y176-Y174-Y173-Y172-Y171-Y170-Y169-Y168-Y167 -> 0.005000011413 | Z175: -3.514218948e-17 | AA175: 1.024272366e-17 | AB175: 2.263256132e-10 | AC175: 2.54616803e-10 | AE175: Autres feuillus durs | AF175: =AF178-AF176-AF174-AF173-AF172-AF171-AF170-AF169-AF168-AF167 -> 0.003999999944 | AG175: =AG178-AG176-AG174-AG173-AG172-AG171-AG170-AG169-AG168-AG167 -> 0.00399999991 | AH175: =AH178-AH176-AH174-AH173-AH172-AH171-AH170-AH169-AH168-AH167 -> 0.002222222345 | AI175: =AI178-AI176-AI174-AI173-AI172-AI171-AI170-AI169-AI168-AI167 -> -0.001999999741
B176: Total | C176: =ROUND(V178-AF178,-2) -> 18497900 | D176: =ROUND(W178-AG178,-2) -> 18909500 | E176: =ROUND(X178-AH178,-2) -> 18684700 | F176: =ROUND(Y178-AI178,-2) -> 18536400 | G176: 1 | H176: 1 | I176: 1 | J176: 1 | L176: 0.005860124663 | S176: Tableau 13 | T176: SEPM | U176: OVOLGSEPMPIEDINC | V176: =VLOOKUP($U176,Output!$C:$AQ,V$160,FALSE) -> 16956609.22 | W176: =VLOOKUP($U176,Output!$C:$AQ,W$160,FALSE) -> 17533599.49 | X176: =VLOOKUP($U176,Output!$C:$AQ,X$160,FALSE) -> 17860477.33 | Y176: =VLOOKUP($U176,Output!$C:$AQ,Y$160,FALSE) -> 17840820.34 | Z176: 0.8813729198 | AA176: 0.892867771 | AB176: 0.9095134511 | AC176: 0.9085124536 | AE176: OVOLgSEPMPIEDSNAT | AF176: =VLOOKUP($AE176,Output!$C:$AQ,AF$160,FALSE) -> 739801.754 | AG176: =VLOOKUP($AE176,Output!$C:$AQ,AG$160,FALSE) -> 727110.894 | AH176: =VLOOKUP($AE176,Output!$C:$AQ,AH$160,FALSE) -> 951580.2833 | AI176: =VLOOKUP($AE176,Output!$C:$AQ,AI$160,FALSE) -> 1099365.134
S177: Tableau 13 | T177: FN - ERS BOJ | U177: OVOLGFNPIEDINC | V177: =VLOOKUP($U177,Output!$C:$AQ,V$160,FALSE) -> 0 | W177: =VLOOKUP($U177,Output!$C:$AQ,W$160,FALSE) -> 0 | X177: =VLOOKUP($U177,Output!$C:$AQ,X$160,FALSE) -> 0 | Y177: =VLOOKUP($U177,Output!$C:$AQ,Y$160,FALSE) -> 0 | Z177: 0 | AA177: 0 | AB177: 0 | AC177: 0 | AE177: OVOLgFnPIEDSNAT | AF177: =VLOOKUP($AE177,Output!$C:$AQ,AF$160,FALSE) -> 0 | AG177: =VLOOKUP($AE177,Output!$C:$AQ,AG$160,FALSE) -> 0 | AH177: =VLOOKUP($AE177,Output!$C:$AQ,AH$160,FALSE) -> 0 | AI177: =VLOOKUP($AE177,Output!$C:$AQ,AI$160,FALSE) -> 0
C178: arrondi 100m³ ?? | L178: Masquer les essences du tableau qui sont en surbrillance (< 1%) | S178: Tableau 13 | T178: TOT sur pied | U178: OVOLTOTPIEDINC | V178: =VLOOKUP($U178,Output!$C:$AQ,V$160,FALSE) -> 19238858.87 | W178: =VLOOKUP($U178,Output!$C:$AQ,W$160,FALSE) -> 19637397.67 | X178: =VLOOKUP($U178,Output!$C:$AQ,X$160,FALSE) -> 19637397.67 | Y178: =VLOOKUP($U178,Output!$C:$AQ,Y$160,FALSE) -> 19637397.67 | Z178: 1 | AA178: 1 | AB178: 1 | AC178: 1 | AE178: OVOLTOTPIEDSNAT | AF178: =VLOOKUP($AE178,Output!$C:$AQ,AF$160,FALSE) -> 740954.694 | AG178: =VLOOKUP($AE178,Output!$C:$AQ,AG$160,FALSE) -> 727879.522 | AH178: =VLOOKUP($AE178,Output!$C:$AQ,AH$160,FALSE) -> 952734.9711 | AI178: =VLOOKUP($AE178,Output!$C:$AQ,AI$160,FALSE) -> 1100987.887
L179: Ces volumes sont comptabilisés dans "Autres essences" | S179: Tableau 13 | T179: Érables à sucre et rouge
D181: P2 | E181: P3 | F181: P4 | G181: P5 | H181: P6
B182: Tableau 15 Statistiques sur les compartiments d’organisation spatiale admissibles à la récolte par période
B183: Compartiments d'organisation spatiale | D183: 2023-2028 | E183: 2028-2033 | F183: 2033-2038 | G183: 2038-2043 | H183: 2043-2048
B184: Nombre total | D184: =Cedule_COS!G6 -> 0
B185: En pessière | D185: =COUNTIF(Cedule_COS!$A$10:$A$1009,"<S*") -> 0 | J185: Fait la sommation automatique des COS débutant par la lettre "P" ou par "C", valider et corriger si nécessaire
B186: En sapinière | D186: =COUNTIF(Cedule_COS!$A$10:$A$1009,"S*") -> 0 | J186: Fait la sommation automatique des COS débutant par la lettre "S", valider et corriger si nécessaire
B187: Admissibles à la récolte | D187: =Cedule_COS!C7 -> 0 | E187: =Cedule_COS!D7 -> 0 | F187: =Cedule_COS!E7 -> 0 | G187: =Cedule_COS!F7 -> 0 | H187: =Cedule_COS!G7 -> 0
B188: % de compartiments admissibles | D188: =Cedule_COS!C8 ->  | E188: =Cedule_COS!D8 ->  | F188: =Cedule_COS!E8 ->  | G188: =Cedule_COS!F8 ->  | H188: =Cedule_COS!G8 -> 
B192: Tableau 17 Superficies considérées pour l'analyse de la mortalité d'ici la période 2023-2028
F193: ha | G193: % | S193: =LEFT(B$192,11) -> Tableau 17 | T193: Légende | V193: Output | W193: Valeur | X193: Période | Y193: Année
B194: Épidémie sévère confirmée à la photo-interprétation | G194: =F194/W$194 -> 0 | J194: Faire une sélection sur le thème 8 = "INC" et seulement les années correspondant à l'épidémie actuelle | S194: =LEFT(B$192,11) -> Tableau 17 | T194: Incluses aux activités de récolte | V194: OSUPINC | W194: =VLOOKUP($V194,Output!$C:$AQ,6,FALSE) -> 343555.4 | X194: P0 | Y194: 2018
B195: Défoliation cumulative (cote ≥ 15) | F195: =ROUND(W196,-1) ->  | G195: =F195/W$194 ->  | J195: Des champs avaient été ajoutés par l'analyste à la fin de table d'attribut de la carte woodstock | S195: =LEFT(B$192,11) -> Tableau 17 | T195: Épidémie sévère confirmée à la photo-interprétation | V195: Requete dans la table d'attribut
B196: Mortalité projetée | F196: =ROUND(SUM(W197:W198),-1) ->  | G196: =F196/W$194 ->  | J196: et c'est sur ces derniers que doivent se réaliser les requêtes | S196: =LEFT(B$192,11) -> Tableau 17 | T196: Défoliation cumulative projetée 2023 ≥ 15 | V196: OSUPINC15+ | W196: =VLOOKUP($V196,Output!$C:$AQ,7,FALSE) ->  | X196: P1 | Y196: 2023
B197: Récupération prévue 2018-2023 | F197: =-ROUND(W199,-1) ->  | G197: =F197/W$194 ->  | S197: =LEFT(B$192,11) -> Tableau 17 | T197: Mortalité projetée (sommation des 2 actions) | V197: osupaTBEmort | W197: =VLOOKUP($V197,Output!$C:$AQ,8,FALSE) -> 0 | X197: P2 | Y197: 2028
V198: Osupactiontberetard | W198: =VLOOKUP($V198,Output!$C:$AQ,8,FALSE) ->  | X198: P2 | Y198: 2028
S199: =LEFT(B$192,11) -> Tableau 17 | T199: Récolte prévue à court terme (récupération) | V199: osuprealregapre_15+ | W199: =VLOOKUP($V199,Output!$C:$AQ,7,FALSE) ->  | X199: P1 | Y199: 2023

Sheet Figures
B2: Figure 2. Répartition du volume de bois marchand sur pied en début de calcul (m3). | N2: Volume sur pied en P0 | S2: Source: CahierDetermination_2018-2023 | V2: Volume sur pied en P0 - volume en SNAT | Z2: Volume dans courbe SNAT
L3: Conserver les GTYF même s'ils sont absents de l'UA | S3: Intrants | T3: Légende | U3: Name | V3: PERIOD0 | W3: % | X3: PERIOD0 | Z3: Name | AB3: PERIOD0
N4: Total | O4: =V19 -> 18262000 | S4: =LEFT(B$2,10) -> Figure 2. | T4: Autres feuillus durs | V4: =ROUND(V19-V17-V11-V12-V10-V8-V9-V6-V5-V7,-2) -> 100 | W4: =IFERROR(V4/$V$19,0) -> 5.475851495e-06 | X4: =X19-X17-X11-X12-X10-X8-X9-X6-X5-X7 -> 5.820766091e-10 | Z4: Autres feuillus durs | AB4: =ROUND(AB19-AB17-AB11-AB12-AB10-AB8-AB9-AB6-AB5-AB7,-2) -> 0
N5: % R | O5: =(V17+V12+V11+V10)/V19 -> 0.8937520534 | S5: Figure 2. | T5: Érable à sucre | U5: OVOLERSPIEDINC | V5: =ROUND(X5-AB5,-2) -> 0 | W5: 0 | X5: =VLOOKUP(U5,Output!$C:$AQ,6,FALSE) -> 0 | Z5: OVOLERSPIEDSNAT | AB5: =VLOOKUP(Z5,Output!$C:$AQ,6,FALSE) -> 0
N6: %SEPM | O6: =V17/V19 -> 0.89373015 | S6: Figure 2. | T6: Érable rouge | U6: OVOLgEroPIEDINC | V6: 0 | W6: 0 | X6: =VLOOKUP(U6,Output!$C:$AQ,6,FALSE) -> 0 | Z6: OVOLgEroPIEDSNAT | AB6: =VLOOKUP(Z6,Output!$C:$AQ,6,FALSE) -> 0
N7: % Fi | O7: =W21 -> 0.1062424707 | P7: =O7*O4 -> 1940200 | S7: Figure 2. | T7: Bouleau jaune | U7: OVOLBOJPIEDINC | V7: 0 | W7: 0 | X7: =VLOOKUP(U7,Output!$C:$AQ,6,FALSE) -> 0 | Z7: OVOLBOJPIEDSNAT | AB7: =VLOOKUP(Z7,Output!$C:$AQ,6,FALSE) -> 0
N8: % FT | O8: =W22 -> 0 | S8: Figure 2. | T8: Bouleau à papier | U8: OVOLgBpPIEDINC | V8: 1442400 | W8: 0.07898368196 | X8: =VLOOKUP(U8,Output!$C:$AQ,6,FALSE) -> 1443219.47 | Z8: OVOLgBpPIEDSNAT | AB8: =VLOOKUP(Z8,Output!$C:$AQ,6,FALSE) -> 854.03
N9: %Sapin | O9: =V16/V17 -> 0.06744560789 | S9: Figure 2. | T9: Peupliers | U9: OVOLGPEUPIEDINC | V9: 497800 | W9: 0.02725878874 | X9: =VLOOKUP(U9,Output!$C:$AQ,6,FALSE) -> 498268.35 | Z9: OVOLPEUPIEDSNAT | AB9: =VLOOKUP(Z9,Output!$C:$AQ,6,FALSE) -> 427.01
N10: %ERR | O10: =IFERROR(V6/(V5+V6),0) -> 0 | S10: Figure 2. | T10: Pins blanc et rouge | U10: OVOLGPINSPIEDINC | V10: 0 | W10: 0 | X10: =VLOOKUP(U10,Output!$C:$AQ,6,FALSE) -> 16.47 | Z10: OVOLGPINSCPIEDSNAT | AB10: =VLOOKUP(Z10,Output!$C:$AQ,6,FALSE) -> 0
S11: Figure 2. | T11: Pruche | U11: OVOLPRUPIEDINC | V11: 0 | W11: 0 | X11: =VLOOKUP(U11,Output!$C:$AQ,6,FALSE) -> 0 | Z11: OVOLPRUPIEDSNAT | AB11: =VLOOKUP(Z11,Output!$C:$AQ,6,FALSE) -> 0
N12: Volume sur pied au calcul 2015-2018 | P12: UA | S12: Figure 2. | T12: Thuya | U12: OVOLTHOPIEDINC | V12: 400 | W12: 2.190340598e-05 | X12: =VLOOKUP(U12,Output!$C:$AQ,6,FALSE) -> 448.6 | Z12: OVOLTHOPIEDSNAT | AB12: =VLOOKUP(Z12,Output!$C:$AQ,6,FALSE) -> 0
P13: =Tableaux!O33 -> 02664 | S13: Figure 2. | T13: Mélèzes | U13: OVOLgMlPIEDINC | V13: 103700 | W13: 0.005678458 | X13: =VLOOKUP(U13,Output!$C:$AQ,6,FALSE) -> 115468.36 | Z13: OVOLGMlPIEDSNAT | AB13: =VLOOKUP(Z13,Output!$C:$AQ,6,FALSE) -> 11742.89
N14: Total | O14: =VLOOKUP(P13,DataLocal!$A:$BM,61,FALSE) -> 19284134 | S14: Figure 2. | T14: Pin gris | U14: OVOLgPgPIEDINC | V14: 2783000 | W14: 0.1523929471 | X14: =VLOOKUP(U14,Output!$C:$AQ,6,FALSE) -> 2826130.48 | Z14: OVOLgPgPIEDSNAT | AB14: =VLOOKUP(Z14,Output!$C:$AQ,6,FALSE) -> 43128.41
N15: % R | O15: =VLOOKUP(P13,DataLocal!$A:$BM,62,FALSE) -> 0.93 | S15: Figure 2. | T15: Épinettes | U15: OVOLgEpxPIEDINC | V15: 12333800 | W15: 0.6753805717 | X15: =VLOOKUP(U15,Output!$C:$AQ,6,FALSE) -> 13019769.33 | Z15: OVOLgEpxPIEDSNAT | AB15: =VLOOKUP(Z15,Output!$C:$AQ,6,FALSE) -> 685997.99
N16: % SEPM | O16: =VLOOKUP(P13,DataLocal!$A:$BM,63,FALSE) -> 0.93 | S16: Figure 2. | T16: Sapin baumier | U16: OVOLSABPIEDINC | V16: =ROUND(X16-AB16,-2) -> 1100800 | W16: 0.06027817326 | X16: =VLOOKUP(U16,Output!$C:$AQ,6,FALSE) -> 1119422.09 | Z16: OVOLSABPIEDSNAT | AB16: =VLOOKUP(Z16,Output!$C:$AQ,6,FALSE) -> 18575.11
N17: % Fi | O17: =VLOOKUP(P13,DataLocal!$A:$BM,64,FALSE) -> 0.07 | S17: Figure 2. | T17: SEPM | U17: OVOLGSEPMPIEDINC | V17: =ROUND(X17-AB17,-2) -> 16321300 | W17: =IFERROR(V17/$V$19,0) -> 0.89373015 | X17: =VLOOKUP(U17,Output!$C:$AQ,6,FALSE) -> 17080790.25 | Z17: OVOLgSEPMPIEDSNAT | AB17: =VLOOKUP(Z17,Output!$C:$AQ,6,FALSE) -> 759444.4
N18: % Ft | O18: =VLOOKUP(P13,DataLocal!$A:$BM,65,FALSE) -> 0 | S18: Figure 2. | T18: FN - ERS BOJ | U18: OVOLGFNPIEDINC | V18: 0 | W18: 0 | X18: =VLOOKUP(U18,Output!$C:$AQ,6,FALSE) -> 0 | Z18: OVOLgFnPIEDSNAT | AB18: =VLOOKUP(Z18,Output!$C:$AQ,6,FALSE) -> 0
S19: Figure 2. | T19: TOT sur pied | U19: OVOLTOTPIEDINC | V19: =ROUND(X19-AB19,-2) -> 18262000 | W19: 1 | X19: =VLOOKUP(U19,Output!$C:$AQ,6,FALSE) -> 19022743.14 | Z19: OVOLTOTPIEDSNAT | AB19: =VLOOKUP(Z19,Output!$C:$AQ,6,FALSE) -> 760725.44
N20: Vol R | O20: =ROUND(O15*$O$14,-2) -> 17934200 | T20: Érables à sucre et rouge | U20: Érables à sucre et rouge | V20: =V5+V6 -> 0 | W20: 0 | X20: =X5+X6 -> 0 | Z20: Érables à sucre et rouge | AB20: =AB5+AB6 -> 0
N21: Vol SEPM | O21: =ROUND(O16*$O$14,-2) -> 17934200 | P21: Traduits en m3 | T21: gFi | U21: OVOLgFiPIEDINC | V21: =ROUND(X21-AB21,-2) -> 1940200 | W21: 0.1062424707 | X21: =VLOOKUP(U21,Output!$C:$AQ,6,FALSE) -> 1941487.82 | Z21: OVOLgFiPIEDSNAT | AB21: =VLOOKUP(Z21,Output!$C:$AQ,6,FALSE) -> 1281.04
N22: Vol Fi | O22: =ROUND(O17*$O$14,-2) -> 1349900 | P22: approximativement | T22: gFt | U22: OVOLgFtPIEDINC | V22: 0 | W22: 0 | X22: =VLOOKUP(U22,Output!$C:$AQ,6,FALSE) -> 0 | Z22: OVOLgFtPIEDSNAT | AB22: =VLOOKUP(Z22,Output!$C:$AQ,6,FALSE) -> 0
N23: Vol Ft | O23: =ROUND(O18*$O$14,-2) -> 0
B27: Type de couvert : | C27: =#REF! -> 
B28: Figure 3. Répartition de la superficie par grand type de forêt en début de calcul (ha). | S28: Intrants | T28: Légende | V28: PERIOD0 | W28: % | X28: PERIOD0
S29: =LEFT(B$28,10) -> Figure 3. | T29: Sapinières | U29: (FCTYF_SAB) | V29: =ROUND(X29,-1) -> 6120 | W29: =V29/V$44 -> 0.01786144457 | X29: =VLOOKUP("OSUPINC"&$U29,GTYF!$C:$AP,6,FALSE) -> 6116.5
S30: Figure 3. | T30: Résineux à feuillus | U30: (FCTYF_RF) | V30: =ROUND(X30,-1) -> 33360 | W30: 0.09736238414 | X30: =VLOOKUP("OSUPINC"&$U30,GTYF!$C:$AP,6,FALSE) -> 33362.7
S31: Figure 3. | T31: Prucheraies | U31: (FCTYF_PRU) | V31: 0 | W31: 0 | X31: =VLOOKUP("OSUPINC"&$U31,GTYF!$C:$AP,6,FALSE) -> 0
S32: Figure 3. | T32: Pinèdes grises | U32: (FCTYF_PIG) | V32: 26980 | W32: 0.07874212002 | X32: =VLOOKUP("OSUPINC"&$U32,GTYF!$C:$AP,6,FALSE) -> 26978.5
L33: Conserver les GTYF même s'ils sont absents de l'UA | S33: Figure 3. | T33: Pinèdes blanches | U33: (FCTYF_PIN) | V33: 0 | W33: 0 | X33: =VLOOKUP("OSUPINC"&$U33,GTYF!$C:$AP,6,FALSE) -> 0
S34: Figure 3. | T34: Peupleraies à résineux | U34: (FCTYF_PEUR) | V34: 0 | W34: 0 | X34: =VLOOKUP("OSUPINC"&$U34,GTYF!$C:$AP,6,FALSE) -> 0
S35: Figure 3. | T35: Peupleraies | U35: (FCTYF_PEU) | V35: 0 | W35: 0 | X35: =VLOOKUP("OSUPINC"&$U35,GTYF!$C:$AP,6,FALSE) -> 0
S36: Figure 3. | T36: Pessières | U36: (FCTYF_EPX) | V36: 231600 | W36: 0.6759330985 | X36: =VLOOKUP("OSUPINC"&$U36,GTYF!$C:$AP,6,FALSE) -> 231599.8
S37: Figure 3. | T37: Feuillus tolérants à résineux | U37: (FCTYF_FTR) | V37: 0 | W37: 0 | X37: =VLOOKUP("OSUPINC"&$U37,GTYF!$C:$AP,6,FALSE) -> 0
S38: Figure 3. | T38: Feuillus tolérants | U38: (FCTYF_FT) | V38: 0 | W38: 0 | X38: =VLOOKUP("OSUPINC"&$U38,GTYF!$C:$AP,6,FALSE) -> 0
S39: Figure 3. | T39: Érablières rouges | U39: (FCTYF_ERO) | V39: 0 | W39: 0 | X39: =VLOOKUP("OSUPINC"&$U39,GTYF!$C:$AP,6,FALSE) -> 0
S40: Figure 3. | T40: Cédrières | U40: (FCTYF_THO) | V40: 0 | W40: 0 | X40: =VLOOKUP("OSUPINC"&$U40,GTYF!$C:$AP,6,FALSE) -> 0
S41: Figure 3. | T41: Bétulaies blanches à résineux | U41: (FCTYF_BOPR) | V41: 6720 | W41: 0.01961256659 | X41: =VLOOKUP("OSUPINC"&$U41,GTYF!$C:$AP,6,FALSE) -> 6722.5
S42: Figure 3. | T42: Bétulaies blanches | U42: (FCTYF_BOP) | V42: 6660 | W42: 0.01943745439 | X42: =VLOOKUP("OSUPINC"&$U42,GTYF!$C:$AP,6,FALSE) -> 6660.6
U43: Somme: | V43: =SUM(V29:V42) -> 311440 | X43: =SUM(X29:X42) -> 311440.6
T44: OSUPINC | U44: Tous | V44: =VLOOKUP("OSUPINC",Output!$C:$AP,7,FALSE) -> 342637.46
V45: =V43-V44 -> -31197.46 | W45: Écart
V49: 2018
B50: Figure 4. Superficie destinée à l'aménagement forestier par classe d'âge en début de calcul (ha). | S50: Intrants | U50: Name | V50: PERIOD0 | X50: Classe d'âge | Y50: OUTPUT | Z50: Superficie (ha) | AA50: Pourcentage (%)
S51: =LEFT(B$50,10) -> Figure 4. | T51: 10 ans | U51: OSUP_INC_CLASSEAGEFCAGEAGE1 | V51: =VLOOKUP(U51,Output!$C:$AQ,6,FALSE) -> 6382 | X51: 10 | Z51: =ROUND(SUM(V51:V54),-1) -> 69720 | AA51: =IFERROR(Z51/$V$89,0) -> 0.2029367025
S52: Figure 4. | T52: 10 ans | U52: OSUP_INC_CLASSEAGEFCAGEAGE2 | V52: =VLOOKUP(U52,Output!$C:$AQ,6,FALSE) -> 24115.5 | X52: 30 | Z52: =ROUND(SUM(V55:V58),-1) -> 87350 | AA52: 0.2542530259
S53: Figure 4. | T53: 10 ans | U53: OSUP_INC_CLASSEAGEFCAGEAGE3 | V53: =VLOOKUP(U53,Output!$C:$AQ,6,FALSE) -> 20659.5 | X53: 50 | Z53: =ROUND(SUM(V59:V62),-1) -> 29880 | AA53: 0.0869728725
S54: Figure 4. | T54: 10 ans | U54: OSUP_INC_CLASSEAGEFCAGEAGE4 | V54: =VLOOKUP(U54,Output!$C:$AQ,6,FALSE) -> 18558.6 | X54: 70 | Z54: =ROUND(SUM(V63:V66),-1) -> 20120 | AA54: 0.05856406274
S55: Figure 4. | T55: 30 ans | U55: OSUP_INC_CLASSEAGEFCAGEAGE5 | V55: =VLOOKUP(U55,Output!$C:$AQ,6,FALSE) -> 26902.6 | X55: 90 | Z55: =ROUND(SUM(V67:V70),-1) -> 36330 | AA55: 0.1057471371
S56: Figure 4. | T56: 30 ans | U56: OSUP_INC_CLASSEAGEFCAGEAGE6 | V56: =VLOOKUP(U56,Output!$C:$AQ,6,FALSE) -> 20184 | X56: 120 et plus | Z56: =ROUND(SUM(V71:V80),-1) -> 100160 | AA56: 0.2915395887
S57: Figure 4. | T57: 30 ans | U57: OSUP_INC_CLASSEAGEFCAGEAGE7 | V57: =VLOOKUP(U57,Output!$C:$AQ,6,FALSE) -> 23291.6
S58: Figure 4. | T58: 30 ans | U58: OSUP_INC_CLASSEAGEFCAGEAGE8 | V58: =VLOOKUP(U58,Output!$C:$AQ,6,FALSE) -> 16972.4
S59: Figure 4. | T59: 50 ans | U59: OSUP_INC_CLASSEAGEFCAGEAGE9 | V59: =VLOOKUP(U59,Output!$C:$AQ,6,FALSE) -> 14592.9
S60: Figure 4. | T60: 50 ans | U60: OSUP_INC_CLASSEAGEFCAGEAGE10 | V60: =VLOOKUP(U60,Output!$C:$AQ,6,FALSE) -> 6639.7
S61: Figure 4. | T61: 50 ans | U61: OSUP_INC_CLASSEAGEFCAGEAGE11 | V61: =VLOOKUP(U61,Output!$C:$AQ,6,FALSE) -> 6073.7
N62: Proportion de la superficie dont l'évolution est suivi en âge: | S62: Figure 4. | T62: 50 ans | U62: OSUP_INC_CLASSEAGEFCAGEAGE12 | V62: =VLOOKUP(U62,Output!$C:$AQ,6,FALSE) -> 2578.2
N63: =IF(AND($W$81>=99.5%,$W$81<100%),"> 99%",IF(AND($W$81>=0.1%,$W$81<0.5%),"< 1%",$W$81)) -> 1 | S63: Figure 4. | T63: 70 ans | U63: OSUP_INC_CLASSEAGEFCAGEAGE13 | V63: =VLOOKUP(U63,Output!$C:$AQ,6,FALSE) -> 7746.3
S64: Figure 4. | T64: 70 ans | U64: OSUP_INC_CLASSEAGEFCAGEAGE14 | V64: =VLOOKUP(U64,Output!$C:$AQ,6,FALSE) -> 2807
S65: Figure 4. | T65: 70 ans | U65: OSUP_INC_CLASSEAGEFCAGEAGE15 | V65: =VLOOKUP(U65,Output!$C:$AQ,6,FALSE) -> 5299.3
S66: Figure 4. | T66: 70 ans | U66: OSUP_INC_CLASSEAGEFCAGEAGE16 | V66: =VLOOKUP(U66,Output!$C:$AQ,6,FALSE) -> 4262.9
S67: Figure 4. | T67: 90 ans | U67: OSUP_INC_CLASSEAGEFCAGEAGE17 | V67: =VLOOKUP(U67,Output!$C:$AQ,6,FALSE) -> 7770.6
S68: Figure 4. | T68: 90 ans | U68: OSUP_INC_CLASSEAGEFCAGEAGE18 | V68: =VLOOKUP(U68,Output!$C:$AQ,6,FALSE) -> 8497.7
B69: Figure 5. Superficie destinée à l'aménagement forestier par classe de surface terrière en début de calcul (ha) | S69: Figure 4. | T69: 90 ans | U69: OSUP_INC_CLASSEAGEFCAGEAGE19 | V69: =VLOOKUP(U69,Output!$C:$AQ,6,FALSE) -> 12829.9
S70: Figure 4. | T70: 90 ans | U70: OSUP_INC_CLASSEAGEFCAGEAGE20 | V70: =VLOOKUP(U70,Output!$C:$AQ,6,FALSE) -> 7235.1
S71: Figure 4. | T71: 120 et plus | U71: OSUP_INC_CLASSEAGEFCAGEAGE21 | V71: =VLOOKUP(U71,Output!$C:$AQ,6,FALSE) -> 6545
S72: Figure 4. | T72: 120 et plus | U72: OSUP_INC_CLASSEAGEFCAGEAGE22 | V72: =VLOOKUP(U72,Output!$C:$AQ,6,FALSE) -> 7272.5
S73: Figure 4. | T73: 120 et plus | U73: OSUP_INC_CLASSEAGEFCAGEAGE23 | V73: =VLOOKUP(U73,Output!$C:$AQ,6,FALSE) -> 6783.3
S74: Figure 4. | T74: 120 et plus | U74: OSUP_INC_CLASSEAGEFCAGEAGE24 | V74: =VLOOKUP(U74,Output!$C:$AQ,6,FALSE) -> 7601.4
S75: Figure 4. | T75: 120 et plus | U75: OSUP_INC_CLASSEAGEFCAGEAGE25 | V75: =VLOOKUP(U75,Output!$C:$AQ,6,FALSE) -> 2872.9
N76: Proportion de la superficie dont l'évolution est suivi en surface terrière: | S76: Figure 4. | T76: 120 et plus | U76: OSUP_INC_CLASSEAGEFCAGEAGE26 | V76: =VLOOKUP(U76,Output!$C:$AQ,6,FALSE) -> 8863.4
N77: =IF(AND($W$88>=99.5%,$W$88<100%),"> 99%",IF(AND($W$88>=0.1%,$W$88<0.5%),"< 1%",$W$88)) -> 0 | S77: Figure 4. | T77: 120 et plus | U77: OSUP_INC_CLASSEAGEFCAGEAGE27 | V77: =VLOOKUP(U77,Output!$C:$AQ,6,FALSE) -> 744
S78: Figure 4. | T78: 120 et plus | U78: OSUP_INC_CLASSEAGEFCAGEAGE28 | V78: =VLOOKUP(U78,Output!$C:$AQ,6,FALSE) -> 1106.5
S79: Figure 4. | T79: 120 et plus | U79: OSUP_INC_CLASSEAGEFCAGEAGE29 | V79: =VLOOKUP(U79,Output!$C:$AQ,6,FALSE) -> 335.1
S80: Figure 4. | T80: 120 et plus | U80: OSUP_INC_CLASSEAGEFCAGEAGE30+ | V80: =VLOOKUP(U80,Output!$C:$AQ,6,FALSE) -> 58031.8
U81: Sous-total | V81: =SUM(V51:V80) -> 343555.4 | W81: =V81/V89 -> 1
S82: =LEFT(B$69,10) -> Figure 5. | T82: <16 | U82: OSUPINC_ST016(FCST) | V82: =VLOOKUP(U82,GTYF!$C:$AQ,6,FALSE) -> 0 | W82: =IFERROR(V82/$V$88,0) -> 0
S83: Figure 5. | T83: 16 à 18 | U83: OSUPINC_ST1619(FCST) | V83: =VLOOKUP(U83,GTYF!$C:$AQ,6,FALSE) -> 0 | W83: 0
S84: Figure 5. | T84: 19 à 21 | U84: OSUPINC_ST1922(FCST) | V84: =VLOOKUP(U84,GTYF!$C:$AQ,6,FALSE) -> 0 | W84: 0
S85: Figure 5. | T85: 22 à 24 | U85: OSUPINC_ST2225(FCST) | V85: =VLOOKUP(U85,GTYF!$C:$AQ,6,FALSE) -> 0 | W85: 0
S86: Figure 5. | T86: 25 à 28 | U86: OSUPINC_ST2528(FCST) | V86: =VLOOKUP(U86,GTYF!$C:$AQ,6,FALSE) -> 0 | W86: 0
S87: Figure 5. | T87: 29+ | U87: OSUPINC_ST29+(FCST) | V87: =VLOOKUP(U87,GTYF!$C:$AQ,6,FALSE) -> 0 | W87: 0
S88: Figure 5. | T88: Total 0-29+ | U88: Sous-total | V88: =SUM(V82:V87) -> 0 | W88: =V88/V89 -> 0
U89: OSUPINC | V89: =VLOOKUP(U89,Output!$C:$AQ,6,FALSE) -> 343555.4
A91: 80 | B91: Figure 6. Évolution des volumes et des possibilités forestières à rendement non-décroissant
U93: Période | V93: P0 | W93: P1 | X93: P2 | Y93: P3 | Z93: P4 | AA93: P5 | AB93: P6 | AC93: P7 | AD93: P8 | AE93: P9 | AF93: P10 | AG93: P11 | AH93: P12 | AI93: P13 | AJ93: P14 | AK93: P15 | AL93: P16 | AM93: P17 | AN93: P18 | AO93: P19 | AP93: P20 | AQ93: P21 | AR93: P22 | AS93: P23 | AT93: P24 | AU93: P25 | AV93: P26 | AW93: P27 | AX93: P28 | AY93: P29 | AZ93: P30
U94: Colonne | V94: 6 | W94: 7 | X94: 8 | Y94: 9 | Z94: 10 | AA94: 11 | AB94: 12 | AC94: 13 | AD94: 14 | AE94: 15 | AF94: 16 | AG94: 17 | AH94: 18 | AI94: 19 | AJ94: 20 | AK94: 21 | AL94: 22 | AM94: 23 | AN94: 24 | AO94: 25 | AP94: 26 | AQ94: 27 | AR94: 28 | AS94: 29 | AT94: 30 | AU94: 31 | AV94: 32 | AW94: 33 | AX94: 34 | AY94: 35 | AZ94: 36
S95: =LEFT(B$91,10) -> Figure 6. | T95: Légende | U95: Axe des "X" Début de période | W95: 2018 | X95: 2023 | Y95: 2028 | Z95: 2033 | AA95: 2038 | AB95: 2043 | AC95: 2048 | AD95: 2053 | AE95: 2058 | AF95: 2063 | AG95: 2068 | AH95: 2073 | AI95: 2078 | AJ95: 2083 | AK95: 2088 | AL95: 2093 | AM95: 2098 | AN95: 2103 | AO95: 2108 | AP95: 2113 | AQ95: 2118 | AR95: 2123 | AS95: 2128 | AT95: 2133 | AU95: 2138 | AV95: 2143 | AW95: 2148 | AX95: 2153 | AY95: 2158 | AZ95: 2163
S96: =LEFT(B$91,10) -> Figure 6. | T96: Possibilités forestières quinquennales | U96: OVOLTOTREC | V96: =VLOOKUP($U96,Output!$C:$AM,V$94,FALSE) -> 0 | W96: =VLOOKUP($U96,Output!$C:$AM,W$94,FALSE) -> 1779764 | X96: =VLOOKUP($U96,Output!$C:$AM,X$94,FALSE) -> 1774800 | Y96: =VLOOKUP($U96,Output!$C:$AM,Y$94,FALSE) -> 1774800 | Z96: =VLOOKUP($U96,Output!$C:$AM,Z$94,FALSE) -> 1774800 | AA96: =VLOOKUP($U96,Output!$C:$AM,AA$94,FALSE) -> 1774800 | AB96: =VLOOKUP($U96,Output!$C:$AM,AB$94,FALSE) -> 1774800 | AC96: =VLOOKUP($U96,Output!$C:$AM,AC$94,FALSE) -> 2295010.79 | AD96: =VLOOKUP($U96,Output!$C:$AM,AD$94,FALSE) -> 2488238.03 | AE96: =VLOOKUP($U96,Output!$C:$AM,AE$94,FALSE) -> 2488238.03 | AF96: =VLOOKUP($U96,Output!$C:$AM,AF$94,FALSE) -> 2505926.24 | AG96: =VLOOKUP($U96,Output!$C:$AM,AG$94,FALSE) -> 2555744.03 | AH96: =VLOOKUP($U96,Output!$C:$AM,AH$94,FALSE) -> 2592454.94 | AI96: =VLOOKUP($U96,Output!$C:$AM,AI$94,FALSE) -> 2592467.33 | AJ96: =VLOOKUP($U96,Output!$C:$AM,AJ$94,FALSE) -> 2671738.27 | AK96: =VLOOKUP($U96,Output!$C:$AM,AK$94,FALSE) -> 2671738.27 | AL96: =VLOOKUP($U96,Output!$C:$AM,AL$94,FALSE) -> 2703181.74 | AM96: =VLOOKUP($U96,Output!$C:$AM,AM$94,FALSE) -> 2727958.15 | AN96: =VLOOKUP($U96,Output!$C:$AM,AN$94,FALSE) -> 2768431.09 | AO96: =VLOOKUP($U96,Output!$C:$AM,AO$94,FALSE) -> 2768431.09 | AP96: =VLOOKUP($U96,Output!$C:$AM,AP$94,FALSE) -> 2775831.01 | AQ96: =VLOOKUP($U96,Output!$C:$AM,AQ$94,FALSE) -> 2801105.44 | AR96: =VLOOKUP($U96,Output!$C:$AM,AR$94,FALSE) -> 2801105.44 | AS96: =VLOOKUP($U96,Output!$C:$AM,AS$94,FALSE) -> 2801105.44 | AT96: =VLOOKUP($U96,Output!$C:$AM,AT$94,FALSE) -> 2801105.44 | AU96: =VLOOKUP($U96,Output!$C:$AM,AU$94,FALSE) -> 2801105.44 | AV96: =VLOOKUP($U96,Output!$C:$AM,AV$94,FALSE) -> 2801105.44 | AW96: =VLOOKUP($U96,Output!$C:$AM,AW$94,FALSE) -> 2801105.44 | AX96: =VLOOKUP($U96,Output!$C:$AM,AX$94,FALSE) -> 2846276.82 | AY96: =VLOOKUP($U96,Output!$C:$AM,AY$94,FALSE) -> 2846276.82 | AZ96: =VLOOKUP($U96,Output!$C:$AM,AZ$94,FALSE) -> 2846276.82
S97: =LEFT(B$91,10) -> Figure 6. | T97: Volume à maturité | U97: OVOLMATUREADM | V97: =VLOOKUP($U97,Output!$C:$AM,V$94,FALSE) -> 11957549.26 | W97: =VLOOKUP($U97,Output!$C:$AM,W$94,FALSE) -> 10831352.53 | X97: =VLOOKUP($U97,Output!$C:$AM,X$94,FALSE) -> 10204380.08 | Y97: =VLOOKUP($U97,Output!$C:$AM,Y$94,FALSE) -> 10522829.03 | Z97: =VLOOKUP($U97,Output!$C:$AM,Z$94,FALSE) -> 10768097.32 | AA97: =VLOOKUP($U97,Output!$C:$AM,AA$94,FALSE) -> 11653437.9 | AB97: =VLOOKUP($U97,Output!$C:$AM,AB$94,FALSE) -> 12249679.92 | AC97: =VLOOKUP($U97,Output!$C:$AM,AC$94,FALSE) -> 11476083.45 | AD97: =VLOOKUP($U97,Output!$C:$AM,AD$94,FALSE) -> 11921104.01 | AE97: =VLOOKUP($U97,Output!$C:$AM,AE$94,FALSE) -> 11012618.29 | AF97: =VLOOKUP($U97,Output!$C:$AM,AF$94,FALSE) -> 10072207.69 | AG97: =VLOOKUP($U97,Output!$C:$AM,AG$94,FALSE) -> 9881622.73 | AH97: =VLOOKUP($U97,Output!$C:$AM,AH$94,FALSE) -> 9477918 | AI97: =VLOOKUP($U97,Output!$C:$AM,AI$94,FALSE) -> 9095697.34 | AJ97: =VLOOKUP($U97,Output!$C:$AM,AJ$94,FALSE) -> 9738320.23 | AK97: =VLOOKUP($U97,Output!$C:$AM,AK$94,FALSE) -> 9677125.06 | AL97: =VLOOKUP($U97,Output!$C:$AM,AL$94,FALSE) -> 9700490.22 | AM97: =VLOOKUP($U97,Output!$C:$AM,AM$94,FALSE) -> 8754040.04 | AN97: =VLOOKUP($U97,Output!$C:$AM,AN$94,FALSE) -> 8370237.98 | AO97: =VLOOKUP($U97,Output!$C:$AM,AO$94,FALSE) -> 8414245.47 | AP97: =VLOOKUP($U97,Output!$C:$AM,AP$94,FALSE) -> 8124307.77 | AQ97: =VLOOKUP($U97,Output!$C:$AM,AQ$94,FALSE) -> 8440406.2 | AR97: =VLOOKUP($U97,Output!$C:$AM,AR$94,FALSE) -> 8472913.76 | AS97: =VLOOKUP($U97,Output!$C:$AM,AS$94,FALSE) -> 9004111.84 | AT97: =VLOOKUP($U97,Output!$C:$AM,AT$94,FALSE) -> 9428097.03 | AU97: =VLOOKUP($U97,Output!$C:$AM,AU$94,FALSE) -> 9254105.55 | AV97: =VLOOKUP($U97,Output!$C:$AM,AV$94,FALSE) -> 10354459.66 | AW97: =VLOOKUP($U97,Output!$C:$AM,AW$94,FALSE) -> 9663954.92 | AX97: =VLOOKUP($U97,Output!$C:$AM,AX$94,FALSE) -> 9534049.34 | AY97: =VLOOKUP($U97,Output!$C:$AM,AY$94,FALSE) -> 9198746.02 | AZ97: =VLOOKUP($U97,Output!$C:$AM,AZ$94,FALSE) -> 8483662.52
S98: =LEFT(B$91,10) -> Figure 6. | T98: Volume sur pied | U98: OVOLTOTPIEDINC | V98: =VLOOKUP($U98,Output!$C:$AM,V$94,FALSE) -> 19022743.14 | W98: =VLOOKUP($U98,Output!$C:$AM,W$94,FALSE) -> 18894616.57 | X98: =VLOOKUP($U98,Output!$C:$AM,X$94,FALSE) -> 18926381.91 | Y98: =VLOOKUP($U98,Output!$C:$AM,Y$94,FALSE) -> 19001572.63 | Z98: =VLOOKUP($U98,Output!$C:$AM,Z$94,FALSE) -> 19200792.82 | AA98: =VLOOKUP($U98,Output!$C:$AM,AA$94,FALSE) -> 19428149.33 | AB98: =VLOOKUP($U98,Output!$C:$AM,AB$94,FALSE) -> 19637397.67 | AC98: =VLOOKUP($U98,Output!$C:$AM,AC$94,FALSE) -> 19637397.67 | AD98: =VLOOKUP($U98,Output!$C:$AM,AD$94,FALSE) -> 19637397.67 | AE98: =VLOOKUP($U98,Output!$C:$AM,AE$94,FALSE) -> 19637397.67 | AF98: =VLOOKUP($U98,Output!$C:$AM,AF$94,FALSE) -> 19637397.67 | AG98: =VLOOKUP($U98,Output!$C:$AM,AG$94,FALSE) -> 19637397.67 | AH98: =VLOOKUP($U98,Output!$C:$AM,AH$94,FALSE) -> 19637397.67 | AI98: =VLOOKUP($U98,Output!$C:$AM,AI$94,FALSE) -> 19637397.67 | AJ98: =VLOOKUP($U98,Output!$C:$AM,AJ$94,FALSE) -> 19637397.67 | AK98: =VLOOKUP($U98,Output!$C:$AM,AK$94,FALSE) -> 19637397.67 | AL98: =VLOOKUP($U98,Output!$C:$AM,AL$94,FALSE) -> 19637397.67 | AM98: =VLOOKUP($U98,Output!$C:$AM,AM$94,FALSE) -> 19637397.67 | AN98: =VLOOKUP($U98,Output!$C:$AM,AN$94,FALSE) -> 19637397.67 | AO98: =VLOOKUP($U98,Output!$C:$AM,AO$94,FALSE) -> 19637397.67 | AP98: =VLOOKUP($U98,Output!$C:$AM,AP$94,FALSE) -> 19637397.67 | AQ98: =VLOOKUP($U98,Output!$C:$AM,AQ$94,FALSE) -> 19637397.67 | AR98: =VLOOKUP($U98,Output!$C:$AM,AR$94,FALSE) -> 19637397.67 | AS98: =VLOOKUP($U98,Output!$C:$AM,AS$94,FALSE) -> 19637397.67 | AT98: =VLOOKUP($U98,Output!$C:$AM,AT$94,FALSE) -> 19637397.67 | AU98: =VLOOKUP($U98,Output!$C:$AM,AU$94,FALSE) -> 19637397.67 | AV98: =VLOOKUP($U98,Output!$C:$AM,AV$94,FALSE) -> 19637397.67 | AW98: =VLOOKUP($U98,Output!$C:$AM,AW$94,FALSE) -> 19637397.67 | AX98: =VLOOKUP($U98,Output!$C:$AM,AX$94,FALSE) -> 19637397.67 | AY98: =VLOOKUP($U98,Output!$C:$AM,AY$94,FALSE) -> 19637397.67 | AZ98: =VLOOKUP($U98,Output!$C:$AM,AZ$94,FALSE) -> 19637397.67
S99: =LEFT(B$91,10) -> Figure 6. | T99: Volume récoltable | U99: OVOLTOTADMREGAPRE | V99: =VLOOKUP($U99,Output!$C:$AM,V$94,FALSE) -> 0 | W99: =VLOOKUP($U99,Output!$C:$AM,W$94,FALSE) -> 8103618.81 | X99: =VLOOKUP($U99,Output!$C:$AM,X$94,FALSE) -> 8260430.2 | Y99: =VLOOKUP($U99,Output!$C:$AM,Y$94,FALSE) -> 8278790.17 | Z99: =VLOOKUP($U99,Output!$C:$AM,Z$94,FALSE) -> 8653491.08 | AA99: =VLOOKUP($U99,Output!$C:$AM,AA$94,FALSE) -> 9366464.74 | AB99: =VLOOKUP($U99,Output!$C:$AM,AB$94,FALSE) -> 10337154.4 | AC99: =VLOOKUP($U99,Output!$C:$AM,AC$94,FALSE) -> 10661407.61 | AD99: =VLOOKUP($U99,Output!$C:$AM,AD$94,FALSE) -> 10091285.54 | AE99: =VLOOKUP($U99,Output!$C:$AM,AE$94,FALSE) -> 11238629.17 | AF99: =VLOOKUP($U99,Output!$C:$AM,AF$94,FALSE) -> 9788155.83 | AG99: =VLOOKUP($U99,Output!$C:$AM,AG$94,FALSE) -> 8774945.44 | AH99: =VLOOKUP($U99,Output!$C:$AM,AH$94,FALSE) -> 8772342.99 | AI99: =VLOOKUP($U99,Output!$C:$AM,AI$94,FALSE) -> 8412500.69 | AJ99: =VLOOKUP($U99,Output!$C:$AM,AJ$94,FALSE) -> 8063363.49 | AK99: =VLOOKUP($U99,Output!$C:$AM,AK$94,FALSE) -> 8732129.39 | AL99: =VLOOKUP($U99,Output!$C:$AM,AL$94,FALSE) -> 8688107.23 | AM99: =VLOOKUP($U99,Output!$C:$AM,AM$94,FALSE) -> 8715514.41 | AN99: =VLOOKUP($U99,Output!$C:$AM,AN$94,FALSE) -> 7833621.14 | AO99: =VLOOKUP($U99,Output!$C:$AM,AO$94,FALSE) -> 7348384.36 | AP99: =VLOOKUP($U99,Output!$C:$AM,AP$94,FALSE) -> 7306755.49 | AQ99: =VLOOKUP($U99,Output!$C:$AM,AQ$94,FALSE) -> 7153007.37 | AR99: =VLOOKUP($U99,Output!$C:$AM,AR$94,FALSE) -> 7494599.88 | AS99: =VLOOKUP($U99,Output!$C:$AM,AS$94,FALSE) -> 7293557.33 | AT99: =VLOOKUP($U99,Output!$C:$AM,AT$94,FALSE) -> 7794470.04 | AU99: =VLOOKUP($U99,Output!$C:$AM,AU$94,FALSE) -> 7905671.84 | AV99: =VLOOKUP($U99,Output!$C:$AM,AV$94,FALSE) -> 7688602.23 | AW99: =VLOOKUP($U99,Output!$C:$AM,AW$94,FALSE) -> 8544892.91 | AX99: =VLOOKUP($U99,Output!$C:$AM,AX$94,FALSE) -> 7178345.35 | AY99: =VLOOKUP($U99,Output!$C:$AM,AY$94,FALSE) -> 6837562.91 | AZ99: =VLOOKUP($U99,Output!$C:$AM,AZ$94,FALSE) -> 6300624.01
T116: * Source: Cahier_analyse, Tableau 13, onglet Budget | X116: Moyenne P2 à P6
B117: Figure 7. Répartition du budget annuel par familles de traitements prévus à la stratégie d’aménagement et coût moyen à l’hectare par famille de traitements
S118: =LEFT(B$117,10) -> Figure 7. | T118: Légende | U118: Output taux | V118: Output superficie | W118: $/ha | X118: ha | Y118: $
S119: =LEFT(B$117,10) -> Figure 7. | T119: Coupes avec protection de la régénération et des sols (CPRS) | U119: OTAUXCT_100 | V119: OSUPCT | W119: =IFERROR(VLOOKUP(U119,Output!$C:$AQ,37,FALSE),0) -> 0 | X119: =IFERROR(VLOOKUP(V119,Output!$C:$AQ,37,FALSE),"0000")/5 -> 3028.9236 | Y119: =W119*X119 -> 0
S120: =LEFT(B$117,10) -> Figure 7. | T120: Coupe avec protection des petites tiges marchandes (CPPTM) | V120: OSUPREALaCPPTM | W120: =IFERROR(VLOOKUP(U120,Output!$C:$AQ,8,FALSE),0) -> 0 | X120: =IFERROR(VLOOKUP(V120,Output!$C:$AQ,37,FALSE),"0000")/5 -> 0 | Y120: =W120*X120 -> 0
S121: =LEFT(B$117,10) -> Figure 7. | T121: Coupe avec réserve de semenciers (CRS) | V121: OSUPREALaCRS | W121: =IFERROR(VLOOKUP(U121,Output!$C:$AQ,8,FALSE),0) -> 0 | X121: =IFERROR(VLOOKUP(V121,Output!$C:$AQ,37,FALSE),"0000")/5 -> 0 | Y121: 0
T122: Coupe à rétention variable (CRV, CPPTM, CPPTM, CPHR, CDL)
S123: =LEFT(B$117,10) -> Figure 7. | T123: Coupes finales | W123: =(ROUND(Y123/X123,0))&"$/ha" -> 0$/ha | X123: =SUM(X119:X121) -> 3028.9236 | Y123: =SUM(Y119:Y121) -> 0
S124: Figure 7. | T124: Éclaircie commerciale (EC) | U124: OTAUXEC_SEPM_100 | V124: OSUPEC_SEPM | W124: =IFERROR(VLOOKUP(U124,Output!$C:$AQ,37,FALSE),0) -> 1370 | X124: =IFERROR(VLOOKUP(V124,Output!$C:$AQ,37,FALSE),"0000")/5 -> 19 | Y124: 26030
S125: Figure 7. | T125: Coupe progressive régulière initiale (CPROG) | U125: OTAUXCPROG_INI_100 | V125: OSUPCPROG_INI | W125: =IFERROR(VLOOKUP(U125,Output!$C:$AQ,37,FALSE),0) -> 400 | X125: =IFERROR(VLOOKUP(V125,Output!$C:$AQ,37,FALSE),"0000")/5 -> 0 | Y125: 0
S126: Figure 7. | T126: Coupe progressive régulière finale (CPROG) | U126: OTAUXCPROG_FIN_100 | V126: OSUPCPROG_FIN | W126: =IFERROR(VLOOKUP(U126,Output!$C:$AQ,37,FALSE),0) -> 0 | X126: =IFERROR(VLOOKUP(V126,Output!$C:$AQ,37,FALSE),"0000")/5 -> 0 | Y126: 0
S127: Figure 7. | T127: Coupe progessive irrégulière initiale (CPIRL) | U127: OTAUXCPIRL_INI_100 | V127: OSUPCPIRL_INI | W127: =IFERROR(VLOOKUP(U127,Output!$C:$AQ,37,FALSE),0) -> 530 | X127: =IFERROR(VLOOKUP(V127,Output!$C:$AQ,37,FALSE),"0000")/5 -> 247.6 | Y127: 131228
S128: Figure 7. | T128: Coupe progessive irrégulière finale (CPIRL) | U128: OTAUXCPIRL_FIN_100 | V128: OSUPCPIRL_FIN | W128: =IFERROR(VLOOKUP(U128,Output!$C:$AQ,37,FALSE),0) -> 0 | X128: =IFERROR(VLOOKUP(V128,Output!$C:$AQ,37,FALSE),"0000")/5 -> 0 | Y128: 0
S129: Figure 7. | T129: Coupe à couvert permanent (CPICP) | U129: OTAUXCPICP_100 | V129: OSUPCPICP | W129: =IFERROR(VLOOKUP(U129,Output!$C:$AQ,37,FALSE),0) -> 210 | X129: =IFERROR(VLOOKUP(V129,Output!$C:$AQ,37,FALSE),"0000")/5 -> 0 | Y129: 0
S130: Figure 7. | T130: Coupe de jardinage (CJ) | U130: OTAUXCJ_100 | V130: OSUPCJ | W130: =IFERROR(VLOOKUP(U130,Output!$C:$AQ,37,FALSE),0) -> 673.45 | X130: =IFERROR(VLOOKUP(V130,Output!$C:$AQ,37,FALSE),"0000")/5 -> 0 | Y130: 0
S131: Figure 7. | T131: Coupes partielles | W131: =(ROUND(Y131/X131,0))&"$/ha" -> 590$/ha | X131: =SUM(X124:X130) -> 266.6 | Y131: =SUM(Y124:Y130) -> 157258
S132: Figure 7. | T132: Plantation ligniculture (pins, feuillus) | U132: OTAUXPL_PPF_100 | V132: OSUPPL_PPF | W132: =IFERROR(VLOOKUP(U132,Output!$C:$AQ,37,FALSE),0) -> 1640 | X132: =IFERROR(VLOOKUP(V132,Output!$C:$AQ,37,FALSE),"0000")/5 -> 0 | Y132: 0
S133: Figure 7. | T133: Plantation intensive | U133: OTAUXPL_SEPM_I_100 | V133: OSUPPL_SEPM_I | W133: =IFERROR(VLOOKUP(U133,Output!$C:$AQ,37,FALSE),0) -> 1300 | X133: =IFERROR(VLOOKUP(V133,Output!$C:$AQ,37,FALSE),"0000")/5 -> 22.8944 | Y133: 29762.72
S134: Figure 7. | T134: Plantation de base | U134: OTAUXPL_SEPM_E_100 | V134: OSUPPL_SEPM_E | W134: =IFERROR(VLOOKUP(U134,Output!$C:$AQ,37,FALSE),0) -> 1040 | X134: =IFERROR(VLOOKUP(V134,Output!$C:$AQ,37,FALSE),"0000")/5 -> 1064.1656 | Y134: 1106732.224
S135: Figure 7. | T135: Regarni | U135: OTAUXREG_100 | V135: OSUPREG | W135: =IFERROR(VLOOKUP(U135,Output!$C:$AQ,37,FALSE),0) -> 470 | X135: =IFERROR(VLOOKUP(V135,Output!$C:$AQ,37,FALSE),"0000")/5 -> 0 | Y135: 0
S136: Figure 7. | T136: Ensemencement (ENS) | U136: OTAUXENS_100 | V136: OSUPENS | W136: =IFERROR(VLOOKUP(U136,Output!$C:$AQ,37,FALSE),0) -> 130 | X136: =IFERROR(VLOOKUP(V136,Output!$C:$AQ,37,FALSE),"0000")/5 -> 0 | Y136: =W136*X136 -> 0
S137: Figure 7. | T137: Reboisement | W137: =(ROUND(Y137/X137,0))&"$/ha" -> 1045$/ha | X137: =SUM(X132:X136) -> 1087.06 | Y137: =SUM(Y132:Y136) -> 1136494.944
S138: Figure 7. | T138: Dégagement de la régénération naturelle | U138: OTAUXDEG_2_100 | V138: OSUPDEG_2 | W138: =IFERROR(VLOOKUP(U138,Output!$C:$AQ,37,FALSE),0) -> 1290 | X138: =IFERROR(VLOOKUP(V138,Output!$C:$AQ,37,FALSE),"0000")/5 -> 0 | Y138: 0
S139: Figure 7. | T139: Dégagement de plantation | U139: OTAUXDEG_1_100 | V139: OSUPDEG_1 | W139: =IFERROR(VLOOKUP(U139,Output!$C:$AQ,37,FALSE),0) -> 1290 | X139: =IFERROR(VLOOKUP(V139,Output!$C:$AQ,37,FALSE),"0000")/5 -> 41.3 | Y139: 53277
S140: Figure 7. | T140: Nettoiement de la régénération naturelle | U140: OTAUXNETT_100 | V140: OSUPREALNET | W140: =IFERROR(VLOOKUP(U140,Output!$C:$AQ,37,FALSE),0) -> 1140 | X140: =IFERROR(VLOOKUP(V140,Output!$C:$AQ,37,FALSE),"0000")/5-X141 -> 19 | Y140: 21660
C141: $ /m3 | E141: $ /ha | S141: Figure 7. | T141: Nettoiement de plantation | U141: OTAUXNETT_100 | V141: OSUPTCADNETT_T100% | W141: =IFERROR(VLOOKUP(U141,Output!$C:$AQ,37,FALSE),0) -> 1140 | X141: =IFERROR(VLOOKUP(V141,Output!$C:$AQ,37,FALSE),"0000")/5 -> 6.3 | Y141: 7182
C142: =Y151/(Instructions!I5/5) -> 5.320088754 | E142: =Y151/Tableaux!F33 -> 6.063507269 | S142: Figure 7. | T142: Éclaircie précommerciale (EPC_1) | U142: OTAUXEPC_1_100 | V142: OSUPEPC_1 | W142: =IFERROR(VLOOKUP(U142,Output!$C:$AQ,37,FALSE),0) -> 1380 | X142: =IFERROR(VLOOKUP(V142,Output!$C:$AQ,37,FALSE),"0000")/5 -> 0 | Y142: 0
S143: Figure 7. | T143: Éclaircie précommerciale (EPC_2) | U143: OTAUXEPC_2_100 | V143: OSUPEPC_2 | W143: =IFERROR(VLOOKUP(U143,Output!$C:$AQ,37,FALSE),0) -> 1380 | X143: =IFERROR(VLOOKUP(V143,Output!$C:$AQ,37,FALSE),"0000")/5 -> 0 | Y143: 0
S144: Figure 7. | T144: Éclaircie précommerciale de la régénération naturelle | V144: OSUPREALEPC | W144: =IFERROR(VLOOKUP(U144,Output!$C:$AQ,37,FALSE),0) -> 0 | X144: =IFERROR(VLOOKUP(V144,Output!$C:$AQ,37,FALSE),"0000")/5 -> 0 | Y144: 0
S145: Figure 7. | T145: Élagage (plantation) | U145: OTAUXELAG_100 | V145: OSUPELAG | W145: =IFERROR(VLOOKUP(U145,Output!$C:$AQ,37,FALSE),0) -> 1630 | X145: =IFERROR(VLOOKUP(V145,Output!$C:$AQ,37,FALSE),"0000")/5 -> 0 | Y145: 0
S146: Figure 7. | T146: Travaux d'éducation | W146: =(ROUND(Y146/X146,0))&"$/ha" -> 1233$/ha | X146: =SUM(X138:X143)+X145 -> 66.6 | Y146: =SUM(Y138:Y143)+Y145 -> 82119
S147: Figure 7. | T147: Préparation terrain lignicult. + ferti + élagage (SCA_LIGN) | U147: OTAUXSCA_LIGN_100 | V147: OSUPSCA_LIGN | W147: =IFERROR(VLOOKUP(U147,Output!$C:$AQ,37,FALSE),0) -> 1510 | X147: =IFERROR(VLOOKUP(V147,Output!$C:$AQ,37,FALSE),"0000")/5 -> 0 | Y147: 0
S148: Figure 7. | T148: Préparation de terrain partielle (SCA_PART) | U148: OTAUXSCA_PART_100 | V148: OSUPSCA_PART | W148: =IFERROR(VLOOKUP(U148,Output!$C:$AQ,37,FALSE),0) -> 540 | X148: =IFERROR(VLOOKUP(V148,Output!$C:$AQ,37,FALSE),"0000")/5 -> 123.8 | Y148: 66852
S149: Figure 7. | T149: Préparation de terrain régulière, 1 passage (SCA_REG) | U149: OTAUXSCA_REG_100 | V149: OSUPSCA_REG | W149: =IFERROR(VLOOKUP(U149,Output!$C:$AQ,37,FALSE),0) -> 410 | X149: =IFERROR(VLOOKUP(V149,Output!$C:$AQ,37,FALSE),"0000")/5 -> 1087.06 | Y149: 445694.6 | AA149: Valideur
B150: Figure 9b Évolution de la superficie des vieilles forêts selon leur degré d'altération | S150: Figure 7. | T150: Préparation de terrain | W150: =(ROUND(Y150/X150,0))&"$/ha" -> 423$/ha | X150: =SUM(X147:X149) -> 1210.86 | Y150: =SUM(Y147:Y149) -> 512546.6 | Z150: =Y123+Y131+Y137+Y146+Y150 -> 1888418.544 | AA150: =Y151-Z150 -> 0.1600000001
S151: Figure 7. | T151: Investissement sylvicole annuel (O$INVESTISTS)* | V151: O$INVESTISTS | Y151: =IFERROR(VLOOKUP(V151,Output!$C:$AQ,37,FALSE),"0000")/5 -> 1888418.704
S155: =LEFT(B$117,10) -> Figure 7. | T155: =T123 -> Coupes finales | U155: =Y123 -> 0 | V155: =W123 -> 0$/ha
S156: =LEFT(B$117,10) -> Figure 7. | T156: =T131 -> Coupes partielles | U156: =Y131 -> 157258 | V156: =W131 -> 590$/ha
S157: =LEFT(B$117,10) -> Figure 7. | T157: =T137 -> Reboisement | U157: =Y137 -> 1136494.944 | V157: =W137 -> 1045$/ha
S158: =LEFT(B$117,10) -> Figure 7. | T158: =T146 -> Travaux d'éducation | U158: =Y146 -> 82119 | V158: =W146 -> 1233$/ha
S159: =LEFT(B$117,10) -> Figure 7. | T159: =T150 -> Préparation de terrain | U159: =Y150 -> 512546.6 | V159: =W150 -> 423$/ha
U161: Période | V161: P0 | W161: P1 | X161: P2 | Y161: P3 | Z161: P4 | AA161: P5 | AB161: P6 | AC161: P7 | AD161: P8 | AE161: P9 | AF161: P10 | AG161: P11 | AH161: P12 | AI161: P13 | AJ161: P14 | AK161: P15 | AL161: P16 | AM161: P17 | AN161: P18 | AO161: P19 | AP161: P20 | AQ161: P21 | AR161: P22 | AS161: P23 | AT161: P24 | AU161: P25 | AV161: P26 | AW161: P27 | AX161: P28 | AY161: P29 | AZ161: P30
S162: =LEFT(B$150,10) -> Figure 9b | U162: Axe des "X" Fin de période | V162: 2018 | W162: 2023 | X162: 2028 | Y162: 2033 | Z162: 2038 | AA162: 2043 | AB162: 2048 | AC162: 2053 | AD162: 2058 | AE162: 2063 | AF162: 2068 | AG162: 2073 | AH162: 2078 | AI162: 2083 | AJ162: 2088 | AK162: 2093 | AL162: 2098 | AM162: 2103 | AN162: 2108 | AO162: 2113 | AP162: 2118 | AQ162: 2123 | AR162: 2128 | AS162: 2133 | AT162: 2138 | AU162: 2143 | AV162: 2148 | AW162: 2153 | AX162: 2158 | AY162: 2163 | AZ162: 2168
S163: Figure 9b | U163: Colonne | V163: 6 | W163: 7 | X163: 8 | Y163: 9 | Z163: 10 | AA163: 11 | AB163: 12 | AC163: 13 | AD163: 14 | AE163: 15 | AF163: 16 | AG163: 17 | AH163: 18 | AI163: 19 | AJ163: 20 | AK163: 21 | AL163: 22 | AM163: 23 | AN163: 24 | AO163: 25 | AP163: 26 | AQ163: 27 | AR163: 28 | AS163: 29 | AT163: 30 | AU163: 31 | AV163: 32 | AW163: 33 | AX163: 34 | AY163: 35 | AZ163: 36
S164: Figure 9b | U164: OSUPREGECO | V164: =VLOOKUP($U164,Output!$C:$AL,V$163,FALSE) -> 416677.6 | W164: =VLOOKUP($U164,Output!$C:$AL,W$163,FALSE) -> 415759.66 | X164: =VLOOKUP($U164,Output!$C:$AL,X$163,FALSE) -> 414941.45 | Y164: =VLOOKUP($U164,Output!$C:$AL,Y$163,FALSE) -> 414198.82 | Z164: =VLOOKUP($U164,Output!$C:$AL,Z$163,FALSE) -> 413529.67 | AA164: =VLOOKUP($U164,Output!$C:$AL,AA$163,FALSE) -> 412932.46 | AB164: =VLOOKUP($U164,Output!$C:$AL,AB$163,FALSE) -> 412402.94 | AC164: =VLOOKUP($U164,Output!$C:$AL,AC$163,FALSE) -> 411659.53 | AD164: =VLOOKUP($U164,Output!$C:$AL,AD$163,FALSE) -> 411128.86 | AE164: =VLOOKUP($U164,Output!$C:$AL,AE$163,FALSE) -> 410756.04 | AF164: =VLOOKUP($U164,Output!$C:$AL,AF$163,FALSE) -> 410440.96 | AG164: =VLOOKUP($U164,Output!$C:$AL,AG$163,FALSE) -> 410151.45 | AH164: =VLOOKUP($U164,Output!$C:$AL,AH$163,FALSE) -> 409956.4 | AI164: =VLOOKUP($U164,Output!$C:$AL,AI$163,FALSE) -> 409729.2 | AJ164: =VLOOKUP($U164,Output!$C:$AL,AJ$163,FALSE) -> 409048.76 | AK164: =VLOOKUP($U164,Output!$C:$AL,AK$163,FALSE) -> 408958.17 | AL164: =VLOOKUP($U164,Output!$C:$AL,AL$163,FALSE) -> 408664.99 | AM164: =VLOOKUP($U164,Output!$C:$AL,AM$163,FALSE) -> 408571.18 | AN164: =VLOOKUP($U164,Output!$C:$AL,AN$163,FALSE) -> 408383.5 | AO164: =VLOOKUP($U164,Output!$C:$AL,AO$163,FALSE) -> 408325.76 | AP164: =VLOOKUP($U164,Output!$C:$AL,AP$163,FALSE) -> 408321.39 | AQ164: =VLOOKUP($U164,Output!$C:$AL,AQ$163,FALSE) -> 408258.77 | AR164: =VLOOKUP($U164,Output!$C:$AL,AR$163,FALSE) -> 408176.06 | AS164: =VLOOKUP($U164,Output!$C:$AL,AS$163,FALSE) -> 407926.6 | AT164: =VLOOKUP($U164,Output!$C:$AL,AT$163,FALSE) -> 407799.63 | AU164: =VLOOKUP($U164,Output!$C:$AL,AU$163,FALSE) -> 407584.73 | AV164: =VLOOKUP($U164,Output!$C:$AL,AV$163,FALSE) -> 407327.24 | AW164: =VLOOKUP($U164,Output!$C:$AL,AW$163,FALSE) -> 407327.24 | AX164: =VLOOKUP($U164,Output!$C:$AL,AX$163,FALSE) -> 407327.24 | AY164: =VLOOKUP($U164,Output!$C:$AL,AY$163,FALSE) -> 407327.24 | AZ164: =VLOOKUP($U164,Output!$C:$AL,AZ$163,FALSE) -> 407327.24
S165: Figure 9b | T165: Élevé | U165: OSUPVIEUXALERTEREGECO | V165: =VLOOKUP($U165,Output!$C:$AL,V$163,FALSE) -> 61250.28 | W165: =VLOOKUP($U165,Output!$C:$AL,W$163,FALSE) -> 61115.37 | X165: =VLOOKUP($U165,Output!$C:$AL,X$163,FALSE) -> 60995.12 | Y165: =VLOOKUP($U165,Output!$C:$AL,Y$163,FALSE) -> 60885.95 | Z165: =VLOOKUP($U165,Output!$C:$AL,Z$163,FALSE) -> 60787.58 | AA165: =VLOOKUP($U165,Output!$C:$AL,AA$163,FALSE) -> 60699.79 | AB165: =VLOOKUP($U165,Output!$C:$AL,AB$163,FALSE) -> 60621.96 | AC165: =VLOOKUP($U165,Output!$C:$AL,AC$163,FALSE) -> 60512.67 | AD165: =VLOOKUP($U165,Output!$C:$AL,AD$163,FALSE) -> 60434.67 | AE165: =VLOOKUP($U165,Output!$C:$AL,AE$163,FALSE) -> 60379.87 | AF165: =VLOOKUP($U165,Output!$C:$AL,AF$163,FALSE) -> 60333.56 | AG165: =VLOOKUP($U165,Output!$C:$AL,AG$163,FALSE) -> 60291 | AH165: =VLOOKUP($U165,Output!$C:$AL,AH$163,FALSE) -> 60262.33 | AI165: =VLOOKUP($U165,Output!$C:$AL,AI$163,FALSE) -> 60228.93 | AJ165: =VLOOKUP($U165,Output!$C:$AL,AJ$163,FALSE) -> 60128.9 | AK165: =VLOOKUP($U165,Output!$C:$AL,AK$163,FALSE) -> 60115.59 | AL165: =VLOOKUP($U165,Output!$C:$AL,AL$163,FALSE) -> 60072.49 | AM165: =VLOOKUP($U165,Output!$C:$AL,AM$163,FALSE) -> 60058.7 | AN165: =VLOOKUP($U165,Output!$C:$AL,AN$163,FALSE) -> 60031.11 | AO165: =VLOOKUP($U165,Output!$C:$AL,AO$163,FALSE) -> 60022.62 | AP165: =VLOOKUP($U165,Output!$C:$AL,AP$163,FALSE) -> 60021.98 | AQ165: =VLOOKUP($U165,Output!$C:$AL,AQ$163,FALSE) -> 60012.78 | AR165: =VLOOKUP($U165,Output!$C:$AL,AR$163,FALSE) -> 60000.62 | AS165: =VLOOKUP($U165,Output!$C:$AL,AS$163,FALSE) -> 59963.95 | AT165: =VLOOKUP($U165,Output!$C:$AL,AT$163,FALSE) -> 59945.28 | AU165: =VLOOKUP($U165,Output!$C:$AL,AU$163,FALSE) -> 59913.69 | AV165: =VLOOKUP($U165,Output!$C:$AL,AV$163,FALSE) -> 59875.84 | AW165: =VLOOKUP($U165,Output!$C:$AL,AW$163,FALSE) -> 59875.84 | AX165: =VLOOKUP($U165,Output!$C:$AL,AX$163,FALSE) -> 59875.84 | AY165: =VLOOKUP($U165,Output!$C:$AL,AY$163,FALSE) -> 59875.84 | AZ165: =VLOOKUP($U165,Output!$C:$AL,AZ$163,FALSE) -> 59875.84
S166: Figure 9b | U166: OSUPVIEUXACCEPTREGECO | V166: =VLOOKUP($U166,Output!$C:$AL,V$163,FALSE) -> 102083.81 | W166: =VLOOKUP($U166,Output!$C:$AL,W$163,FALSE) -> 101858.95 | X166: =VLOOKUP($U166,Output!$C:$AL,X$163,FALSE) -> 101658.53 | Y166: =VLOOKUP($U166,Output!$C:$AL,Y$163,FALSE) -> 101476.58 | Z166: =VLOOKUP($U166,Output!$C:$AL,Z$163,FALSE) -> 101312.64 | AA166: =VLOOKUP($U166,Output!$C:$AL,AA$163,FALSE) -> 101166.32 | AB166: =VLOOKUP($U166,Output!$C:$AL,AB$163,FALSE) -> 101036.59 | AC166: =VLOOKUP($U166,Output!$C:$AL,AC$163,FALSE) -> 100854.45 | AD166: =VLOOKUP($U166,Output!$C:$AL,AD$163,FALSE) -> 100724.44 | AE166: =VLOOKUP($U166,Output!$C:$AL,AE$163,FALSE) -> 100633.12 | AF166: =VLOOKUP($U166,Output!$C:$AL,AF$163,FALSE) -> 100555.93 | AG166: =VLOOKUP($U166,Output!$C:$AL,AG$163,FALSE) -> 100485 | AH166: =VLOOKUP($U166,Output!$C:$AL,AH$163,FALSE) -> 100437.21 | AI166: =VLOOKUP($U166,Output!$C:$AL,AI$163,FALSE) -> 100381.55 | AJ166: =VLOOKUP($U166,Output!$C:$AL,AJ$163,FALSE) -> 100214.84 | AK166: =VLOOKUP($U166,Output!$C:$AL,AK$163,FALSE) -> 100192.65 | AL166: =VLOOKUP($U166,Output!$C:$AL,AL$163,FALSE) -> 100120.82 | AM166: =VLOOKUP($U166,Output!$C:$AL,AM$163,FALSE) -> 100097.83 | AN166: =VLOOKUP($U166,Output!$C:$AL,AN$163,FALSE) -> 100051.85 | AO166: =VLOOKUP($U166,Output!$C:$AL,AO$163,FALSE) -> 100037.7 | AP166: =VLOOKUP($U166,Output!$C:$AL,AP$163,FALSE) -> 100036.64 | AQ166: =VLOOKUP($U166,Output!$C:$AL,AQ$163,FALSE) -> 100021.29 | AR166: =VLOOKUP($U166,Output!$C:$AL,AR$163,FALSE) -> 100001.03 | AS166: =VLOOKUP($U166,Output!$C:$AL,AS$163,FALSE) -> 99939.91 | AT166: =VLOOKUP($U166,Output!$C:$AL,AT$163,FALSE) -> 99908.8 | AU166: =VLOOKUP($U166,Output!$C:$AL,AU$163,FALSE) -> 99856.15 | AV166: =VLOOKUP($U166,Output!$C:$AL,AV$163,FALSE) -> 99793.07 | AW166: =VLOOKUP($U166,Output!$C:$AL,AW$163,FALSE) -> 99793.07 | AX166: =VLOOKUP($U166,Output!$C:$AL,AX$163,FALSE) -> 99793.07 | AY166: =VLOOKUP($U166,Output!$C:$AL,AY$163,FALSE) -> 99793.07 | AZ166: =VLOOKUP($U166,Output!$C:$AL,AZ$163,FALSE) -> 99793.07
S167: Figure 9b | T167: Moyen | V167: =V166-V165 -> 40833.53 | W167: =W166-W165 -> 40743.58 | X167: 40663.41 | Y167: 40590.63 | Z167: 40525.06 | AA167: 40466.53 | AB167: 40414.63 | AC167: 40341.78 | AD167: 40289.77 | AE167: 40253.25 | AF167: 40222.37 | AG167: 40194 | AH167: 40174.88 | AI167: 40152.62 | AJ167: 40085.94 | AK167: 40077.06 | AL167: 40048.33 | AM167: 40039.13 | AN167: 40020.74 | AO167: 40015.08 | AP167: 40014.66 | AQ167: 40008.51 | AR167: 40000.41 | AS167: 39975.96 | AT167: 39963.52 | AU167: 39942.46 | AV167: 39917.23 | AW167: 39917.23 | AX167: 39917.23 | AY167: 39917.23 | AZ167: 39917.23
S168: Figure 9b | T168: Faible | V168: =$V$164-V165-V167 -> 314593.79 | W168: 314818.65 | X168: 315019.07 | Y168: 315201.02 | Z168: 315364.96 | AA168: 315511.28 | AB168: 315641.01 | AC168: 315823.15 | AD168: 315953.16 | AE168: 316044.48 | AF168: 316121.67 | AG168: 316192.6 | AH168: 316240.39 | AI168: 316296.05 | AJ168: 316462.76 | AK168: 316484.95 | AL168: 316556.78 | AM168: 316579.77 | AN168: 316625.75 | AO168: 316639.9 | AP168: 316640.96 | AQ168: 316656.31 | AR168: 316676.57 | AS168: 316737.69 | AT168: 316768.8 | AU168: 316821.45 | AV168: 316884.53 | AW168: 316884.53 | AX168: 316884.53 | AY168: 316884.53 | AZ168: 316884.53
S169: Figure 9b | T169: Niveau prédit | U169: OSUPVIEUXTOTREGECO | V169: =VLOOKUP($U169,Output!$C:$AL,V$163,FALSE) -> 147826.9 | W169: =VLOOKUP($U169,Output!$C:$AL,W$163,FALSE) -> 145954.52 | X169: =VLOOKUP($U169,Output!$C:$AL,X$163,FALSE) -> 142786.74 | Y169: =VLOOKUP($U169,Output!$C:$AL,Y$163,FALSE) -> 137902.66 | Z169: =VLOOKUP($U169,Output!$C:$AL,Z$163,FALSE) -> 132249.63 | AA169: =VLOOKUP($U169,Output!$C:$AL,AA$163,FALSE) -> 131368.91 | AB169: =VLOOKUP($U169,Output!$C:$AL,AB$163,FALSE) -> 128565.45 | AC169: =VLOOKUP($U169,Output!$C:$AL,AC$163,FALSE) -> 122861.67 | AD169: =VLOOKUP($U169,Output!$C:$AL,AD$163,FALSE) -> 116884.58 | AE169: =VLOOKUP($U169,Output!$C:$AL,AE$163,FALSE) -> 113891.18 | AF169: =VLOOKUP($U169,Output!$C:$AL,AF$163,FALSE) -> 108986.21 | AG169: =VLOOKUP($U169,Output!$C:$AL,AG$163,FALSE) -> 112830.95 | AH169: =VLOOKUP($U169,Output!$C:$AL,AH$163,FALSE) -> 116914.04 | AI169: =VLOOKUP($U169,Output!$C:$AL,AI$163,FALSE) -> 119056.7 | AJ169: =VLOOKUP($U169,Output!$C:$AL,AJ$163,FALSE) -> 110498.51 | AK169: =VLOOKUP($U169,Output!$C:$AL,AK$163,FALSE) -> 120621.3 | AL169: =VLOOKUP($U169,Output!$C:$AL,AL$163,FALSE) -> 127108.65 | AM169: =VLOOKUP($U169,Output!$C:$AL,AM$163,FALSE) -> 139132.27 | AN169: =VLOOKUP($U169,Output!$C:$AL,AN$163,FALSE) -> 146928.77 | AO169: =VLOOKUP($U169,Output!$C:$AL,AO$163,FALSE) -> 145563.23 | AP169: =VLOOKUP($U169,Output!$C:$AL,AP$163,FALSE) -> 143504.09 | AQ169: =VLOOKUP($U169,Output!$C:$AL,AQ$163,FALSE) -> 141603.35 | AR169: =VLOOKUP($U169,Output!$C:$AL,AR$163,FALSE) -> 139924.69 | AS169: =VLOOKUP($U169,Output!$C:$AL,AS$163,FALSE) -> 132183.07 | AT169: =VLOOKUP($U169,Output!$C:$AL,AT$163,FALSE) -> 127724.38 | AU169: =VLOOKUP($U169,Output!$C:$AL,AU$163,FALSE) -> 124701.07 | AV169: =VLOOKUP($U169,Output!$C:$AL,AV$163,FALSE) -> 124004.03 | AW169: =VLOOKUP($U169,Output!$C:$AL,AW$163,FALSE) -> 130350.5 | AX169: =VLOOKUP($U169,Output!$C:$AL,AX$163,FALSE) -> 116326.67 | AY169: =VLOOKUP($U169,Output!$C:$AL,AY$163,FALSE) -> 118162.68 | AZ169: =VLOOKUP($U169,Output!$C:$AL,AZ$163,FALSE) -> 116052.28
S170: Figure 9b | T170: Portrait préindustriel
B176: Figure 9c Évolution de la superficie des peuplements en régénération selon leur degré d'altération
U177: Période | V177: P0 | W177: P1 | X177: P2 | Y177: P3 | Z177: P4 | AA177: P5 | AB177: P6 | AC177: P7 | AD177: P8 | AE177: P9 | AF177: P10 | AG177: P11 | AH177: P12 | AI177: P13 | AJ177: P14 | AK177: P15 | AL177: P16 | AM177: P17 | AN177: P18 | AO177: P19 | AP177: P20 | AQ177: P21 | AR177: P22 | AS177: P23 | AT177: P24 | AU177: P25 | AV177: P26 | AW177: P27 | AX177: P28 | AY177: P29 | AZ177: P30
U178: Axe des "X" Fin de période | V178: 2018 | W178: 2023 | X178: 2028 | Y178: 2033 | Z178: 2038 | AA178: 2043 | AB178: 2048 | AC178: 2053 | AD178: 2058 | AE178: 2063 | AF178: 2068 | AG178: 2073 | AH178: 2078 | AI178: 2083 | AJ178: 2088 | AK178: 2093 | AL178: 2098 | AM178: 2103 | AN178: 2108 | AO178: 2113 | AP178: 2118 | AQ178: 2123 | AR178: 2128 | AS178: 2133 | AT178: 2138 | AU178: 2143 | AV178: 2148 | AW178: 2153 | AX178: 2158 | AY178: 2163 | AZ178: 2168
S179: =LEFT(B$176,10) -> Figure 9c | U179: Colonne | V179: 6 | W179: 7 | X179: 8 | Y179: 9 | Z179: 10 | AA179: 11 | AB179: 12 | AC179: 13 | AD179: 14 | AE179: 15 | AF179: 16 | AG179: 17 | AH179: 18 | AI179: 19 | AJ179: 20 | AK179: 21 | AL179: 22 | AM179: 23 | AN179: 24 | AO179: 25 | AP179: 26 | AQ179: 27 | AR179: 28 | AS179: 29 | AT179: 30 | AU179: 31 | AV179: 32 | AW179: 33 | AX179: 34 | AY179: 35 | AZ179: 36
S180: Figure 9c | T180: Niveau prédit | U180: OSUPJEUNEREGECO | V180: =VLOOKUP($U180,Output!$C:$AL,V$179,FALSE) -> 73612.9 | W180: =VLOOKUP($U180,Output!$C:$AL,W$179,FALSE) -> 72365.8 | X180: =VLOOKUP($U180,Output!$C:$AL,X$179,FALSE) -> 66528.6 | Y180: =VLOOKUP($U180,Output!$C:$AL,Y$179,FALSE) -> 55673.84 | Z180: =VLOOKUP($U180,Output!$C:$AL,Z$179,FALSE) -> 63598.07 | AA180: =VLOOKUP($U180,Output!$C:$AL,AA$179,FALSE) -> 59389.88 | AB180: =VLOOKUP($U180,Output!$C:$AL,AB$179,FALSE) -> 56431.42 | AC180: =VLOOKUP($U180,Output!$C:$AL,AC$179,FALSE) -> 58571.3 | AD180: =VLOOKUP($U180,Output!$C:$AL,AD$179,FALSE) -> 60404.31 | AE180: =VLOOKUP($U180,Output!$C:$AL,AE$179,FALSE) -> 60639.11 | AF180: =VLOOKUP($U180,Output!$C:$AL,AF$179,FALSE) -> 63392.53 | AG180: =VLOOKUP($U180,Output!$C:$AL,AG$179,FALSE) -> 63792.29 | AH180: =VLOOKUP($U180,Output!$C:$AL,AH$179,FALSE) -> 64799.33 | AI180: =VLOOKUP($U180,Output!$C:$AL,AI$179,FALSE) -> 67572.67 | AJ180: =VLOOKUP($U180,Output!$C:$AL,AJ$179,FALSE) -> 74525.88 | AK180: =VLOOKUP($U180,Output!$C:$AL,AK$179,FALSE) -> 74302.45 | AL180: =VLOOKUP($U180,Output!$C:$AL,AL$179,FALSE) -> 75939.22 | AM180: =VLOOKUP($U180,Output!$C:$AL,AM$179,FALSE) -> 72566.76 | AN180: =VLOOKUP($U180,Output!$C:$AL,AN$179,FALSE) -> 67233.32 | AO180: =VLOOKUP($U180,Output!$C:$AL,AO$179,FALSE) -> 66336.62 | AP180: =VLOOKUP($U180,Output!$C:$AL,AP$179,FALSE) -> 67454.45 | AQ180: =VLOOKUP($U180,Output!$C:$AL,AQ$179,FALSE) -> 73077.88 | AR180: =VLOOKUP($U180,Output!$C:$AL,AR$179,FALSE) -> 73089.8 | AS180: =VLOOKUP($U180,Output!$C:$AL,AS$179,FALSE) -> 78036.75 | AT180: =VLOOKUP($U180,Output!$C:$AL,AT$179,FALSE) -> 78926.64 | AU180: =VLOOKUP($U180,Output!$C:$AL,AU$179,FALSE) -> 79025.93 | AV180: =VLOOKUP($U180,Output!$C:$AL,AV$179,FALSE) -> 80803.66 | AW180: =VLOOKUP($U180,Output!$C:$AL,AW$179,FALSE) -> 74249.67 | AX180: =VLOOKUP($U180,Output!$C:$AL,AX$179,FALSE) -> 75498.66 | AY180: =VLOOKUP($U180,Output!$C:$AL,AY$179,FALSE) -> 71438.54 | AZ180: =VLOOKUP($U180,Output!$C:$AL,AZ$179,FALSE) -> 70571.15
S181: Figure 9c | U181: OSUPREGECO | V181: =VLOOKUP($U181,Output!$C:$AL,V$179,FALSE) -> 416677.6 | W181: =VLOOKUP($U181,Output!$C:$AL,W$179,FALSE) -> 415759.66 | X181: =VLOOKUP($U181,Output!$C:$AL,X$179,FALSE) -> 414941.45 | Y181: =VLOOKUP($U181,Output!$C:$AL,Y$179,FALSE) -> 414198.82 | Z181: =VLOOKUP($U181,Output!$C:$AL,Z$179,FALSE) -> 413529.67 | AA181: =VLOOKUP($U181,Output!$C:$AL,AA$179,FALSE) -> 412932.46 | AB181: =VLOOKUP($U181,Output!$C:$AL,AB$179,FALSE) -> 412402.94 | AC181: =VLOOKUP($U181,Output!$C:$AL,AC$179,FALSE) -> 411659.53 | AD181: =VLOOKUP($U181,Output!$C:$AL,AD$179,FALSE) -> 411128.86 | AE181: =VLOOKUP($U181,Output!$C:$AL,AE$179,FALSE) -> 410756.04 | AF181: =VLOOKUP($U181,Output!$C:$AL,AF$179,FALSE) -> 410440.96 | AG181: =VLOOKUP($U181,Output!$C:$AL,AG$179,FALSE) -> 410151.45 | AH181: =VLOOKUP($U181,Output!$C:$AL,AH$179,FALSE) -> 409956.4 | AI181: =VLOOKUP($U181,Output!$C:$AL,AI$179,FALSE) -> 409729.2 | AJ181: =VLOOKUP($U181,Output!$C:$AL,AJ$179,FALSE) -> 409048.76 | AK181: =VLOOKUP($U181,Output!$C:$AL,AK$179,FALSE) -> 408958.17 | AL181: =VLOOKUP($U181,Output!$C:$AL,AL$179,FALSE) -> 408664.99 | AM181: =VLOOKUP($U181,Output!$C:$AL,AM$179,FALSE) -> 408571.18 | AN181: =VLOOKUP($U181,Output!$C:$AL,AN$179,FALSE) -> 408383.5 | AO181: =VLOOKUP($U181,Output!$C:$AL,AO$179,FALSE) -> 408325.76 | AP181: =VLOOKUP($U181,Output!$C:$AL,AP$179,FALSE) -> 408321.39 | AQ181: =VLOOKUP($U181,Output!$C:$AL,AQ$179,FALSE) -> 408258.77 | AR181: =VLOOKUP($U181,Output!$C:$AL,AR$179,FALSE) -> 408176.06 | AS181: =VLOOKUP($U181,Output!$C:$AL,AS$179,FALSE) -> 407926.6 | AT181: =VLOOKUP($U181,Output!$C:$AL,AT$179,FALSE) -> 407799.63 | AU181: =VLOOKUP($U181,Output!$C:$AL,AU$179,FALSE) -> 407584.73 | AV181: =VLOOKUP($U181,Output!$C:$AL,AV$179,FALSE) -> 407327.24 | AW181: =VLOOKUP($U181,Output!$C:$AL,AW$179,FALSE) -> 407327.24 | AX181: =VLOOKUP($U181,Output!$C:$AL,AX$179,FALSE) -> 407327.24 | AY181: =VLOOKUP($U181,Output!$C:$AL,AY$179,FALSE) -> 407327.24 | AZ181: =VLOOKUP($U181,Output!$C:$AL,AZ$179,FALSE) -> 407327.24
S182: Figure 9c | V182: =IFERROR(V180/V181,"0000") -> 0.1766663243 | W182: 0.1740568096 | X182: 0.1603324999 | Y182: 0.1344133235 | Z182: 0.1537932454 | AA182: 0.1438246826 | AB182: 0.1368356394 | AC182: 0.1422809281 | AD182: 0.1469230596 | AE182: 0.1476280422 | AF182: 0.1544498142 | AG182: 0.1555334987 | AH182: 0.1580639551 | AI182: 0.1649203181 | AJ182: 0.1821931449 | AK182: 0.1816871638 | AL182: 0.185822671 | AM182: 0.1776110591 | AN182: 0.1646328023 | AO182: 0.1624600417 | AP182: 0.1651994033 | AQ182: 0.1789989227 | AR182: 0.1790643969 | AS182: 0.1913009595 | AT182: 0.1935426964 | AU182: 0.1938883481 | AV182: 0.1983752916 | AW182: 0.1822850591 | AX182: 0.1853513652 | AY182: 0.1753836547 | AZ182: 0.1732541875
S183: Figure 9c
S184: Figure 9c | U184: OSUPJEUNEALERTEREGECO | V184: =VLOOKUP($U184,Output!$C:$AL,V$179,FALSE) -> 145834.01 | W184: =VLOOKUP($U184,Output!$C:$AL,W$179,FALSE) -> 145512.78 | X184: =VLOOKUP($U184,Output!$C:$AL,X$179,FALSE) -> 145226.46 | Y184: =VLOOKUP($U184,Output!$C:$AL,Y$179,FALSE) -> 144966.55 | Z184: =VLOOKUP($U184,Output!$C:$AL,Z$179,FALSE) -> 144732.34 | AA184: =VLOOKUP($U184,Output!$C:$AL,AA$179,FALSE) -> 144523.32 | AB184: =VLOOKUP($U184,Output!$C:$AL,AB$179,FALSE) -> 144337.99 | AC184: =VLOOKUP($U184,Output!$C:$AL,AC$179,FALSE) -> 144077.79 | AD184: =VLOOKUP($U184,Output!$C:$AL,AD$179,FALSE) -> 143892.06 | AE184: =VLOOKUP($U184,Output!$C:$AL,AE$179,FALSE) -> 143761.61 | AF184: =VLOOKUP($U184,Output!$C:$AL,AF$179,FALSE) -> 143651.33 | AG184: =VLOOKUP($U184,Output!$C:$AL,AG$179,FALSE) -> 143550 | AH184: =VLOOKUP($U184,Output!$C:$AL,AH$179,FALSE) -> 143481.73 | AI184: =VLOOKUP($U184,Output!$C:$AL,AI$179,FALSE) -> 143402.21 | AJ184: =VLOOKUP($U184,Output!$C:$AL,AJ$179,FALSE) -> 143164.06 | AK184: =VLOOKUP($U184,Output!$C:$AL,AK$179,FALSE) -> 143132.35 | AL184: =VLOOKUP($U184,Output!$C:$AL,AL$179,FALSE) -> 143029.74 | AM184: =VLOOKUP($U184,Output!$C:$AL,AM$179,FALSE) -> 142996.91 | AN184: =VLOOKUP($U184,Output!$C:$AL,AN$179,FALSE) -> 142931.22 | AO184: =VLOOKUP($U184,Output!$C:$AL,AO$179,FALSE) -> 142911.01 | AP184: =VLOOKUP($U184,Output!$C:$AL,AP$179,FALSE) -> 142909.48 | AQ184: =VLOOKUP($U184,Output!$C:$AL,AQ$179,FALSE) -> 142887.56 | AR184: =VLOOKUP($U184,Output!$C:$AL,AR$179,FALSE) -> 142858.61 | AS184: =VLOOKUP($U184,Output!$C:$AL,AS$179,FALSE) -> 142771.3 | AT184: =VLOOKUP($U184,Output!$C:$AL,AT$179,FALSE) -> 142726.86 | AU184: =VLOOKUP($U184,Output!$C:$AL,AU$179,FALSE) -> 142651.65 | AV184: =VLOOKUP($U184,Output!$C:$AL,AV$179,FALSE) -> 142561.53 | AW184: =VLOOKUP($U184,Output!$C:$AL,AW$179,FALSE) -> 142561.53 | AX184: =VLOOKUP($U184,Output!$C:$AL,AX$179,FALSE) -> 142561.53 | AY184: =VLOOKUP($U184,Output!$C:$AL,AY$179,FALSE) -> 142561.53 | AZ184: =VLOOKUP($U184,Output!$C:$AL,AZ$179,FALSE) -> 142561.53
S185: Figure 9c | T185: Faible | U185: OSUPJEUNEACCEPTREGECO | V185: =VLOOKUP($U185,Output!$C:$AL,V$179,FALSE) -> 104167.15 | W185: =VLOOKUP($U185,Output!$C:$AL,W$179,FALSE) -> 103937.7 | X185: =VLOOKUP($U185,Output!$C:$AL,X$179,FALSE) -> 103733.19 | Y185: =VLOOKUP($U185,Output!$C:$AL,Y$179,FALSE) -> 103547.53 | Z185: =VLOOKUP($U185,Output!$C:$AL,Z$179,FALSE) -> 103380.24 | AA185: =VLOOKUP($U185,Output!$C:$AL,AA$179,FALSE) -> 103230.94 | AB185: =VLOOKUP($U185,Output!$C:$AL,AB$179,FALSE) -> 103098.56 | AC185: =VLOOKUP($U185,Output!$C:$AL,AC$179,FALSE) -> 102912.71 | AD185: =VLOOKUP($U185,Output!$C:$AL,AD$179,FALSE) -> 102780.04 | AE185: =VLOOKUP($U185,Output!$C:$AL,AE$179,FALSE) -> 102686.86 | AF185: =VLOOKUP($U185,Output!$C:$AL,AF$179,FALSE) -> 102608.09 | AG185: =VLOOKUP($U185,Output!$C:$AL,AG$179,FALSE) -> 102535.71 | AH185: =VLOOKUP($U185,Output!$C:$AL,AH$179,FALSE) -> 102486.95 | AI185: =VLOOKUP($U185,Output!$C:$AL,AI$179,FALSE) -> 102430.15 | AJ185: =VLOOKUP($U185,Output!$C:$AL,AJ$179,FALSE) -> 102260.04 | AK185: =VLOOKUP($U185,Output!$C:$AL,AK$179,FALSE) -> 102237.39 | AL185: =VLOOKUP($U185,Output!$C:$AL,AL$179,FALSE) -> 102164.1 | AM185: =VLOOKUP($U185,Output!$C:$AL,AM$179,FALSE) -> 102140.65 | AN185: =VLOOKUP($U185,Output!$C:$AL,AN$179,FALSE) -> 102093.73 | AO185: =VLOOKUP($U185,Output!$C:$AL,AO$179,FALSE) -> 102079.29 | AP185: =VLOOKUP($U185,Output!$C:$AL,AP$179,FALSE) -> 102078.2 | AQ185: =VLOOKUP($U185,Output!$C:$AL,AQ$179,FALSE) -> 102062.54 | AR185: =VLOOKUP($U185,Output!$C:$AL,AR$179,FALSE) -> 102041.87 | AS185: =VLOOKUP($U185,Output!$C:$AL,AS$179,FALSE) -> 101979.5 | AT185: =VLOOKUP($U185,Output!$C:$AL,AT$179,FALSE) -> 101947.76 | AU185: =VLOOKUP($U185,Output!$C:$AL,AU$179,FALSE) -> 101894.03 | AV185: =VLOOKUP($U185,Output!$C:$AL,AV$179,FALSE) -> 101829.66 | AW185: =VLOOKUP($U185,Output!$C:$AL,AW$179,FALSE) -> 101829.66 | AX185: =VLOOKUP($U185,Output!$C:$AL,AX$179,FALSE) -> 101829.66 | AY185: =VLOOKUP($U185,Output!$C:$AL,AY$179,FALSE) -> 101829.66 | AZ185: =VLOOKUP($U185,Output!$C:$AL,AZ$179,FALSE) -> 101829.66
S186: Figure 9c | T186: Moyen | V186: =V184-V185 -> 41666.86 | W186: 41575.08 | X186: 41493.27 | Y186: 41419.02 | Z186: 41352.1 | AA186: 41292.38 | AB186: 41239.43 | AC186: 41165.08 | AD186: 41112.02 | AE186: 41074.75 | AF186: 41043.24 | AG186: 41014.29 | AH186: 40994.78 | AI186: 40972.06 | AJ186: 40904.02 | AK186: 40894.96 | AL186: 40865.64 | AM186: 40856.26 | AN186: 40837.49 | AO186: 40831.72 | AP186: 40831.28 | AQ186: 40825.02 | AR186: 40816.74 | AS186: 40791.8 | AT186: 40779.1 | AU186: 40757.62 | AV186: 40731.87 | AW186: 40731.87 | AX186: 40731.87 | AY186: 40731.87 | AZ186: 40731.87
S187: Figure 9c | T187: Élevé | V187: =$V$181-V184 -> 270843.59 | W187: 271164.82 | X187: 271451.14 | Y187: 271711.05 | Z187: 271945.26 | AA187: 272154.28 | AB187: 272339.61 | AC187: 272599.81 | AD187: 272785.54 | AE187: 272915.99 | AF187: 273026.27 | AG187: 273127.6 | AH187: 273195.87 | AI187: 273275.39 | AJ187: 273513.54 | AK187: 273545.25 | AL187: 273647.86 | AM187: 273680.69 | AN187: 273746.38 | AO187: 273766.59 | AP187: 273768.12 | AQ187: 273790.04 | AR187: 273818.99 | AS187: 273906.3 | AT187: 273950.74 | AU187: 274025.95 | AV187: 274116.07 | AW187: 274116.07 | AX187: 274116.07 | AY187: 274116.07 | AZ187: 274116.07
U199: Période | V199: P0 | W199: P1 | X199: P2 | Y199: P3 | Z199: P4 | AA199: P5 | AB199: P6 | AC199: P7 | AD199: P8 | AE199: P9 | AF199: P10 | AG199: P11 | AH199: P12 | AI199: P13 | AJ199: P14 | AK199: P15 | AL199: P16 | AM199: P17 | AN199: P18 | AO199: P19 | AP199: P20 | AQ199: P21 | AR199: P22 | AS199: P23 | AT199: P24 | AU199: P25 | AV199: P26 | AW199: P27 | AX199: P28 | AY199: P29 | AZ199: P30
U200: Axe des "X" Fin de période | V200: 2018 | W200: 2023 | X200: 2028 | Y200: 2033 | Z200: 2038 | AA200: 2043 | AB200: 2048 | AC200: 2053 | AD200: 2058 | AE200: 2063 | AF200: 2068 | AG200: 2073 | AH200: 2078 | AI200: 2083 | AJ200: 2088 | AK200: 2093 | AL200: 2098 | AM200: 2103 | AN200: 2108 | AO200: 2113 | AP200: 2118 | AQ200: 2123 | AR200: 2128 | AS200: 2133 | AT200: 2138 | AU200: 2143 | AV200: 2148 | AW200: 2153 | AX200: 2158 | AY200: 2163 | AZ200: 2168
U201: Colonne | V201: 6 | W201: 7 | X201: 8 | Y201: 9 | Z201: 10 | AA201: 11 | AB201: 12 | AC201: 13 | AD201: 14 | AE201: 15 | AF201: 16 | AG201: 17 | AH201: 18 | AI201: 19 | AJ201: 20 | AK201: 21 | AL201: 22 | AM201: 23 | AN201: 24 | AO201: 25 | AP201: 26 | AQ201: 27 | AR201: 28 | AS201: 29 | AT201: 30 | AU201: 31 | AV201: 32 | AW201: 33 | AX201: 34 | AY201: 35 | AZ201: 36
B202: Figure 10a Évolution de la superficie selon le type de couvert | S202: =LEFT(B$202,10) -> Figure 10a | U202: OSUPINC
S203: Figure 10a | U203: Résineux | V203: =SUM(V214,V220,V221,V222,V224,V225) -> 264694.8 | W203: =SUM(W214,W220,W221,W222,W224,W225) -> 266767.52 | X203: 266219.93 | Y203: 265839.81 | Z203: 265513.44 | AA203: 265185.28 | AB203: 264837.21 | AC203: 264160.27 | AD203: 263873.82 | AE203: 262180.13 | AF203: 260844.28 | AG203: 259511.19 | AH203: 257886.09 | AI203: 257231.33 | AJ203: 254771.53 | AK203: 254010.43 | AL203: 252998.9 | AM203: 253086.21 | AN203: 253236.69 | AO203: 253331.69 | AP203: 253436.69 | AQ203: 253365.76 | AR203: 253378.05 | AS203: 253085.64 | AT203: 252891.93 | AU203: 251623.49 | AV203: 251460.99 | AW203: 251555.99 | AX203: 251650.99 | AY203: 251822.5 | AZ203: 251668.42
S204: Figure 10a | U204: Mixtes résineux | V204: =V223 -> 33362.7 | W204: =W223 -> 30394.06 | X204: 30179.11 | Y204: 29860.83 | Z204: 29548.86 | AA204: 29337.06 | AB204: 29186.57 | AC204: 29182.53 | AD204: 29002.42 | AE204: 30325.28 | AF204: 31362.96 | AG204: 32406.54 | AH204: 33860.24 | AI204: 34324.01 | AJ204: 36154.35 | AK204: 36829.37 | AL204: 37576.6 | AM204: 37395.48 | AN204: 37057.34 | AO204: 36904.59 | AP204: 36795.23 | AQ204: 36803.53 | AR204: 36708.53 | AS204: 36751.48 | AT204: 36818.22 | AU204: 37871.76 | AV204: 37776.76 | AW204: 37681.76 | AX204: 37586.76 | AY204: 37415.26 | AZ204: 37569.33
S205: Figure 10a | U205: Mixtes feuillus intolérants | V205: =V213+V219 -> 6722.5 | W205: =W213+W219 -> 6715.11 | X205: =X213+X219 -> 6705.39 | Y205: =Y213+Y219 -> 6676.06 | Z205: 6647.34 | AA205: 6606.85 | AB205: 6604.71 | AC205: 6544.06 | AD205: 6493.86 | AE205: 6492.41 | AF205: 6492.42 | AG205: 6492.42 | AH205: 6492.42 | AI205: 6492.42 | AJ205: 6488.24 | AK205: 6488.24 | AL205: 6488.24 | AM205: 6488.24 | AN205: 6488.24 | AO205: 6488.24 | AP205: 6488.24 | AQ205: 6488.24 | AR205: 6488.24 | AS205: 6488.24 | AT205: 6488.24 | AU205: 6488.24 | AV205: 6488.24 | AW205: 6488.24 | AX205: 6488.24 | AY205: 6488.24 | AZ205: 6488.24
S206: Figure 10a | U206: Mixtes feuillus tolérants | V206: =V217 -> 0 | W206: =W217 -> 0 | X206: 0 | Y206: 0 | Z206: 0 | AA206: 0 | AB206: 0 | AC206: 0 | AD206: 0 | AE206: 0 | AF206: 0 | AG206: 0 | AH206: 0 | AI206: 0 | AJ206: 0 | AK206: 0 | AL206: 0 | AM206: 0 | AN206: 0 | AO206: 0 | AP206: 0 | AQ206: 0 | AR206: 0 | AS206: 0 | AT206: 0 | AU206: 0 | AV206: 0 | AW206: 0 | AX206: 0 | AY206: 0 | AZ206: 0
S207: Figure 10a | U207: Feuillus intolérants | V207: =V212+V215+V218 -> 6660.6 | W207: =W212+W215+W218 -> 6645.97 | X207: =X212+X215+X218 -> 6600.02 | Y207: 6585.12 | Z207: 6583.02 | AA207: 6566.28 | AB207: 6537.45 | AC207: 6535.66 | AD207: 6521.77 | AE207: 6521.22 | AF207: 6504.31 | AG207: 6504.31 | AH207: 6480.65 | AI207: 6444.45 | AJ207: 6397.64 | AK207: 6393.13 | AL207: 6364.24 | AM207: 6364.24 | AN207: 6364.24 | AO207: 6364.24 | AP207: 6364.24 | AQ207: 6364.24 | AR207: 6364.24 | AS207: 6364.24 | AT207: 6364.24 | AU207: 6364.24 | AV207: 6364.24 | AW207: 6364.24 | AX207: 6364.24 | AY207: 6364.24 | AZ207: 6364.24
S208: Figure 10a | U208: Feuillus tolérants | V208: =V216 -> 0 | W208: =W216 -> 0 | X208: 0 | Y208: 0 | Z208: 0 | AA208: 0 | AB208: 0 | AC208: 0 | AD208: 0 | AE208: 0 | AF208: 0 | AG208: 0 | AH208: 0 | AI208: 0 | AJ208: 0 | AK208: 0 | AL208: 0 | AM208: 0 | AN208: 0 | AO208: 0 | AP208: 0 | AQ208: 0 | AR208: 0 | AS208: 0 | AT208: 0 | AU208: 0 | AV208: 0 | AW208: 0 | AX208: 0 | AY208: 0 | AZ208: 0
S209: Figure 10a | U209: Total | V209: =SUM(V203:V208) -> 311440.6 | W209: =SUM(W203:W208) -> 310522.66 | X209: =SUM(X203:X208) -> 309704.45 | Y209: 308961.82 | Z209: 308292.66 | AA209: 307695.47 | AB209: 307165.94 | AC209: 306422.52 | AD209: 305891.87 | AE209: 305519.04 | AF209: 305203.97 | AG209: 304914.46 | AH209: 304719.4 | AI209: 304492.21 | AJ209: 303811.76 | AK209: 303721.17 | AL209: 303427.98 | AM209: 303334.17 | AN209: 303146.51 | AO209: 303088.76 | AP209: 303084.4 | AQ209: 303021.77 | AR209: 302939.06 | AS209: 302689.6 | AT209: 302562.63 | AU209: 302347.73 | AV209: 302090.23 | AW209: 302090.23 | AX209: 302090.23 | AY209: 302090.24 | AZ209: 302090.23
S210: Figure 10a
S211: Figure 10a
S212: Figure 10a | T212: Bétulaies blanches | U212: (FCTYF_BOP) | V212: =VLOOKUP($U$202&$U212,GTYF!$C:$AP,V$201,FALSE) -> 6660.6 | W212: =VLOOKUP($U$202&$U212,GTYF!$C:$AP,W$201,FALSE) -> 6645.97 | X212: =VLOOKUP($U$202&$U212,GTYF!$C:$AP,X$201,FALSE) -> 6600.02 | Y212: =VLOOKUP($U$202&$U212,GTYF!$C:$AP,Y$201,FALSE) -> 6585.12 | Z212: =VLOOKUP($U$202&$U212,GTYF!$C:$AP,Z$201,FALSE) -> 6583.02 | AA212: =VLOOKUP($U$202&$U212,GTYF!$C:$AP,AA$201,FALSE) -> 6566.28 | AB212: =VLOOKUP($U$202&$U212,GTYF!$C:$AP,AB$201,FALSE) -> 6537.45 | AC212: =VLOOKUP($U$202&$U212,GTYF!$C:$AP,AC$201,FALSE) -> 6535.66 | AD212: =VLOOKUP($U$202&$U212,GTYF!$C:$AP,AD$201,FALSE) -> 6521.77 | AE212: =VLOOKUP($U$202&$U212,GTYF!$C:$AP,AE$201,FALSE) -> 6521.22 | AF212: =VLOOKUP($U$202&$U212,GTYF!$C:$AP,AF$201,FALSE) -> 6504.31 | AG212: =VLOOKUP($U$202&$U212,GTYF!$C:$AP,AG$201,FALSE) -> 6504.31 | AH212: =VLOOKUP($U$202&$U212,GTYF!$C:$AP,AH$201,FALSE) -> 6480.65 | AI212: =VLOOKUP($U$202&$U212,GTYF!$C:$AP,AI$201,FALSE) -> 6444.45 | AJ212: =VLOOKUP($U$202&$U212,GTYF!$C:$AP,AJ$201,FALSE) -> 6397.64 | AK212: =VLOOKUP($U$202&$U212,GTYF!$C:$AP,AK$201,FALSE) -> 6393.13 | AL212: =VLOOKUP($U$202&$U212,GTYF!$C:$AP,AL$201,FALSE) -> 6364.24 | AM212: =VLOOKUP($U$202&$U212,GTYF!$C:$AP,AM$201,FALSE) -> 6364.24 | AN212: =VLOOKUP($U$202&$U212,GTYF!$C:$AP,AN$201,FALSE) -> 6364.24 | AO212: =VLOOKUP($U$202&$U212,GTYF!$C:$AP,AO$201,FALSE) -> 6364.24 | AP212: =VLOOKUP($U$202&$U212,GTYF!$C:$AP,AP$201,FALSE) -> 6364.24 | AQ212: =VLOOKUP($U$202&$U212,GTYF!$C:$AP,AQ$201,FALSE) -> 6364.24 | AR212: =VLOOKUP($U$202&$U212,GTYF!$C:$AP,AR$201,FALSE) -> 6364.24 | AS212: =VLOOKUP($U$202&$U212,GTYF!$C:$AP,AS$201,FALSE) -> 6364.24 | AT212: =VLOOKUP($U$202&$U212,GTYF!$C:$AP,AT$201,FALSE) -> 6364.24 | AU212: =VLOOKUP($U$202&$U212,GTYF!$C:$AP,AU$201,FALSE) -> 6364.24 | AV212: =VLOOKUP($U$202&$U212,GTYF!$C:$AP,AV$201,FALSE) -> 6364.24 | AW212: =VLOOKUP($U$202&$U212,GTYF!$C:$AP,AW$201,FALSE) -> 6364.24 | AX212: =VLOOKUP($U$202&$U212,GTYF!$C:$AP,AX$201,FALSE) -> 6364.24 | AY212: =VLOOKUP($U$202&$U212,GTYF!$C:$AP,AY$201,FALSE) -> 6364.24 | AZ212: =VLOOKUP($U$202&$U212,GTYF!$C:$AP,AZ$201,FALSE) -> 6364.24
S213: Figure 10a | T213: Bétulaies blanches à résineux | U213: (FCTYF_BOPR) | V213: =VLOOKUP($U$202&$U213,GTYF!$C:$AP,V$201,FALSE) -> 6722.5 | W213: =VLOOKUP($U$202&$U213,GTYF!$C:$AP,W$201,FALSE) -> 6715.11 | X213: =VLOOKUP($U$202&$U213,GTYF!$C:$AP,X$201,FALSE) -> 6705.39 | Y213: =VLOOKUP($U$202&$U213,GTYF!$C:$AP,Y$201,FALSE) -> 6676.06 | Z213: =VLOOKUP($U$202&$U213,GTYF!$C:$AP,Z$201,FALSE) -> 6647.34 | AA213: =VLOOKUP($U$202&$U213,GTYF!$C:$AP,AA$201,FALSE) -> 6606.85 | AB213: =VLOOKUP($U$202&$U213,GTYF!$C:$AP,AB$201,FALSE) -> 6604.71 | AC213: =VLOOKUP($U$202&$U213,GTYF!$C:$AP,AC$201,FALSE) -> 6544.06 | AD213: =VLOOKUP($U$202&$U213,GTYF!$C:$AP,AD$201,FALSE) -> 6493.86 | AE213: =VLOOKUP($U$202&$U213,GTYF!$C:$AP,AE$201,FALSE) -> 6492.41 | AF213: =VLOOKUP($U$202&$U213,GTYF!$C:$AP,AF$201,FALSE) -> 6492.42 | AG213: =VLOOKUP($U$202&$U213,GTYF!$C:$AP,AG$201,FALSE) -> 6492.42 | AH213: =VLOOKUP($U$202&$U213,GTYF!$C:$AP,AH$201,FALSE) -> 6492.42 | AI213: =VLOOKUP($U$202&$U213,GTYF!$C:$AP,AI$201,FALSE) -> 6492.42 | AJ213: =VLOOKUP($U$202&$U213,GTYF!$C:$AP,AJ$201,FALSE) -> 6488.24 | AK213: =VLOOKUP($U$202&$U213,GTYF!$C:$AP,AK$201,FALSE) -> 6488.24 | AL213: =VLOOKUP($U$202&$U213,GTYF!$C:$AP,AL$201,FALSE) -> 6488.24 | AM213: =VLOOKUP($U$202&$U213,GTYF!$C:$AP,AM$201,FALSE) -> 6488.24 | AN213: =VLOOKUP($U$202&$U213,GTYF!$C:$AP,AN$201,FALSE) -> 6488.24 | AO213: =VLOOKUP($U$202&$U213,GTYF!$C:$AP,AO$201,FALSE) -> 6488.24 | AP213: =VLOOKUP($U$202&$U213,GTYF!$C:$AP,AP$201,FALSE) -> 6488.24 | AQ213: =VLOOKUP($U$202&$U213,GTYF!$C:$AP,AQ$201,FALSE) -> 6488.24 | AR213: =VLOOKUP($U$202&$U213,GTYF!$C:$AP,AR$201,FALSE) -> 6488.24 | AS213: =VLOOKUP($U$202&$U213,GTYF!$C:$AP,AS$201,FALSE) -> 6488.24 | AT213: =VLOOKUP($U$202&$U213,GTYF!$C:$AP,AT$201,FALSE) -> 6488.24 | AU213: =VLOOKUP($U$202&$U213,GTYF!$C:$AP,AU$201,FALSE) -> 6488.24 | AV213: =VLOOKUP($U$202&$U213,GTYF!$C:$AP,AV$201,FALSE) -> 6488.24 | AW213: =VLOOKUP($U$202&$U213,GTYF!$C:$AP,AW$201,FALSE) -> 6488.24 | AX213: =VLOOKUP($U$202&$U213,GTYF!$C:$AP,AX$201,FALSE) -> 6488.24 | AY213: =VLOOKUP($U$202&$U213,GTYF!$C:$AP,AY$201,FALSE) -> 6488.24 | AZ213: =VLOOKUP($U$202&$U213,GTYF!$C:$AP,AZ$201,FALSE) -> 6488.24
S214: Figure 10a | T214: Pessières | U214: (FCTYF_EPX) | V214: =VLOOKUP($U$202&$U214,GTYF!$C:$AP,V$201,FALSE) -> 231599.8 | W214: =VLOOKUP($U$202&$U214,GTYF!$C:$AP,W$201,FALSE) -> 233784.51 | X214: =VLOOKUP($U$202&$U214,GTYF!$C:$AP,X$201,FALSE) -> 233301.24 | Y214: =VLOOKUP($U$202&$U214,GTYF!$C:$AP,Y$201,FALSE) -> 232948.04 | Z214: =VLOOKUP($U$202&$U214,GTYF!$C:$AP,Z$201,FALSE) -> 232727.55 | AA214: =VLOOKUP($U$202&$U214,GTYF!$C:$AP,AA$201,FALSE) -> 232436.22 | AB214: =VLOOKUP($U$202&$U214,GTYF!$C:$AP,AB$201,FALSE) -> 232178.84 | AC214: =VLOOKUP($U$202&$U214,GTYF!$C:$AP,AC$201,FALSE) -> 231412.22 | AD214: =VLOOKUP($U$202&$U214,GTYF!$C:$AP,AD$201,FALSE) -> 231025.71 | AE214: =VLOOKUP($U$202&$U214,GTYF!$C:$AP,AE$201,FALSE) -> 229329.86 | AF214: =VLOOKUP($U$202&$U214,GTYF!$C:$AP,AF$201,FALSE) -> 227889.89 | AG214: =VLOOKUP($U$202&$U214,GTYF!$C:$AP,AG$201,FALSE) -> 226494.18 | AH214: =VLOOKUP($U$202&$U214,GTYF!$C:$AP,AH$201,FALSE) -> 225169.77 | AI214: =VLOOKUP($U$202&$U214,GTYF!$C:$AP,AI$201,FALSE) -> 224641.43 | AJ214: =VLOOKUP($U$202&$U214,GTYF!$C:$AP,AJ$201,FALSE) -> 222533.44 | AK214: =VLOOKUP($U$202&$U214,GTYF!$C:$AP,AK$201,FALSE) -> 221780.06 | AL214: =VLOOKUP($U$202&$U214,GTYF!$C:$AP,AL$201,FALSE) -> 221043.79 | AM214: =VLOOKUP($U$202&$U214,GTYF!$C:$AP,AM$201,FALSE) -> 221138.79 | AN214: =VLOOKUP($U$202&$U214,GTYF!$C:$AP,AN$201,FALSE) -> 221509.75 | AO214: =VLOOKUP($U$202&$U214,GTYF!$C:$AP,AO$201,FALSE) -> 221604.75 | AP214: =VLOOKUP($U$202&$U214,GTYF!$C:$AP,AP$201,FALSE) -> 221709.75 | AQ214: =VLOOKUP($U$202&$U214,GTYF!$C:$AP,AQ$201,FALSE) -> 221677.08 | AR214: =VLOOKUP($U$202&$U214,GTYF!$C:$AP,AR$201,FALSE) -> 221689.37 | AS214: =VLOOKUP($U$202&$U214,GTYF!$C:$AP,AS$201,FALSE) -> 221396.96 | AT214: =VLOOKUP($U$202&$U214,GTYF!$C:$AP,AT$201,FALSE) -> 221203.25 | AU214: =VLOOKUP($U$202&$U214,GTYF!$C:$AP,AU$201,FALSE) -> 219934.81 | AV214: =VLOOKUP($U$202&$U214,GTYF!$C:$AP,AV$201,FALSE) -> 219772.31 | AW214: =VLOOKUP($U$202&$U214,GTYF!$C:$AP,AW$201,FALSE) -> 219867.31 | AX214: =VLOOKUP($U$202&$U214,GTYF!$C:$AP,AX$201,FALSE) -> 219962.31 | AY214: =VLOOKUP($U$202&$U214,GTYF!$C:$AP,AY$201,FALSE) -> 220476.04 | AZ214: =VLOOKUP($U$202&$U214,GTYF!$C:$AP,AZ$201,FALSE) -> 221073.23
S215: Figure 10a | T215: Érablières rouges | U215: (FCTYF_ERO) | V215: =VLOOKUP($U$202&$U215,GTYF!$C:$AP,V$201,FALSE) -> 0 | W215: =VLOOKUP($U$202&$U215,GTYF!$C:$AP,W$201,FALSE) -> 0 | X215: =VLOOKUP($U$202&$U215,GTYF!$C:$AP,X$201,FALSE) -> 0 | Y215: =VLOOKUP($U$202&$U215,GTYF!$C:$AP,Y$201,FALSE) -> 0 | Z215: =VLOOKUP($U$202&$U215,GTYF!$C:$AP,Z$201,FALSE) -> 0 | AA215: =VLOOKUP($U$202&$U215,GTYF!$C:$AP,AA$201,FALSE) -> 0 | AB215: =VLOOKUP($U$202&$U215,GTYF!$C:$AP,AB$201,FALSE) -> 0 | AC215: =VLOOKUP($U$202&$U215,GTYF!$C:$AP,AC$201,FALSE) -> 0 | AD215: =VLOOKUP($U$202&$U215,GTYF!$C:$AP,AD$201,FALSE) -> 0 | AE215: =VLOOKUP($U$202&$U215,GTYF!$C:$AP,AE$201,FALSE) -> 0 | AF215: =VLOOKUP($U$202&$U215,GTYF!$C:$AP,AF$201,FALSE) -> 0 | AG215: =VLOOKUP($U$202&$U215,GTYF!$C:$AP,AG$201,FALSE) -> 0 | AH215: =VLOOKUP($U$202&$U215,GTYF!$C:$AP,AH$201,FALSE) -> 0 | AI215: =VLOOKUP($U$202&$U215,GTYF!$C:$AP,AI$201,FALSE) -> 0 | AJ215: =VLOOKUP($U$202&$U215,GTYF!$C:$AP,AJ$201,FALSE) -> 0 | AK215: =VLOOKUP($U$202&$U215,GTYF!$C:$AP,AK$201,FALSE) -> 0 | AL215: =VLOOKUP($U$202&$U215,GTYF!$C:$AP,AL$201,FALSE) -> 0 | AM215: =VLOOKUP($U$202&$U215,GTYF!$C:$AP,AM$201,FALSE) -> 0 | AN215: =VLOOKUP($U$202&$U215,GTYF!$C:$AP,AN$201,FALSE) -> 0 | AO215: =VLOOKUP($U$202&$U215,GTYF!$C:$AP,AO$201,FALSE) -> 0 | AP215: =VLOOKUP($U$202&$U215,GTYF!$C:$AP,AP$201,FALSE) -> 0 | AQ215: =VLOOKUP($U$202&$U215,GTYF!$C:$AP,AQ$201,FALSE) -> 0 | AR215: =VLOOKUP($U$202&$U215,GTYF!$C:$AP,AR$201,FALSE) -> 0 | AS215: =VLOOKUP($U$202&$U215,GTYF!$C:$AP,AS$201,FALSE) -> 0 | AT215: =VLOOKUP($U$202&$U215,GTYF!$C:$AP,AT$201,FALSE) -> 0 | AU215: =VLOOKUP($U$202&$U215,GTYF!$C:$AP,AU$201,FALSE) -> 0 | AV215: =VLOOKUP($U$202&$U215,GTYF!$C:$AP,AV$201,FALSE) -> 0 | AW215: =VLOOKUP($U$202&$U215,GTYF!$C:$AP,AW$201,FALSE) -> 0 | AX215: =VLOOKUP($U$202&$U215,GTYF!$C:$AP,AX$201,FALSE) -> 0 | AY215: =VLOOKUP($U$202&$U215,GTYF!$C:$AP,AY$201,FALSE) -> 0 | AZ215: =VLOOKUP($U$202&$U215,GTYF!$C:$AP,AZ$201,FALSE) -> 0
S216: Figure 10a | T216: Feuillus tolérants | U216: (FCTYF_FT) | V216: =VLOOKUP($U$202&$U216,GTYF!$C:$AP,V$201,FALSE) -> 0 | W216: =VLOOKUP($U$202&$U216,GTYF!$C:$AP,W$201,FALSE) -> 0 | X216: =VLOOKUP($U$202&$U216,GTYF!$C:$AP,X$201,FALSE) -> 0 | Y216: =VLOOKUP($U$202&$U216,GTYF!$C:$AP,Y$201,FALSE) -> 0 | Z216: =VLOOKUP($U$202&$U216,GTYF!$C:$AP,Z$201,FALSE) -> 0 | AA216: =VLOOKUP($U$202&$U216,GTYF!$C:$AP,AA$201,FALSE) -> 0 | AB216: =VLOOKUP($U$202&$U216,GTYF!$C:$AP,AB$201,FALSE) -> 0 | AC216: =VLOOKUP($U$202&$U216,GTYF!$C:$AP,AC$201,FALSE) -> 0 | AD216: =VLOOKUP($U$202&$U216,GTYF!$C:$AP,AD$201,FALSE) -> 0 | AE216: =VLOOKUP($U$202&$U216,GTYF!$C:$AP,AE$201,FALSE) -> 0 | AF216: =VLOOKUP($U$202&$U216,GTYF!$C:$AP,AF$201,FALSE) -> 0 | AG216: =VLOOKUP($U$202&$U216,GTYF!$C:$AP,AG$201,FALSE) -> 0 | AH216: =VLOOKUP($U$202&$U216,GTYF!$C:$AP,AH$201,FALSE) -> 0 | AI216: =VLOOKUP($U$202&$U216,GTYF!$C:$AP,AI$201,FALSE) -> 0 | AJ216: =VLOOKUP($U$202&$U216,GTYF!$C:$AP,AJ$201,FALSE) -> 0 | AK216: =VLOOKUP($U$202&$U216,GTYF!$C:$AP,AK$201,FALSE) -> 0 | AL216: =VLOOKUP($U$202&$U216,GTYF!$C:$AP,AL$201,FALSE) -> 0 | AM216: =VLOOKUP($U$202&$U216,GTYF!$C:$AP,AM$201,FALSE) -> 0 | AN216: =VLOOKUP($U$202&$U216,GTYF!$C:$AP,AN$201,FALSE) -> 0 | AO216: =VLOOKUP($U$202&$U216,GTYF!$C:$AP,AO$201,FALSE) -> 0 | AP216: =VLOOKUP($U$202&$U216,GTYF!$C:$AP,AP$201,FALSE) -> 0 | AQ216: =VLOOKUP($U$202&$U216,GTYF!$C:$AP,AQ$201,FALSE) -> 0 | AR216: =VLOOKUP($U$202&$U216,GTYF!$C:$AP,AR$201,FALSE) -> 0 | AS216: =VLOOKUP($U$202&$U216,GTYF!$C:$AP,AS$201,FALSE) -> 0 | AT216: =VLOOKUP($U$202&$U216,GTYF!$C:$AP,AT$201,FALSE) -> 0 | AU216: =VLOOKUP($U$202&$U216,GTYF!$C:$AP,AU$201,FALSE) -> 0 | AV216: =VLOOKUP($U$202&$U216,GTYF!$C:$AP,AV$201,FALSE) -> 0 | AW216: =VLOOKUP($U$202&$U216,GTYF!$C:$AP,AW$201,FALSE) -> 0 | AX216: =VLOOKUP($U$202&$U216,GTYF!$C:$AP,AX$201,FALSE) -> 0 | AY216: =VLOOKUP($U$202&$U216,GTYF!$C:$AP,AY$201,FALSE) -> 0 | AZ216: =VLOOKUP($U$202&$U216,GTYF!$C:$AP,AZ$201,FALSE) -> 0
S217: Figure 10a | T217: Feuillus tolérants à résineux | U217: (FCTYF_FTR) | V217: =VLOOKUP($U$202&$U217,GTYF!$C:$AP,V$201,FALSE) -> 0 | W217: =VLOOKUP($U$202&$U217,GTYF!$C:$AP,W$201,FALSE) -> 0 | X217: =VLOOKUP($U$202&$U217,GTYF!$C:$AP,X$201,FALSE) -> 0 | Y217: =VLOOKUP($U$202&$U217,GTYF!$C:$AP,Y$201,FALSE) -> 0 | Z217: =VLOOKUP($U$202&$U217,GTYF!$C:$AP,Z$201,FALSE) -> 0 | AA217: =VLOOKUP($U$202&$U217,GTYF!$C:$AP,AA$201,FALSE) -> 0 | AB217: =VLOOKUP($U$202&$U217,GTYF!$C:$AP,AB$201,FALSE) -> 0 | AC217: =VLOOKUP($U$202&$U217,GTYF!$C:$AP,AC$201,FALSE) -> 0 | AD217: =VLOOKUP($U$202&$U217,GTYF!$C:$AP,AD$201,FALSE) -> 0 | AE217: =VLOOKUP($U$202&$U217,GTYF!$C:$AP,AE$201,FALSE) -> 0 | AF217: =VLOOKUP($U$202&$U217,GTYF!$C:$AP,AF$201,FALSE) -> 0 | AG217: =VLOOKUP($U$202&$U217,GTYF!$C:$AP,AG$201,FALSE) -> 0 | AH217: =VLOOKUP($U$202&$U217,GTYF!$C:$AP,AH$201,FALSE) -> 0 | AI217: =VLOOKUP($U$202&$U217,GTYF!$C:$AP,AI$201,FALSE) -> 0 | AJ217: =VLOOKUP($U$202&$U217,GTYF!$C:$AP,AJ$201,FALSE) -> 0 | AK217: =VLOOKUP($U$202&$U217,GTYF!$C:$AP,AK$201,FALSE) -> 0 | AL217: =VLOOKUP($U$202&$U217,GTYF!$C:$AP,AL$201,FALSE) -> 0 | AM217: =VLOOKUP($U$202&$U217,GTYF!$C:$AP,AM$201,FALSE) -> 0 | AN217: =VLOOKUP($U$202&$U217,GTYF!$C:$AP,AN$201,FALSE) -> 0 | AO217: =VLOOKUP($U$202&$U217,GTYF!$C:$AP,AO$201,FALSE) -> 0 | AP217: =VLOOKUP($U$202&$U217,GTYF!$C:$AP,AP$201,FALSE) -> 0 | AQ217: =VLOOKUP($U$202&$U217,GTYF!$C:$AP,AQ$201,FALSE) -> 0 | AR217: =VLOOKUP($U$202&$U217,GTYF!$C:$AP,AR$201,FALSE) -> 0 | AS217: =VLOOKUP($U$202&$U217,GTYF!$C:$AP,AS$201,FALSE) -> 0 | AT217: =VLOOKUP($U$202&$U217,GTYF!$C:$AP,AT$201,FALSE) -> 0 | AU217: =VLOOKUP($U$202&$U217,GTYF!$C:$AP,AU$201,FALSE) -> 0 | AV217: =VLOOKUP($U$202&$U217,GTYF!$C:$AP,AV$201,FALSE) -> 0 | AW217: =VLOOKUP($U$202&$U217,GTYF!$C:$AP,AW$201,FALSE) -> 0 | AX217: =VLOOKUP($U$202&$U217,GTYF!$C:$AP,AX$201,FALSE) -> 0 | AY217: =VLOOKUP($U$202&$U217,GTYF!$C:$AP,AY$201,FALSE) -> 0 | AZ217: =VLOOKUP($U$202&$U217,GTYF!$C:$AP,AZ$201,FALSE) -> 0
S218: Figure 10a | T218: Peupleraies | U218: (FCTYF_PEU) | V218: =VLOOKUP($U$202&$U218,GTYF!$C:$AP,V$201,FALSE) -> 0 | W218: =VLOOKUP($U$202&$U218,GTYF!$C:$AP,W$201,FALSE) -> 0 | X218: =VLOOKUP($U$202&$U218,GTYF!$C:$AP,X$201,FALSE) -> 0 | Y218: =VLOOKUP($U$202&$U218,GTYF!$C:$AP,Y$201,FALSE) -> 0 | Z218: =VLOOKUP($U$202&$U218,GTYF!$C:$AP,Z$201,FALSE) -> 0 | AA218: =VLOOKUP($U$202&$U218,GTYF!$C:$AP,AA$201,FALSE) -> 0 | AB218: =VLOOKUP($U$202&$U218,GTYF!$C:$AP,AB$201,FALSE) -> 0 | AC218: =VLOOKUP($U$202&$U218,GTYF!$C:$AP,AC$201,FALSE) -> 0 | AD218: =VLOOKUP($U$202&$U218,GTYF!$C:$AP,AD$201,FALSE) -> 0 | AE218: =VLOOKUP($U$202&$U218,GTYF!$C:$AP,AE$201,FALSE) -> 0 | AF218: =VLOOKUP($U$202&$U218,GTYF!$C:$AP,AF$201,FALSE) -> 0 | AG218: =VLOOKUP($U$202&$U218,GTYF!$C:$AP,AG$201,FALSE) -> 0 | AH218: =VLOOKUP($U$202&$U218,GTYF!$C:$AP,AH$201,FALSE) -> 0 | AI218: =VLOOKUP($U$202&$U218,GTYF!$C:$AP,AI$201,FALSE) -> 0 | AJ218: =VLOOKUP($U$202&$U218,GTYF!$C:$AP,AJ$201,FALSE) -> 0 | AK218: =VLOOKUP($U$202&$U218,GTYF!$C:$AP,AK$201,FALSE) -> 0 | AL218: =VLOOKUP($U$202&$U218,GTYF!$C:$AP,AL$201,FALSE) -> 0 | AM218: =VLOOKUP($U$202&$U218,GTYF!$C:$AP,AM$201,FALSE) -> 0 | AN218: =VLOOKUP($U$202&$U218,GTYF!$C:$AP,AN$201,FALSE) -> 0 | AO218: =VLOOKUP($U$202&$U218,GTYF!$C:$AP,AO$201,FALSE) -> 0 | AP218: =VLOOKUP($U$202&$U218,GTYF!$C:$AP,AP$201,FALSE) -> 0 | AQ218: =VLOOKUP($U$202&$U218,GTYF!$C:$AP,AQ$201,FALSE) -> 0 | AR218: =VLOOKUP($U$202&$U218,GTYF!$C:$AP,AR$201,FALSE) -> 0 | AS218: =VLOOKUP($U$202&$U218,GTYF!$C:$AP,AS$201,FALSE) -> 0 | AT218: =VLOOKUP($U$202&$U218,GTYF!$C:$AP,AT$201,FALSE) -> 0 | AU218: =VLOOKUP($U$202&$U218,GTYF!$C:$AP,AU$201,FALSE) -> 0 | AV218: =VLOOKUP($U$202&$U218,GTYF!$C:$AP,AV$201,FALSE) -> 0 | AW218: =VLOOKUP($U$202&$U218,GTYF!$C:$AP,AW$201,FALSE) -> 0 | AX218: =VLOOKUP($U$202&$U218,GTYF!$C:$AP,AX$201,FALSE) -> 0 | AY218: =VLOOKUP($U$202&$U218,GTYF!$C:$AP,AY$201,FALSE) -> 0 | AZ218: =VLOOKUP($U$202&$U218,GTYF!$C:$AP,AZ$201,FALSE) -> 0
S219: Figure 10a | T219: Peupleraies à résineux | U219: (FCTYF_PEUR) | V219: =VLOOKUP($U$202&$U219,GTYF!$C:$AP,V$201,FALSE) -> 0 | W219: =VLOOKUP($U$202&$U219,GTYF!$C:$AP,W$201,FALSE) -> 0 | X219: =VLOOKUP($U$202&$U219,GTYF!$C:$AP,X$201,FALSE) -> 0 | Y219: =VLOOKUP($U$202&$U219,GTYF!$C:$AP,Y$201,FALSE) -> 0 | Z219: =VLOOKUP($U$202&$U219,GTYF!$C:$AP,Z$201,FALSE) -> 0 | AA219: =VLOOKUP($U$202&$U219,GTYF!$C:$AP,AA$201,FALSE) -> 0 | AB219: =VLOOKUP($U$202&$U219,GTYF!$C:$AP,AB$201,FALSE) -> 0 | AC219: =VLOOKUP($U$202&$U219,GTYF!$C:$AP,AC$201,FALSE) -> 0 | AD219: =VLOOKUP($U$202&$U219,GTYF!$C:$AP,AD$201,FALSE) -> 0 | AE219: =VLOOKUP($U$202&$U219,GTYF!$C:$AP,AE$201,FALSE) -> 0 | AF219: =VLOOKUP($U$202&$U219,GTYF!$C:$AP,AF$201,FALSE) -> 0 | AG219: =VLOOKUP($U$202&$U219,GTYF!$C:$AP,AG$201,FALSE) -> 0 | AH219: =VLOOKUP($U$202&$U219,GTYF!$C:$AP,AH$201,FALSE) -> 0 | AI219: =VLOOKUP($U$202&$U219,GTYF!$C:$AP,AI$201,FALSE) -> 0 | AJ219: =VLOOKUP($U$202&$U219,GTYF!$C:$AP,AJ$201,FALSE) -> 0 | AK219: =VLOOKUP($U$202&$U219,GTYF!$C:$AP,AK$201,FALSE) -> 0 | AL219: =VLOOKUP($U$202&$U219,GTYF!$C:$AP,AL$201,FALSE) -> 0 | AM219: =VLOOKUP($U$202&$U219,GTYF!$C:$AP,AM$201,FALSE) -> 0 | AN219: =VLOOKUP($U$202&$U219,GTYF!$C:$AP,AN$201,FALSE) -> 0 | AO219: =VLOOKUP($U$202&$U219,GTYF!$C:$AP,AO$201,FALSE) -> 0 | AP219: =VLOOKUP($U$202&$U219,GTYF!$C:$AP,AP$201,FALSE) -> 0 | AQ219: =VLOOKUP($U$202&$U219,GTYF!$C:$AP,AQ$201,FALSE) -> 0 | AR219: =VLOOKUP($U$202&$U219,GTYF!$C:$AP,AR$201,FALSE) -> 0 | AS219: =VLOOKUP($U$202&$U219,GTYF!$C:$AP,AS$201,FALSE) -> 0 | AT219: =VLOOKUP($U$202&$U219,GTYF!$C:$AP,AT$201,FALSE) -> 0 | AU219: =VLOOKUP($U$202&$U219,GTYF!$C:$AP,AU$201,FALSE) -> 0 | AV219: =VLOOKUP($U$202&$U219,GTYF!$C:$AP,AV$201,FALSE) -> 0 | AW219: =VLOOKUP($U$202&$U219,GTYF!$C:$AP,AW$201,FALSE) -> 0 | AX219: =VLOOKUP($U$202&$U219,GTYF!$C:$AP,AX$201,FALSE) -> 0 | AY219: =VLOOKUP($U$202&$U219,GTYF!$C:$AP,AY$201,FALSE) -> 0 | AZ219: =VLOOKUP($U$202&$U219,GTYF!$C:$AP,AZ$201,FALSE) -> 0
S220: Figure 10a | T220: Pinèdes grises | U220: (FCTYF_PIG) | V220: =VLOOKUP($U$202&$U220,GTYF!$C:$AP,V$201,FALSE) -> 26978.5 | W220: =VLOOKUP($U$202&$U220,GTYF!$C:$AP,W$201,FALSE) -> 26928.27 | X220: =VLOOKUP($U$202&$U220,GTYF!$C:$AP,X$201,FALSE) -> 26864.56 | Y220: =VLOOKUP($U$202&$U220,GTYF!$C:$AP,Y$201,FALSE) -> 26837.64 | Z220: =VLOOKUP($U$202&$U220,GTYF!$C:$AP,Z$201,FALSE) -> 26697.62 | AA220: =VLOOKUP($U$202&$U220,GTYF!$C:$AP,AA$201,FALSE) -> 26604.29 | AB220: =VLOOKUP($U$202&$U220,GTYF!$C:$AP,AB$201,FALSE) -> 26496.96 | AC220: =VLOOKUP($U$202&$U220,GTYF!$C:$AP,AC$201,FALSE) -> 26491.33 | AD220: =VLOOKUP($U$202&$U220,GTYF!$C:$AP,AD$201,FALSE) -> 26486.58 | AE220: =VLOOKUP($U$202&$U220,GTYF!$C:$AP,AE$201,FALSE) -> 26486.58 | AF220: =VLOOKUP($U$202&$U220,GTYF!$C:$AP,AF$201,FALSE) -> 26486.28 | AG220: =VLOOKUP($U$202&$U220,GTYF!$C:$AP,AG$201,FALSE) -> 26477.94 | AH220: =VLOOKUP($U$202&$U220,GTYF!$C:$AP,AH$201,FALSE) -> 26282.25 | AI220: =VLOOKUP($U$202&$U220,GTYF!$C:$AP,AI$201,FALSE) -> 26272.25 | AJ220: =VLOOKUP($U$202&$U220,GTYF!$C:$AP,AJ$201,FALSE) -> 26033.05 | AK220: =VLOOKUP($U$202&$U220,GTYF!$C:$AP,AK$201,FALSE) -> 26025.33 | AL220: =VLOOKUP($U$202&$U220,GTYF!$C:$AP,AL$201,FALSE) -> 25867.13 | AM220: =VLOOKUP($U$202&$U220,GTYF!$C:$AP,AM$201,FALSE) -> 25859.44 | AN220: =VLOOKUP($U$202&$U220,GTYF!$C:$AP,AN$201,FALSE) -> 25814.91 | AO220: =VLOOKUP($U$202&$U220,GTYF!$C:$AP,AO$201,FALSE) -> 25814.91 | AP220: =VLOOKUP($U$202&$U220,GTYF!$C:$AP,AP$201,FALSE) -> 25814.91 | AQ220: =VLOOKUP($U$202&$U220,GTYF!$C:$AP,AQ$201,FALSE) -> 25814.91 | AR220: =VLOOKUP($U$202&$U220,GTYF!$C:$AP,AR$201,FALSE) -> 25814.91 | AS220: =VLOOKUP($U$202&$U220,GTYF!$C:$AP,AS$201,FALSE) -> 25814.91 | AT220: =VLOOKUP($U$202&$U220,GTYF!$C:$AP,AT$201,FALSE) -> 25814.91 | AU220: =VLOOKUP($U$202&$U220,GTYF!$C:$AP,AU$201,FALSE) -> 25814.91 | AV220: =VLOOKUP($U$202&$U220,GTYF!$C:$AP,AV$201,FALSE) -> 25814.91 | AW220: =VLOOKUP($U$202&$U220,GTYF!$C:$AP,AW$201,FALSE) -> 25814.91 | AX220: =VLOOKUP($U$202&$U220,GTYF!$C:$AP,AX$201,FALSE) -> 25814.91 | AY220: =VLOOKUP($U$202&$U220,GTYF!$C:$AP,AY$201,FALSE) -> 25472.69 | AZ220: =VLOOKUP($U$202&$U220,GTYF!$C:$AP,AZ$201,FALSE) -> 24721.42
S221: Figure 10a | T221: Pinèdes blanches | U221: (FCTYF_PIN) | V221: =VLOOKUP($U$202&$U221,GTYF!$C:$AP,V$201,FALSE) -> 0 | W221: =VLOOKUP($U$202&$U221,GTYF!$C:$AP,W$201,FALSE) -> 0 | X221: =VLOOKUP($U$202&$U221,GTYF!$C:$AP,X$201,FALSE) -> 0 | Y221: =VLOOKUP($U$202&$U221,GTYF!$C:$AP,Y$201,FALSE) -> 0 | Z221: =VLOOKUP($U$202&$U221,GTYF!$C:$AP,Z$201,FALSE) -> 0 | AA221: =VLOOKUP($U$202&$U221,GTYF!$C:$AP,AA$201,FALSE) -> 0 | AB221: =VLOOKUP($U$202&$U221,GTYF!$C:$AP,AB$201,FALSE) -> 0 | AC221: =VLOOKUP($U$202&$U221,GTYF!$C:$AP,AC$201,FALSE) -> 0 | AD221: =VLOOKUP($U$202&$U221,GTYF!$C:$AP,AD$201,FALSE) -> 0 | AE221: =VLOOKUP($U$202&$U221,GTYF!$C:$AP,AE$201,FALSE) -> 0 | AF221: =VLOOKUP($U$202&$U221,GTYF!$C:$AP,AF$201,FALSE) -> 0 | AG221: =VLOOKUP($U$202&$U221,GTYF!$C:$AP,AG$201,FALSE) -> 0 | AH221: =VLOOKUP($U$202&$U221,GTYF!$C:$AP,AH$201,FALSE) -> 0 | AI221: =VLOOKUP($U$202&$U221,GTYF!$C:$AP,AI$201,FALSE) -> 0 | AJ221: =VLOOKUP($U$202&$U221,GTYF!$C:$AP,AJ$201,FALSE) -> 0 | AK221: =VLOOKUP($U$202&$U221,GTYF!$C:$AP,AK$201,FALSE) -> 0 | AL221: =VLOOKUP($U$202&$U221,GTYF!$C:$AP,AL$201,FALSE) -> 0 | AM221: =VLOOKUP($U$202&$U221,GTYF!$C:$AP,AM$201,FALSE) -> 0 | AN221: =VLOOKUP($U$202&$U221,GTYF!$C:$AP,AN$201,FALSE) -> 0 | AO221: =VLOOKUP($U$202&$U221,GTYF!$C:$AP,AO$201,FALSE) -> 0 | AP221: =VLOOKUP($U$202&$U221,GTYF!$C:$AP,AP$201,FALSE) -> 0 | AQ221: =VLOOKUP($U$202&$U221,GTYF!$C:$AP,AQ$201,FALSE) -> 0 | AR221: =VLOOKUP($U$202&$U221,GTYF!$C:$AP,AR$201,FALSE) -> 0 | AS221: =VLOOKUP($U$202&$U221,GTYF!$C:$AP,AS$201,FALSE) -> 0 | AT221: =VLOOKUP($U$202&$U221,GTYF!$C:$AP,AT$201,FALSE) -> 0 | AU221: =VLOOKUP($U$202&$U221,GTYF!$C:$AP,AU$201,FALSE) -> 0 | AV221: =VLOOKUP($U$202&$U221,GTYF!$C:$AP,AV$201,FALSE) -> 0 | AW221: =VLOOKUP($U$202&$U221,GTYF!$C:$AP,AW$201,FALSE) -> 0 | AX221: =VLOOKUP($U$202&$U221,GTYF!$C:$AP,AX$201,FALSE) -> 0 | AY221: =VLOOKUP($U$202&$U221,GTYF!$C:$AP,AY$201,FALSE) -> 0 | AZ221: =VLOOKUP($U$202&$U221,GTYF!$C:$AP,AZ$201,FALSE) -> 0
S222: Figure 10a | T222: Prucheraies | U222: (FCTYF_PRU) | V222: =VLOOKUP($U$202&$U222,GTYF!$C:$AP,V$201,FALSE) -> 0 | W222: =VLOOKUP($U$202&$U222,GTYF!$C:$AP,W$201,FALSE) -> 0 | X222: =VLOOKUP($U$202&$U222,GTYF!$C:$AP,X$201,FALSE) -> 0 | Y222: =VLOOKUP($U$202&$U222,GTYF!$C:$AP,Y$201,FALSE) -> 0 | Z222: =VLOOKUP($U$202&$U222,GTYF!$C:$AP,Z$201,FALSE) -> 0 | AA222: =VLOOKUP($U$202&$U222,GTYF!$C:$AP,AA$201,FALSE) -> 0 | AB222: =VLOOKUP($U$202&$U222,GTYF!$C:$AP,AB$201,FALSE) -> 0 | AC222: =VLOOKUP($U$202&$U222,GTYF!$C:$AP,AC$201,FALSE) -> 0 | AD222: =VLOOKUP($U$202&$U222,GTYF!$C:$AP,AD$201,FALSE) -> 0 | AE222: =VLOOKUP($U$202&$U222,GTYF!$C:$AP,AE$201,FALSE) -> 0 | AF222: =VLOOKUP($U$202&$U222,GTYF!$C:$AP,AF$201,FALSE) -> 0 | AG222: =VLOOKUP($U$202&$U222,GTYF!$C:$AP,AG$201,FALSE) -> 0 | AH222: =VLOOKUP($U$202&$U222,GTYF!$C:$AP,AH$201,FALSE) -> 0 | AI222: =VLOOKUP($U$202&$U222,GTYF!$C:$AP,AI$201,FALSE) -> 0 | AJ222: =VLOOKUP($U$202&$U222,GTYF!$C:$AP,AJ$201,FALSE) -> 0 | AK222: =VLOOKUP($U$202&$U222,GTYF!$C:$AP,AK$201,FALSE) -> 0 | AL222: =VLOOKUP($U$202&$U222,GTYF!$C:$AP,AL$201,FALSE) -> 0 | AM222: =VLOOKUP($U$202&$U222,GTYF!$C:$AP,AM$201,FALSE) -> 0 | AN222: =VLOOKUP($U$202&$U222,GTYF!$C:$AP,AN$201,FALSE) -> 0 | AO222: =VLOOKUP($U$202&$U222,GTYF!$C:$AP,AO$201,FALSE) -> 0 | AP222: =VLOOKUP($U$202&$U222,GTYF!$C:$AP,AP$201,FALSE) -> 0 | AQ222: =VLOOKUP($U$202&$U222,GTYF!$C:$AP,AQ$201,FALSE) -> 0 | AR222: =VLOOKUP($U$202&$U222,GTYF!$C:$AP,AR$201,FALSE) -> 0 | AS222: =VLOOKUP($U$202&$U222,GTYF!$C:$AP,AS$201,FALSE) -> 0 | AT222: =VLOOKUP($U$202&$U222,GTYF!$C:$AP,AT$201,FALSE) -> 0 | AU222: =VLOOKUP($U$202&$U222,GTYF!$C:$AP,AU$201,FALSE) -> 0 | AV222: =VLOOKUP($U$202&$U222,GTYF!$C:$AP,AV$201,FALSE) -> 0 | AW222: =VLOOKUP($U$202&$U222,GTYF!$C:$AP,AW$201,FALSE) -> 0 | AX222: =VLOOKUP($U$202&$U222,GTYF!$C:$AP,AX$201,FALSE) -> 0 | AY222: =VLOOKUP($U$202&$U222,GTYF!$C:$AP,AY$201,FALSE) -> 0 | AZ222: =VLOOKUP($U$202&$U222,GTYF!$C:$AP,AZ$201,FALSE) -> 0
S223: Figure 10a | T223: Résineux à feuillus | U223: (FCTYF_RF) | V223: =VLOOKUP($U$202&$U223,GTYF!$C:$AP,V$201,FALSE) -> 33362.7 | W223: =VLOOKUP($U$202&$U223,GTYF!$C:$AP,W$201,FALSE) -> 30394.06 | X223: =VLOOKUP($U$202&$U223,GTYF!$C:$AP,X$201,FALSE) -> 30179.11 | Y223: =VLOOKUP($U$202&$U223,GTYF!$C:$AP,Y$201,FALSE) -> 29860.83 | Z223: =VLOOKUP($U$202&$U223,GTYF!$C:$AP,Z$201,FALSE) -> 29548.86 | AA223: =VLOOKUP($U$202&$U223,GTYF!$C:$AP,AA$201,FALSE) -> 29337.06 | AB223: =VLOOKUP($U$202&$U223,GTYF!$C:$AP,AB$201,FALSE) -> 29186.57 | AC223: =VLOOKUP($U$202&$U223,GTYF!$C:$AP,AC$201,FALSE) -> 29182.53 | AD223: =VLOOKUP($U$202&$U223,GTYF!$C:$AP,AD$201,FALSE) -> 29002.42 | AE223: =VLOOKUP($U$202&$U223,GTYF!$C:$AP,AE$201,FALSE) -> 30325.28 | AF223: =VLOOKUP($U$202&$U223,GTYF!$C:$AP,AF$201,FALSE) -> 31362.96 | AG223: =VLOOKUP($U$202&$U223,GTYF!$C:$AP,AG$201,FALSE) -> 32406.54 | AH223: =VLOOKUP($U$202&$U223,GTYF!$C:$AP,AH$201,FALSE) -> 33860.24 | AI223: =VLOOKUP($U$202&$U223,GTYF!$C:$AP,AI$201,FALSE) -> 34324.01 | AJ223: =VLOOKUP($U$202&$U223,GTYF!$C:$AP,AJ$201,FALSE) -> 36154.35 | AK223: =VLOOKUP($U$202&$U223,GTYF!$C:$AP,AK$201,FALSE) -> 36829.37 | AL223: =VLOOKUP($U$202&$U223,GTYF!$C:$AP,AL$201,FALSE) -> 37576.6 | AM223: =VLOOKUP($U$202&$U223,GTYF!$C:$AP,AM$201,FALSE) -> 37395.48 | AN223: =VLOOKUP($U$202&$U223,GTYF!$C:$AP,AN$201,FALSE) -> 37057.34 | AO223: =VLOOKUP($U$202&$U223,GTYF!$C:$AP,AO$201,FALSE) -> 36904.59 | AP223: =VLOOKUP($U$202&$U223,GTYF!$C:$AP,AP$201,FALSE) -> 36795.23 | AQ223: =VLOOKUP($U$202&$U223,GTYF!$C:$AP,AQ$201,FALSE) -> 36803.53 | AR223: =VLOOKUP($U$202&$U223,GTYF!$C:$AP,AR$201,FALSE) -> 36708.53 | AS223: =VLOOKUP($U$202&$U223,GTYF!$C:$AP,AS$201,FALSE) -> 36751.48 | AT223: =VLOOKUP($U$202&$U223,GTYF!$C:$AP,AT$201,FALSE) -> 36818.22 | AU223: =VLOOKUP($U$202&$U223,GTYF!$C:$AP,AU$201,FALSE) -> 37871.76 | AV223: =VLOOKUP($U$202&$U223,GTYF!$C:$AP,AV$201,FALSE) -> 37776.76 | AW223: =VLOOKUP($U$202&$U223,GTYF!$C:$AP,AW$201,FALSE) -> 37681.76 | AX223: =VLOOKUP($U$202&$U223,GTYF!$C:$AP,AX$201,FALSE) -> 37586.76 | AY223: =VLOOKUP($U$202&$U223,GTYF!$C:$AP,AY$201,FALSE) -> 37415.26 | AZ223: =VLOOKUP($U$202&$U223,GTYF!$C:$AP,AZ$201,FALSE) -> 37569.33
S224: Figure 10a | T224: Sapinières | U224: (FCTYF_SAB) | V224: =VLOOKUP($U$202&$U224,GTYF!$C:$AP,V$201,FALSE) -> 6116.5 | W224: =VLOOKUP($U$202&$U224,GTYF!$C:$AP,W$201,FALSE) -> 6054.74 | X224: =VLOOKUP($U$202&$U224,GTYF!$C:$AP,X$201,FALSE) -> 6054.13 | Y224: =VLOOKUP($U$202&$U224,GTYF!$C:$AP,Y$201,FALSE) -> 6054.13 | Z224: =VLOOKUP($U$202&$U224,GTYF!$C:$AP,Z$201,FALSE) -> 6088.27 | AA224: =VLOOKUP($U$202&$U224,GTYF!$C:$AP,AA$201,FALSE) -> 6144.77 | AB224: =VLOOKUP($U$202&$U224,GTYF!$C:$AP,AB$201,FALSE) -> 6161.41 | AC224: =VLOOKUP($U$202&$U224,GTYF!$C:$AP,AC$201,FALSE) -> 6256.72 | AD224: =VLOOKUP($U$202&$U224,GTYF!$C:$AP,AD$201,FALSE) -> 6361.53 | AE224: =VLOOKUP($U$202&$U224,GTYF!$C:$AP,AE$201,FALSE) -> 6363.69 | AF224: =VLOOKUP($U$202&$U224,GTYF!$C:$AP,AF$201,FALSE) -> 6468.11 | AG224: =VLOOKUP($U$202&$U224,GTYF!$C:$AP,AG$201,FALSE) -> 6539.07 | AH224: =VLOOKUP($U$202&$U224,GTYF!$C:$AP,AH$201,FALSE) -> 6434.07 | AI224: =VLOOKUP($U$202&$U224,GTYF!$C:$AP,AI$201,FALSE) -> 6317.65 | AJ224: =VLOOKUP($U$202&$U224,GTYF!$C:$AP,AJ$201,FALSE) -> 6205.04 | AK224: =VLOOKUP($U$202&$U224,GTYF!$C:$AP,AK$201,FALSE) -> 6205.04 | AL224: =VLOOKUP($U$202&$U224,GTYF!$C:$AP,AL$201,FALSE) -> 6087.98 | AM224: =VLOOKUP($U$202&$U224,GTYF!$C:$AP,AM$201,FALSE) -> 6087.98 | AN224: =VLOOKUP($U$202&$U224,GTYF!$C:$AP,AN$201,FALSE) -> 5912.03 | AO224: =VLOOKUP($U$202&$U224,GTYF!$C:$AP,AO$201,FALSE) -> 5912.03 | AP224: =VLOOKUP($U$202&$U224,GTYF!$C:$AP,AP$201,FALSE) -> 5912.03 | AQ224: =VLOOKUP($U$202&$U224,GTYF!$C:$AP,AQ$201,FALSE) -> 5873.77 | AR224: =VLOOKUP($U$202&$U224,GTYF!$C:$AP,AR$201,FALSE) -> 5873.77 | AS224: =VLOOKUP($U$202&$U224,GTYF!$C:$AP,AS$201,FALSE) -> 5873.77 | AT224: =VLOOKUP($U$202&$U224,GTYF!$C:$AP,AT$201,FALSE) -> 5873.77 | AU224: =VLOOKUP($U$202&$U224,GTYF!$C:$AP,AU$201,FALSE) -> 5873.77 | AV224: =VLOOKUP($U$202&$U224,GTYF!$C:$AP,AV$201,FALSE) -> 5873.77 | AW224: =VLOOKUP($U$202&$U224,GTYF!$C:$AP,AW$201,FALSE) -> 5873.77 | AX224: =VLOOKUP($U$202&$U224,GTYF!$C:$AP,AX$201,FALSE) -> 5873.77 | AY224: =VLOOKUP($U$202&$U224,GTYF!$C:$AP,AY$201,FALSE) -> 5873.77 | AZ224: =VLOOKUP($U$202&$U224,GTYF!$C:$AP,AZ$201,FALSE) -> 5873.77
B225: * Attention, étant donné que le graphique fait appel aux GTYF, certains TYF ne paraissent pas dans les bons types de couvert (ex: EoRx, PbFx, PuFx, ToFx) | S225: Figure 10a | T225: Cédrières | U225: (FCTYF_THO) | V225: =VLOOKUP($U$202&$U225,GTYF!$C:$AP,V$201,FALSE) -> 0 | W225: =VLOOKUP($U$202&$U225,GTYF!$C:$AP,W$201,FALSE) -> 0 | X225: =VLOOKUP($U$202&$U225,GTYF!$C:$AP,X$201,FALSE) -> 0 | Y225: =VLOOKUP($U$202&$U225,GTYF!$C:$AP,Y$201,FALSE) -> 0 | Z225: =VLOOKUP($U$202&$U225,GTYF!$C:$AP,Z$201,FALSE) -> 0 | AA225: =VLOOKUP($U$202&$U225,GTYF!$C:$AP,AA$201,FALSE) -> 0 | AB225: =VLOOKUP($U$202&$U225,GTYF!$C:$AP,AB$201,FALSE) -> 0 | AC225: =VLOOKUP($U$202&$U225,GTYF!$C:$AP,AC$201,FALSE) -> 0 | AD225: =VLOOKUP($U$202&$U225,GTYF!$C:$AP,AD$201,FALSE) -> 0 | AE225: =VLOOKUP($U$202&$U225,GTYF!$C:$AP,AE$201,FALSE) -> 0 | AF225: =VLOOKUP($U$202&$U225,GTYF!$C:$AP,AF$201,FALSE) -> 0 | AG225: =VLOOKUP($U$202&$U225,GTYF!$C:$AP,AG$201,FALSE) -> 0 | AH225: =VLOOKUP($U$202&$U225,GTYF!$C:$AP,AH$201,FALSE) -> 0 | AI225: =VLOOKUP($U$202&$U225,GTYF!$C:$AP,AI$201,FALSE) -> 0 | AJ225: =VLOOKUP($U$202&$U225,GTYF!$C:$AP,AJ$201,FALSE) -> 0 | AK225: =VLOOKUP($U$202&$U225,GTYF!$C:$AP,AK$201,FALSE) -> 0 | AL225: =VLOOKUP($U$202&$U225,GTYF!$C:$AP,AL$201,FALSE) -> 0 | AM225: =VLOOKUP($U$202&$U225,GTYF!$C:$AP,AM$201,FALSE) -> 0 | AN225: =VLOOKUP($U$202&$U225,GTYF!$C:$AP,AN$201,FALSE) -> 0 | AO225: =VLOOKUP($U$202&$U225,GTYF!$C:$AP,AO$201,FALSE) -> 0 | AP225: =VLOOKUP($U$202&$U225,GTYF!$C:$AP,AP$201,FALSE) -> 0 | AQ225: =VLOOKUP($U$202&$U225,GTYF!$C:$AP,AQ$201,FALSE) -> 0 | AR225: =VLOOKUP($U$202&$U225,GTYF!$C:$AP,AR$201,FALSE) -> 0 | AS225: =VLOOKUP($U$202&$U225,GTYF!$C:$AP,AS$201,FALSE) -> 0 | AT225: =VLOOKUP($U$202&$U225,GTYF!$C:$AP,AT$201,FALSE) -> 0 | AU225: =VLOOKUP($U$202&$U225,GTYF!$C:$AP,AU$201,FALSE) -> 0 | AV225: =VLOOKUP($U$202&$U225,GTYF!$C:$AP,AV$201,FALSE) -> 0 | AW225: =VLOOKUP($U$202&$U225,GTYF!$C:$AP,AW$201,FALSE) -> 0 | AX225: =VLOOKUP($U$202&$U225,GTYF!$C:$AP,AX$201,FALSE) -> 0 | AY225: =VLOOKUP($U$202&$U225,GTYF!$C:$AP,AY$201,FALSE) -> 0 | AZ225: =VLOOKUP($U$202&$U225,GTYF!$C:$AP,AZ$201,FALSE) -> 0
U228: Colonne | V228: 6 | W228: 7 | X228: 8 | Y228: 9 | Z228: 10 | AA228: 11 | AB228: 12 | AC228: 13 | AD228: 14 | AE228: 15 | AF228: 16 | AG228: 17 | AH228: 18 | AI228: 19 | AJ228: 20 | AK228: 21 | AL228: 22 | AM228: 23 | AN228: 24 | AO228: 25 | AP228: 26 | AQ228: 27 | AR228: 28 | AS228: 29 | AT228: 30 | AU228: 31 | AV228: 32 | AW228: 33 | AX228: 34 | AY228: 35 | AZ228: 36
B229: Figure 10c Évolution des superficies de hêtraie et d'érablière à hêtre | U229: Période | V229: P0 | W229: P1 | X229: P2 | Y229: P3 | Z229: P4 | AA229: P5 | AB229: P6 | AC229: P7 | AD229: P8 | AE229: P9 | AF229: P10 | AG229: P11 | AH229: P12 | AI229: P13 | AJ229: P14 | AK229: P15 | AL229: P16 | AM229: P17 | AN229: P18 | AO229: P19 | AP229: P20 | AQ229: P21 | AR229: P22 | AS229: P23 | AT229: P24 | AU229: P25 | AV229: P26 | AW229: P27 | AX229: P28 | AY229: P29 | AZ229: P30
U230: Axe des "X" Fin de période | V230: 2018 | W230: 2023 | X230: 2028 | Y230: 2033 | Z230: 2038 | AA230: 2043 | AB230: 2048 | AC230: 2053 | AD230: 2058 | AE230: 2063 | AF230: 2068 | AG230: 2073 | AH230: 2078 | AI230: 2083 | AJ230: 2088 | AK230: 2093 | AL230: 2098 | AM230: 2103 | AN230: 2108 | AO230: 2113 | AP230: 2118 | AQ230: 2123 | AR230: 2128 | AS230: 2133 | AT230: 2138 | AU230: 2143 | AV230: 2148 | AW230: 2153 | AX230: 2158 | AY230: 2163 | AZ230: 2168
S231: =LEFT(B$229,10) -> Figure 10c | T231: Hêtraie | U231: OSUPESHG_FX | V231: =VLOOKUP($U231,Output!$C:$AQ,V$228,FALSE) ->  | W231: =VLOOKUP($U231,Output!$C:$AQ,W$228,FALSE) ->  | X231: =VLOOKUP($U231,Output!$C:$AQ,X$228,FALSE) ->  | Y231: =VLOOKUP($U231,Output!$C:$AQ,Y$228,FALSE) ->  | Z231: =VLOOKUP($U231,Output!$C:$AQ,Z$228,FALSE) ->  | AA231: =VLOOKUP($U231,Output!$C:$AQ,AA$228,FALSE) ->  | AB231: =VLOOKUP($U231,Output!$C:$AQ,AB$228,FALSE) ->  | AC231: =VLOOKUP($U231,Output!$C:$AQ,AC$228,FALSE) ->  | AD231: =VLOOKUP($U231,Output!$C:$AQ,AD$228,FALSE) ->  | AE231: =VLOOKUP($U231,Output!$C:$AQ,AE$228,FALSE) ->  | AF231: =VLOOKUP($U231,Output!$C:$AQ,AF$228,FALSE) ->  | AG231: =VLOOKUP($U231,Output!$C:$AQ,AG$228,FALSE) ->  | AH231: =VLOOKUP($U231,Output!$C:$AQ,AH$228,FALSE) ->  | AI231: =VLOOKUP($U231,Output!$C:$AQ,AI$228,FALSE) ->  | AJ231: =VLOOKUP($U231,Output!$C:$AQ,AJ$228,FALSE) ->  | AK231: =VLOOKUP($U231,Output!$C:$AQ,AK$228,FALSE) ->  | AL231: =VLOOKUP($U231,Output!$C:$AQ,AL$228,FALSE) ->  | AM231: =VLOOKUP($U231,Output!$C:$AQ,AM$228,FALSE) ->  | AN231: =VLOOKUP($U231,Output!$C:$AQ,AN$228,FALSE) ->  | AO231: =VLOOKUP($U231,Output!$C:$AQ,AO$228,FALSE) ->  | AP231: =VLOOKUP($U231,Output!$C:$AQ,AP$228,FALSE) ->  | AQ231: =VLOOKUP($U231,Output!$C:$AQ,AQ$228,FALSE) ->  | AR231: =VLOOKUP($U231,Output!$C:$AQ,AR$228,FALSE) ->  | AS231: =VLOOKUP($U231,Output!$C:$AQ,AS$228,FALSE) ->  | AT231: =VLOOKUP($U231,Output!$C:$AQ,AT$228,FALSE) ->  | AU231: =VLOOKUP($U231,Output!$C:$AQ,AU$228,FALSE) ->  | AV231: =VLOOKUP($U231,Output!$C:$AQ,AV$228,FALSE) ->  | AW231: =VLOOKUP($U231,Output!$C:$AQ,AW$228,FALSE) ->  | AX231: =VLOOKUP($U231,Output!$C:$AQ,AX$228,FALSE) ->  | AY231: =VLOOKUP($U231,Output!$C:$AQ,AY$228,FALSE) ->  | AZ231: =VLOOKUP($U231,Output!$C:$AQ,AZ$228,FALSE) -> 
S232: =LEFT(B$229,10) -> Figure 10c | T232: Érablière à hêtre | U232: OSUPESHG | V232: =VLOOKUP($U232,Output!$C:$AQ,V$228,FALSE) ->  | W232: =VLOOKUP($U232,Output!$C:$AQ,W$228,FALSE) ->  | X232: =VLOOKUP($U232,Output!$C:$AQ,X$228,FALSE) ->  | Y232: =VLOOKUP($U232,Output!$C:$AQ,Y$228,FALSE) ->  | Z232: =VLOOKUP($U232,Output!$C:$AQ,Z$228,FALSE) ->  | AA232: =VLOOKUP($U232,Output!$C:$AQ,AA$228,FALSE) ->  | AB232: =VLOOKUP($U232,Output!$C:$AQ,AB$228,FALSE) ->  | AC232: =VLOOKUP($U232,Output!$C:$AQ,AC$228,FALSE) ->  | AD232: =VLOOKUP($U232,Output!$C:$AQ,AD$228,FALSE) ->  | AE232: =VLOOKUP($U232,Output!$C:$AQ,AE$228,FALSE) ->  | AF232: =VLOOKUP($U232,Output!$C:$AQ,AF$228,FALSE) ->  | AG232: =VLOOKUP($U232,Output!$C:$AQ,AG$228,FALSE) ->  | AH232: =VLOOKUP($U232,Output!$C:$AQ,AH$228,FALSE) ->  | AI232: =VLOOKUP($U232,Output!$C:$AQ,AI$228,FALSE) ->  | AJ232: =VLOOKUP($U232,Output!$C:$AQ,AJ$228,FALSE) ->  | AK232: =VLOOKUP($U232,Output!$C:$AQ,AK$228,FALSE) ->  | AL232: =VLOOKUP($U232,Output!$C:$AQ,AL$228,FALSE) ->  | AM232: =VLOOKUP($U232,Output!$C:$AQ,AM$228,FALSE) ->  | AN232: =VLOOKUP($U232,Output!$C:$AQ,AN$228,FALSE) ->  | AO232: =VLOOKUP($U232,Output!$C:$AQ,AO$228,FALSE) ->  | AP232: =VLOOKUP($U232,Output!$C:$AQ,AP$228,FALSE) ->  | AQ232: =VLOOKUP($U232,Output!$C:$AQ,AQ$228,FALSE) ->  | AR232: =VLOOKUP($U232,Output!$C:$AQ,AR$228,FALSE) ->  | AS232: =VLOOKUP($U232,Output!$C:$AQ,AS$228,FALSE) ->  | AT232: =VLOOKUP($U232,Output!$C:$AQ,AT$228,FALSE) ->  | AU232: =VLOOKUP($U232,Output!$C:$AQ,AU$228,FALSE) ->  | AV232: =VLOOKUP($U232,Output!$C:$AQ,AV$228,FALSE) ->  | AW232: =VLOOKUP($U232,Output!$C:$AQ,AW$228,FALSE) ->  | AX232: =VLOOKUP($U232,Output!$C:$AQ,AX$228,FALSE) ->  | AY232: =VLOOKUP($U232,Output!$C:$AQ,AY$228,FALSE) ->  | AZ232: =VLOOKUP($U232,Output!$C:$AQ,AZ$228,FALSE) -> 
S233: =LEFT(B$229,10) -> Figure 10c | T233: Total | U233: Total | V233: =SUM(V231:V232) ->  | W233: =SUM(W231:W232) -> 
B255: Figure 11b Évolution du volume de sapin et d'épinettes sur pied dans la composante SEPM
U262: Colonne | V262: 6 | W262: 7 | X262: 8 | Y262: 9 | Z262: 10 | AA262: 11 | AB262: 12 | AC262: 13 | AD262: 14 | AE262: 15 | AF262: 16 | AG262: 17 | AH262: 18 | AI262: 19 | AJ262: 20 | AK262: 21 | AL262: 22 | AM262: 23 | AN262: 24 | AO262: 25 | AP262: 26 | AQ262: 27 | AR262: 28 | AS262: 29 | AT262: 30 | AU262: 31 | AV262: 32 | AW262: 33 | AX262: 34 | AY262: 35 | AZ262: 36
U263: Axe des "X" Fin de période | V263: 2018 | W263: 2023 | X263: 2028 | Y263: 2033 | Z263: 2038 | AA263: 2043 | AB263: 2048 | AC263: 2053 | AD263: 2058 | AE263: 2063 | AF263: 2068 | AG263: 2073 | AH263: 2078 | AI263: 2083 | AJ263: 2088 | AK263: 2093 | AL263: 2098 | AM263: 2103 | AN263: 2108 | AO263: 2113 | AP263: 2118 | AQ263: 2123 | AR263: 2128 | AS263: 2133 | AT263: 2138 | AU263: 2143 | AV263: 2148 | AW263: 2153 | AX263: 2158 | AY263: 2163 | AZ263: 2168
S264: =LEFT(B$255,10) -> Figure 11b | U264: Période | V264: P0 | W264: P1 | X264: P2 | Y264: P3 | Z264: P4 | AA264: P5 | AB264: P6 | AC264: P7 | AD264: P8 | AE264: P9 | AF264: P10 | AG264: P11 | AH264: P12 | AI264: P13 | AJ264: P14 | AK264: P15 | AL264: P16 | AM264: P17 | AN264: P18 | AO264: P19 | AP264: P20 | AQ264: P21 | AR264: P22 | AS264: P23 | AT264: P24 | AU264: P25 | AV264: P26 | AW264: P27 | AX264: P28 | AY264: P29 | AZ264: P30
S265: Figure 11b | T265: Légende | Y265: PERIOD3 | Z265: PERIOD4 | AA265: PERIOD5 | AB265: PERIOD6 | AC265: PERIOD7 | AD265: PERIOD8 | AE265: PERIOD9 | AF265: PERIOD10 | AG265: PERIOD11 | AH265: PERIOD12 | AI265: PERIOD13 | AJ265: PERIOD14 | AK265: PERIOD15 | AL265: PERIOD16 | AM265: PERIOD17 | AN265: PERIOD18 | AO265: PERIOD19 | AP265: PERIOD20 | AQ265: PERIOD21 | AR265: PERIOD22 | AS265: PERIOD23 | AT265: PERIOD24 | AU265: PERIOD25 | AV265: PERIOD26 | AW265: PERIOD27 | AX265: PERIOD28 | AY265: PERIOD29 | AZ265: PERIOD30
S266: Figure 11b | T266: Volume Sapin | U266: OVOLSABPIEDINC(FCTYF_SEPM) | V266: =VLOOKUP($U266,GTYF!$C:$AL,Figures!V$262,FALSE) -> 815996.66 | W266: =VLOOKUP($U266,GTYF!$C:$AL,Figures!W$262,FALSE) -> 712106.82 | X266: =VLOOKUP($U266,GTYF!$C:$AL,Figures!X$262,FALSE) -> 705782.16 | Y266: =VLOOKUP($U266,GTYF!$C:$AL,Figures!Y$262,FALSE) -> 714806.53 | Z266: =VLOOKUP($U266,GTYF!$C:$AL,Figures!Z$262,FALSE) -> 667320.64 | AA266: =VLOOKUP($U266,GTYF!$C:$AL,Figures!AA$262,FALSE) -> 634977.98 | AB266: =VLOOKUP($U266,GTYF!$C:$AL,Figures!AB$262,FALSE) -> 444755.52 | AC266: =VLOOKUP($U266,GTYF!$C:$AL,Figures!AC$262,FALSE) -> 462754.49 | AD266: =VLOOKUP($U266,GTYF!$C:$AL,Figures!AD$262,FALSE) -> 464645.56 | AE266: =VLOOKUP($U266,GTYF!$C:$AL,Figures!AE$262,FALSE) -> 515132.28 | AF266: =VLOOKUP($U266,GTYF!$C:$AL,Figures!AF$262,FALSE) -> 558968.38 | AG266: =VLOOKUP($U266,GTYF!$C:$AL,Figures!AG$262,FALSE) -> 623473.78 | AH266: =VLOOKUP($U266,GTYF!$C:$AL,Figures!AH$262,FALSE) -> 555342.61 | AI266: =VLOOKUP($U266,GTYF!$C:$AL,Figures!AI$262,FALSE) -> 599204.51 | AJ266: =VLOOKUP($U266,GTYF!$C:$AL,Figures!AJ$262,FALSE) -> 589630.44 | AK266: =VLOOKUP($U266,GTYF!$C:$AL,Figures!AK$262,FALSE) -> 655466.45 | AL266: =VLOOKUP($U266,GTYF!$C:$AL,Figures!AL$262,FALSE) -> 569252.73 | AM266: =VLOOKUP($U266,GTYF!$C:$AL,Figures!AM$262,FALSE) -> 621904.31 | AN266: =VLOOKUP($U266,GTYF!$C:$AL,Figures!AN$262,FALSE) -> 427121.12 | AO266: =VLOOKUP($U266,GTYF!$C:$AL,Figures!AO$262,FALSE) -> 463739.51 | AP266: =VLOOKUP($U266,GTYF!$C:$AL,Figures!AP$262,FALSE) -> 454973 | AQ266: =VLOOKUP($U266,GTYF!$C:$AL,Figures!AQ$262,FALSE) -> 491404.06 | AR266: =VLOOKUP($U266,GTYF!$C:$AL,Figures!AR$262,FALSE) -> 518945.91 | AS266: =VLOOKUP($U266,GTYF!$C:$AL,Figures!AS$262,FALSE) -> 555064.6 | AT266: =VLOOKUP($U266,GTYF!$C:$AL,Figures!AT$262,FALSE) -> 499463.38 | AU266: =VLOOKUP($U266,GTYF!$C:$AL,Figures!AU$262,FALSE) -> 498083.8 | AV266: =VLOOKUP($U266,GTYF!$C:$AL,Figures!AV$262,FALSE) -> 547780.52 | AW266: =VLOOKUP($U266,GTYF!$C:$AL,Figures!AW$262,FALSE) -> 500868.6 | AX266: =VLOOKUP($U266,GTYF!$C:$AL,Figures!AX$262,FALSE) -> 491636.86 | AY266: =VLOOKUP($U266,GTYF!$C:$AL,Figures!AY$262,FALSE) -> 524424.59 | AZ266: =VLOOKUP($U266,GTYF!$C:$AL,Figures!AZ$262,FALSE) -> 365857.83
S267: Figure 11b | T267: Volume Épinettes | U267: OVOLGEPXPIEDINC(FCTYF_SEPM) | V267: =VLOOKUP($U267,GTYF!$C:$AL,Figures!V$262,FALSE) -> 11412482.17 | W267: =VLOOKUP($U267,GTYF!$C:$AL,Figures!W$262,FALSE) -> 10886043.38 | X267: =VLOOKUP($U267,GTYF!$C:$AL,Figures!X$262,FALSE) -> 10442538.29 | Y267: =VLOOKUP($U267,GTYF!$C:$AL,Figures!Y$262,FALSE) -> 10182633.66 | Z267: =VLOOKUP($U267,GTYF!$C:$AL,Figures!Z$262,FALSE) -> 10398544.63 | AA267: =VLOOKUP($U267,GTYF!$C:$AL,Figures!AA$262,FALSE) -> 10482675.4 | AB267: =VLOOKUP($U267,GTYF!$C:$AL,Figures!AB$262,FALSE) -> 10727554.6 | AC267: =VLOOKUP($U267,GTYF!$C:$AL,Figures!AC$262,FALSE) -> 10334362.38 | AD267: =VLOOKUP($U267,GTYF!$C:$AL,Figures!AD$262,FALSE) -> 10341340.71 | AE267: =VLOOKUP($U267,GTYF!$C:$AL,Figures!AE$262,FALSE) -> 10598668.18 | AF267: =VLOOKUP($U267,GTYF!$C:$AL,Figures!AF$262,FALSE) -> 10529902.69 | AG267: =VLOOKUP($U267,GTYF!$C:$AL,Figures!AG$262,FALSE) -> 10495579.58 | AH267: =VLOOKUP($U267,GTYF!$C:$AL,Figures!AH$262,FALSE) -> 10193068.94 | AI267: =VLOOKUP($U267,GTYF!$C:$AL,Figures!AI$262,FALSE) -> 10179998.93 | AJ267: =VLOOKUP($U267,GTYF!$C:$AL,Figures!AJ$262,FALSE) -> 10035901.27 | AK267: =VLOOKUP($U267,GTYF!$C:$AL,Figures!AK$262,FALSE) -> 10071422.7 | AL267: =VLOOKUP($U267,GTYF!$C:$AL,Figures!AL$262,FALSE) -> 10154455.52 | AM267: =VLOOKUP($U267,GTYF!$C:$AL,Figures!AM$262,FALSE) -> 10470076.74 | AN267: =VLOOKUP($U267,GTYF!$C:$AL,Figures!AN$262,FALSE) -> 10806179.42 | AO267: =VLOOKUP($U267,GTYF!$C:$AL,Figures!AO$262,FALSE) -> 11008984.46 | AP267: =VLOOKUP($U267,GTYF!$C:$AL,Figures!AP$262,FALSE) -> 10454859.75 | AQ267: =VLOOKUP($U267,GTYF!$C:$AL,Figures!AQ$262,FALSE) -> 10381350.34 | AR267: =VLOOKUP($U267,GTYF!$C:$AL,Figures!AR$262,FALSE) -> 10259843.35 | AS267: =VLOOKUP($U267,GTYF!$C:$AL,Figures!AS$262,FALSE) -> 9977950.81 | AT267: =VLOOKUP($U267,GTYF!$C:$AL,Figures!AT$262,FALSE) -> 9637836.93 | AU267: =VLOOKUP($U267,GTYF!$C:$AL,Figures!AU$262,FALSE) -> 9239878.05 | AV267: =VLOOKUP($U267,GTYF!$C:$AL,Figures!AV$262,FALSE) -> 9040112.46 | AW267: =VLOOKUP($U267,GTYF!$C:$AL,Figures!AW$262,FALSE) -> 9731377.5 | AX267: =VLOOKUP($U267,GTYF!$C:$AL,Figures!AX$262,FALSE) -> 9281592.89 | AY267: =VLOOKUP($U267,GTYF!$C:$AL,Figures!AY$262,FALSE) -> 9595150.34 | AZ267: =VLOOKUP($U267,GTYF!$C:$AL,Figures!AZ$262,FALSE) -> 9932673.84
S268: Figure 11b
S269: Figure 11b | T269: SEPM sur pied | U269: OVOLGSEPMPIEDINC(FCTYF_SEPM) | V269: =VLOOKUP($U269,GTYF!$C:$AL,Figures!V$262,FALSE) -> 15044606.9 | W269: =VLOOKUP($U269,GTYF!$C:$AL,Figures!W$262,FALSE) -> 14631325.32 | X269: =VLOOKUP($U269,GTYF!$C:$AL,Figures!X$262,FALSE) -> 14352481.11 | Y269: =VLOOKUP($U269,GTYF!$C:$AL,Figures!Y$262,FALSE) -> 14262294.39 | Z269: =VLOOKUP($U269,GTYF!$C:$AL,Figures!Z$262,FALSE) -> 14364813.91 | AA269: =VLOOKUP($U269,GTYF!$C:$AL,Figures!AA$262,FALSE) -> 14440257.87 | AB269: =VLOOKUP($U269,GTYF!$C:$AL,Figures!AB$262,FALSE) -> 14579500.92 | AC269: =VLOOKUP($U269,GTYF!$C:$AL,Figures!AC$262,FALSE) -> 14615597.75 | AD269: =VLOOKUP($U269,GTYF!$C:$AL,Figures!AD$262,FALSE) -> 14628817.53 | AE269: =VLOOKUP($U269,GTYF!$C:$AL,Figures!AE$262,FALSE) -> 14823804.97 | AF269: =VLOOKUP($U269,GTYF!$C:$AL,Figures!AF$262,FALSE) -> 14895340.16 | AG269: =VLOOKUP($U269,GTYF!$C:$AL,Figures!AG$262,FALSE) -> 15250005.32 | AH269: =VLOOKUP($U269,GTYF!$C:$AL,Figures!AH$262,FALSE) -> 15328675.22 | AI269: =VLOOKUP($U269,GTYF!$C:$AL,Figures!AI$262,FALSE) -> 15524102.84 | AJ269: =VLOOKUP($U269,GTYF!$C:$AL,Figures!AJ$262,FALSE) -> 15612385.75 | AK269: =VLOOKUP($U269,GTYF!$C:$AL,Figures!AK$262,FALSE) -> 15790333.67 | AL269: =VLOOKUP($U269,GTYF!$C:$AL,Figures!AL$262,FALSE) -> 15773492.85 | AM269: =VLOOKUP($U269,GTYF!$C:$AL,Figures!AM$262,FALSE) -> 15717902.84 | AN269: =VLOOKUP($U269,GTYF!$C:$AL,Figures!AN$262,FALSE) -> 15701070.38 | AO269: =VLOOKUP($U269,GTYF!$C:$AL,Figures!AO$262,FALSE) -> 15629335.07 | AP269: =VLOOKUP($U269,GTYF!$C:$AL,Figures!AP$262,FALSE) -> 15432226.27 | AQ269: =VLOOKUP($U269,GTYF!$C:$AL,Figures!AQ$262,FALSE) -> 15463901.44 | AR269: =VLOOKUP($U269,GTYF!$C:$AL,Figures!AR$262,FALSE) -> 15451735.98 | AS269: =VLOOKUP($U269,GTYF!$C:$AL,Figures!AS$262,FALSE) -> 15527964.26 | AT269: =VLOOKUP($U269,GTYF!$C:$AL,Figures!AT$262,FALSE) -> 15577374.85 | AU269: =VLOOKUP($U269,GTYF!$C:$AL,Figures!AU$262,FALSE) -> 15643442.97 | AV269: =VLOOKUP($U269,GTYF!$C:$AL,Figures!AV$262,FALSE) -> 15704352.41 | AW269: =VLOOKUP($U269,GTYF!$C:$AL,Figures!AW$262,FALSE) -> 15731201.19 | AX269: =VLOOKUP($U269,GTYF!$C:$AL,Figures!AX$262,FALSE) -> 15607786.96 | AY269: =VLOOKUP($U269,GTYF!$C:$AL,Figures!AY$262,FALSE) -> 15603391.87 | AZ269: =VLOOKUP($U269,GTYF!$C:$AL,Figures!AZ$262,FALSE) -> 15675934.3
S270: Figure 11b
S271: Figure 11b | T271: % Sapin | V271: =IF(ISERROR(V266),0,V266/V269) -> 0.05423848329 | W271: 0.04867001481 | X271: 0.04917492346 | Y271: 0.0501186212 | Z271: 0.04645522345 | AA271: 0.04397275905 | AB271: 0.03050553805 | AC271: 0.0316616876 | AD271: 0.03176234573 | AE271: 0.03475034116 | AF271: 0.03752639242 | AG271: 0.0408835123 | AH271: 0.03622900231 | AI271: 0.03859833423 | AJ271: 0.03776683778 | AK271: 0.04151061426 | AL271: 0.03608919948 | AM271: 0.03956662134 | AN271: 0.02720331224 | AO271: 0.02967109656 | AP271: 0.02948200681 | AQ271: 0.0317774956 | AR271: 0.03358495839 | AS271: 0.03574612813 | AT271: 0.03206338583 | AU271: 0.03183978111 | AV271: 0.0348808092 | AW271: 0.03183918341 | AX271: 0.03149945993 | AY271: 0.03360965323 | AZ271: 0.02333882134
S272: Figure 11b | T272: % Épinettes | V272: =IF(ISERROR(V267),0,V267/V269) -> 0.7585762955 | W272: =IF(ISERROR(W267),0,W267/W269) -> 0.7440230561 | X272: 0.7275772189 | Y272: 0.7139548085 | Z272: 0.7238899644 | AA272: 0.7259340861 | AB272: 0.7357971071 | AC272: 0.7070776411 | AD272: 0.7069156949 | AE272: 0.7149762292 | AF272: 0.7069259632 | AG272: 0.6882344865 | AH272: 0.6649673761 | AI272: 0.655754412 | AJ272: 0.6428166349 | AK272: 0.6378220315 | AL272: 0.6437670855 | AM272: 0.6661242818 | AN272: 0.6882447603 | AO272: 0.7043795792 | AP272: 0.6774693143 | AQ272: 0.6713280203 | AR272: 0.6639929237 | AS272: 0.6425794549 | AT272: 0.6187073896 | AU272: 0.5906550155 | AV272: 0.5756437594 | AW272: 0.618603588 | AX272: 0.5946770618 | AY272: 0.6149400348 | AZ272: 0.633625636
S273: Figure 11b | T273: % Volume autre | V273: =1-(V272+V271) -> 0.1871852212 | W273: 0.207306929 | X273: 0.2232478577 | Y273: 0.2359265703 | Z273: 0.2296548121 | AA273: 0.2300931548 | AB273: 0.2336973548 | AC273: 0.2612606713 | AD273: 0.2613219594 | AE273: 0.2502734296 | AF273: 0.2555476444 | AG273: 0.2708820012 | AH273: 0.2988036216 | AI273: 0.3056472538 | AJ273: 0.3194165274 | AK273: 0.3206673542 | AL273: 0.320143715 | AM273: 0.2943090969 | AN273: 0.2845519275 | AO273: 0.2659493242 | AP273: 0.2930486788 | AQ273: 0.2968944841 | AR273: 0.3024221179 | AS273: 0.321674417 | AT273: 0.3492292246 | AU273: 0.3775052034 | AV273: 0.3894754314 | AW273: 0.3495572286 | AX273: 0.3738234783 | AY273: 0.3514503119 | AZ273: 0.3430355427
B278: Figure 14 Indicateur de productivité
... 127 more rows

Sheet UTA
M1: Jeune forêt | R1: Niveau d'altération des vieilles forêts | W1: Niveau d'altération combiné | AA1: Info à récupérer par le SSP Niveau d'altération des vieilles forêts
A2: Inscrire la liste des numéros d'UTA de l'UA: | B2: VieuxAlerte (%) | C2: VieuxAccept (%) | D2: RegeAlerte (%) | E2: RegeAccept (%) | G2: VieuxAlerte (ha) | H2: VieuxAccept (ha) | I2: RegeAlerte (ha) | J2: RegeAccept (ha) | K2: SupUTA | M2: OSUPJEUNEREGECO PERIOD1 (%) | N2: État Jeune 2023 | O2: OSUPJEUNEREGECO PERIOD6 (%) | P2: État Jeune 2048 | R2: OSUPVIEUXTOTREGECO PERIOD1 (%) | S2: État Vielle 2023 | T2: OSUPVIEUXTOTREGECO PERIOD6 (%) | U2: État Vielle 2048 | W2: UTA | X2: 2023 | Y2: 2048 | AA2: UA | AB2: UTA | AC2: 2023 | AD2: 2048 | AE2: Mode de répartition spatiale | AP2: Mode de répartition spatiale
A3: UTA1 | B3: =ROUND(G3/$K3,3) -> 0.147 | C3: =ROUND(H3/$K3,3) -> 0.245 | D3: =ROUND(I3/$K3,3) -> 0.35 | E3: =ROUND(J3/$K3,3) -> 0.25 | G3: =VLOOKUP(CONCATENATE("OSUPVIEUXALERTEREGECO_"&A3),Output!$C:$AQ,6,FALSE) -> 26154.55 | H3: =VLOOKUP(CONCATENATE("OSUPVIEUXACCEPTREGECO_"&A3),Output!$C:$AQ,6,FALSE) -> 43590.91 | I3: =VLOOKUP(CONCATENATE("OSUPJEUNEALERTEREGECO_"&A3),Output!$C:$AQ,6,FALSE) -> 62272.73 | J3: =VLOOKUP(CONCATENATE("OSUPJEUNEACCEPTREGECO_"&A3),Output!$C:$AQ,6,FALSE) -> 44480.53 | K3: =VLOOKUP(CONCATENATE("OSUPREGECO_"&A3),Output!$C:$AQ,6,FALSE) -> 177922.1 | M3: =ROUND(VLOOKUP("OSUPJEUNEREGECO_"&A3,Output!$C:$AQ,7,FALSE)/VLOOKUP("OSUPREGECO_"&A3,Output!$C:$AQ,6,FALSE),3) -> 0.096 | N3: =IF(M3<=$E3,"Faible",IF(M3<$D3,"Modéré","Supérieur")) -> Faible | O3: =ROUND(VLOOKUP("OSUPJEUNEREGECO_"&$A3,Output!$C:$AQ,12,FALSE)/VLOOKUP("OSUPREGECO_"&A3,Output!$C:$AQ,6,FALSE),3) -> 0.111 | P3: =IF(O3<=$E3,"Faible",IF(O3<$D3,"Modéré","Supérieur")) -> Faible | R3: =ROUND(VLOOKUP("OSUPVIEUXTOTREGECO_"&$A3,Output!$C:$AQ,7,FALSE)/VLOOKUP("OSUPREGECO_"&A3,Output!$C:$AQ,6,FALSE),3) -> 0.363 | S3: =IF(R3<$B3,"Supérieur",IF(R3<$C3,"Modéré","Faible")) -> Faible | T3: =ROUND(VLOOKUP("OSUPVIEUXTOTREGECO_"&$A3,Output!$C:$AQ,12,FALSE)/VLOOKUP("OSUPREGECO_"&A3,Output!$C:$AQ,6,FALSE),3) -> 0.373 | U3: =IF(T3<$B3,"Supérieur",IF(T3<$C3,"Modéré","Faible")) -> Faible | W3: =A3 -> UTA1 | X3: =IF(S3>N3,S3,N3) -> Faible | Y3: =IF(U3>P3,U3,P3) -> Faible | AA3: =Tableaux!$O$33 -> 02664 | AB3: =W3 -> UTA1 | AC3: =S3 -> Faible | AD3: =U3 -> Faible | AE3: CMO entente Cris | AG3: Note: "Élevé" a été renommé "Supérieur" pour le bon fonctionnement des formules. | AP3: COS sapinière
A4: UTA2 | B4: =ROUND(G4/$K4,3) -> 0.147 | C4: 0.245 | D4: 0.35 | E4: 0.25 | G4: =VLOOKUP(CONCATENATE("OSUPVIEUXALERTEREGECO_"&A4),Output!$C:$AQ,6,FALSE) -> 15118.55 | H4: =VLOOKUP(CONCATENATE("OSUPVIEUXACCEPTREGECO_"&A4),Output!$C:$AQ,6,FALSE) -> 25197.59 | I4: =VLOOKUP(CONCATENATE("OSUPJEUNEALERTEREGECO_"&A4),Output!$C:$AQ,6,FALSE) -> 35996.55 | J4: =VLOOKUP(CONCATENATE("OSUPJEUNEACCEPTREGECO_"&A4),Output!$C:$AQ,6,FALSE) -> 25711.82 | K4: =VLOOKUP(CONCATENATE("OSUPREGECO_"&A4),Output!$C:$AQ,6,FALSE) -> 102847.3 | M4: =ROUND(VLOOKUP("OSUPJEUNEREGECO_"&A4,Output!$C:$AQ,7,FALSE)/VLOOKUP("OSUPREGECO_"&A4,Output!$C:$AQ,6,FALSE),3) -> 0.14 | N4: =IF(M4<=$E4,"Faible",IF(M4<$D4,"Modéré","Supérieur")) -> Faible | O4: =ROUND(VLOOKUP("OSUPJEUNEREGECO_"&$A4,Output!$C:$AQ,12,FALSE)/VLOOKUP("OSUPREGECO_"&A4,Output!$C:$AQ,6,FALSE),3) -> 0.143 | P4: =IF(O4<=$E4,"Faible",IF(O4<$D4,"Modéré","Supérieur")) -> Faible | R4: =ROUND(VLOOKUP("OSUPVIEUXTOTREGECO_"&$A4,Output!$C:$AQ,7,FALSE)/VLOOKUP("OSUPREGECO_"&A4,Output!$C:$AQ,6,FALSE),3) -> 0.367 | S4: =IF(R4<$B4,"Supérieur",IF(R4<$C4,"Modéré","Faible")) -> Faible | T4: =ROUND(VLOOKUP("OSUPVIEUXTOTREGECO_"&$A4,Output!$C:$AQ,12,FALSE)/VLOOKUP("OSUPREGECO_"&A4,Output!$C:$AQ,6,FALSE),3) -> 0.289 | U4: =IF(T4<$B4,"Supérieur",IF(T4<$C4,"Modéré","Faible")) -> Faible | W4: =A4 -> UTA2 | X4: =IF(S4>N4,S4,N4) -> Faible | Y4: =IF(U4>P4,U4,P4) -> Faible | AA4: =Tableaux!$O$33 -> 02664 | AB4: =W4 -> UTA2 | AC4: =S4 -> Faible | AD4: =U4 -> Faible | AE4: CMO entente Cris | AP4: COS pessière
A5: UTA3 | B5: 0.147 | C5: 0.245 | D5: 0.35 | E5: 0.25 | G5: =VLOOKUP(CONCATENATE("OSUPVIEUXALERTEREGECO_"&A5),Output!$C:$AQ,6,FALSE) -> 19977.18 | H5: =VLOOKUP(CONCATENATE("OSUPVIEUXACCEPTREGECO_"&A5),Output!$C:$AQ,6,FALSE) -> 33295.3 | I5: =VLOOKUP(CONCATENATE("OSUPJEUNEALERTEREGECO_"&A5),Output!$C:$AQ,6,FALSE) -> 47564.72 | J5: =VLOOKUP(CONCATENATE("OSUPJEUNEACCEPTREGECO_"&A5),Output!$C:$AQ,6,FALSE) -> 33974.8 | K5: =VLOOKUP(CONCATENATE("OSUPREGECO_"&A5),Output!$C:$AQ,6,FALSE) -> 135899.2 | M5: =ROUND(VLOOKUP("OSUPJEUNEREGECO_"&A5,Output!$C:$AQ,7,FALSE)/VLOOKUP("OSUPREGECO_"&A5,Output!$C:$AQ,6,FALSE),3) -> 0.301 | N5: Modéré | O5: =ROUND(VLOOKUP("OSUPJEUNEREGECO_"&$A5,Output!$C:$AQ,12,FALSE)/VLOOKUP("OSUPREGECO_"&A5,Output!$C:$AQ,6,FALSE),3) -> 0.162 | P5: Faible | R5: =ROUND(VLOOKUP("OSUPVIEUXTOTREGECO_"&$A5,Output!$C:$AQ,7,FALSE)/VLOOKUP("OSUPREGECO_"&A5,Output!$C:$AQ,6,FALSE),3) -> 0.321 | S5: Faible | T5: =ROUND(VLOOKUP("OSUPVIEUXTOTREGECO_"&$A5,Output!$C:$AQ,12,FALSE)/VLOOKUP("OSUPREGECO_"&A5,Output!$C:$AQ,6,FALSE),3) -> 0.239 | U5: Modéré | W5: UTA3 | X5: Modéré | Y5: Modéré | AA5: =Tableaux!$O$33 -> 02664 | AB5: =W5 -> UTA3 | AC5: =S5 -> Faible | AD5: =U5 -> Modéré | AP5: CMO
G6: =VLOOKUP(CONCATENATE("OSUPVIEUXALERTEREGECO_"&A6),Output!$C:$AQ,6,FALSE) ->  | H6: =VLOOKUP(CONCATENATE("OSUPVIEUXACCEPTREGECO_"&A6),Output!$C:$AQ,6,FALSE) ->  | I6: =VLOOKUP(CONCATENATE("OSUPJEUNEALERTEREGECO_"&A6),Output!$C:$AQ,6,FALSE) ->  | J6: =VLOOKUP(CONCATENATE("OSUPJEUNEACCEPTREGECO_"&A6),Output!$C:$AQ,6,FALSE) ->  | K6: =VLOOKUP(CONCATENATE("OSUPREGECO_"&A6),Output!$C:$AQ,6,FALSE) ->  | M6: =ROUND(VLOOKUP("OSUPJEUNEREGECO_"&A6,Output!$C:$AQ,7,FALSE)/VLOOKUP("OSUPREGECO_"&A6,Output!$C:$AQ,6,FALSE),3) ->  | O6: =ROUND(VLOOKUP("OSUPJEUNEREGECO_"&$A6,Output!$C:$AQ,12,FALSE)/VLOOKUP("OSUPREGECO_"&A6,Output!$C:$AQ,6,FALSE),3) ->  | R6: =ROUND(VLOOKUP("OSUPVIEUXTOTREGECO_"&$A6,Output!$C:$AQ,7,FALSE)/VLOOKUP("OSUPREGECO_"&A6,Output!$C:$AQ,6,FALSE),3) ->  | T6: =ROUND(VLOOKUP("OSUPVIEUXTOTREGECO_"&$A6,Output!$C:$AQ,12,FALSE)/VLOOKUP("OSUPREGECO_"&A6,Output!$C:$AQ,6,FALSE),3) ->  | W6: 0 | AA6: =Tableaux!$O$33 -> 02664 | AB6: 0 | AD6: =U6 ->  | AP6: CMO entente Cris
G7: =VLOOKUP(CONCATENATE("OSUPVIEUXALERTEREGECO_"&A7),Output!$C:$AQ,6,FALSE) ->  | H7: =VLOOKUP(CONCATENATE("OSUPVIEUXACCEPTREGECO_"&A7),Output!$C:$AQ,6,FALSE) ->  | I7: =VLOOKUP(CONCATENATE("OSUPJEUNEALERTEREGECO_"&A7),Output!$C:$AQ,6,FALSE) ->  | J7: =VLOOKUP(CONCATENATE("OSUPJEUNEACCEPTREGECO_"&A7),Output!$C:$AQ,6,FALSE) ->  | K7: =VLOOKUP(CONCATENATE("OSUPREGECO_"&A7),Output!$C:$AQ,6,FALSE) ->  | M7: =ROUND(VLOOKUP("OSUPJEUNEREGECO_"&A7,Output!$C:$AQ,7,FALSE)/VLOOKUP("OSUPREGECO_"&A7,Output!$C:$AQ,6,FALSE),3) ->  | O7: =ROUND(VLOOKUP("OSUPJEUNEREGECO_"&$A7,Output!$C:$AQ,12,FALSE)/VLOOKUP("OSUPREGECO_"&A7,Output!$C:$AQ,6,FALSE),3) ->  | R7: =ROUND(VLOOKUP("OSUPVIEUXTOTREGECO_"&$A7,Output!$C:$AQ,7,FALSE)/VLOOKUP("OSUPREGECO_"&A7,Output!$C:$AQ,6,FALSE),3) ->  | T7: =ROUND(VLOOKUP("OSUPVIEUXTOTREGECO_"&$A7,Output!$C:$AQ,12,FALSE)/VLOOKUP("OSUPREGECO_"&A7,Output!$C:$AQ,6,FALSE),3) ->  | W7: 0 | AA7: =Tableaux!$O$33 -> 02664 | AB7: 0 | AC7: =S7 ->  | AD7: =U7 ->  | AG7: Voir à renommer "Élevé" dans la légende des figures | AP7: CMO entente BM
G8: =VLOOKUP(CONCATENATE("OSUPVIEUXALERTEREGECO_"&A8),Output!$C:$AQ,6,FALSE) ->  | H8: =VLOOKUP(CONCATENATE("OSUPVIEUXACCEPTREGECO_"&A8),Output!$C:$AQ,6,FALSE) ->  | I8: =VLOOKUP(CONCATENATE("OSUPJEUNEALERTEREGECO_"&A8),Output!$C:$AQ,6,FALSE) ->  | J8: =VLOOKUP(CONCATENATE("OSUPJEUNEACCEPTREGECO_"&A8),Output!$C:$AQ,6,FALSE) ->  | K8: =VLOOKUP(CONCATENATE("OSUPREGECO_"&A8),Output!$C:$AQ,6,FALSE) ->  | M8: =ROUND(VLOOKUP("OSUPJEUNEREGECO_"&A8,Output!$C:$AQ,7,FALSE)/VLOOKUP("OSUPREGECO_"&A8,Output!$C:$AQ,6,FALSE),3) ->  | O8: =ROUND(VLOOKUP("OSUPJEUNEREGECO_"&$A8,Output!$C:$AQ,12,FALSE)/VLOOKUP("OSUPREGECO_"&A8,Output!$C:$AQ,6,FALSE),3) ->  | R8: =ROUND(VLOOKUP("OSUPVIEUXTOTREGECO_"&$A8,Output!$C:$AQ,7,FALSE)/VLOOKUP("OSUPREGECO_"&A8,Output!$C:$AQ,6,FALSE),3) ->  | T8: =ROUND(VLOOKUP("OSUPVIEUXTOTREGECO_"&$A8,Output!$C:$AQ,12,FALSE)/VLOOKUP("OSUPREGECO_"&A8,Output!$C:$AQ,6,FALSE),3) ->  | W8: 0 | AA8: =Tableaux!$O$33 -> 02664 | AB8: 0
G9: =VLOOKUP(CONCATENATE("OSUPVIEUXALERTEREGECO_"&A9),Output!$C:$AQ,6,FALSE) ->  | H9: =VLOOKUP(CONCATENATE("OSUPVIEUXACCEPTREGECO_"&A9),Output!$C:$AQ,6,FALSE) ->  | I9: =VLOOKUP(CONCATENATE("OSUPJEUNEALERTEREGECO_"&A9),Output!$C:$AQ,6,FALSE) ->  | J9: =VLOOKUP(CONCATENATE("OSUPJEUNEACCEPTREGECO_"&A9),Output!$C:$AQ,6,FALSE) ->  | K9: =VLOOKUP(CONCATENATE("OSUPREGECO_"&A9),Output!$C:$AQ,6,FALSE) ->  | M9: =ROUND(VLOOKUP("OSUPJEUNEREGECO_"&A9,Output!$C:$AQ,7,FALSE)/VLOOKUP("OSUPREGECO_"&A9,Output!$C:$AQ,6,FALSE),3) ->  | O9: =ROUND(VLOOKUP("OSUPJEUNEREGECO_"&$A9,Output!$C:$AQ,12,FALSE)/VLOOKUP("OSUPREGECO_"&A9,Output!$C:$AQ,6,FALSE),3) ->  | R9: =ROUND(VLOOKUP("OSUPVIEUXTOTREGECO_"&$A9,Output!$C:$AQ,7,FALSE)/VLOOKUP("OSUPREGECO_"&A9,Output!$C:$AQ,6,FALSE),3) ->  | T9: =ROUND(VLOOKUP("OSUPVIEUXTOTREGECO_"&$A9,Output!$C:$AQ,12,FALSE)/VLOOKUP("OSUPREGECO_"&A9,Output!$C:$AQ,6,FALSE),3) ->  | W9: 0 | AA9: =Tableaux!$O$33 -> 02664 | AB9: 0
G10: =VLOOKUP(CONCATENATE("OSUPVIEUXALERTEREGECO_"&A10),Output!$C:$AQ,6,FALSE) ->  | H10: =VLOOKUP(CONCATENATE("OSUPVIEUXACCEPTREGECO_"&A10),Output!$C:$AQ,6,FALSE) ->  | I10: =VLOOKUP(CONCATENATE("OSUPJEUNEALERTEREGECO_"&A10),Output!$C:$AQ,6,FALSE) ->  | J10: =VLOOKUP(CONCATENATE("OSUPJEUNEACCEPTREGECO_"&A10),Output!$C:$AQ,6,FALSE) ->  | K10: =VLOOKUP(CONCATENATE("OSUPREGECO_"&A10),Output!$C:$AQ,6,FALSE) ->  | M10: =ROUND(VLOOKUP("OSUPJEUNEREGECO_"&A10,Output!$C:$AQ,7,FALSE)/VLOOKUP("OSUPREGECO_"&A10,Output!$C:$AQ,6,FALSE),3) ->  | O10: =ROUND(VLOOKUP("OSUPJEUNEREGECO_"&$A10,Output!$C:$AQ,12,FALSE)/VLOOKUP("OSUPREGECO_"&A10,Output!$C:$AQ,6,FALSE),3) ->  | R10: =ROUND(VLOOKUP("OSUPVIEUXTOTREGECO_"&$A10,Output!$C:$AQ,7,FALSE)/VLOOKUP("OSUPREGECO_"&A10,Output!$C:$AQ,6,FALSE),3) ->  | T10: =ROUND(VLOOKUP("OSUPVIEUXTOTREGECO_"&$A10,Output!$C:$AQ,12,FALSE)/VLOOKUP("OSUPREGECO_"&A10,Output!$C:$AQ,6,FALSE),3) ->  | W10: 0 | AA10: =Tableaux!$O$33 -> 02664 | AB10: 0
E11: =ROUND(J11/$K11,3) ->  | G11: =VLOOKUP(CONCATENATE("OSUPVIEUXALERTEREGECO_"&A11),Output!$C:$AQ,6,FALSE) ->  | H11: =VLOOKUP(CONCATENATE("OSUPVIEUXACCEPTREGECO_"&A11),Output!$C:$AQ,6,FALSE) ->  | I11: =VLOOKUP(CONCATENATE("OSUPJEUNEALERTEREGECO_"&A11),Output!$C:$AQ,6,FALSE) ->  | J11: =VLOOKUP(CONCATENATE("OSUPJEUNEACCEPTREGECO_"&A11),Output!$C:$AQ,6,FALSE) ->  | K11: =VLOOKUP(CONCATENATE("OSUPREGECO_"&A11),Output!$C:$AQ,6,FALSE) ->  | M11: =ROUND(VLOOKUP("OSUPJEUNEREGECO_"&A11,Output!$C:$AQ,7,FALSE)/VLOOKUP("OSUPREGECO_"&A11,Output!$C:$AQ,6,FALSE),3) ->  | O11: =ROUND(VLOOKUP("OSUPJEUNEREGECO_"&$A11,Output!$C:$AQ,12,FALSE)/VLOOKUP("OSUPREGECO_"&A11,Output!$C:$AQ,6,FALSE),3) ->  | R11: =ROUND(VLOOKUP("OSUPVIEUXTOTREGECO_"&$A11,Output!$C:$AQ,7,FALSE)/VLOOKUP("OSUPREGECO_"&A11,Output!$C:$AQ,6,FALSE),3) ->  | T11: =ROUND(VLOOKUP("OSUPVIEUXTOTREGECO_"&$A11,Output!$C:$AQ,12,FALSE)/VLOOKUP("OSUPREGECO_"&A11,Output!$C:$AQ,6,FALSE),3) ->  | W11: 0 | AA11: =Tableaux!$O$33 -> 02664 | AB11: 0
G12: =VLOOKUP(CONCATENATE("OSUPVIEUXALERTEREGECO_"&A12),Output!$C:$AQ,6,FALSE) ->  | H12: =VLOOKUP(CONCATENATE("OSUPVIEUXACCEPTREGECO_"&A12),Output!$C:$AQ,6,FALSE) ->  | I12: =VLOOKUP(CONCATENATE("OSUPJEUNEALERTEREGECO_"&A12),Output!$C:$AQ,6,FALSE) ->  | J12: =VLOOKUP(CONCATENATE("OSUPJEUNEACCEPTREGECO_"&A12),Output!$C:$AQ,6,FALSE) ->  | K12: =VLOOKUP(CONCATENATE("OSUPREGECO_"&A12),Output!$C:$AQ,6,FALSE) ->  | M12: =ROUND(VLOOKUP("OSUPJEUNEREGECO_"&A12,Output!$C:$AQ,7,FALSE)/VLOOKUP("OSUPREGECO_"&A12,Output!$C:$AQ,6,FALSE),3) ->  | O12: =ROUND(VLOOKUP("OSUPJEUNEREGECO_"&$A12,Output!$C:$AQ,12,FALSE)/VLOOKUP("OSUPREGECO_"&A12,Output!$C:$AQ,6,FALSE),3) ->  | R12: =ROUND(VLOOKUP("OSUPVIEUXTOTREGECO_"&$A12,Output!$C:$AQ,7,FALSE)/VLOOKUP("OSUPREGECO_"&A12,Output!$C:$AQ,6,FALSE),3) ->  | T12: =ROUND(VLOOKUP("OSUPVIEUXTOTREGECO_"&$A12,Output!$C:$AQ,12,FALSE)/VLOOKUP("OSUPREGECO_"&A12,Output!$C:$AQ,6,FALSE),3) ->  | W12: 0 | AA12: =Tableaux!$O$33 -> 02664 | AB12: 0 | AG12: Compléter cellules en jaune
G13: =VLOOKUP(CONCATENATE("OSUPVIEUXALERTEREGECO_"&A13),Output!$C:$AQ,6,FALSE) ->  | H13: =VLOOKUP(CONCATENATE("OSUPVIEUXACCEPTREGECO_"&A13),Output!$C:$AQ,6,FALSE) ->  | I13: =VLOOKUP(CONCATENATE("OSUPJEUNEALERTEREGECO_"&A13),Output!$C:$AQ,6,FALSE) ->  | J13: =VLOOKUP(CONCATENATE("OSUPJEUNEACCEPTREGECO_"&A13),Output!$C:$AQ,6,FALSE) ->  | K13: =VLOOKUP(CONCATENATE("OSUPREGECO_"&A13),Output!$C:$AQ,6,FALSE) ->  | M13: =ROUND(VLOOKUP("OSUPJEUNEREGECO_"&A13,Output!$C:$AQ,7,FALSE)/VLOOKUP("OSUPREGECO_"&A13,Output!$C:$AQ,6,FALSE),3) ->  | O13: =ROUND(VLOOKUP("OSUPJEUNEREGECO_"&$A13,Output!$C:$AQ,12,FALSE)/VLOOKUP("OSUPREGECO_"&A13,Output!$C:$AQ,6,FALSE),3) ->  | R13: =ROUND(VLOOKUP("OSUPVIEUXTOTREGECO_"&$A13,Output!$C:$AQ,7,FALSE)/VLOOKUP("OSUPREGECO_"&A13,Output!$C:$AQ,6,FALSE),3) ->  | T13: =ROUND(VLOOKUP("OSUPVIEUXTOTREGECO_"&$A13,Output!$C:$AQ,12,FALSE)/VLOOKUP("OSUPREGECO_"&A13,Output!$C:$AQ,6,FALSE),3) ->  | W13: 0 | AA13: =Tableaux!$O$33 -> 02664 | AB13: 0
G14: =VLOOKUP(CONCATENATE("OSUPVIEUXALERTEREGECO_"&A14),Output!$C:$AQ,6,FALSE) ->  | H14: =VLOOKUP(CONCATENATE("OSUPVIEUXACCEPTREGECO_"&A14),Output!$C:$AQ,6,FALSE) ->  | I14: =VLOOKUP(CONCATENATE("OSUPJEUNEALERTEREGECO_"&A14),Output!$C:$AQ,6,FALSE) ->  | J14: =VLOOKUP(CONCATENATE("OSUPJEUNEACCEPTREGECO_"&A14),Output!$C:$AQ,6,FALSE) ->  | K14: =VLOOKUP(CONCATENATE("OSUPREGECO_"&A14),Output!$C:$AQ,6,FALSE) ->  | M14: =ROUND(VLOOKUP("OSUPJEUNEREGECO_"&A14,Output!$C:$AQ,7,FALSE)/VLOOKUP("OSUPREGECO_"&A14,Output!$C:$AQ,6,FALSE),3) ->  | O14: =ROUND(VLOOKUP("OSUPJEUNEREGECO_"&$A14,Output!$C:$AQ,12,FALSE)/VLOOKUP("OSUPREGECO_"&A14,Output!$C:$AQ,6,FALSE),3) ->  | R14: =ROUND(VLOOKUP("OSUPVIEUXTOTREGECO_"&$A14,Output!$C:$AQ,7,FALSE)/VLOOKUP("OSUPREGECO_"&A14,Output!$C:$AQ,6,FALSE),3) ->  | T14: =ROUND(VLOOKUP("OSUPVIEUXTOTREGECO_"&$A14,Output!$C:$AQ,12,FALSE)/VLOOKUP("OSUPREGECO_"&A14,Output!$C:$AQ,6,FALSE),3) ->  | W14: 0 | AA14: =Tableaux!$O$33 -> 02664 | AB14: 0
G15: =VLOOKUP(CONCATENATE("OSUPVIEUXALERTEREGECO_"&A15),Output!$C:$AQ,6,FALSE) ->  | H15: =VLOOKUP(CONCATENATE("OSUPVIEUXACCEPTREGECO_"&A15),Output!$C:$AQ,6,FALSE) ->  | I15: =VLOOKUP(CONCATENATE("OSUPJEUNEALERTEREGECO_"&A15),Output!$C:$AQ,6,FALSE) ->  | J15: =VLOOKUP(CONCATENATE("OSUPJEUNEACCEPTREGECO_"&A15),Output!$C:$AQ,6,FALSE) ->  | K15: =VLOOKUP(CONCATENATE("OSUPREGECO_"&A15),Output!$C:$AQ,6,FALSE) ->  | M15: =ROUND(VLOOKUP("OSUPJEUNEREGECO_"&A15,Output!$C:$AQ,7,FALSE)/VLOOKUP("OSUPREGECO_"&A15,Output!$C:$AQ,6,FALSE),3) ->  | O15: =ROUND(VLOOKUP("OSUPJEUNEREGECO_"&$A15,Output!$C:$AQ,12,FALSE)/VLOOKUP("OSUPREGECO_"&A15,Output!$C:$AQ,6,FALSE),3) ->  | R15: =ROUND(VLOOKUP("OSUPVIEUXTOTREGECO_"&$A15,Output!$C:$AQ,7,FALSE)/VLOOKUP("OSUPREGECO_"&A15,Output!$C:$AQ,6,FALSE),3) ->  | T15: =ROUND(VLOOKUP("OSUPVIEUXTOTREGECO_"&$A15,Output!$C:$AQ,12,FALSE)/VLOOKUP("OSUPREGECO_"&A15,Output!$C:$AQ,6,FALSE),3) ->  | W15: 0 | AA15: =Tableaux!$O$33 -> 02664 | AB15: 0
G16: =VLOOKUP(CONCATENATE("OSUPVIEUXALERTEREGECO_"&A16),Output!$C:$AQ,6,FALSE) ->  | H16: =VLOOKUP(CONCATENATE("OSUPVIEUXACCEPTREGECO_"&A16),Output!$C:$AQ,6,FALSE) ->  | I16: =VLOOKUP(CONCATENATE("OSUPJEUNEALERTEREGECO_"&A16),Output!$C:$AQ,6,FALSE) ->  | J16: =VLOOKUP(CONCATENATE("OSUPJEUNEACCEPTREGECO_"&A16),Output!$C:$AQ,6,FALSE) ->  | K16: =VLOOKUP(CONCATENATE("OSUPREGECO_"&A16),Output!$C:$AQ,6,FALSE) ->  | M16: =ROUND(VLOOKUP("OSUPJEUNEREGECO_"&A16,Output!$C:$AQ,7,FALSE)/VLOOKUP("OSUPREGECO_"&A16,Output!$C:$AQ,6,FALSE),3) ->  | O16: =ROUND(VLOOKUP("OSUPJEUNEREGECO_"&$A16,Output!$C:$AQ,12,FALSE)/VLOOKUP("OSUPREGECO_"&A16,Output!$C:$AQ,6,FALSE),3) ->  | R16: =ROUND(VLOOKUP("OSUPVIEUXTOTREGECO_"&$A16,Output!$C:$AQ,7,FALSE)/VLOOKUP("OSUPREGECO_"&A16,Output!$C:$AQ,6,FALSE),3) ->  | T16: =ROUND(VLOOKUP("OSUPVIEUXTOTREGECO_"&$A16,Output!$C:$AQ,12,FALSE)/VLOOKUP("OSUPREGECO_"&A16,Output!$C:$AQ,6,FALSE),3) ->  | W16: 0 | AA16: =Tableaux!$O$33 -> 02664 | AB16: 0
G17: =VLOOKUP(CONCATENATE("OSUPVIEUXALERTEREGECO_"&A17),Output!$C:$AQ,6,FALSE) ->  | H17: =VLOOKUP(CONCATENATE("OSUPVIEUXACCEPTREGECO_"&A17),Output!$C:$AQ,6,FALSE) ->  | I17: =VLOOKUP(CONCATENATE("OSUPJEUNEALERTEREGECO_"&A17),Output!$C:$AQ,6,FALSE) ->  | J17: =VLOOKUP(CONCATENATE("OSUPJEUNEACCEPTREGECO_"&A17),Output!$C:$AQ,6,FALSE) ->  | K17: =VLOOKUP(CONCATENATE("OSUPREGECO_"&A17),Output!$C:$AQ,6,FALSE) ->  | M17: =ROUND(VLOOKUP("OSUPJEUNEREGECO_"&A17,Output!$C:$AQ,7,FALSE)/VLOOKUP("OSUPREGECO_"&A17,Output!$C:$AQ,6,FALSE),3) ->  | O17: =ROUND(VLOOKUP("OSUPJEUNEREGECO_"&$A17,Output!$C:$AQ,12,FALSE)/VLOOKUP("OSUPREGECO_"&A17,Output!$C:$AQ,6,FALSE),3) ->  | R17: =ROUND(VLOOKUP("OSUPVIEUXTOTREGECO_"&$A17,Output!$C:$AQ,7,FALSE)/VLOOKUP("OSUPREGECO_"&A17,Output!$C:$AQ,6,FALSE),3) ->  | T17: =ROUND(VLOOKUP("OSUPVIEUXTOTREGECO_"&$A17,Output!$C:$AQ,12,FALSE)/VLOOKUP("OSUPREGECO_"&A17,Output!$C:$AQ,6,FALSE),3) ->  | W17: 0 | AA17: =Tableaux!$O$33 -> 02664 | AB17: 0
G18: =VLOOKUP(CONCATENATE("OSUPVIEUXALERTEREGECO_"&A18),Output!$C:$AQ,6,FALSE) ->  | H18: =VLOOKUP(CONCATENATE("OSUPVIEUXACCEPTREGECO_"&A18),Output!$C:$AQ,6,FALSE) ->  | I18: =VLOOKUP(CONCATENATE("OSUPJEUNEALERTEREGECO_"&A18),Output!$C:$AQ,6,FALSE) ->  | J18: =VLOOKUP(CONCATENATE("OSUPJEUNEACCEPTREGECO_"&A18),Output!$C:$AQ,6,FALSE) ->  | K18: =VLOOKUP(CONCATENATE("OSUPREGECO_"&A18),Output!$C:$AQ,6,FALSE) ->  | M18: =ROUND(VLOOKUP("OSUPJEUNEREGECO_"&A18,Output!$C:$AQ,7,FALSE)/VLOOKUP("OSUPREGECO_"&A18,Output!$C:$AQ,6,FALSE),3) ->  | O18: =ROUND(VLOOKUP("OSUPJEUNEREGECO_"&$A18,Output!$C:$AQ,12,FALSE)/VLOOKUP("OSUPREGECO_"&A18,Output!$C:$AQ,6,FALSE),3) ->  | R18: =ROUND(VLOOKUP("OSUPVIEUXTOTREGECO_"&$A18,Output!$C:$AQ,7,FALSE)/VLOOKUP("OSUPREGECO_"&A18,Output!$C:$AQ,6,FALSE),3) ->  | T18: =ROUND(VLOOKUP("OSUPVIEUXTOTREGECO_"&$A18,Output!$C:$AQ,12,FALSE)/VLOOKUP("OSUPREGECO_"&A18,Output!$C:$AQ,6,FALSE),3) ->  | W18: 0 | AA18: =Tableaux!$O$33 -> 02664 | AB18: 0
G19: =VLOOKUP(CONCATENATE("OSUPVIEUXALERTEREGECO_"&A19),Output!$C:$AQ,6,FALSE) ->  | H19: =VLOOKUP(CONCATENATE("OSUPVIEUXACCEPTREGECO_"&A19),Output!$C:$AQ,6,FALSE) ->  | I19: =VLOOKUP(CONCATENATE("OSUPJEUNEALERTEREGECO_"&A19),Output!$C:$AQ,6,FALSE) ->  | J19: =VLOOKUP(CONCATENATE("OSUPJEUNEACCEPTREGECO_"&A19),Output!$C:$AQ,6,FALSE) ->  | K19: =VLOOKUP(CONCATENATE("OSUPREGECO_"&A19),Output!$C:$AQ,6,FALSE) ->  | M19: =ROUND(VLOOKUP("OSUPJEUNEREGECO_"&A19,Output!$C:$AQ,7,FALSE)/VLOOKUP("OSUPREGECO_"&A19,Output!$C:$AQ,6,FALSE),3) ->  | O19: =ROUND(VLOOKUP("OSUPJEUNEREGECO_"&$A19,Output!$C:$AQ,12,FALSE)/VLOOKUP("OSUPREGECO_"&A19,Output!$C:$AQ,6,FALSE),3) ->  | R19: =ROUND(VLOOKUP("OSUPVIEUXTOTREGECO_"&$A19,Output!$C:$AQ,7,FALSE)/VLOOKUP("OSUPREGECO_"&A19,Output!$C:$AQ,6,FALSE),3) ->  | T19: =ROUND(VLOOKUP("OSUPVIEUXTOTREGECO_"&$A19,Output!$C:$AQ,12,FALSE)/VLOOKUP("OSUPREGECO_"&A19,Output!$C:$AQ,6,FALSE),3) ->  | W19: 0 | AA19: =Tableaux!$O$33 -> 02664 | AB19: 0
G20: =VLOOKUP(CONCATENATE("OSUPVIEUXALERTEREGECO_"&A20),Output!$C:$AQ,6,FALSE) ->  | H20: =VLOOKUP(CONCATENATE("OSUPVIEUXACCEPTREGECO_"&A20),Output!$C:$AQ,6,FALSE) ->  | I20: =VLOOKUP(CONCATENATE("OSUPJEUNEALERTEREGECO_"&A20),Output!$C:$AQ,6,FALSE) ->  | J20: =VLOOKUP(CONCATENATE("OSUPJEUNEACCEPTREGECO_"&A20),Output!$C:$AQ,6,FALSE) ->  | K20: =VLOOKUP(CONCATENATE("OSUPREGECO_"&A20),Output!$C:$AQ,6,FALSE) ->  | M20: =ROUND(VLOOKUP("OSUPJEUNEREGECO_"&A20,Output!$C:$AQ,7,FALSE)/VLOOKUP("OSUPREGECO_"&A20,Output!$C:$AQ,6,FALSE),3) ->  | O20: =ROUND(VLOOKUP("OSUPJEUNEREGECO_"&$A20,Output!$C:$AQ,12,FALSE)/VLOOKUP("OSUPREGECO_"&A20,Output!$C:$AQ,6,FALSE),3) ->  | R20: =ROUND(VLOOKUP("OSUPVIEUXTOTREGECO_"&$A20,Output!$C:$AQ,7,FALSE)/VLOOKUP("OSUPREGECO_"&A20,Output!$C:$AQ,6,FALSE),3) ->  | T20: =ROUND(VLOOKUP("OSUPVIEUXTOTREGECO_"&$A20,Output!$C:$AQ,12,FALSE)/VLOOKUP("OSUPREGECO_"&A20,Output!$C:$AQ,6,FALSE),3) ->  | W20: 0 | AA20: =Tableaux!$O$33 -> 02664 | AB20: 0
B21: =ROUND(G21/$K21,2) ->  | C21: =H21/$K21 ->  | D21: =ROUND(I21/$K21,3) ->  | G21: =VLOOKUP(CONCATENATE("OSUPVIEUXALERTEREGECO_"&A21),Output!$C:$AQ,6,FALSE) ->  | H21: =VLOOKUP(CONCATENATE("OSUPVIEUXACCEPTREGECO_"&A21),Output!$C:$AQ,6,FALSE) ->  | I21: =VLOOKUP(CONCATENATE("OSUPJEUNEALERTEREGECO_"&A21),Output!$C:$AQ,6,FALSE) ->  | J21: =VLOOKUP(CONCATENATE("OSUPJEUNEACCEPTREGECO_"&A21),Output!$C:$AQ,6,FALSE) ->  | K21: =VLOOKUP(CONCATENATE("OSUPREGECO_"&A21),Output!$C:$AQ,6,FALSE) ->  | M21: =ROUND(VLOOKUP("OSUPJEUNEREGECO_"&A21,Output!$C:$AQ,7,FALSE)/VLOOKUP("OSUPREGECO_"&A21,Output!$C:$AQ,6,FALSE),3) ->  | O21: =ROUND(VLOOKUP("OSUPJEUNEREGECO_"&$A21,Output!$C:$AQ,12,FALSE)/VLOOKUP("OSUPREGECO_"&A21,Output!$C:$AQ,6,FALSE),3) ->  | R21: =ROUND(VLOOKUP("OSUPVIEUXTOTREGECO_"&$A21,Output!$C:$AQ,7,FALSE)/VLOOKUP("OSUPREGECO_"&A21,Output!$C:$AQ,6,FALSE),3) ->  | T21: =ROUND(VLOOKUP("OSUPVIEUXTOTREGECO_"&$A21,Output!$C:$AQ,12,FALSE)/VLOOKUP("OSUPREGECO_"&A21,Output!$C:$AQ,6,FALSE),3) ->  | W21: 0 | AA21: =Tableaux!$O$33 -> 02664 | AB21: 0
G22: =VLOOKUP(CONCATENATE("OSUPVIEUXALERTEREGECO_"&A22),Output!$C:$AQ,6,FALSE) ->  | H22: =VLOOKUP(CONCATENATE("OSUPVIEUXACCEPTREGECO_"&A22),Output!$C:$AQ,6,FALSE) ->  | I22: =VLOOKUP(CONCATENATE("OSUPJEUNEALERTEREGECO_"&A22),Output!$C:$AQ,6,FALSE) ->  | J22: =VLOOKUP(CONCATENATE("OSUPJEUNEACCEPTREGECO_"&A22),Output!$C:$AQ,6,FALSE) ->  | K22: =VLOOKUP(CONCATENATE("OSUPREGECO_"&A22),Output!$C:$AQ,6,FALSE) ->  | M22: =ROUND(VLOOKUP("OSUPJEUNEREGECO_"&A22,Output!$C:$AQ,7,FALSE)/VLOOKUP("OSUPREGECO_"&A22,Output!$C:$AQ,6,FALSE),3) ->  | O22: =ROUND(VLOOKUP("OSUPJEUNEREGECO_"&$A22,Output!$C:$AQ,12,FALSE)/VLOOKUP("OSUPREGECO_"&A22,Output!$C:$AQ,6,FALSE),3) ->  | R22: =ROUND(VLOOKUP("OSUPVIEUXTOTREGECO_"&$A22,Output!$C:$AQ,7,FALSE)/VLOOKUP("OSUPREGECO_"&A22,Output!$C:$AQ,6,FALSE),3) ->  | T22: =ROUND(VLOOKUP("OSUPVIEUXTOTREGECO_"&$A22,Output!$C:$AQ,12,FALSE)/VLOOKUP("OSUPREGECO_"&A22,Output!$C:$AQ,6,FALSE),3) ->  | W22: 0 | AA22: =Tableaux!$O$33 -> 02664 | AB22: 0
G23: =VLOOKUP(CONCATENATE("OSUPVIEUXALERTEREGECO_"&A23),Output!$C:$AQ,6,FALSE) ->  | H23: =VLOOKUP(CONCATENATE("OSUPVIEUXACCEPTREGECO_"&A23),Output!$C:$AQ,6,FALSE) ->  | I23: =VLOOKUP(CONCATENATE("OSUPJEUNEALERTEREGECO_"&A23),Output!$C:$AQ,6,FALSE) ->  | J23: =VLOOKUP(CONCATENATE("OSUPJEUNEACCEPTREGECO_"&A23),Output!$C:$AQ,6,FALSE) ->  | K23: =VLOOKUP(CONCATENATE("OSUPREGECO_"&A23),Output!$C:$AQ,6,FALSE) ->  | M23: =ROUND(VLOOKUP("OSUPJEUNEREGECO_"&A23,Output!$C:$AQ,7,FALSE)/VLOOKUP("OSUPREGECO_"&A23,Output!$C:$AQ,6,FALSE),3) ->  | O23: =ROUND(VLOOKUP("OSUPJEUNEREGECO_"&$A23,Output!$C:$AQ,12,FALSE)/VLOOKUP("OSUPREGECO_"&A23,Output!$C:$AQ,6,FALSE),3) ->  | R23: =ROUND(VLOOKUP("OSUPVIEUXTOTREGECO_"&$A23,Output!$C:$AQ,7,FALSE)/VLOOKUP("OSUPREGECO_"&A23,Output!$C:$AQ,6,FALSE),3) ->  | T23: =ROUND(VLOOKUP("OSUPVIEUXTOTREGECO_"&$A23,Output!$C:$AQ,12,FALSE)/VLOOKUP("OSUPREGECO_"&A23,Output!$C:$AQ,6,FALSE),3) ->  | W23: 0 | AA23: =Tableaux!$O$33 -> 02664 | AB23: 0
G24: =VLOOKUP(CONCATENATE("OSUPVIEUXALERTEREGECO_"&A24),Output!$C:$AQ,6,FALSE) ->  | H24: =VLOOKUP(CONCATENATE("OSUPVIEUXACCEPTREGECO_"&A24),Output!$C:$AQ,6,FALSE) ->  | I24: =VLOOKUP(CONCATENATE("OSUPJEUNEALERTEREGECO_"&A24),Output!$C:$AQ,6,FALSE) ->  | J24: =VLOOKUP(CONCATENATE("OSUPJEUNEACCEPTREGECO_"&A24),Output!$C:$AQ,6,FALSE) ->  | K24: =VLOOKUP(CONCATENATE("OSUPREGECO_"&A24),Output!$C:$AQ,6,FALSE) ->  | M24: =ROUND(VLOOKUP("OSUPJEUNEREGECO_"&A24,Output!$C:$AQ,7,FALSE)/VLOOKUP("OSUPREGECO_"&A24,Output!$C:$AQ,6,FALSE),3) ->  | O24: =ROUND(VLOOKUP("OSUPJEUNEREGECO_"&$A24,Output!$C:$AQ,12,FALSE)/VLOOKUP("OSUPREGECO_"&A24,Output!$C:$AQ,6,FALSE),3) ->  | R24: =ROUND(VLOOKUP("OSUPVIEUXTOTREGECO_"&$A24,Output!$C:$AQ,7,FALSE)/VLOOKUP("OSUPREGECO_"&A24,Output!$C:$AQ,6,FALSE),3) ->  | T24: =ROUND(VLOOKUP("OSUPVIEUXTOTREGECO_"&$A24,Output!$C:$AQ,12,FALSE)/VLOOKUP("OSUPREGECO_"&A24,Output!$C:$AQ,6,FALSE),3) ->  | W24: 0 | AA24: =Tableaux!$O$33 -> 02664 | AB24: 0
G25: =VLOOKUP(CONCATENATE("OSUPVIEUXALERTEREGECO_"&A25),Output!$C:$AQ,6,FALSE) ->  | H25: =VLOOKUP(CONCATENATE("OSUPVIEUXACCEPTREGECO_"&A25),Output!$C:$AQ,6,FALSE) ->  | I25: =VLOOKUP(CONCATENATE("OSUPJEUNEALERTEREGECO_"&A25),Output!$C:$AQ,6,FALSE) ->  | J25: =VLOOKUP(CONCATENATE("OSUPJEUNEACCEPTREGECO_"&A25),Output!$C:$AQ,6,FALSE) ->  | K25: =VLOOKUP(CONCATENATE("OSUPREGECO_"&A25),Output!$C:$AQ,6,FALSE) ->  | M25: =ROUND(VLOOKUP("OSUPJEUNEREGECO_"&A25,Output!$C:$AQ,7,FALSE)/VLOOKUP("OSUPREGECO_"&A25,Output!$C:$AQ,6,FALSE),3) ->  | O25: =ROUND(VLOOKUP("OSUPJEUNEREGECO_"&$A25,Output!$C:$AQ,12,FALSE)/VLOOKUP("OSUPREGECO_"&A25,Output!$C:$AQ,6,FALSE),3) ->  | R25: =ROUND(VLOOKUP("OSUPVIEUXTOTREGECO_"&$A25,Output!$C:$AQ,7,FALSE)/VLOOKUP("OSUPREGECO_"&A25,Output!$C:$AQ,6,FALSE),3) ->  | T25: =ROUND(VLOOKUP("OSUPVIEUXTOTREGECO_"&$A25,Output!$C:$AQ,12,FALSE)/VLOOKUP("OSUPREGECO_"&A25,Output!$C:$AQ,6,FALSE),3) ->  | W25: 0 | AA25: =Tableaux!$O$33 -> 02664 | AB25: 0
G26: =VLOOKUP(CONCATENATE("OSUPVIEUXALERTEREGECO_"&A26),Output!$C:$AQ,6,FALSE) ->  | H26: =VLOOKUP(CONCATENATE("OSUPVIEUXACCEPTREGECO_"&A26),Output!$C:$AQ,6,FALSE) ->  | I26: =VLOOKUP(CONCATENATE("OSUPJEUNEALERTEREGECO_"&A26),Output!$C:$AQ,6,FALSE) ->  | J26: =VLOOKUP(CONCATENATE("OSUPJEUNEACCEPTREGECO_"&A26),Output!$C:$AQ,6,FALSE) ->  | K26: =VLOOKUP(CONCATENATE("OSUPREGECO_"&A26),Output!$C:$AQ,6,FALSE) ->  | M26: =ROUND(VLOOKUP("OSUPJEUNEREGECO_"&A26,Output!$C:$AQ,7,FALSE)/VLOOKUP("OSUPREGECO_"&A26,Output!$C:$AQ,6,FALSE),3) ->  | O26: =ROUND(VLOOKUP("OSUPJEUNEREGECO_"&$A26,Output!$C:$AQ,12,FALSE)/VLOOKUP("OSUPREGECO_"&A26,Output!$C:$AQ,6,FALSE),3) ->  | R26: =ROUND(VLOOKUP("OSUPVIEUXTOTREGECO_"&$A26,Output!$C:$AQ,7,FALSE)/VLOOKUP("OSUPREGECO_"&A26,Output!$C:$AQ,6,FALSE),3) ->  | T26: =ROUND(VLOOKUP("OSUPVIEUXTOTREGECO_"&$A26,Output!$C:$AQ,12,FALSE)/VLOOKUP("OSUPREGECO_"&A26,Output!$C:$AQ,6,FALSE),3) ->  | W26: 0 | AA26: =Tableaux!$O$33 -> 02664 | AB26: 0
C27: =ROUND(H27/$K27,3) ->  | G27: =VLOOKUP(CONCATENATE("OSUPVIEUXALERTEREGECO_"&A27),Output!$C:$AQ,6,FALSE) ->  | H27: =VLOOKUP(CONCATENATE("OSUPVIEUXACCEPTREGECO_"&A27),Output!$C:$AQ,6,FALSE) ->  | I27: =VLOOKUP(CONCATENATE("OSUPJEUNEALERTEREGECO_"&A27),Output!$C:$AQ,6,FALSE) ->  | J27: =VLOOKUP(CONCATENATE("OSUPJEUNEACCEPTREGECO_"&A27),Output!$C:$AQ,6,FALSE) ->  | K27: =VLOOKUP(CONCATENATE("OSUPREGECO_"&A27),Output!$C:$AQ,6,FALSE) ->  | M27: =ROUND(VLOOKUP("OSUPJEUNEREGECO_"&A27,Output!$C:$AQ,7,FALSE)/VLOOKUP("OSUPREGECO_"&A27,Output!$C:$AQ,6,FALSE),3) ->  | O27: =ROUND(VLOOKUP("OSUPJEUNEREGECO_"&$A27,Output!$C:$AQ,12,FALSE)/VLOOKUP("OSUPREGECO_"&A27,Output!$C:$AQ,6,FALSE),3) ->  | R27: =ROUND(VLOOKUP("OSUPVIEUXTOTREGECO_"&$A27,Output!$C:$AQ,7,FALSE)/VLOOKUP("OSUPREGECO_"&A27,Output!$C:$AQ,6,FALSE),3) ->  | T27: =ROUND(VLOOKUP("OSUPVIEUXTOTREGECO_"&$A27,Output!$C:$AQ,12,FALSE)/VLOOKUP("OSUPREGECO_"&A27,Output!$C:$AQ,6,FALSE),3) ->  | W27: 0 | AA27: =Tableaux!$O$33 -> 02664 | AB27: 0
G28: =VLOOKUP(CONCATENATE("OSUPVIEUXALERTEREGECO_"&A28),Output!$C:$AQ,6,FALSE) ->  | H28: =VLOOKUP(CONCATENATE("OSUPVIEUXACCEPTREGECO_"&A28),Output!$C:$AQ,6,FALSE) ->  | I28: =VLOOKUP(CONCATENATE("OSUPJEUNEALERTEREGECO_"&A28),Output!$C:$AQ,6,FALSE) ->  | J28: =VLOOKUP(CONCATENATE("OSUPJEUNEACCEPTREGECO_"&A28),Output!$C:$AQ,6,FALSE) ->  | K28: =VLOOKUP(CONCATENATE("OSUPREGECO_"&A28),Output!$C:$AQ,6,FALSE) ->  | M28: =ROUND(VLOOKUP("OSUPJEUNEREGECO_"&A28,Output!$C:$AQ,7,FALSE)/VLOOKUP("OSUPREGECO_"&A28,Output!$C:$AQ,6,FALSE),3) ->  | O28: =ROUND(VLOOKUP("OSUPJEUNEREGECO_"&$A28,Output!$C:$AQ,12,FALSE)/VLOOKUP("OSUPREGECO_"&A28,Output!$C:$AQ,6,FALSE),3) ->  | R28: =ROUND(VLOOKUP("OSUPVIEUXTOTREGECO_"&$A28,Output!$C:$AQ,7,FALSE)/VLOOKUP("OSUPREGECO_"&A28,Output!$C:$AQ,6,FALSE),3) ->  | T28: =ROUND(VLOOKUP("OSUPVIEUXTOTREGECO_"&$A28,Output!$C:$AQ,12,FALSE)/VLOOKUP("OSUPREGECO_"&A28,Output!$C:$AQ,6,FALSE),3) ->  | W28: 0 | AA28: =Tableaux!$O$33 -> 02664 | AB28: 0
G29: =VLOOKUP(CONCATENATE("OSUPVIEUXALERTEREGECO_"&A29),Output!$C:$AQ,6,FALSE) ->  | H29: =VLOOKUP(CONCATENATE("OSUPVIEUXACCEPTREGECO_"&A29),Output!$C:$AQ,6,FALSE) ->  | I29: =VLOOKUP(CONCATENATE("OSUPJEUNEALERTEREGECO_"&A29),Output!$C:$AQ,6,FALSE) ->  | J29: =VLOOKUP(CONCATENATE("OSUPJEUNEACCEPTREGECO_"&A29),Output!$C:$AQ,6,FALSE) ->  | K29: =VLOOKUP(CONCATENATE("OSUPREGECO_"&A29),Output!$C:$AQ,6,FALSE) ->  | M29: =ROUND(VLOOKUP("OSUPJEUNEREGECO_"&A29,Output!$C:$AQ,7,FALSE)/VLOOKUP("OSUPREGECO_"&A29,Output!$C:$AQ,6,FALSE),3) ->  | O29: =ROUND(VLOOKUP("OSUPJEUNEREGECO_"&$A29,Output!$C:$AQ,12,FALSE)/VLOOKUP("OSUPREGECO_"&A29,Output!$C:$AQ,6,FALSE),3) ->  | R29: =ROUND(VLOOKUP("OSUPVIEUXTOTREGECO_"&$A29,Output!$C:$AQ,7,FALSE)/VLOOKUP("OSUPREGECO_"&A29,Output!$C:$AQ,6,FALSE),3) ->  | T29: =ROUND(VLOOKUP("OSUPVIEUXTOTREGECO_"&$A29,Output!$C:$AQ,12,FALSE)/VLOOKUP("OSUPREGECO_"&A29,Output!$C:$AQ,6,FALSE),3) ->  | W29: 0 | AA29: =Tableaux!$O$33 -> 02664 | AB29: 0
G30: =VLOOKUP(CONCATENATE("OSUPVIEUXALERTEREGECO_"&A30),Output!$C:$AQ,6,FALSE) ->  | H30: =VLOOKUP(CONCATENATE("OSUPVIEUXACCEPTREGECO_"&A30),Output!$C:$AQ,6,FALSE) ->  | I30: =VLOOKUP(CONCATENATE("OSUPJEUNEALERTEREGECO_"&A30),Output!$C:$AQ,6,FALSE) ->  | J30: =VLOOKUP(CONCATENATE("OSUPJEUNEACCEPTREGECO_"&A30),Output!$C:$AQ,6,FALSE) ->  | K30: =VLOOKUP(CONCATENATE("OSUPREGECO_"&A30),Output!$C:$AQ,6,FALSE) ->  | M30: =ROUND(VLOOKUP("OSUPJEUNEREGECO_"&A30,Output!$C:$AQ,7,FALSE)/VLOOKUP("OSUPREGECO_"&A30,Output!$C:$AQ,6,FALSE),3) ->  | O30: =ROUND(VLOOKUP("OSUPJEUNEREGECO_"&$A30,Output!$C:$AQ,12,FALSE)/VLOOKUP("OSUPREGECO_"&A30,Output!$C:$AQ,6,FALSE),3) ->  | R30: =ROUND(VLOOKUP("OSUPVIEUXTOTREGECO_"&$A30,Output!$C:$AQ,7,FALSE)/VLOOKUP("OSUPREGECO_"&A30,Output!$C:$AQ,6,FALSE),3) ->  | T30: =ROUND(VLOOKUP("OSUPVIEUXTOTREGECO_"&$A30,Output!$C:$AQ,12,FALSE)/VLOOKUP("OSUPREGECO_"&A30,Output!$C:$AQ,6,FALSE),3) ->  | W30: 0 | AA30: =Tableaux!$O$33 -> 02664 | AB30: 0
G31: =VLOOKUP(CONCATENATE("OSUPVIEUXALERTEREGECO_"&A31),Output!$C:$AQ,6,FALSE) ->  | H31: =VLOOKUP(CONCATENATE("OSUPVIEUXACCEPTREGECO_"&A31),Output!$C:$AQ,6,FALSE) ->  | I31: =VLOOKUP(CONCATENATE("OSUPJEUNEALERTEREGECO_"&A31),Output!$C:$AQ,6,FALSE) ->  | J31: =VLOOKUP(CONCATENATE("OSUPJEUNEACCEPTREGECO_"&A31),Output!$C:$AQ,6,FALSE) ->  | K31: =VLOOKUP(CONCATENATE("OSUPREGECO_"&A31),Output!$C:$AQ,6,FALSE) ->  | M31: =ROUND(VLOOKUP("OSUPJEUNEREGECO_"&A31,Output!$C:$AQ,7,FALSE)/VLOOKUP("OSUPREGECO_"&A31,Output!$C:$AQ,6,FALSE),3) ->  | O31: =ROUND(VLOOKUP("OSUPJEUNEREGECO_"&$A31,Output!$C:$AQ,12,FALSE)/VLOOKUP("OSUPREGECO_"&A31,Output!$C:$AQ,6,FALSE),3) ->  | R31: =ROUND(VLOOKUP("OSUPVIEUXTOTREGECO_"&$A31,Output!$C:$AQ,7,FALSE)/VLOOKUP("OSUPREGECO_"&A31,Output!$C:$AQ,6,FALSE),3) ->  | T31: =ROUND(VLOOKUP("OSUPVIEUXTOTREGECO_"&$A31,Output!$C:$AQ,12,FALSE)/VLOOKUP("OSUPREGECO_"&A31,Output!$C:$AQ,6,FALSE),3) ->  | W31: 0 | AA31: =Tableaux!$O$33 -> 02664 | AB31: 0
G32: =VLOOKUP(CONCATENATE("OSUPVIEUXALERTEREGECO_"&A32),Output!$C:$AQ,6,FALSE) ->  | H32: =VLOOKUP(CONCATENATE("OSUPVIEUXACCEPTREGECO_"&A32),Output!$C:$AQ,6,FALSE) ->  | I32: =VLOOKUP(CONCATENATE("OSUPJEUNEALERTEREGECO_"&A32),Output!$C:$AQ,6,FALSE) ->  | J32: =VLOOKUP(CONCATENATE("OSUPJEUNEACCEPTREGECO_"&A32),Output!$C:$AQ,6,FALSE) ->  | K32: =VLOOKUP(CONCATENATE("OSUPREGECO_"&A32),Output!$C:$AQ,6,FALSE) ->  | M32: =ROUND(VLOOKUP("OSUPJEUNEREGECO_"&A32,Output!$C:$AQ,7,FALSE)/VLOOKUP("OSUPREGECO_"&A32,Output!$C:$AQ,6,FALSE),3) ->  | O32: =ROUND(VLOOKUP("OSUPJEUNEREGECO_"&$A32,Output!$C:$AQ,12,FALSE)/VLOOKUP("OSUPREGECO_"&A32,Output!$C:$AQ,6,FALSE),3) ->  | R32: =ROUND(VLOOKUP("OSUPVIEUXTOTREGECO_"&$A32,Output!$C:$AQ,7,FALSE)/VLOOKUP("OSUPREGECO_"&A32,Output!$C:$AQ,6,FALSE),3) ->  | T32: =ROUND(VLOOKUP("OSUPVIEUXTOTREGECO_"&$A32,Output!$C:$AQ,12,FALSE)/VLOOKUP("OSUPREGECO_"&A32,Output!$C:$AQ,6,FALSE),3) ->  | W32: 0 | AA32: =Tableaux!$O$33 -> 02664 | AB32: 0
G33: =VLOOKUP(CONCATENATE("OSUPVIEUXALERTEREGECO_"&A33),Output!$C:$AQ,6,FALSE) ->  | H33: =VLOOKUP(CONCATENATE("OSUPVIEUXACCEPTREGECO_"&A33),Output!$C:$AQ,6,FALSE) ->  | I33: =VLOOKUP(CONCATENATE("OSUPJEUNEALERTEREGECO_"&A33),Output!$C:$AQ,6,FALSE) ->  | J33: =VLOOKUP(CONCATENATE("OSUPJEUNEACCEPTREGECO_"&A33),Output!$C:$AQ,6,FALSE) ->  | K33: =VLOOKUP(CONCATENATE("OSUPREGECO_"&A33),Output!$C:$AQ,6,FALSE) ->  | M33: =ROUND(VLOOKUP("OSUPJEUNEREGECO_"&A33,Output!$C:$AQ,7,FALSE)/VLOOKUP("OSUPREGECO_"&A33,Output!$C:$AQ,6,FALSE),3) ->  | O33: =ROUND(VLOOKUP("OSUPJEUNEREGECO_"&$A33,Output!$C:$AQ,12,FALSE)/VLOOKUP("OSUPREGECO_"&A33,Output!$C:$AQ,6,FALSE),3) ->  | R33: =ROUND(VLOOKUP("OSUPVIEUXTOTREGECO_"&$A33,Output!$C:$AQ,7,FALSE)/VLOOKUP("OSUPREGECO_"&A33,Output!$C:$AQ,6,FALSE),3) ->  | T33: =ROUND(VLOOKUP("OSUPVIEUXTOTREGECO_"&$A33,Output!$C:$AQ,12,FALSE)/VLOOKUP("OSUPREGECO_"&A33,Output!$C:$AQ,6,FALSE),3) ->  | W33: 0 | AA33: =Tableaux!$O$33 -> 02664 | AB33: =W33 -> 0
G34: =VLOOKUP(CONCATENATE("OSUPVIEUXALERTEREGECO_"&A34),Output!$C:$AQ,6,FALSE) ->  | H34: =VLOOKUP(CONCATENATE("OSUPVIEUXACCEPTREGECO_"&A34),Output!$C:$AQ,6,FALSE) ->  | I34: =VLOOKUP(CONCATENATE("OSUPJEUNEALERTEREGECO_"&A34),Output!$C:$AQ,6,FALSE) ->  | J34: =VLOOKUP(CONCATENATE("OSUPJEUNEACCEPTREGECO_"&A34),Output!$C:$AQ,6,FALSE) ->  | K34: =VLOOKUP(CONCATENATE("OSUPREGECO_"&A34),Output!$C:$AQ,6,FALSE) ->  | M34: =ROUND(VLOOKUP("OSUPJEUNEREGECO_"&A34,Output!$C:$AQ,7,FALSE)/VLOOKUP("OSUPREGECO_"&A34,Output!$C:$AQ,6,FALSE),3) ->  | O34: =ROUND(VLOOKUP("OSUPJEUNEREGECO_"&$A34,Output!$C:$AQ,12,FALSE)/VLOOKUP("OSUPREGECO_"&A34,Output!$C:$AQ,6,FALSE),3) ->  | R34: =ROUND(VLOOKUP("OSUPVIEUXTOTREGECO_"&$A34,Output!$C:$AQ,7,FALSE)/VLOOKUP("OSUPREGECO_"&A34,Output!$C:$AQ,6,FALSE),3) ->  | T34: =ROUND(VLOOKUP("OSUPVIEUXTOTREGECO_"&$A34,Output!$C:$AQ,12,FALSE)/VLOOKUP("OSUPREGECO_"&A34,Output!$C:$AQ,6,FALSE),3) ->  | W34: 0 | AA34: =Tableaux!$O$33 -> 02664 | AB34: 0
G35: =VLOOKUP(CONCATENATE("OSUPVIEUXALERTEREGECO_"&A35),Output!$C:$AQ,6,FALSE) ->  | H35: =VLOOKUP(CONCATENATE("OSUPVIEUXACCEPTREGECO_"&A35),Output!$C:$AQ,6,FALSE) ->  | I35: =VLOOKUP(CONCATENATE("OSUPJEUNEALERTEREGECO_"&A35),Output!$C:$AQ,6,FALSE) ->  | J35: =VLOOKUP(CONCATENATE("OSUPJEUNEACCEPTREGECO_"&A35),Output!$C:$AQ,6,FALSE) ->  | K35: =VLOOKUP(CONCATENATE("OSUPREGECO_"&A35),Output!$C:$AQ,6,FALSE) ->  | M35: =ROUND(VLOOKUP("OSUPJEUNEREGECO_"&A35,Output!$C:$AQ,7,FALSE)/VLOOKUP("OSUPREGECO_"&A35,Output!$C:$AQ,6,FALSE),3) ->  | O35: =ROUND(VLOOKUP("OSUPJEUNEREGECO_"&$A35,Output!$C:$AQ,12,FALSE)/VLOOKUP("OSUPREGECO_"&A35,Output!$C:$AQ,6,FALSE),3) ->  | R35: =ROUND(VLOOKUP("OSUPVIEUXTOTREGECO_"&$A35,Output!$C:$AQ,7,FALSE)/VLOOKUP("OSUPREGECO_"&A35,Output!$C:$AQ,6,FALSE),3) ->  | T35: =ROUND(VLOOKUP("OSUPVIEUXTOTREGECO_"&$A35,Output!$C:$AQ,12,FALSE)/VLOOKUP("OSUPREGECO_"&A35,Output!$C:$AQ,6,FALSE),3) ->  | W35: 0 | AA35: =Tableaux!$O$33 -> 02664 | AB35: 0
G36: =VLOOKUP(CONCATENATE("OSUPVIEUXALERTEREGECO_"&A36),Output!$C:$AQ,6,FALSE) ->  | H36: =VLOOKUP(CONCATENATE("OSUPVIEUXACCEPTREGECO_"&A36),Output!$C:$AQ,6,FALSE) ->  | I36: =VLOOKUP(CONCATENATE("OSUPJEUNEALERTEREGECO_"&A36),Output!$C:$AQ,6,FALSE) ->  | J36: =VLOOKUP(CONCATENATE("OSUPJEUNEACCEPTREGECO_"&A36),Output!$C:$AQ,6,FALSE) ->  | K36: =VLOOKUP(CONCATENATE("OSUPREGECO_"&A36),Output!$C:$AQ,6,FALSE) ->  | M36: =ROUND(VLOOKUP("OSUPJEUNEREGECO_"&A36,Output!$C:$AQ,7,FALSE)/VLOOKUP("OSUPREGECO_"&A36,Output!$C:$AQ,6,FALSE),3) ->  | O36: =ROUND(VLOOKUP("OSUPJEUNEREGECO_"&$A36,Output!$C:$AQ,12,FALSE)/VLOOKUP("OSUPREGECO_"&A36,Output!$C:$AQ,6,FALSE),3) ->  | R36: =ROUND(VLOOKUP("OSUPVIEUXTOTREGECO_"&$A36,Output!$C:$AQ,7,FALSE)/VLOOKUP("OSUPREGECO_"&A36,Output!$C:$AQ,6,FALSE),3) ->  | T36: =ROUND(VLOOKUP("OSUPVIEUXTOTREGECO_"&$A36,Output!$C:$AQ,12,FALSE)/VLOOKUP("OSUPREGECO_"&A36,Output!$C:$AQ,6,FALSE),3) ->  | W36: 0 | AA36: =Tableaux!$O$33 -> 02664 | AB36: 0
G37: =VLOOKUP(CONCATENATE("OSUPVIEUXALERTEREGECO_"&A37),Output!$C:$AQ,6,FALSE) ->  | H37: =VLOOKUP(CONCATENATE("OSUPVIEUXACCEPTREGECO_"&A37),Output!$C:$AQ,6,FALSE) ->  | I37: =VLOOKUP(CONCATENATE("OSUPJEUNEALERTEREGECO_"&A37),Output!$C:$AQ,6,FALSE) ->  | J37: =VLOOKUP(CONCATENATE("OSUPJEUNEACCEPTREGECO_"&A37),Output!$C:$AQ,6,FALSE) ->  | K37: =VLOOKUP(CONCATENATE("OSUPREGECO_"&A37),Output!$C:$AQ,6,FALSE) ->  | M37: =ROUND(VLOOKUP("OSUPJEUNEREGECO_"&A37,Output!$C:$AQ,7,FALSE)/VLOOKUP("OSUPREGECO_"&A37,Output!$C:$AQ,6,FALSE),3) ->  | O37: =ROUND(VLOOKUP("OSUPJEUNEREGECO_"&$A37,Output!$C:$AQ,12,FALSE)/VLOOKUP("OSUPREGECO_"&A37,Output!$C:$AQ,6,FALSE),3) ->  | R37: =ROUND(VLOOKUP("OSUPVIEUXTOTREGECO_"&$A37,Output!$C:$AQ,7,FALSE)/VLOOKUP("OSUPREGECO_"&A37,Output!$C:$AQ,6,FALSE),3) ->  | T37: =ROUND(VLOOKUP("OSUPVIEUXTOTREGECO_"&$A37,Output!$C:$AQ,12,FALSE)/VLOOKUP("OSUPREGECO_"&A37,Output!$C:$AQ,6,FALSE),3) ->  | W37: 0 | AA37: =Tableaux!$O$33 -> 02664 | AB37: 0
G38: =VLOOKUP(CONCATENATE("OSUPVIEUXALERTEREGECO_"&A38),Output!$C:$AQ,6,FALSE) ->  | H38: =VLOOKUP(CONCATENATE("OSUPVIEUXACCEPTREGECO_"&A38),Output!$C:$AQ,6,FALSE) ->  | I38: =VLOOKUP(CONCATENATE("OSUPJEUNEALERTEREGECO_"&A38),Output!$C:$AQ,6,FALSE) ->  | J38: =VLOOKUP(CONCATENATE("OSUPJEUNEACCEPTREGECO_"&A38),Output!$C:$AQ,6,FALSE) ->  | K38: =VLOOKUP(CONCATENATE("OSUPREGECO_"&A38),Output!$C:$AQ,6,FALSE) ->  | M38: =ROUND(VLOOKUP("OSUPJEUNEREGECO_"&A38,Output!$C:$AQ,7,FALSE)/VLOOKUP("OSUPREGECO_"&A38,Output!$C:$AQ,6,FALSE),3) ->  | O38: =ROUND(VLOOKUP("OSUPJEUNEREGECO_"&$A38,Output!$C:$AQ,12,FALSE)/VLOOKUP("OSUPREGECO_"&A38,Output!$C:$AQ,6,FALSE),3) ->  | R38: =ROUND(VLOOKUP("OSUPVIEUXTOTREGECO_"&$A38,Output!$C:$AQ,7,FALSE)/VLOOKUP("OSUPREGECO_"&A38,Output!$C:$AQ,6,FALSE),3) ->  | T38: =ROUND(VLOOKUP("OSUPVIEUXTOTREGECO_"&$A38,Output!$C:$AQ,12,FALSE)/VLOOKUP("OSUPREGECO_"&A38,Output!$C:$AQ,6,FALSE),3) ->  | W38: 0 | AA38: =Tableaux!$O$33 -> 02664 | AB38: 0
G39: =VLOOKUP(CONCATENATE("OSUPVIEUXALERTEREGECO_"&A39),Output!$C:$AQ,6,FALSE) ->  | H39: =VLOOKUP(CONCATENATE("OSUPVIEUXACCEPTREGECO_"&A39),Output!$C:$AQ,6,FALSE) ->  | I39: =VLOOKUP(CONCATENATE("OSUPJEUNEALERTEREGECO_"&A39),Output!$C:$AQ,6,FALSE) ->  | J39: =VLOOKUP(CONCATENATE("OSUPJEUNEACCEPTREGECO_"&A39),Output!$C:$AQ,6,FALSE) ->  | K39: =VLOOKUP(CONCATENATE("OSUPREGECO_"&A39),Output!$C:$AQ,6,FALSE) ->  | M39: =ROUND(VLOOKUP("OSUPJEUNEREGECO_"&A39,Output!$C:$AQ,7,FALSE)/VLOOKUP("OSUPREGECO_"&A39,Output!$C:$AQ,6,FALSE),3) ->  | O39: =ROUND(VLOOKUP("OSUPJEUNEREGECO_"&$A39,Output!$C:$AQ,12,FALSE)/VLOOKUP("OSUPREGECO_"&A39,Output!$C:$AQ,6,FALSE),3) ->  | R39: =ROUND(VLOOKUP("OSUPVIEUXTOTREGECO_"&$A39,Output!$C:$AQ,7,FALSE)/VLOOKUP("OSUPREGECO_"&A39,Output!$C:$AQ,6,FALSE),3) ->  | T39: =ROUND(VLOOKUP("OSUPVIEUXTOTREGECO_"&$A39,Output!$C:$AQ,12,FALSE)/VLOOKUP("OSUPREGECO_"&A39,Output!$C:$AQ,6,FALSE),3) ->  | W39: 0 | AA39: =Tableaux!$O$33 -> 02664 | AB39: 0
G40: =VLOOKUP(CONCATENATE("OSUPVIEUXALERTEREGECO_"&A40),Output!$C:$AQ,6,FALSE) ->  | H40: =VLOOKUP(CONCATENATE("OSUPVIEUXACCEPTREGECO_"&A40),Output!$C:$AQ,6,FALSE) ->  | I40: =VLOOKUP(CONCATENATE("OSUPJEUNEALERTEREGECO_"&A40),Output!$C:$AQ,6,FALSE) ->  | J40: =VLOOKUP(CONCATENATE("OSUPJEUNEACCEPTREGECO_"&A40),Output!$C:$AQ,6,FALSE) ->  | K40: =VLOOKUP(CONCATENATE("OSUPREGECO_"&A40),Output!$C:$AQ,6,FALSE) ->  | M40: =ROUND(VLOOKUP("OSUPJEUNEREGECO_"&A40,Output!$C:$AQ,7,FALSE)/VLOOKUP("OSUPREGECO_"&A40,Output!$C:$AQ,6,FALSE),3) ->  | O40: =ROUND(VLOOKUP("OSUPJEUNEREGECO_"&$A40,Output!$C:$AQ,12,FALSE)/VLOOKUP("OSUPREGECO_"&A40,Output!$C:$AQ,6,FALSE),3) ->  | R40: =ROUND(VLOOKUP("OSUPVIEUXTOTREGECO_"&$A40,Output!$C:$AQ,7,FALSE)/VLOOKUP("OSUPREGECO_"&A40,Output!$C:$AQ,6,FALSE),3) ->  | T40: =ROUND(VLOOKUP("OSUPVIEUXTOTREGECO_"&$A40,Output!$C:$AQ,12,FALSE)/VLOOKUP("OSUPREGECO_"&A40,Output!$C:$AQ,6,FALSE),3) ->  | W40: 0 | AA40: =Tableaux!$O$33 -> 02664 | AB40: 0
G41: =VLOOKUP(CONCATENATE("OSUPVIEUXALERTEREGECO_"&A41),Output!$C:$AQ,6,FALSE) ->  | H41: =VLOOKUP(CONCATENATE("OSUPVIEUXACCEPTREGECO_"&A41),Output!$C:$AQ,6,FALSE) ->  | I41: =VLOOKUP(CONCATENATE("OSUPJEUNEALERTEREGECO_"&A41),Output!$C:$AQ,6,FALSE) ->  | J41: =VLOOKUP(CONCATENATE("OSUPJEUNEACCEPTREGECO_"&A41),Output!$C:$AQ,6,FALSE) ->  | K41: =VLOOKUP(CONCATENATE("OSUPREGECO_"&A41),Output!$C:$AQ,6,FALSE) ->  | M41: =ROUND(VLOOKUP("OSUPJEUNEREGECO_"&A41,Output!$C:$AQ,7,FALSE)/VLOOKUP("OSUPREGECO_"&A41,Output!$C:$AQ,6,FALSE),3) ->  | O41: =ROUND(VLOOKUP("OSUPJEUNEREGECO_"&$A41,Output!$C:$AQ,12,FALSE)/VLOOKUP("OSUPREGECO_"&A41,Output!$C:$AQ,6,FALSE),3) ->  | R41: =ROUND(VLOOKUP("OSUPVIEUXTOTREGECO_"&$A41,Output!$C:$AQ,7,FALSE)/VLOOKUP("OSUPREGECO_"&A41,Output!$C:$AQ,6,FALSE),3) ->  | T41: =ROUND(VLOOKUP("OSUPVIEUXTOTREGECO_"&$A41,Output!$C:$AQ,12,FALSE)/VLOOKUP("OSUPREGECO_"&A41,Output!$C:$AQ,6,FALSE),3) ->  | W41: 0 | AA41: =Tableaux!$O$33 -> 02664 | AB41: 0
G42: =VLOOKUP(CONCATENATE("OSUPVIEUXALERTEREGECO_"&A42),Output!$C:$AQ,6,FALSE) ->  | H42: =VLOOKUP(CONCATENATE("OSUPVIEUXACCEPTREGECO_"&A42),Output!$C:$AQ,6,FALSE) ->  | I42: =VLOOKUP(CONCATENATE("OSUPJEUNEALERTEREGECO_"&A42),Output!$C:$AQ,6,FALSE) ->  | J42: =VLOOKUP(CONCATENATE("OSUPJEUNEACCEPTREGECO_"&A42),Output!$C:$AQ,6,FALSE) ->  | K42: =VLOOKUP(CONCATENATE("OSUPREGECO_"&A42),Output!$C:$AQ,6,FALSE) ->  | M42: =ROUND(VLOOKUP("OSUPJEUNEREGECO_"&A42,Output!$C:$AQ,7,FALSE)/VLOOKUP("OSUPREGECO_"&A42,Output!$C:$AQ,6,FALSE),3) ->  | O42: =ROUND(VLOOKUP("OSUPJEUNEREGECO_"&$A42,Output!$C:$AQ,12,FALSE)/VLOOKUP("OSUPREGECO_"&A42,Output!$C:$AQ,6,FALSE),3) ->  | R42: =ROUND(VLOOKUP("OSUPVIEUXTOTREGECO_"&$A42,Output!$C:$AQ,7,FALSE)/VLOOKUP("OSUPREGECO_"&A42,Output!$C:$AQ,6,FALSE),3) ->  | T42: =ROUND(VLOOKUP("OSUPVIEUXTOTREGECO_"&$A42,Output!$C:$AQ,12,FALSE)/VLOOKUP("OSUPREGECO_"&A42,Output!$C:$AQ,6,FALSE),3) ->  | W42: 0 | AA42: =Tableaux!$O$33 -> 02664 | AB42: 0

Sheet Output
C1: 1 | D1: 2 | E1: 3 | F1: 4 | G1: 5 | H1: 6 | I1: 7 | J1: 8 | K1: 9 | L1: 10 | M1: 11 | N1: 12 | O1: 13 | P1: 14 | Q1: 15 | R1: 16 | S1: 17 | T1: 18 | U1: 19 | V1: 20 | W1: 21 | X1: 22 | Y1: 23 | Z1: 24 | AA1: 25 | AB1: 26 | AC1: 27 | AD1: 28 | AE1: 29 | AF1: 30 | AG1: 31 | AH1: 32 | AI1: 33 | AJ1: 34 | AK1: 35 | AL1: 36 | AM1: 37 | AN1: 38 | AO1: 39 | AP1: 40 | AQ1: 41
A2: Record | B2: Group | C2: Name | D2: Description | E2: Attribute | F2: Minimum | G2: Maximum | H2: Period0 | I2: Period1 | J2: Period2 | K2: Period3 | L2: Period4 | M2: Period5 | N2: Period6 | O2: Period7 | P2: Period8 | Q2: Period9 | R2: Period10 | S2: Period11 | T2: Period12 | U2: Period13 | V2: Period14 | W2: Period15 | X2: Period16 | Y2: Period17 | Z2: Period18 | AA2: Period19 | AB2: Period20 | AC2: Period21 | AD2: Period22 | AE2: Period23 | AF2: Period24 | AG2: Period25 | AH2: Period26 | AI2: Period27 | AJ2: Period28 | AK2: Period29 | AL2: Period30 | AM2: Moyemme P2 à P6 | AN2: Moyenne P7 à P11 | AO2: Moyenne P12 à P20 | AP2: Moyenne P21 à P30 | AQ2: Moyenne P2 à P30
B3: <Not in Output group> | C3: OSUPTOT | D3: Superficie Totale | F3: 617397.1 | G3: 617397.1 | H3: 617397.1 | I3: 617397.1 | J3: 617397.1 | K3: 617397.1 | L3: 617397.1 | M3: 617397.1 | N3: 617397.1 | O3: 617397.1 | P3: 617397.1 | Q3: 617397.1 | R3: 617397.1 | S3: 617397.1 | T3: 617397.1 | U3: 617397.1 | V3: 617397.1 | W3: 617397.1 | X3: 617397.1 | Y3: 617397.1 | Z3: 617397.1 | AA3: 617397.1 | AB3: 617397.1 | AC3: 617397.1 | AD3: 617397.1 | AE3: 617397.1 | AF3: 617397.1 | AG3: 617397.1 | AH3: 617397.1 | AI3: 617397.1 | AJ3: 617397.1 | AK3: 617397.1 | AL3: 617397.1 | AM3: =AVERAGE(J3:N3) -> 617397.1 | AN3: =AVERAGE(O3:S3) -> 617397.1 | AO3: =AVERAGE(T3:AB3) -> 617397.1 | AP3: =AVERAGE(AC3:AL3) -> 617397.1 | AQ3: =AVERAGE(J3:AL3) -> 617397.1
B4: <Not in Output group> | C4: OSUPINC | D4: Superficie InclusActions par courbe | F4: 334205.04 | G4: 343555.4 | H4: 343555.4 | I4: 342637.46 | J4: 341819.25 | K4: 341076.62 | L4: 340407.47 | M4: 339810.26 | N4: 339280.74 | O4: 338537.33 | P4: 338006.66 | Q4: 337633.84 | R4: 337318.76 | S4: 337029.25 | T4: 336834.2 | U4: 336607 | V4: 335926.56 | W4: 335835.97 | X4: 335542.79 | Y4: 335448.98 | Z4: 335261.3 | AA4: 335203.56 | AB4: 335199.19 | AC4: 335136.57 | AD4: 335053.86 | AE4: 334804.4 | AF4: 334677.43 | AG4: 334462.53 | AH4: 334205.04 | AI4: 334205.04 | AJ4: 334205.04 | AK4: 334205.04 | AL4: 334205.04 | AM4: =AVERAGE(J4:N4) -> 340478.868 | AN4: =AVERAGE(O4:S4) -> 337705.168 | AO4: =AVERAGE(T4:AB4) -> 335762.1722 | AP4: =AVERAGE(AC4:AL4) -> 334515.999 | AQ4: =AVERAGE(J4:AL4) -> 336480.68
B5: <Not in Output group> | C5: OSUPregECO | D5: Superficie Disponible aux RÚsultats ╔cologiques | F5: 407327.24 | G5: 416677.6 | H5: 416677.6 | I5: 415759.66 | J5: 414941.45 | K5: 414198.82 | L5: 413529.67 | M5: 412932.46 | N5: 412402.94 | O5: 411659.53 | P5: 411128.86 | Q5: 410756.04 | R5: 410440.96 | S5: 410151.45 | T5: 409956.4 | U5: 409729.2 | V5: 409048.76 | W5: 408958.17 | X5: 408664.99 | Y5: 408571.18 | Z5: 408383.5 | AA5: 408325.76 | AB5: 408321.39 | AC5: 408258.77 | AD5: 408176.06 | AE5: 407926.6 | AF5: 407799.63 | AG5: 407584.73 | AH5: 407327.24 | AI5: 407327.24 | AJ5: 407327.24 | AK5: 407327.24 | AL5: 407327.24 | AM5: 413601.068 | AN5: 410827.368 | AO5: 408884.3722 | AP5: 407638.199 | AQ5: 409602.88
B6: <Not in Output group> | C6: OSUPEXIN | D6: Superficie ExcluActionsInclus | F6: 54689 | G6: 54689 | H6: 54689 | I6: 54689 | J6: 54689 | K6: 54689 | L6: 54689 | M6: 54689 | N6: 54689 | O6: 54689 | P6: 54689 | Q6: 54689 | R6: 54689 | S6: 54689 | T6: 54689 | U6: 54689 | V6: 54689 | W6: 54689 | X6: 54689 | Y6: 54689 | Z6: 54689 | AA6: 54689 | AB6: 54689 | AC6: 54689 | AD6: 54689 | AE6: 54689 | AF6: 54689 | AG6: 54689 | AH6: 54689 | AI6: 54689 | AJ6: 54689 | AK6: 54689 | AL6: 54689 | AM6: 54689 | AN6: 54689 | AO6: 54689 | AP6: 54689 | AQ6: 54689
B7: <Not in Output group> | C7: OSUPEXTI | D7: Superficie Improductive | F7: 94177.1 | G7: 94177.1 | H7: 94177.1 | I7: 94177.1 | J7: 94177.1 | K7: 94177.1 | L7: 94177.1 | M7: 94177.1 | N7: 94177.1 | O7: 94177.1 | P7: 94177.1 | Q7: 94177.1 | R7: 94177.1 | S7: 94177.1 | T7: 94177.1 | U7: 94177.1 | V7: 94177.1 | W7: 94177.1 | X7: 94177.1 | Y7: 94177.1 | Z7: 94177.1 | AA7: 94177.1 | AB7: 94177.1 | AC7: 94177.1 | AD7: 94177.1 | AE7: 94177.1 | AF7: 94177.1 | AG7: 94177.1 | AH7: 94177.1 | AI7: 94177.1 | AJ7: 94177.1 | AK7: 94177.1 | AL7: 94177.1 | AM7: 94177.1 | AN7: 94177.1 | AO7: 94177.1 | AP7: 94177.1 | AQ7: 94177.1
B8: <Not in Output group> | C8: OSUPLOCK | D8: Superficie Sous Verrous | F8: 4766.59 | G8: 86080.1 | H8: 85029.6 | I8: 86080.1 | J8: 61353.89 | K8: 50160.18 | L8: 44846.37 | M8: 25569.56 | N8: 24883.56 | O8: 23299.28 | P8: 20743.75 | Q8: 7801 | R8: 6943.32 | S8: 6553.21 | T8: 6008.55 | U8: 5310.51 | V8: 4766.59 | W8: 5022.41 | X8: 5053.42 | Y8: 4969.2 | Z8: 4925.4 | AA8: 5131.26 | AB8: 5208.45 | AC8: 5058.21 | AD8: 4981.01 | AE8: 5231.66 | AF8: 5229.71 | AG8: 5096 | AH8: 4969.45 | AI8: 5182.16 | AJ8: 5246.24 | AK8: 5207.68 | AL8: 5666.25 | AM8: 41362.712 | AN8: 13068.112 | AO8: 5155.087778 | AP8: 5186.837 | AQ8: 12773.04414
B9: Economique | C9: oSupTcsdDEG_1_T100% | D9: oSupTcsdDEG_1_T100% | F9: 0 | G9: 251.28 | H9: 0 | I9: 31.5 | J9: 238 | K9: 206.5 | L9: 206.5 | M9: 187.64 | N9: 193.86 | O9: 206.5 | P9: 248.79 | Q9: 245.71 | R9: 200 | S9: 206.5 | T9: 231.5 | U9: 251.28 | V9: 190.76 | W9: 49.18 | X9: 192.74 | Y9: 206.5 | Z9: 171.38 | AA9: 187.64 | AB9: 110.59 | AC9: 206.5 | AD9: 206.5 | AE9: 218.18 | AF9: 183.34 | AG9: 231.5 | AH9: 206.5 | AI9: 152.85 | AJ9: 232.46 | AK9: 163.2 | AL9: 226.35 | AM9: 206.5 | AN9: 221.5 | AO9: 176.8411111 | AP9: 202.738 | AQ9: 198.5844828
B10: Economique | C10: oSupTcsdDEG_2_T100% | D10: oSupTcsdDEG_2_T100% | F10: 0 | G10: 293.93 | H10: 0 | I10: 293.93 | J10: 0 | K10: 0 | L10: 0 | M10: 0 | N10: 0 | O10: 0 | P10: 0 | Q10: 0 | R10: 0 | S10: 0 | T10: 0 | U10: 0 | V10: 0 | W10: 0 | X10: 0 | Y10: 0 | Z10: 0 | AA10: 0 | AB10: 0 | AC10: 0 | AD10: 0 | AE10: 0 | AF10: 0 | AG10: 0 | AH10: 0 | AI10: 47.15 | AJ10: 6.39 | AK10: 75.97 | AL10: 5.15 | AM10: 0 | AN10: 0 | AO10: 0 | AP10: 13.466 | AQ10: 4.643448276
B11: Economique | C11: oSupDEG_1_T100% | D11: oSupDEG_1_T100% | F11: 0 | G11: 251.28 | H11: 0 | I11: 31.5 | J11: 238 | K11: 206.5 | L11: 206.5 | M11: 187.64 | N11: 193.86 | O11: 206.5 | P11: 248.79 | Q11: 245.71 | R11: 200 | S11: 206.5 | T11: 231.5 | U11: 251.28 | V11: 190.76 | W11: 49.18 | X11: 192.74 | Y11: 206.5 | Z11: 171.38 | AA11: 187.64 | AB11: 110.59 | AC11: 206.5 | AD11: 206.5 | AE11: 218.18 | AF11: 183.34 | AG11: 231.5 | AH11: 206.5 | AI11: 152.85 | AJ11: 232.46 | AK11: 163.2 | AL11: 226.35 | AM11: 206.5 | AN11: 221.5 | AO11: 176.8411111 | AP11: 202.738 | AQ11: 198.5844828
B12: Economique | C12: oSupDEG_2_T100% | D12: oSupDEG_2_T100% | F12: 0 | G12: 293.93 | H12: 0 | I12: 293.93 | J12: 0 | K12: 0 | L12: 0 | M12: 0 | N12: 0 | O12: 0 | P12: 0 | Q12: 0 | R12: 0 | S12: 0 | T12: 0 | U12: 0 | V12: 0 | W12: 0 | X12: 0 | Y12: 0 | Z12: 0 | AA12: 0 | AB12: 0 | AC12: 0 | AD12: 0 | AE12: 0 | AF12: 0 | AG12: 0 | AH12: 0 | AI12: 47.15 | AJ12: 6.39 | AK12: 75.97 | AL12: 5.15 | AM12: 0 | AN12: 0 | AO12: 0 | AP12: 13.466 | AQ12: 4.643448276
B13: Economique | C13: oSupDEG_1 | D13: oSupDEG_1 | F13: 0 | G13: 251.28 | H13: 0 | I13: 31.5 | J13: 238 | K13: 206.5 | L13: 206.5 | M13: 187.64 | N13: 193.86 | O13: 206.5 | P13: 248.79 | Q13: 245.71 | R13: 200 | S13: 206.5 | T13: 231.5 | U13: 251.28 | V13: 190.76 | W13: 49.18 | X13: 192.74 | Y13: 206.5 | Z13: 171.38 | AA13: 187.64 | AB13: 110.59 | AC13: 206.5 | AD13: 206.5 | AE13: 218.18 | AF13: 183.34 | AG13: 231.5 | AH13: 206.5 | AI13: 152.85 | AJ13: 232.46 | AK13: 163.2 | AL13: 226.35 | AM13: 206.5 | AN13: 221.5 | AO13: 176.8411111 | AP13: 202.738 | AQ13: 198.5844828
B14: Economique | C14: oSupDEG_2 | D14: oSupDEG_2 | F14: 0 | G14: 293.93 | H14: 0 | I14: 293.93 | J14: 0 | K14: 0 | L14: 0 | M14: 0 | N14: 0 | O14: 0 | P14: 0 | Q14: 0 | R14: 0 | S14: 0 | T14: 0 | U14: 0 | V14: 0 | W14: 0 | X14: 0 | Y14: 0 | Z14: 0 | AA14: 0 | AB14: 0 | AC14: 0 | AD14: 0 | AE14: 0 | AF14: 0 | AG14: 0 | AH14: 0 | AI14: 47.15 | AJ14: 6.39 | AK14: 75.97 | AL14: 5.15 | AM14: 0 | AN14: 0 | AO14: 0 | AP14: 13.466 | AQ14: 4.643448276
B15: Economique | C15: oSupTcsdSCA_LRD_T100% | D15: oSupTcsdSCA_LRD_T100% | F15: 0 | G15: 0 | H15: 0 | I15: 0 | J15: 0 | K15: 0 | L15: 0 | M15: 0 | N15: 0 | O15: 0 | P15: 0 | Q15: 0 | R15: 0 | S15: 0 | T15: 0 | U15: 0 | V15: 0 | W15: 0 | X15: 0 | Y15: 0 | Z15: 0 | AA15: 0 | AB15: 0 | AC15: 0 | AD15: 0 | AE15: 0 | AF15: 0 | AG15: 0 | AH15: 0 | AI15: 0 | AJ15: 0 | AK15: 0 | AL15: 0 | AM15: 0 | AN15: 0 | AO15: 0 | AP15: 0 | AQ15: 0
B16: Economique | C16: oSupTcsdSCA_PART_T100% | D16: oSupTcsdSCA_PART_T100% | F16: 0 | G16: 1529.78 | H16: 0 | I16: 1529.78 | J16: 619 | K16: 619 | L16: 619 | M16: 619 | N16: 619 | O16: 619 | P16: 293.14 | Q16: 280.92 | R16: 339.5 | S16: 396.09 | T16: 318.81 | U16: 257.83 | V16: 339.5 | W16: 421.05 | X16: 296.42 | Y16: 297.39 | Z16: 374.19 | AA16: 421.75 | AB16: 296.42 | AC16: 264.38 | AD16: 382.45 | AE16: 421.75 | AF16: 296.42 | AG16: 307.33 | AH16: 358.48 | AI16: 559.95 | AJ16: 317.72 | AK16: 616.4 | AL16: 668.19 | AM16: 619 | AN16: 385.73 | AO16: 335.9288889 | AP16: 419.307 | AQ16: 422.0717241
B17: Economique | C17: oSupTcsdSCA_REG_T100% | D17: oSupTcsdSCA_REG_T100% | F17: 0 | G17: 5644 | H17: 0 | I17: 5287.22 | J17: 5433.74 | K17: 5425.73 | L17: 5429.44 | M17: 5438.95 | N17: 5448.64 | O17: 5444.28 | P17: 5644 | Q17: 5644 | R17: 5644 | S17: 5644 | T17: 5644 | U17: 5644 | V17: 5644 | W17: 5644 | X17: 5644 | Y17: 5644 | Z17: 5644 | AA17: 5644 | AB17: 5644 | AC17: 5644 | AD17: 5644 | AE17: 5644 | AF17: 5644 | AG17: 5644 | AH17: 5644 | AI17: 5404.36 | AJ17: 5619.19 | AK17: 4912.3 | AL17: 5306.34 | AM17: 5435.3 | AN17: 5604.056 | AO17: 5644 | AP17: 5510.619 | AQ17: 5555.136897
B18: Economique | C18: oSupSCA_LRD_T100% | D18: oSupSCA_LRD_T100% | F18: 0 | G18: 0 | H18: 0 | I18: 0 | J18: 0 | K18: 0 | L18: 0 | M18: 0 | N18: 0 | O18: 0 | P18: 0 | Q18: 0 | R18: 0 | S18: 0 | T18: 0 | U18: 0 | V18: 0 | W18: 0 | X18: 0 | Y18: 0 | Z18: 0 | AA18: 0 | AB18: 0 | AC18: 0 | AD18: 0 | AE18: 0 | AF18: 0 | AG18: 0 | AH18: 0 | AI18: 0 | AJ18: 0 | AK18: 0 | AL18: 0 | AM18: 0 | AN18: 0 | AO18: 0 | AP18: 0 | AQ18: 0
B19: Economique | C19: oSupSCA_PART_T100% | D19: oSupSCA_PART_T100% | F19: 0 | G19: 1529.78 | H19: 0 | I19: 1529.78 | J19: 619 | K19: 619 | L19: 619 | M19: 619 | N19: 619 | O19: 619 | P19: 293.14 | Q19: 280.92 | R19: 339.5 | S19: 396.09 | T19: 318.81 | U19: 257.83 | V19: 339.5 | W19: 421.05 | X19: 296.42 | Y19: 297.39 | Z19: 374.19 | AA19: 421.75 | AB19: 296.42 | AC19: 264.38 | AD19: 382.45 | AE19: 421.75 | AF19: 296.42 | AG19: 307.33 | AH19: 358.48 | AI19: 559.95 | AJ19: 317.72 | AK19: 616.4 | AL19: 668.19 | AM19: 619 | AN19: 385.73 | AO19: 335.9288889 | AP19: 419.307 | AQ19: 422.0717241
B20: Economique | C20: oSupSCA_REG_T100% | D20: oSupSCA_REG_T100% | F20: 0 | G20: 5644 | H20: 0 | I20: 5287.22 | J20: 5433.74 | K20: 5425.73 | L20: 5429.44 | M20: 5438.95 | N20: 5448.64 | O20: 5444.28 | P20: 5644 | Q20: 5644 | R20: 5644 | S20: 5644 | T20: 5644 | U20: 5644 | V20: 5644 | W20: 5644 | X20: 5644 | Y20: 5644 | Z20: 5644 | AA20: 5644 | AB20: 5644 | AC20: 5644 | AD20: 5644 | AE20: 5644 | AF20: 5644 | AG20: 5644 | AH20: 5644 | AI20: 5404.36 | AJ20: 5619.19 | AK20: 4912.3 | AL20: 5306.34 | AM20: 5435.3 | AN20: 5604.056 | AO20: 5644 | AP20: 5510.619 | AQ20: 5555.136897
B21: Economique | C21: oSupSCA_LRD | D21: oSupSCA_LRD | F21: 0 | G21: 0 | H21: 0 | I21: 0 | J21: 0 | K21: 0 | L21: 0 | M21: 0 | N21: 0 | O21: 0 | P21: 0 | Q21: 0 | R21: 0 | S21: 0 | T21: 0 | U21: 0 | V21: 0 | W21: 0 | X21: 0 | Y21: 0 | Z21: 0 | AA21: 0 | AB21: 0 | AC21: 0 | AD21: 0 | AE21: 0 | AF21: 0 | AG21: 0 | AH21: 0 | AI21: 0 | AJ21: 0 | AK21: 0 | AL21: 0 | AM21: 0 | AN21: 0 | AO21: 0 | AP21: 0 | AQ21: 0
B22: Economique | C22: oSupSCA_PART | D22: oSupSCA_PART | F22: 0 | G22: 1529.78 | H22: 0 | I22: 1529.78 | J22: 619 | K22: 619 | L22: 619 | M22: 619 | N22: 619 | O22: 619 | P22: 293.14 | Q22: 280.92 | R22: 339.5 | S22: 396.09 | T22: 318.81 | U22: 257.83 | V22: 339.5 | W22: 421.05 | X22: 296.42 | Y22: 297.39 | Z22: 374.19 | AA22: 421.75 | AB22: 296.42 | AC22: 264.38 | AD22: 382.45 | AE22: 421.75 | AF22: 296.42 | AG22: 307.33 | AH22: 358.48 | AI22: 559.95 | AJ22: 317.72 | AK22: 616.4 | AL22: 668.19 | AM22: 619 | AN22: 385.73 | AO22: 335.9288889 | AP22: 419.307 | AQ22: 422.0717241
B23: Economique | C23: oSupSCA_REG | D23: oSupSCA_REG | F23: 0 | G23: 5644 | H23: 0 | I23: 5287.22 | J23: 5433.74 | K23: 5425.73 | L23: 5429.44 | M23: 5438.95 | N23: 5448.64 | O23: 5444.28 | P23: 5644 | Q23: 5644 | R23: 5644 | S23: 5644 | T23: 5644 | U23: 5644 | V23: 5644 | W23: 5644 | X23: 5644 | Y23: 5644 | Z23: 5644 | AA23: 5644 | AB23: 5644 | AC23: 5644 | AD23: 5644 | AE23: 5644 | AF23: 5644 | AG23: 5644 | AH23: 5644 | AI23: 5404.36 | AJ23: 5619.19 | AK23: 4912.3 | AL23: 5306.34 | AM23: 5435.3 | AN23: 5604.056 | AO23: 5644 | AP23: 5510.619 | AQ23: 5555.136897
B24: Economique | C24: oSupActREG_T100% | D24: oSupActREG_T100% | F24: 0 | G24: 979.78 | H24: 0 | I24: 979.78 | J24: 0 | K24: 0 | L24: 0 | M24: 0 | N24: 0 | O24: 0 | P24: 0 | Q24: 0 | R24: 0 | S24: 0 | T24: 0 | U24: 0 | V24: 0 | W24: 0 | X24: 0 | Y24: 0 | Z24: 0 | AA24: 0 | AB24: 0 | AC24: 0 | AD24: 0 | AE24: 0 | AF24: 0 | AG24: 0 | AH24: 0 | AI24: 157.17 | AJ24: 21.3 | AK24: 253.23 | AL24: 17.16 | AM24: 0 | AN24: 0 | AO24: 0 | AP24: 44.886 | AQ24: 15.47793103
B25: Economique | C25: oSupREG_T100% | D25: oSupREG_T100% | F25: 0 | G25: 979.78 | H25: 0 | I25: 979.78 | J25: 0 | K25: 0 | L25: 0 | M25: 0 | N25: 0 | O25: 0 | P25: 0 | Q25: 0 | R25: 0 | S25: 0 | T25: 0 | U25: 0 | V25: 0 | W25: 0 | X25: 0 | Y25: 0 | Z25: 0 | AA25: 0 | AB25: 0 | AC25: 0 | AD25: 0 | AE25: 0 | AF25: 0 | AG25: 0 | AH25: 0 | AI25: 157.17 | AJ25: 21.3 | AK25: 253.23 | AL25: 17.16 | AM25: 0 | AN25: 0 | AO25: 0 | AP25: 44.886 | AQ25: 15.47793103
B26: Economique | C26: oSupREG | D26: oSupREG | F26: 0 | G26: 979.78 | H26: 0 | I26: 979.78 | J26: 0 | K26: 0 | L26: 0 | M26: 0 | N26: 0 | O26: 0 | P26: 0 | Q26: 0 | R26: 0 | S26: 0 | T26: 0 | U26: 0 | V26: 0 | W26: 0 | X26: 0 | Y26: 0 | Z26: 0 | AA26: 0 | AB26: 0 | AC26: 0 | AD26: 0 | AE26: 0 | AF26: 0 | AG26: 0 | AH26: 0 | AI26: 157.17 | AJ26: 21.3 | AK26: 253.23 | AL26: 17.16 | AM26: 0 | AN26: 0 | AO26: 0 | AP26: 44.886 | AQ26: 15.47793103
B27: Economique | C27: oSupActCPIRL_FIN_T100% | D27: oSupActCPIRL_FIN_T100% | F27: 0 | G27: 849.34 | H27: 0 | I27: 0 | J27: 0 | K27: 0 | L27: 0 | M27: 0 | N27: 0 | O27: 0 | P27: 775.02 | Q27: 803.16 | R27: 686 | S27: 572.82 | T27: 727.37 | U27: 849.34 | V27: 686 | W27: 522.9 | X27: 772.16 | Y27: 770.21 | Z27: 616.63 | AA27: 521.51 | AB27: 772.16 | AC27: 836.24 | AD27: 600.1 | AE27: 521.51 | AF27: 772.16 | AG27: 750.34 | AH27: 648.05 | AI27: 559.45 | AJ27: 772.16 | AK27: 638.66 | AL27: 62.93 | AM27: 0 | AN27: 567.4 | AO27: 693.1422222 | AP27: 616.16 | AQ27: 525.4096552
B28: Economique | C28: oSupActCPIRL_INI_T100% | D28: oSupActCPIRL_INI_T100% | F28: 0 | G28: 1302.07 | H28: 0 | I28: 1100 | J28: 1238 | K28: 1238 | L28: 1238 | M28: 1238 | N28: 1238 | O28: 1238 | P28: 586.28 | Q28: 561.84 | R28: 679 | S28: 792.18 | T28: 637.63 | U28: 515.66 | V28: 679 | W28: 842.1 | X28: 592.84 | Y28: 594.79 | Z28: 748.37 | AA28: 843.49 | AB28: 592.84 | AC28: 528.76 | AD28: 764.9 | AE28: 843.49 | AF28: 592.84 | AG28: 614.66 | AH28: 716.95 | AI28: 805.55 | AJ28: 592.84 | AK28: 726.34 | AL28: 1302.07 | AM28: 1238 | AN28: 771.46 | AO28: 671.8577778 | AP28: 748.84 | AQ28: 813.1868966
B29: Economique | C29: oSupCPIRL_FIN_T100% | D29: oSupCPIRL_FIN_T100% | F29: 0 | G29: 849.34 | H29: 0 | I29: 0 | J29: 0 | K29: 0 | L29: 0 | M29: 0 | N29: 0 | O29: 0 | P29: 775.02 | Q29: 803.16 | R29: 686 | S29: 572.82 | T29: 727.37 | U29: 849.34 | V29: 686 | W29: 522.9 | X29: 772.16 | Y29: 770.21 | Z29: 616.63 | AA29: 521.51 | AB29: 772.16 | AC29: 836.24 | AD29: 600.1 | AE29: 521.51 | AF29: 772.16 | AG29: 750.34 | AH29: 648.05 | AI29: 559.45 | AJ29: 772.16 | AK29: 638.66 | AL29: 62.93 | AM29: 0 | AN29: 567.4 | AO29: 693.1422222 | AP29: 616.16 | AQ29: 525.4096552
B30: Economique | C30: oSupCPIRL_INI_T100% | D30: oSupCPIRL_INI_T100% | F30: 0 | G30: 1302.07 | H30: 0 | I30: 1100 | J30: 1238 | K30: 1238 | L30: 1238 | M30: 1238 | N30: 1238 | O30: 1238 | P30: 586.28 | Q30: 561.84 | R30: 679 | S30: 792.18 | T30: 637.63 | U30: 515.66 | V30: 679 | W30: 842.1 | X30: 592.84 | Y30: 594.79 | Z30: 748.37 | AA30: 843.49 | AB30: 592.84 | AC30: 528.76 | AD30: 764.9 | AE30: 843.49 | AF30: 592.84 | AG30: 614.66 | AH30: 716.95 | AI30: 805.55 | AJ30: 592.84 | AK30: 726.34 | AL30: 1302.07 | AM30: 1238 | AN30: 771.46 | AO30: 671.8577778 | AP30: 748.84 | AQ30: 813.1868966
B31: Economique | C31: oSupCPIRL_FIN | D31: oSupCPIRL_FIN | F31: 0 | G31: 849.34 | H31: 0 | I31: 0 | J31: 0 | K31: 0 | L31: 0 | M31: 0 | N31: 0 | O31: 0 | P31: 775.02 | Q31: 803.16 | R31: 686 | S31: 572.82 | T31: 727.37 | U31: 849.34 | V31: 686 | W31: 522.9 | X31: 772.16 | Y31: 770.21 | Z31: 616.63 | AA31: 521.51 | AB31: 772.16 | AC31: 836.24 | AD31: 600.1 | AE31: 521.51 | AF31: 772.16 | AG31: 750.34 | AH31: 648.05 | AI31: 559.45 | AJ31: 772.16 | AK31: 638.66 | AL31: 62.93 | AM31: 0 | AN31: 567.4 | AO31: 693.1422222 | AP31: 616.16 | AQ31: 525.4096552
B32: Economique | C32: oSupCPIRL_INI | D32: oSupCPIRL_INI | F32: 0 | G32: 1302.07 | H32: 0 | I32: 1100 | J32: 1238 | K32: 1238 | L32: 1238 | M32: 1238 | N32: 1238 | O32: 1238 | P32: 586.28 | Q32: 561.84 | R32: 679 | S32: 792.18 | T32: 637.63 | U32: 515.66 | V32: 679 | W32: 842.1 | X32: 592.84 | Y32: 594.79 | Z32: 748.37 | AA32: 843.49 | AB32: 592.84 | AC32: 528.76 | AD32: 764.9 | AE32: 843.49 | AF32: 592.84 | AG32: 614.66 | AH32: 716.95 | AI32: 805.55 | AJ32: 592.84 | AK32: 726.34 | AL32: 1302.07 | AM32: 1238 | AN32: 771.46 | AO32: 671.8577778 | AP32: 748.84 | AQ32: 813.1868966
B33: Economique | C33: oSupActCT_T100% | D33: oSupActCT_T100% | F33: 0 | G33: 23610.71 | H33: 0 | I33: 19298.6 | J33: 16944.6 | K33: 15264.76 | L33: 15024.37 | M33: 14760.51 | N33: 13728.85 | O33: 17446.06 | P33: 16774.59 | Q33: 14828.65 | R33: 16292.13 | S33: 17407 | T33: 17446.01 | U33: 17454.35 | V33: 23610.71 | W33: 16987.61 | X33: 19180.92 | Y33: 13948.5 | Z33: 17784.51 | AA33: 16055.1 | AB33: 20009.95 | AC33: 19544.36 | AD33: 17691.46 | AE33: 21193.76 | AF33: 21022.43 | AG33: 19794.31 | AH33: 19643.98 | AI33: 14390.31 | AJ33: 22144.46 | AK33: 15517.28 | AL33: 18519.09 | AM33: 15144.618 | AN33: 16549.686 | AO33: 18053.07333 | AP33: 18946.144 | AQ33: 17600.36621
B34: Economique | C34: oSupCT_T100% | D34: oSupCT_T100% | F34: 0 | G34: 23610.71 | H34: 0 | I34: 19298.6 | J34: 16944.6 | K34: 15264.76 | L34: 15024.37 | M34: 14760.51 | N34: 13728.85 | O34: 17446.06 | P34: 16774.59 | Q34: 14828.65 | R34: 16292.13 | S34: 17407 | T34: 17446.01 | U34: 17454.35 | V34: 23610.71 | W34: 16987.61 | X34: 19180.92 | Y34: 13948.5 | Z34: 17784.51 | AA34: 16055.1 | AB34: 20009.95 | AC34: 19544.36 | AD34: 17691.46 | AE34: 21193.76 | AF34: 21022.43 | AG34: 19794.31 | AH34: 19643.98 | AI34: 14390.31 | AJ34: 22144.46 | AK34: 15517.28 | AL34: 18519.09 | AM34: 15144.618 | AN34: 16549.686 | AO34: 18053.07333 | AP34: 18946.144 | AQ34: 17600.36621
B35: Economique | C35: oSupCT | D35: oSupCT | F35: 0 | G35: 23610.71 | H35: 0 | I35: 19298.6 | J35: 16944.6 | K35: 15264.76 | L35: 15024.37 | M35: 14760.51 | N35: 13728.85 | O35: 17446.06 | P35: 16774.59 | Q35: 14828.65 | R35: 16292.13 | S35: 17407 | T35: 17446.01 | U35: 17454.35 | V35: 23610.71 | W35: 16987.61 | X35: 19180.92 | Y35: 13948.5 | Z35: 17784.51 | AA35: 16055.1 | AB35: 20009.95 | AC35: 19544.36 | AD35: 17691.46 | AE35: 21193.76 | AF35: 21022.43 | AG35: 19794.31 | AH35: 19643.98 | AI35: 14390.31 | AJ35: 22144.46 | AK35: 15517.28 | AL35: 18519.09 | AM35: 15144.618 | AN35: 16549.686 | AO35: 18053.07333 | AP35: 18946.144 | AQ35: 17600.36621
B36: Economique | C36: oSupActPL_SEPM_E_T100% | D36: oSupActPL_SEPM_E_T100% | F36: 0 | G36: 5644 | H36: 0 | I36: 5182.22 | J36: 5328.74 | K36: 5257.88 | L36: 5282.29 | M36: 5333.95 | N36: 5401.28 | O36: 5386.64 | P36: 5281.85 | Q36: 5204.87 | R36: 5539 | S36: 5644 | T36: 5429.87 | U36: 5014.61 | V36: 5493.14 | W36: 5539 | X36: 4753.09 | Y36: 4767.01 | Z36: 5219.32 | AA36: 5521.38 | AB36: 5112.7 | AC36: 4563.85 | AD36: 5290.42 | AE36: 5539 | AF36: 4976.29 | AG36: 5315.34 | AH36: 5142.89 | AI36: 4555.85 | AJ36: 5172.04 | AK36: 1762.51 | AL36: 5276.36 | AM36: 5320.828 | AN36: 5411.272 | AO36: 5205.568889 | AP36: 4759.455 | AQ36: 5107.074828
B37: Economique | C37: oSupActPL_SEPM_I_T100% | D37: oSupActPL_SEPM_I_T100% | F37: 0 | G37: 3149.79 | H37: 0 | I37: 105 | J37: 105 | K37: 167.85 | L37: 147.15 | M37: 105 | N37: 47.36 | O37: 57.64 | P37: 362.15 | Q37: 439.13 | R37: 105 | S37: 0 | T37: 214.13 | U37: 629.39 | V37: 150.86 | W37: 105 | X37: 890.91 | Y37: 876.99 | Z37: 424.68 | AA37: 122.62 | AB37: 531.3 | AC37: 1080.15 | AD37: 353.58 | AE37: 105 | AF37: 667.71 | AG37: 328.66 | AH37: 501.11 | AI37: 848.51 | AJ37: 447.16 | AK37: 3149.79 | AL37: 29.99 | AM37: 114.472 | AN37: 192.784 | AO37: 438.4311111 | AP37: 751.166 | AQ37: 448.0627586
B38: Economique | C38: oSupPL_SEPM_E_T100% | D38: oSupPL_SEPM_E_T100% | F38: 0 | G38: 5644 | H38: 0 | I38: 5182.22 | J38: 5328.74 | K38: 5257.88 | L38: 5282.29 | M38: 5333.95 | N38: 5401.28 | O38: 5386.64 | P38: 5281.85 | Q38: 5204.87 | R38: 5539 | S38: 5644 | T38: 5429.87 | U38: 5014.61 | V38: 5493.14 | W38: 5539 | X38: 4753.09 | Y38: 4767.01 | Z38: 5219.32 | AA38: 5521.38 | AB38: 5112.7 | AC38: 4563.85 | AD38: 5290.42 | AE38: 5539 | AF38: 4976.29 | AG38: 5315.34 | AH38: 5142.89 | AI38: 4555.85 | AJ38: 5172.04 | AK38: 1762.51 | AL38: 5276.36 | AM38: 5320.828 | AN38: 5411.272 | AO38: 5205.568889 | AP38: 4759.455 | AQ38: 5107.074828
B39: Economique | C39: oSupPL_SEPM_I_T100% | D39: oSupPL_SEPM_I_T100% | F39: 0 | G39: 3149.79 | H39: 0 | I39: 105 | J39: 105 | K39: 167.85 | L39: 147.15 | M39: 105 | N39: 47.36 | O39: 57.64 | P39: 362.15 | Q39: 439.13 | R39: 105 | S39: 0 | T39: 214.13 | U39: 629.39 | V39: 150.86 | W39: 105 | X39: 890.91 | Y39: 876.99 | Z39: 424.68 | AA39: 122.62 | AB39: 531.3 | AC39: 1080.15 | AD39: 353.58 | AE39: 105 | AF39: 667.71 | AG39: 328.66 | AH39: 501.11 | AI39: 848.51 | AJ39: 447.16 | AK39: 3149.79 | AL39: 29.99 | AM39: 114.472 | AN39: 192.784 | AO39: 438.4311111 | AP39: 751.166 | AQ39: 448.0627586
B40: Economique | C40: oSupPL_SEPM_E | D40: oSupPL_SEPM_E | F40: 0 | G40: 5644 | H40: 0 | I40: 5182.22 | J40: 5328.74 | K40: 5257.88 | L40: 5282.29 | M40: 5333.95 | N40: 5401.28 | O40: 5386.64 | P40: 5281.85 | Q40: 5204.87 | R40: 5539 | S40: 5644 | T40: 5429.87 | U40: 5014.61 | V40: 5493.14 | W40: 5539 | X40: 4753.09 | Y40: 4767.01 | Z40: 5219.32 | AA40: 5521.38 | AB40: 5112.7 | AC40: 4563.85 | AD40: 5290.42 | AE40: 5539 | AF40: 4976.29 | AG40: 5315.34 | AH40: 5142.89 | AI40: 4555.85 | AJ40: 5172.04 | AK40: 1762.51 | AL40: 5276.36 | AM40: 5320.828 | AN40: 5411.272 | AO40: 5205.568889 | AP40: 4759.455 | AQ40: 5107.074828
B41: Economique | C41: oSupPL_SEPM_I | D41: oSupPL_SEPM_I | F41: 0 | G41: 3149.79 | H41: 0 | I41: 105 | J41: 105 | K41: 167.85 | L41: 147.15 | M41: 105 | N41: 47.36 | O41: 57.64 | P41: 362.15 | Q41: 439.13 | R41: 105 | S41: 0 | T41: 214.13 | U41: 629.39 | V41: 150.86 | W41: 105 | X41: 890.91 | Y41: 876.99 | Z41: 424.68 | AA41: 122.62 | AB41: 531.3 | AC41: 1080.15 | AD41: 353.58 | AE41: 105 | AF41: 667.71 | AG41: 328.66 | AH41: 501.11 | AI41: 848.51 | AJ41: 447.16 | AK41: 3149.79 | AL41: 29.99 | AM41: 114.472 | AN41: 192.784 | AO41: 438.4311111 | AP41: 751.166 | AQ41: 448.0627586
B42: Economique | C42: oSupActEPC_1_T100% | D42: oSupActEPC_1_T100% | F42: 0 | G42: 0 | H42: 0 | I42: 0 | J42: 0 | K42: 0 | L42: 0 | M42: 0 | N42: 0 | O42: 0 | P42: 0 | Q42: 0 | R42: 0 | S42: 0 | T42: 0 | U42: 0 | V42: 0 | W42: 0 | X42: 0 | Y42: 0 | Z42: 0 | AA42: 0 | AB42: 0 | AC42: 0 | AD42: 0 | AE42: 0 | AF42: 0 | AG42: 0 | AH42: 0 | AI42: 0 | AJ42: 0 | AK42: 0 | AL42: 0 | AM42: 0 | AN42: 0 | AO42: 0 | AP42: 0 | AQ42: 0
B43: Economique | C43: oSupEPC_1_T100% | D43: oSupEPC_1_T100% | F43: 0 | G43: 0 | H43: 0 | I43: 0 | J43: 0 | K43: 0 | L43: 0 | M43: 0 | N43: 0 | O43: 0 | P43: 0 | Q43: 0 | R43: 0 | S43: 0 | T43: 0 | U43: 0 | V43: 0 | W43: 0 | X43: 0 | Y43: 0 | Z43: 0 | AA43: 0 | AB43: 0 | AC43: 0 | AD43: 0 | AE43: 0 | AF43: 0 | AG43: 0 | AH43: 0 | AI43: 0 | AJ43: 0 | AK43: 0 | AL43: 0 | AM43: 0 | AN43: 0 | AO43: 0 | AP43: 0 | AQ43: 0
B44: Economique | C44: oSupEPC_1 | D44: oSupEPC_1 | F44: 0 | G44: 0 | H44: 0 | I44: 0 | J44: 0 | K44: 0 | L44: 0 | M44: 0 | N44: 0 | O44: 0 | P44: 0 | Q44: 0 | R44: 0 | S44: 0 | T44: 0 | U44: 0 | V44: 0 | W44: 0 | X44: 0 | Y44: 0 | Z44: 0 | AA44: 0 | AB44: 0 | AC44: 0 | AD44: 0 | AE44: 0 | AF44: 0 | AG44: 0 | AH44: 0 | AI44: 0 | AJ44: 0 | AK44: 0 | AL44: 0 | AM44: 0 | AN44: 0 | AO44: 0 | AP44: 0 | AQ44: 0
B45: Economique | C45: oSupActEC_SEPM_T100% | D45: oSupActEC_SEPM_T100% | F45: 0 | G45: 105 | H45: 0 | I45: 0 | J45: 95 | K45: 95 | L45: 95 | M45: 95 | N45: 95 | O45: 95 | P45: 105 | Q45: 105 | R45: 105 | S45: 105 | T45: 105 | U45: 105 | V45: 105 | W45: 105 | X45: 105 | Y45: 105 | Z45: 105 | AA45: 105 | AB45: 105 | AC45: 105 | AD45: 105 | AE45: 105 | AF45: 105 | AG45: 105 | AH45: 105 | AI45: 105 | AJ45: 105 | AK45: 105 | AL45: 105 | AM45: 95 | AN45: 103 | AO45: 105 | AP45: 105 | AQ45: 102.9310345
B46: Economique | C46: oSupEC_SEPM_T100% | D46: oSupEC_SEPM_T100% | F46: 0 | G46: 105 | H46: 0 | I46: 0 | J46: 95 | K46: 95 | L46: 95 | M46: 95 | N46: 95 | O46: 95 | P46: 105 | Q46: 105 | R46: 105 | S46: 105 | T46: 105 | U46: 105 | V46: 105 | W46: 105 | X46: 105 | Y46: 105 | Z46: 105 | AA46: 105 | AB46: 105 | AC46: 105 | AD46: 105 | AE46: 105 | AF46: 105 | AG46: 105 | AH46: 105 | AI46: 105 | AJ46: 105 | AK46: 105 | AL46: 105 | AM46: 95 | AN46: 103 | AO46: 105 | AP46: 105 | AQ46: 102.9310345
B47: Economique | C47: oSupEC_SEPM | D47: oSupEC_SEPM | F47: 0 | G47: 105 | H47: 0 | I47: 0 | J47: 95 | K47: 95 | L47: 95 | M47: 95 | N47: 95 | O47: 95 | P47: 105 | Q47: 105 | R47: 105 | S47: 105 | T47: 105 | U47: 105 | V47: 105 | W47: 105 | X47: 105 | Y47: 105 | Z47: 105 | AA47: 105 | AB47: 105 | AC47: 105 | AD47: 105 | AE47: 105 | AF47: 105 | AG47: 105 | AH47: 105 | AI47: 105 | AJ47: 105 | AK47: 105 | AL47: 105 | AM47: 95 | AN47: 103 | AO47: 105 | AP47: 105 | AQ47: 102.9310345
B48: Economique | C48: oSupActNETT_T100% | D48: oSupActNETT_T100% | F48: 0 | G48: 1924.57 | H48: 0 | I48: 1924.57 | J48: 95 | K48: 95 | L48: 95 | M48: 95 | N48: 95 | O48: 96.55 | P48: 105 | Q48: 105 | R48: 105 | S48: 105 | T48: 105 | U48: 105 | V48: 105 | W48: 95 | X48: 95 | Y48: 95 | Z48: 95 | AA48: 95 | AB48: 105 | AC48: 95 | AD48: 95 | AE48: 95 | AF48: 95 | AG48: 95 | AH48: 95 | AI48: 95 | AJ48: 95 | AK48: 95 | AL48: 95 | AM48: 95 | AN48: 103.31 | AO48: 99.44444444 | AP48: 95 | AQ48: 97.81206897
B49: Economique | C49: oSupTcadNETT_T100% | D49: oSupTcadNETT_T100% | F49: 0 | G49: 188.82 | H49: 0 | I49: 0 | J49: 0 | K49: 31.5 | L49: 31.5 | M49: 50.36 | N49: 44.14 | O49: 31.5 | P49: 14.21 | Q49: 17.29 | R49: 63 | S49: 31.5 | T49: 31.5 | U49: 0 | V49: 63 | W49: 188.82 | X49: 45.26 | Y49: 31.5 | Z49: 66.62 | AA49: 50.36 | AB49: 127.41 | AC49: 31.5 | AD49: 31.5 | AE49: 19.82 | AF49: 54.66 | AG49: 31.5 | AH49: 31.5 | AI49: 63 | AJ49: 24.15 | AK49: 7.35 | AL49: 31.5 | AM49: 31.5 | AN49: 31.5 | AO49: 67.16333333 | AP49: 32.648 | AQ49: 42.9637931
B50: Economique | C50: oSupNETT_T100% | D50: oSupNETT_T100% | F50: 0 | G50: 1924.57 | H50: 0 | I50: 1924.57 | J50: 95 | K50: 126.5 | L50: 126.5 | M50: 145.36 | N50: 139.14 | O50: 128.05 | P50: 119.21 | Q50: 122.29 | R50: 168 | S50: 136.5 | T50: 136.5 | U50: 105 | V50: 168 | W50: 283.82 | X50: 140.26 | Y50: 126.5 | Z50: 161.62 | AA50: 145.36 | AB50: 232.41 | AC50: 126.5 | AD50: 126.5 | AE50: 114.82 | AF50: 149.66 | AG50: 126.5 | AH50: 126.5 | AI50: 158 | AJ50: 119.15 | AK50: 102.35 | AL50: 126.5 | AM50: 126.5 | AN50: 134.81 | AO50: 166.6077778 | AP50: 127.648 | AQ50: 140.7758621
B51: Economique | C51: oSupNETT | D51: oSupNETT | F51: 0 | G51: 1924.57 | H51: 0 | I51: 1924.57 | J51: 95 | K51: 126.5 | L51: 126.5 | M51: 145.36 | N51: 139.14 | O51: 128.05 | P51: 119.21 | Q51: 122.29 | R51: 168 | S51: 136.5 | T51: 136.5 | U51: 105 | V51: 168 | W51: 283.82 | X51: 140.26 | Y51: 126.5 | Z51: 161.62 | AA51: 145.36 | AB51: 232.41 | AC51: 126.5 | AD51: 126.5 | AE51: 114.82 | AF51: 149.66 | AG51: 126.5 | AH51: 126.5 | AI51: 158 | AJ51: 119.15 | AK51: 102.35 | AL51: 126.5 | AM51: 126.5 | AN51: 134.81 | AO51: 166.6077778 | AP51: 127.648 | AQ51: 140.7758621
B52: Economique | C52: oTauxDEG | D52: oTauxDEG | F52: 0 | G52: 419808.78 | H52: 0 | I52: 419808.78 | J52: 307020 | K52: 266385 | L52: 266385 | M52: 242061.08 | N52: 250073.92 | O52: 266385 | P52: 320940.71 | Q52: 316964.29 | R52: 258000 | S52: 266385 | T52: 298635 | U52: 324155.54 | V52: 246075.1 | W52: 63446.92 | X52: 248635.25 | Y52: 266385 | Z52: 221084.41 | AA52: 242061.08 | AB52: 142667.33 | AC52: 266385 | AD52: 266385 | AE52: 281457.05 | AF52: 236507.87 | AG52: 298635 | AH52: 266385 | AI52: 258000 | AJ52: 308118.97 | AK52: 308529.58 | AL52: 298635 | AM52: 266385 | AN52: 285735 | AO52: 228127.2922 | AP52: 278903.847 | AQ52: 262164.969
B53: Economique | C53: oTauxSCA | D53: oTauxSCA | F53: 0 | G53: 2993841.04 | H53: 0 | I53: 2993841.04 | J53: 2562093.55 | K53: 2558808.84 | L53: 2560331.01 | M53: 2564229.33 | N53: 2568203.22 | O53: 2566413.37 | P53: 2472335.54 | Q53: 2465736.57 | R53: 2497370.87 | S53: 2527928.72 | T53: 2486200.04 | U53: 2453267.6 | V53: 2497370.87 | W53: 2541406.81 | X53: 2474107.9 | Y53: 2474632.82 | Z53: 2516100.65 | AA53: 2541783.63 | AB53: 2474107.9 | AC53: 2456805.9 | AD53: 2520562.57 | AE53: 2541783.63 | AF53: 2474107.9 | AG53: 2479997.6 | AH53: 2507616.56 | AI53: 2518160.4 | AJ53: 2475437.08 | AK53: 2346897.33 | AL53: 2536424.09 | AM53: 2562733.19 | AN53: 2505957.014 | AO53: 2495442.024 | AP53: 2485779.306 | AQ53: 2505524.907
B54: Economique | C54: oTauxREG | D54: oTauxREG | F54: 0 | G54: 460495.29 | H54: 0 | I54: 460495.29 | J54: 0 | K54: 0 | L54: 0 | M54: 0 | N54: 0 | O54: 0 | P54: 0 | Q54: 0 | R54: 0 | S54: 0 | T54: 0 | U54: 0 | V54: 0 | W54: 0 | X54: 0 | Y54: 0 | Z54: 0 | AA54: 0 | AB54: 0 | AC54: 0 | AD54: 0 | AE54: 0 | AF54: 0 | AG54: 0 | AH54: 0 | AI54: 73870.97 | AJ54: 10009.36 | AK54: 119016.22 | AL54: 8064.24 | AM54: 0 | AN54: 0 | AO54: 0 | AP54: 21096.079 | AQ54: 7274.51
B55: Economique | C55: oTauxCPI | D55: oTauxCPI | F55: 0 | G55: 690094.72 | H55: 0 | I55: 583000 | J55: 656140 | K55: 656140 | L55: 656140 | M55: 656140 | N55: 656140 | O55: 656140 | P55: 310728.28 | Q55: 297774.75 | R55: 359871.71 | S55: 419855.63 | T55: 337943.78 | U55: 273298.62 | V55: 359871.71 | W55: 446312.62 | X55: 314207.35 | Y55: 315237.76 | Z55: 396637.57 | AA55: 447052.32 | AB55: 314207.35 | AC55: 280244.17 | AD55: 405396.15 | AE55: 447052.32 | AF55: 314207.35 | AG55: 325768.62 | AH55: 379983.61 | AI55: 426940.42 | AJ55: 314207.35 | AK55: 384962.54 | AL55: 690094.72 | AM55: 656140 | AN55: 408874.074 | AO55: 356085.4533 | AP55: 396885.725 | AQ55: 430989.5414
B56: Economique | C56: oTauxCT | D56: oTauxCT | F56: 0 | G56: 0 | H56: 0 | I56: 0 | J56: 0 | K56: 0 | L56: 0 | M56: 0 | N56: 0 | O56: 0 | P56: 0 | Q56: 0 | R56: 0 | S56: 0 | T56: 0 | U56: 0 | V56: 0 | W56: 0 | X56: 0 | Y56: 0 | Z56: 0 | AA56: 0 | AB56: 0 | AC56: 0 | AD56: 0 | AE56: 0 | AF56: 0 | AG56: 0 | AH56: 0 | AI56: 0 | AJ56: 0 | AK56: 0 | AL56: 0 | AM56: 0 | AN56: 0 | AO56: 0 | AP56: 0 | AQ56: 0
B57: Economique | C57: oTauxPL | D57: oTauxPL | F57: 0 | G57: 6150598.44 | H57: 0 | I57: 5526011.7 | J57: 5678389.97 | K57: 5686399.68 | L57: 5684877.51 | M57: 5683807.56 | N57: 5678901.94 | O57: 5677033.33 | P57: 5963920.08 | Q57: 5983934.95 | R57: 5897060 | S57: 5869760 | T57: 5925433.77 | U57: 6033400.83 | V57: 5908984.9 | W57: 5897060 | X57: 6101397.2 | Y57: 6097777.93 | Z57: 5980177.82 | AA57: 5901640.93 | AB57: 6007898.11 | AC57: 6150598.44 | AD57: 5961689.8 | AE57: 5897060 | AF57: 6043365.86 | AG57: 5955211.37 | AH57: 6000048.35 | AI57: 5841151.73 | AJ57: 5960221.01 | AK57: 5927735.73 | AL57: 5526394.54 | AM57: 5682475.332 | AN57: 5878341.672 | AO57: 5983752.388 | AP57: 5926347.683 | AQ57: 5893839.081
B58: Economique | C58: oTauxEPC | D58: oTauxEPC | F58: 0 | G58: 0 | H58: 0 | I58: 0 | J58: 0 | K58: 0 | L58: 0 | M58: 0 | N58: 0 | O58: 0 | P58: 0 | Q58: 0 | R58: 0 | S58: 0 | T58: 0 | U58: 0 | V58: 0 | W58: 0 | X58: 0 | Y58: 0 | Z58: 0 | AA58: 0 | AB58: 0 | AC58: 0 | AD58: 0 | AE58: 0 | AF58: 0 | AG58: 0 | AH58: 0 | AI58: 0 | AJ58: 0 | AK58: 0 | AL58: 0 | AM58: 0 | AN58: 0 | AO58: 0 | AP58: 0 | AQ58: 0
B59: Economique | C59: oTauxEC | D59: oTauxEC | F59: 0 | G59: 143850 | H59: 0 | I59: 0 | J59: 130150 | K59: 130150 | L59: 130150 | M59: 130150 | N59: 130150 | O59: 130150 | P59: 143850 | Q59: 143850 | R59: 143850 | S59: 143850 | T59: 143850 | U59: 143850 | V59: 143850 | W59: 143850 | X59: 143850 | Y59: 143850 | Z59: 143850 | AA59: 143850 | AB59: 143850 | AC59: 143850 | AD59: 143850 | AE59: 143850 | AF59: 143850 | AG59: 143850 | AH59: 143850 | AI59: 143850 | AJ59: 143850 | AK59: 143850 | AL59: 143850 | AM59: 130150 | AN59: 141110 | AO59: 143850 | AP59: 143850 | AQ59: 141015.5172
B60: Economique | C60: oTauxNET | D60: oTauxNET | F60: 0 | G60: 2194006.19 | H60: 0 | I60: 2194006.19 | J60: 108300 | K60: 144210 | L60: 144210 | M60: 165705.56 | N60: 158624.45 | O60: 145971.82 | P60: 135897.98 | Q60: 139412.02 | R60: 191520 | S60: 155610 | T60: 155610 | U60: 119700 | V60: 191520 | W60: 323550.63 | X60: 159895.82 | Y60: 144210 | Z60: 184243.08 | AA60: 165705.56 | AB60: 264941.9 | AC60: 144210 | AD60: 144210 | AE60: 130890.51 | AF60: 170613.04 | AG60: 144210 | AH60: 144210 | AI60: 180120 | AJ60: 135828.81 | AK60: 116681.19 | AL60: 144210 | AM60: 144210.002 | AN60: 153682.364 | AO60: 189930.7767 | AP60: 145518.355 | AQ60: 160483.53
B61: Economique | C61: oSupRealDEG | D61: oSupRealDEG | F61: 0 | G61: 325.43 | H61: 0 | I61: 325.43 | J61: 238 | K61: 206.5 | L61: 206.5 | M61: 187.64 | N61: 193.86 | O61: 206.5 | P61: 248.79 | Q61: 245.71 | R61: 200 | S61: 206.5 | T61: 231.5 | U61: 251.28 | V61: 190.76 | W61: 49.18 | X61: 192.74 | Y61: 206.5 | Z61: 171.38 | AA61: 187.64 | AB61: 110.59 | AC61: 206.5 | AD61: 206.5 | AE61: 218.18 | AF61: 183.34 | AG61: 231.5 | AH61: 206.5 | AI61: 200 | AJ61: 238.85 | AK61: 239.17 | AL61: 231.5 | AM61: 206.5 | AN61: 221.5 | AO61: 176.8411111 | AP61: 216.204 | AQ61: 203.227931
B62: Economique | C62: oSupRealSCA | D62: oSupRealSCA | F62: 0 | G62: 6817 | H62: 0 | I62: 6817 | J62: 6052.74 | K62: 6044.73 | L62: 6048.44 | M62: 6057.95 | N62: 6067.64 | O62: 6063.28 | P62: 5937.14 | Q62: 5924.92 | R62: 5983.5 | S62: 6040.09 | T62: 5962.81 | U62: 5901.83 | V62: 5983.5 | W62: 6065.05 | X62: 5940.42 | Y62: 5941.39 | Z62: 6018.19 | AA62: 6065.75 | AB62: 5940.42 | AC62: 5908.38 | AD62: 6026.45 | AE62: 6065.75 | AF62: 5940.42 | AG62: 5951.33 | AH62: 6002.48 | AI62: 5964.31 | AJ62: 5936.91 | AK62: 5528.7 | AL62: 5974.53 | AM62: 6054.3 | AN62: 5989.786 | AO62: 5979.928889 | AP62: 5929.926 | AQ62: 5977.208621
B63: Economique | C63: oSupRealREG | D63: oSupRealREG | F63: 0 | G63: 979.78 | H63: 0 | I63: 979.78 | J63: 0 | K63: 0 | L63: 0 | M63: 0 | N63: 0 | O63: 0 | P63: 0 | Q63: 0 | R63: 0 | S63: 0 | T63: 0 | U63: 0 | V63: 0 | W63: 0 | X63: 0 | Y63: 0 | Z63: 0 | AA63: 0 | AB63: 0 | AC63: 0 | AD63: 0 | AE63: 0 | AF63: 0 | AG63: 0 | AH63: 0 | AI63: 157.17 | AJ63: 21.3 | AK63: 253.23 | AL63: 17.16 | AM63: 0 | AN63: 0 | AO63: 0 | AP63: 44.886 | AQ63: 15.47793103
B64: Economique | C64: oSupRealCPI | D64: oSupRealCPI | F64: 0 | G64: 1365 | H64: 0 | I64: 1100 | J64: 1238 | K64: 1238 | L64: 1238 | M64: 1238 | N64: 1238 | O64: 1238 | P64: 1361.3 | Q64: 1365 | R64: 1365 | S64: 1365 | T64: 1365 | U64: 1365 | V64: 1365 | W64: 1365 | X64: 1365 | Y64: 1365 | Z64: 1365 | AA64: 1365 | AB64: 1365 | AC64: 1365 | AD64: 1365 | AE64: 1365 | AF64: 1365 | AG64: 1365 | AH64: 1365 | AI64: 1365 | AJ64: 1365 | AK64: 1365 | AL64: 1365 | AM64: 1238 | AN64: 1338.86 | AO64: 1365 | AP64: 1365 | AQ64: 1338.596552
B65: Economique | C65: oSupRealCT | D65: oSupRealCT | F65: 0 | G65: 23610.71 | H65: 0 | I65: 19298.6 | J65: 16944.6 | K65: 15264.76 | L65: 15024.37 | M65: 14760.51 | N65: 13728.85 | O65: 17446.06 | P65: 16774.59 | Q65: 14828.65 | R65: 16292.13 | S65: 17407 | T65: 17446.01 | U65: 17454.35 | V65: 23610.71 | W65: 16987.61 | X65: 19180.92 | Y65: 13948.5 | Z65: 17784.51 | AA65: 16055.1 | AB65: 20009.95 | AC65: 19544.36 | AD65: 17691.46 | AE65: 21193.76 | AF65: 21022.43 | AG65: 19794.31 | AH65: 19643.98 | AI65: 14390.31 | AJ65: 22144.46 | AK65: 15517.28 | AL65: 18519.09 | AM65: 15144.618 | AN65: 16549.686 | AO65: 18053.07333 | AP65: 18946.144 | AQ65: 17600.36621
B66: Economique | C66: oSupRealPL | D66: oSupRealPL | F66: 0 | G66: 5644 | H66: 0 | I66: 5287.22 | J66: 5433.74 | K66: 5425.73 | L66: 5429.44 | M66: 5438.95 | N66: 5448.64 | O66: 5444.28 | P66: 5644 | Q66: 5644 | R66: 5644 | S66: 5644 | T66: 5644 | U66: 5644 | V66: 5644 | W66: 5644 | X66: 5644 | Y66: 5644 | Z66: 5644 | AA66: 5644 | AB66: 5644 | AC66: 5644 | AD66: 5644 | AE66: 5644 | AF66: 5644 | AG66: 5644 | AH66: 5644 | AI66: 5404.36 | AJ66: 5619.19 | AK66: 4912.3 | AL66: 5306.34 | AM66: 5435.3 | AN66: 5604.056 | AO66: 5644 | AP66: 5510.619 | AQ66: 5555.136897
B67: Economique | C67: oSupRealEPC | D67: oSupRealEPC | F67: 0 | G67: 0 | H67: 0 | I67: 0 | J67: 0 | K67: 0 | L67: 0 | M67: 0 | N67: 0 | O67: 0 | P67: 0 | Q67: 0 | R67: 0 | S67: 0 | T67: 0 | U67: 0 | V67: 0 | W67: 0 | X67: 0 | Y67: 0 | Z67: 0 | AA67: 0 | AB67: 0 | AC67: 0 | AD67: 0 | AE67: 0 | AF67: 0 | AG67: 0 | AH67: 0 | AI67: 0 | AJ67: 0 | AK67: 0 | AL67: 0 | AM67: 0 | AN67: 0 | AO67: 0 | AP67: 0 | AQ67: 0
B68: Economique | C68: oSupRealEC | D68: oSupRealEC | F68: 0 | G68: 105 | H68: 0 | I68: 0 | J68: 95 | K68: 95 | L68: 95 | M68: 95 | N68: 95 | O68: 95 | P68: 105 | Q68: 105 | R68: 105 | S68: 105 | T68: 105 | U68: 105 | V68: 105 | W68: 105 | X68: 105 | Y68: 105 | Z68: 105 | AA68: 105 | AB68: 105 | AC68: 105 | AD68: 105 | AE68: 105 | AF68: 105 | AG68: 105 | AH68: 105 | AI68: 105 | AJ68: 105 | AK68: 105 | AL68: 105 | AM68: =AVERAGE(J68:N68) -> 95 | AN68: =AVERAGE(O68:S68) -> 103 | AO68: =AVERAGE(T68:AB68) -> 105 | AP68: =AVERAGE(AC68:AL68) -> 105 | AQ68: =AVERAGE(J68:AL68) -> 102.9310345
B69: Economique | C69: oSupRealNET | D69: oSupRealNET | F69: 0 | G69: 1924.57 | H69: 0 | I69: 1924.57 | J69: 95 | K69: 126.5 | L69: 126.5 | M69: 145.36 | N69: 139.14 | O69: 128.05 | P69: 119.21 | Q69: 122.29 | R69: 168 | S69: 136.5 | T69: 136.5 | U69: 105 | V69: 168 | W69: 283.82 | X69: 140.26 | Y69: 126.5 | Z69: 161.62 | AA69: 145.36 | AB69: 232.41 | AC69: 126.5 | AD69: 126.5 | AE69: 114.82 | AF69: 149.66 | AG69: 126.5 | AH69: 126.5 | AI69: 158 | AJ69: 119.15 | AK69: 102.35 | AL69: 126.5 | AM69: 126.5 | AN69: 134.81 | AO69: 166.6077778 | AP69: 127.648 | AQ69: 140.7758621
B70: Economique | C70: oCoutProdPlants | D70: oCoutProdPlants | F70: 0 | G70: 0 | H70: 0 | I70: 0 | J70: 0 | K70: 0 | L70: 0 | M70: 0 | N70: 0 | O70: 0 | P70: 0 | Q70: 0 | R70: 0 | S70: 0 | T70: 0 | U70: 0 | V70: 0 | W70: 0 | X70: 0 | Y70: 0 | Z70: 0 | AA70: 0 | AB70: 0 | AC70: 0 | AD70: 0 | AE70: 0 | AF70: 0 | AG70: 0 | AH70: 0 | AI70: 0 | AJ70: 0 | AK70: 0 | AL70: 0 | AM70: 0 | AN70: 0 | AO70: 0 | AP70: 0 | AQ70: 0
B71: Economique | C71: oCoutTransPlants | D71: oCoutTransPlants | F71: 0 | G71: 0 | H71: 0 | I71: 0 | J71: 0 | K71: 0 | L71: 0 | M71: 0 | N71: 0 | O71: 0 | P71: 0 | Q71: 0 | R71: 0 | S71: 0 | T71: 0 | U71: 0 | V71: 0 | W71: 0 | X71: 0 | Y71: 0 | Z71: 0 | AA71: 0 | AB71: 0 | AC71: 0 | AD71: 0 | AE71: 0 | AF71: 0 | AG71: 0 | AH71: 0 | AI71: 0 | AJ71: 0 | AK71: 0 | AL71: 0 | AM71: 0 | AN71: 0 | AO71: 0 | AP71: 0 | AQ71: 0
B72: Economique | C72: o$InvestisTS | D72: o$InvestisTS | F72: 0 | G72: 12177163 | H72: 0 | I72: 12177163 | J72: 9442093.52 | K72: 9442093.52 | L72: 9442093.52 | M72: 9442093.52 | N72: 9442093.52 | O72: 9442093.52 | P72: 9347672.58 | Q72: 9347672.58 | R72: 9347672.58 | S72: 9383389.35 | T72: 9347672.58 | U72: 9347672.58 | V72: 9347672.58 | W72: 9415626.97 | X72: 9442093.52 | Y72: 9442093.52 | Z72: 9442093.52 | AA72: 9442093.52 | AB72: 9347672.58 | AC72: 9442093.52 | AD72: 9442093.52 | AE72: 9442093.52 | AF72: 9382652.02 | AG72: 9347672.58 | AH72: 9442093.52 | AI72: 9442093.52 | AJ72: 9347672.58 | AK72: 9347672.58 | AL72: 9347672.58 | AM72: 9442093.52 | AN72: 9373700.122 | AO72: 9397187.93 | AP72: 9398380.994 | AQ72: 9401292.052
B73: Economique | C73: oTauxREGAPAR | D73: oTauxREGAPAR | F73: 0 | G73: 833944.72 | H73: 0 | I73: 583000 | J73: 786290 | K73: 786290 | L73: 786290 | M73: 786290 | N73: 786290 | O73: 786290 | P73: 454578.28 | Q73: 441624.75 | R73: 503721.71 | S73: 563705.63 | T73: 481793.78 | U73: 417148.62 | V73: 503721.71 | W73: 590162.62 | X73: 458057.35 | Y73: 459087.76 | Z73: 540487.57 | AA73: 590902.32 | AB73: 458057.35 | AC73: 424094.17 | AD73: 549246.15 | AE73: 590902.32 | AF73: 458057.35 | AG73: 469618.62 | AH73: 523833.61 | AI73: 570790.42 | AJ73: 458057.35 | AK73: 528812.54 | AL73: 833944.72 | AM73: 786290 | AN73: 549984.074 | AO73: 499935.4533 | AP73: 540735.725 | AQ73: 572005.0586
B74: Economique | C74: oTauxREGAEDU | D74: oTauxREGAEDU | F74: 0 | G74: 2613814.97 | H74: 0 | I74: 2613814.97 | J74: 415320 | K74: 410595 | L74: 410595 | M74: 407766.64 | N74: 408698.36 | O74: 412356.82 | P74: 456838.69 | Q74: 456376.31 | R74: 449520 | S74: 421995 | T74: 454245 | U74: 443855.54 | V74: 437595.1 | W74: 386997.55 | X74: 408531.08 | Y74: 410595 | Z74: 405327.49 | AA74: 407766.64 | AB74: 407609.22 | AC74: 410595 | AD74: 410595 | AE74: 412347.56 | AF74: 407120.92 | AG74: 442845 | AH74: 410595 | AI74: 438120 | AJ74: 443947.79 | AK74: 425210.77 | AL74: 442845 | AM74: 410595 | AN74: 439417.364 | AO74: 418058.0689 | AP74: 424422.204 | AQ74: 422648.4993
B75: Economique | C75: oTauxREGAREG | D75: oTauxREGAREG | F75: 0 | G75: 6150598.44 | H75: 0 | I75: 5986506.99 | J75: 5678389.97 | K75: 5686399.68 | L75: 5684877.51 | M75: 5683807.56 | N75: 5678901.94 | O75: 5677033.33 | P75: 5963920.08 | Q75: 5983934.95 | R75: 5897060 | S75: 5869760 | T75: 5925433.77 | U75: 6033400.83 | V75: 5908984.9 | W75: 5897060 | X75: 6101397.2 | Y75: 6097777.93 | Z75: 5980177.82 | AA75: 5901640.93 | AB75: 6007898.11 | AC75: 6150598.44 | AD75: 5961689.8 | AE75: 5897060 | AF75: 6043365.86 | AG75: 5955211.37 | AH75: 6000048.35 | AI75: 5915022.7 | AJ75: 5970230.37 | AK75: 6046751.95 | AL75: 5534458.78 | AM75: 5682475.332 | AN75: 5878341.672 | AO75: 5983752.388 | AP75: 5947443.762 | AQ75: 5901113.591
B76: Economique | C76: oTauxAUTRES | D76: oTauxAUTRES | F76: 0 | G76: 2993841.04 | H76: 0 | I76: 2993841.04 | J76: 2562093.55 | K76: 2558808.84 | L76: 2560331.01 | M76: 2564229.33 | N76: 2568203.22 | O76: 2566413.37 | P76: 2472335.54 | Q76: 2465736.57 | R76: 2497370.87 | S76: 2527928.72 | T76: 2486200.04 | U76: 2453267.6 | V76: 2497370.87 | W76: 2541406.81 | X76: 2474107.9 | Y76: 2474632.82 | Z76: 2516100.65 | AA76: 2541783.63 | AB76: 2474107.9 | AC76: 2456805.9 | AD76: 2520562.57 | AE76: 2541783.63 | AF76: 2474107.9 | AG76: 2479997.6 | AH76: 2507616.56 | AI76: 2518160.4 | AJ76: 2475437.08 | AK76: 2346897.33 | AL76: 2536424.09 | AM76: 2562733.19 | AN76: 2505957.014 | AO76: 2495442.024 | AP76: 2485779.306 | AQ76: 2505524.907
B77: Economique | C77: oTauxREGAFIN | D77: oTauxREGAFIN | F77: 0 | G77: 0 | H77: 0 | I77: 0 | J77: 0 | K77: 0 | L77: 0 | M77: 0 | N77: 0 | O77: 0 | P77: 0 | Q77: 0 | R77: 0 | S77: 0 | T77: 0 | U77: 0 | V77: 0 | W77: 0 | X77: 0 | Y77: 0 | Z77: 0 | AA77: 0 | AB77: 0 | AC77: 0 | AD77: 0 | AE77: 0 | AF77: 0 | AG77: 0 | AH77: 0 | AI77: 0 | AJ77: 0 | AK77: 0 | AL77: 0 | AM77: 0 | AN77: 0 | AO77: 0 | AP77: 0 | AQ77: 0
B78: Economique | C78: oSupRealREGAPAR | D78: oSupRealREGAPAR | F78: 0 | G78: 1470 | H78: 0 | I78: 1100 | J78: 1333 | K78: 1333 | L78: 1333 | M78: 1333 | N78: 1333 | O78: 1333 | P78: 1466.3 | Q78: 1470 | R78: 1470 | S78: 1470 | T78: 1470 | U78: 1470 | V78: 1470 | W78: 1470 | X78: 1470 | Y78: 1470 | Z78: 1470 | AA78: 1470 | AB78: 1470 | AC78: 1470 | AD78: 1470 | AE78: 1470 | AF78: 1470 | AG78: 1470 | AH78: 1470 | AI78: 1470 | AJ78: 1470 | AK78: 1470 | AL78: 1470 | AM78: 1333 | AN78: 1441.86 | AO78: 1470 | AP78: 1470 | AQ78: 1441.527586
B79: Economique | C79: oSupRealREGAEDU | D79: oSupRealREGAEDU | F79: 0 | G79: 2250 | H79: 0 | I79: 2250 | J79: 333 | K79: 333 | L79: 333 | M79: 333 | N79: 333 | O79: 334.55 | P79: 368 | Q79: 368 | R79: 368 | S79: 343 | T79: 368 | U79: 356.28 | V79: 358.76 | W79: 333 | X79: 333 | Y79: 333 | Z79: 333 | AA79: 333 | AB79: 343 | AC79: 333 | AD79: 333 | AE79: 333 | AF79: 333 | AG79: 358 | AH79: 333 | AI79: 358 | AJ79: 358 | AK79: 341.52 | AL79: 358 | AM79: 333 | AN79: 356.31 | AO79: 343.4488889 | AP79: 343.852 | AQ79: 344.0037931
B80: Economique | C80: oSupRealREGAREG | D80: oSupRealREGAREG | F80: 0 | G80: 6267 | H80: 0 | I80: 6267 | J80: 5433.74 | K80: 5425.73 | L80: 5429.44 | M80: 5438.95 | N80: 5448.64 | O80: 5444.28 | P80: 5644 | Q80: 5644 | R80: 5644 | S80: 5644 | T80: 5644 | U80: 5644 | V80: 5644 | W80: 5644 | X80: 5644 | Y80: 5644 | Z80: 5644 | AA80: 5644 | AB80: 5644 | AC80: 5644 | AD80: 5644 | AE80: 5644 | AF80: 5644 | AG80: 5644 | AH80: 5644 | AI80: 5561.54 | AJ80: 5640.49 | AK80: 5165.52 | AL80: 5323.5 | AM80: 5435.3 | AN80: 5604.056 | AO80: 5644 | AP80: 5555.505 | AQ80: 5570.614828
B81: Economique | C81: oSupRealAUTRES | D81: oSupRealAUTRES | F81: 0 | G81: 6817 | H81: 0 | I81: 6817 | J81: 6052.74 | K81: 6044.73 | L81: 6048.44 | M81: 6057.95 | N81: 6067.64 | O81: 6063.28 | P81: 5937.14 | Q81: 5924.92 | R81: 5983.5 | S81: 6040.09 | T81: 5962.81 | U81: 5901.83 | V81: 5983.5 | W81: 6065.05 | X81: 5940.42 | Y81: 5941.39 | Z81: 6018.19 | AA81: 6065.75 | AB81: 5940.42 | AC81: 5908.38 | AD81: 6026.45 | AE81: 6065.75 | AF81: 5940.42 | AG81: 5951.33 | AH81: 6002.48 | AI81: 5964.31 | AJ81: 5936.91 | AK81: 5528.7 | AL81: 5974.53 | AM81: 6054.3 | AN81: 5989.786 | AO81: 5979.928889 | AP81: 5929.926 | AQ81: 5977.208621
B82: Economique | C82: oSupRealREGAFIN | D82: oSupRealREGAFIN | F82: 0 | G82: 23610.71 | H82: 0 | I82: 19298.6 | J82: 16944.6 | K82: 15264.76 | L82: 15024.37 | M82: 14760.51 | N82: 13728.85 | O82: 17446.06 | P82: 16774.59 | Q82: 14828.65 | R82: 16292.13 | S82: 17407 | T82: 17446.01 | U82: 17454.35 | V82: 23610.71 | W82: 16987.61 | X82: 19180.92 | Y82: 13948.5 | Z82: 17784.51 | AA82: 16055.1 | AB82: 20009.95 | AC82: 19544.36 | AD82: 17691.46 | AE82: 21193.76 | AF82: 21022.43 | AG82: 19794.31 | AH82: 19643.98 | AI82: 14390.31 | AJ82: 22144.46 | AK82: 15517.28 | AL82: 18519.09 | AM82: 15144.618 | AN82: 16549.686 | AO82: 18053.07333 | AP82: 18946.144 | AQ82: 17600.36621
B83: VolExpl | C83: OVOLBOJADMaEC | D83: Volume BOJ Admissible InclusActions aEC | F83: 0 | G83: 0 | H83: 0 | I83: 0 | J83: 0 | K83: 0 | L83: 0 | M83: 0 | N83: 0 | O83: 0 | P83: 0 | Q83: 0 | R83: 0 | S83: 0 | T83: 0 | U83: 0 | V83: 0 | W83: 0 | X83: 0 | Y83: 0 | Z83: 0 | AA83: 0 | AB83: 0 | AC83: 0 | AD83: 0 | AE83: 0 | AF83: 0 | AG83: 0 | AH83: 0 | AI83: 0 | AJ83: 0 | AK83: 0 | AL83: 0 | AM83: 0 | AN83: 0 | AO83: 0 | AP83: 0 | AQ83: 0
B84: VolExpl | C84: OVOLBOJADMaEC2 | D84: Volume BOJ Admissible InclusActions aEC2 | F84: 0 | G84: 0 | H84: 0 | I84: 0 | J84: 0 | K84: 0 | L84: 0 | M84: 0 | N84: 0 | O84: 0 | P84: 0 | Q84: 0 | R84: 0 | S84: 0 | T84: 0 | U84: 0 | V84: 0 | W84: 0 | X84: 0 | Y84: 0 | Z84: 0 | AA84: 0 | AB84: 0 | AC84: 0 | AD84: 0 | AE84: 0 | AF84: 0 | AG84: 0 | AH84: 0 | AI84: 0 | AJ84: 0 | AK84: 0 | AL84: 0 | AM84: 0 | AN84: 0 | AO84: 0 | AP84: 0 | AQ84: 0
B85: VolExpl | C85: OVOLBOJADMaEC3 | D85: Volume BOJ Admissible InclusActions aEC3 | F85: 0 | G85: 0 | H85: 0 | I85: 0 | J85: 0 | K85: 0 | L85: 0 | M85: 0 | N85: 0 | O85: 0 | P85: 0 | Q85: 0 | R85: 0 | S85: 0 | T85: 0 | U85: 0 | V85: 0 | W85: 0 | X85: 0 | Y85: 0 | Z85: 0 | AA85: 0 | AB85: 0 | AC85: 0 | AD85: 0 | AE85: 0 | AF85: 0 | AG85: 0 | AH85: 0 | AI85: 0 | AJ85: 0 | AK85: 0 | AL85: 0 | AM85: 0 | AN85: 0 | AO85: 0 | AP85: 0 | AQ85: 0
B86: VolExpl | C86: OVOLBOJADMaCA | D86: Volume BOJ Admissible InclusActions aCA | F86: 0 | G86: 0 | H86: 0 | I86: 0 | J86: 0 | K86: 0 | L86: 0 | M86: 0 | N86: 0 | O86: 0 | P86: 0 | Q86: 0 | R86: 0 | S86: 0 | T86: 0 | U86: 0 | V86: 0 | W86: 0 | X86: 0 | Y86: 0 | Z86: 0 | AA86: 0 | AB86: 0 | AC86: 0 | AD86: 0 | AE86: 0 | AF86: 0 | AG86: 0 | AH86: 0 | AI86: 0 | AJ86: 0 | AK86: 0 | AL86: 0 | AM86: 0 | AN86: 0 | AO86: 0 | AP86: 0 | AQ86: 0
B87: VolExpl | C87: OVOLBOJADMaCA2 | D87: Volume BOJ Admissible InclusActions aCA2 | F87: 0 | G87: 0 | H87: 0 | I87: 0 | J87: 0 | K87: 0 | L87: 0 | M87: 0 | N87: 0 | O87: 0 | P87: 0 | Q87: 0 | R87: 0 | S87: 0 | T87: 0 | U87: 0 | V87: 0 | W87: 0 | X87: 0 | Y87: 0 | Z87: 0 | AA87: 0 | AB87: 0 | AC87: 0 | AD87: 0 | AE87: 0 | AF87: 0 | AG87: 0 | AH87: 0 | AI87: 0 | AJ87: 0 | AK87: 0 | AL87: 0 | AM87: 0 | AN87: 0 | AO87: 0 | AP87: 0 | AQ87: 0
B88: VolExpl | C88: OVOLBOJADMaCPROG | D88: Volume BOJ Admissible InclusActions aCPROG | F88: 0 | G88: 0 | H88: 0 | I88: 0 | J88: 0 | K88: 0 | L88: 0 | M88: 0 | N88: 0 | O88: 0 | P88: 0 | Q88: 0 | R88: 0 | S88: 0 | T88: 0 | U88: 0 | V88: 0 | W88: 0 | X88: 0 | Y88: 0 | Z88: 0 | AA88: 0 | AB88: 0 | AC88: 0 | AD88: 0 | AE88: 0 | AF88: 0 | AG88: 0 | AH88: 0 | AI88: 0 | AJ88: 0 | AK88: 0 | AL88: 0 | AM88: 0 | AN88: 0 | AO88: 0 | AP88: 0 | AQ88: 0
B89: VolExpl | C89: OVOLBOJADMaCPIL | D89: Volume BOJ Admissible InclusActions aCPIL | F89: 0 | G89: 0 | H89: 0 | I89: 0 | J89: 0 | K89: 0 | L89: 0 | M89: 0 | N89: 0 | O89: 0 | P89: 0 | Q89: 0 | R89: 0 | S89: 0 | T89: 0 | U89: 0 | V89: 0 | W89: 0 | X89: 0 | Y89: 0 | Z89: 0 | AA89: 0 | AB89: 0 | AC89: 0 | AD89: 0 | AE89: 0 | AF89: 0 | AG89: 0 | AH89: 0 | AI89: 0 | AJ89: 0 | AK89: 0 | AL89: 0 | AM89: 0 | AN89: 0 | AO89: 0 | AP89: 0 | AQ89: 0
B90: VolExpl | C90: OVOLBOJADMaCPIP | D90: Volume BOJ Admissible InclusActions aCPIP | F90: 0 | G90: 0 | H90: 0 | I90: 0 | J90: 0 | K90: 0 | L90: 0 | M90: 0 | N90: 0 | O90: 0 | P90: 0 | Q90: 0 | R90: 0 | S90: 0 | T90: 0 | U90: 0 | V90: 0 | W90: 0 | X90: 0 | Y90: 0 | Z90: 0 | AA90: 0 | AB90: 0 | AC90: 0 | AD90: 0 | AE90: 0 | AF90: 0 | AG90: 0 | AH90: 0 | AI90: 0 | AJ90: 0 | AK90: 0 | AL90: 0 | AM90: 0 | AN90: 0 | AO90: 0 | AP90: 0 | AQ90: 0
B91: VolExpl | C91: OVOLBOJADMaCPFORT | D91: Volume BOJ Admissible InclusActions aCPFORT | F91: 0 | G91: 0 | H91: 0 | I91: 0 | J91: 0 | K91: 0 | L91: 0 | M91: 0 | N91: 0 | O91: 0 | P91: 0 | Q91: 0 | R91: 0 | S91: 0 | T91: 0 | U91: 0 | V91: 0 | W91: 0 | X91: 0 | Y91: 0 | Z91: 0 | AA91: 0 | AB91: 0 | AC91: 0 | AD91: 0 | AE91: 0 | AF91: 0 | AG91: 0 | AH91: 0 | AI91: 0 | AJ91: 0 | AK91: 0 | AL91: 0 | AM91: 0 | AN91: 0 | AO91: 0 | AP91: 0 | AQ91: 0
B92: VolExpl | C92: OVOLBOJADMaCPFAIBL | D92: Volume BOJ Admissible InclusActions aCPFAIBL | F92: 0 | G92: 0 | H92: 0 | I92: 0 | J92: 0 | K92: 0 | L92: 0 | M92: 0 | N92: 0 | O92: 0 | P92: 0 | Q92: 0 | R92: 0 | S92: 0 | T92: 0 | U92: 0 | V92: 0 | W92: 0 | X92: 0 | Y92: 0 | Z92: 0 | AA92: 0 | AB92: 0 | AC92: 0 | AD92: 0 | AE92: 0 | AF92: 0 | AG92: 0 | AH92: 0 | AI92: 0 | AJ92: 0 | AK92: 0 | AL92: 0 | AM92: 0 | AN92: 0 | AO92: 0 | AP92: 0 | AQ92: 0
B93: VolExpl | C93: OVOLBOJADMaCP | D93: Volume BOJ Admissible InclusActions aCP | F93: 0 | G93: 0 | H93: 0 | I93: 0 | J93: 0 | K93: 0 | L93: 0 | M93: 0 | N93: 0 | O93: 0 | P93: 0 | Q93: 0 | R93: 0 | S93: 0 | T93: 0 | U93: 0 | V93: 0 | W93: 0 | X93: 0 | Y93: 0 | Z93: 0 | AA93: 0 | AB93: 0 | AC93: 0 | AD93: 0 | AE93: 0 | AF93: 0 | AG93: 0 | AH93: 0 | AI93: 0 | AJ93: 0 | AK93: 0 | AL93: 0 | AM93: 0 | AN93: 0 | AO93: 0 | AP93: 0 | AQ93: 0
B94: VolExpl | C94: OVOLBOJADMaCPJ | D94: Volume BOJ Admissible InclusActions aCPJ | F94: 0 | G94: 0 | H94: 0 | I94: 0 | J94: 0 | K94: 0 | L94: 0 | M94: 0 | N94: 0 | O94: 0 | P94: 0 | Q94: 0 | R94: 0 | S94: 0 | T94: 0 | U94: 0 | V94: 0 | W94: 0 | X94: 0 | Y94: 0 | Z94: 0 | AA94: 0 | AB94: 0 | AC94: 0 | AD94: 0 | AE94: 0 | AF94: 0 | AG94: 0 | AH94: 0 | AI94: 0 | AJ94: 0 | AK94: 0 | AL94: 0 | AM94: 0 | AN94: 0 | AO94: 0 | AP94: 0 | AQ94: 0
B95: VolExpl | C95: OVOLBOJADMaCJ | D95: Volume BOJ Admissible InclusActions aCJ | F95: 0 | G95: 0 | H95: 0 | I95: 0 | J95: 0 | K95: 0 | L95: 0 | M95: 0 | N95: 0 | O95: 0 | P95: 0 | Q95: 0 | R95: 0 | S95: 0 | T95: 0 | U95: 0 | V95: 0 | W95: 0 | X95: 0 | Y95: 0 | Z95: 0 | AA95: 0 | AB95: 0 | AC95: 0 | AD95: 0 | AE95: 0 | AF95: 0 | AG95: 0 | AH95: 0 | AI95: 0 | AJ95: 0 | AK95: 0 | AL95: 0 | AM95: 0 | AN95: 0 | AO95: 0 | AP95: 0 | AQ95: 0
B96: VolExpl | C96: OVOLBOJADMaCRV | D96: Volume BOJ Admissible InclusActions aCRV | F96: 0 | G96: 0 | H96: 0 | I96: 0 | J96: 0 | K96: 0 | L96: 0 | M96: 0 | N96: 0 | O96: 0 | P96: 0 | Q96: 0 | R96: 0 | S96: 0 | T96: 0 | U96: 0 | V96: 0 | W96: 0 | X96: 0 | Y96: 0 | Z96: 0 | AA96: 0 | AB96: 0 | AC96: 0 | AD96: 0 | AE96: 0 | AF96: 0 | AG96: 0 | AH96: 0 | AI96: 0 | AJ96: 0 | AK96: 0 | AL96: 0 | AM96: 0 | AN96: 0 | AO96: 0 | AP96: 0 | AQ96: 0
B97: VolExpl | C97: OVOLBOJADMaCRS | D97: Volume BOJ Admissible InclusActions aCRS | F97: 0 | G97: 0 | H97: 0 | I97: 0 | J97: 0 | K97: 0 | L97: 0 | M97: 0 | N97: 0 | O97: 0 | P97: 0 | Q97: 0 | R97: 0 | S97: 0 | T97: 0 | U97: 0 | V97: 0 | W97: 0 | X97: 0 | Y97: 0 | Z97: 0 | AA97: 0 | AB97: 0 | AC97: 0 | AD97: 0 | AE97: 0 | AF97: 0 | AG97: 0 | AH97: 0 | AI97: 0 | AJ97: 0 | AK97: 0 | AL97: 0 | AM97: 0 | AN97: 0 | AO97: 0 | AP97: 0 | AQ97: 0
B98: VolExpl | C98: OVOLBOJADMaCFP | D98: Volume BOJ Admissible InclusActions aCFP | F98: 0 | G98: 0 | H98: 0 | I98: 0 | J98: 0 | K98: 0 | L98: 0 | M98: 0 | N98: 0 | O98: 0 | P98: 0 | Q98: 0 | R98: 0 | S98: 0 | T98: 0 | U98: 0 | V98: 0 | W98: 0 | X98: 0 | Y98: 0 | Z98: 0 | AA98: 0 | AB98: 0 | AC98: 0 | AD98: 0 | AE98: 0 | AF98: 0 | AG98: 0 | AH98: 0 | AI98: 0 | AJ98: 0 | AK98: 0 | AL98: 0 | AM98: 0 | AN98: 0 | AO98: 0 | AP98: 0 | AQ98: 0
B99: VolExpl | C99: OVOLBOJADMaCPPTM | D99: Volume BOJ Admissible InclusActions aCPPTM | F99: 0 | G99: 0 | H99: 0 | I99: 0 | J99: 0 | K99: 0 | L99: 0 | M99: 0 | N99: 0 | O99: 0 | P99: 0 | Q99: 0 | R99: 0 | S99: 0 | T99: 0 | U99: 0 | V99: 0 | W99: 0 | X99: 0 | Y99: 0 | Z99: 0 | AA99: 0 | AB99: 0 | AC99: 0 | AD99: 0 | AE99: 0 | AF99: 0 | AG99: 0 | AH99: 0 | AI99: 0 | AJ99: 0 | AK99: 0 | AL99: 0 | AM99: 0 | AN99: 0 | AO99: 0 | AP99: 0 | AQ99: 0
B100: VolExpl | C100: OVOLBOJADMaCT | D100: Volume BOJ Admissible InclusActions aCT | F100: 0 | G100: 0 | H100: 0 | I100: 0 | J100: 0 | K100: 0 | L100: 0 | M100: 0 | N100: 0 | O100: 0 | P100: 0 | Q100: 0 | R100: 0 | S100: 0 | T100: 0 | U100: 0 | V100: 0 | W100: 0 | X100: 0 | Y100: 0 | Z100: 0 | AA100: 0 | AB100: 0 | AC100: 0 | AD100: 0 | AE100: 0 | AF100: 0 | AG100: 0 | AH100: 0 | AI100: 0 | AJ100: 0 | AK100: 0 | AL100: 0 | AM100: 0 | AN100: 0 | AO100: 0 | AP100: 0 | AQ100: 0
B101: VolExpl | C101: OVOLBOJADMregaPRE | D101: Volume BOJ Admissible InclusActions regaPRE | F101: 0 | G101: 0 | H101: 0 | I101: 0 | J101: 0 | K101: 0 | L101: 0 | M101: 0 | N101: 0 | O101: 0 | P101: 0 | Q101: 0 | R101: 0 | S101: 0 | T101: 0 | U101: 0 | V101: 0 | W101: 0 | X101: 0 | Y101: 0 | Z101: 0 | AA101: 0 | AB101: 0 | AC101: 0 | AD101: 0 | AE101: 0 | AF101: 0 | AG101: 0 | AH101: 0 | AI101: 0 | AJ101: 0 | AK101: 0 | AL101: 0 | AM101: 0 | AN101: 0 | AO101: 0 | AP101: 0 | AQ101: 0
B102: VolExpl | C102: OVOLERSADMaEC | D102: Volume ERS Admissible InclusActions aEC | F102: 0 | G102: 0 | H102: 0 | I102: 0 | J102: 0 | K102: 0 | L102: 0 | M102: 0 | N102: 0 | O102: 0 | P102: 0 | Q102: 0 | R102: 0 | S102: 0 | T102: 0 | U102: 0 | V102: 0 | W102: 0 | X102: 0 | Y102: 0 | Z102: 0 | AA102: 0 | AB102: 0 | AC102: 0 | AD102: 0 | AE102: 0 | AF102: 0 | AG102: 0 | AH102: 0 | AI102: 0 | AJ102: 0 | AK102: 0 | AL102: 0 | AM102: 0 | AN102: 0 | AO102: 0 | AP102: 0 | AQ102: 0
B103: VolExpl | C103: OVOLERSADMaEC2 | D103: Volume ERS Admissible InclusActions aEC2 | F103: 0 | G103: 0 | H103: 0 | I103: 0 | J103: 0 | K103: 0 | L103: 0 | M103: 0 | N103: 0 | O103: 0 | P103: 0 | Q103: 0 | R103: 0 | S103: 0 | T103: 0 | U103: 0 | V103: 0 | W103: 0 | X103: 0 | Y103: 0 | Z103: 0 | AA103: 0 | AB103: 0 | AC103: 0 | AD103: 0 | AE103: 0 | AF103: 0 | AG103: 0 | AH103: 0 | AI103: 0 | AJ103: 0 | AK103: 0 | AL103: 0 | AM103: 0 | AN103: 0 | AO103: 0 | AP103: 0 | AQ103: 0
B104: VolExpl | C104: OVOLERSADMaEC3 | D104: Volume ERS Admissible InclusActions aEC3 | F104: 0 | G104: 0 | H104: 0 | I104: 0 | J104: 0 | K104: 0 | L104: 0 | M104: 0 | N104: 0 | O104: 0 | P104: 0 | Q104: 0 | R104: 0 | S104: 0 | T104: 0 | U104: 0 | V104: 0 | W104: 0 | X104: 0 | Y104: 0 | Z104: 0 | AA104: 0 | AB104: 0 | AC104: 0 | AD104: 0 | AE104: 0 | AF104: 0 | AG104: 0 | AH104: 0 | AI104: 0 | AJ104: 0 | AK104: 0 | AL104: 0 | AM104: 0 | AN104: 0 | AO104: 0 | AP104: 0 | AQ104: 0
B105: VolExpl | C105: OVOLERSADMaCA | D105: Volume ERS Admissible InclusActions aCA | F105: 0 | G105: 0 | H105: 0 | I105: 0 | J105: 0 | K105: 0 | L105: 0 | M105: 0 | N105: 0 | O105: 0 | P105: 0 | Q105: 0 | R105: 0 | S105: 0 | T105: 0 | U105: 0 | V105: 0 | W105: 0 | X105: 0 | Y105: 0 | Z105: 0 | AA105: 0 | AB105: 0 | AC105: 0 | AD105: 0 | AE105: 0 | AF105: 0 | AG105: 0 | AH105: 0 | AI105: 0 | AJ105: 0 | AK105: 0 | AL105: 0 | AM105: 0 | AN105: 0 | AO105: 0 | AP105: 0 | AQ105: 0
B106: VolExpl | C106: OVOLERSADMaCA2 | D106: Volume ERS Admissible InclusActions aCA2 | F106: 0 | G106: 0 | H106: 0 | I106: 0 | J106: 0 | K106: 0 | L106: 0 | M106: 0 | N106: 0 | O106: 0 | P106: 0 | Q106: 0 | R106: 0 | S106: 0 | T106: 0 | U106: 0 | V106: 0 | W106: 0 | X106: 0 | Y106: 0 | Z106: 0 | AA106: 0 | AB106: 0 | AC106: 0 | AD106: 0 | AE106: 0 | AF106: 0 | AG106: 0 | AH106: 0 | AI106: 0 | AJ106: 0 | AK106: 0 | AL106: 0 | AM106: 0 | AN106: 0 | AO106: 0 | AP106: 0 | AQ106: 0
B107: VolExpl | C107: OVOLERSADMaCPROG | D107: Volume ERS Admissible InclusActions aCPROG | F107: 0 | G107: 0 | H107: 0 | I107: 0 | J107: 0 | K107: 0 | L107: 0 | M107: 0 | N107: 0 | O107: 0 | P107: 0 | Q107: 0 | R107: 0 | S107: 0 | T107: 0 | U107: 0 | V107: 0 | W107: 0 | X107: 0 | Y107: 0 | Z107: 0 | AA107: 0 | AB107: 0 | AC107: 0 | AD107: 0 | AE107: 0 | AF107: 0 | AG107: 0 | AH107: 0 | AI107: 0 | AJ107: 0 | AK107: 0 | AL107: 0 | AM107: 0 | AN107: 0 | AO107: 0 | AP107: 0 | AQ107: 0
B108: VolExpl | C108: OVOLERSADMaCPIL | D108: Volume ERS Admissible InclusActions aCPIL | F108: 0 | G108: 0 | H108: 0 | I108: 0 | J108: 0 | K108: 0 | L108: 0 | M108: 0 | N108: 0 | O108: 0 | P108: 0 | Q108: 0 | R108: 0 | S108: 0 | T108: 0 | U108: 0 | V108: 0 | W108: 0 | X108: 0 | Y108: 0 | Z108: 0 | AA108: 0 | AB108: 0 | AC108: 0 | AD108: 0 | AE108: 0 | AF108: 0 | AG108: 0 | AH108: 0 | AI108: 0 | AJ108: 0 | AK108: 0 | AL108: 0 | AM108: 0 | AN108: 0 | AO108: 0 | AP108: 0 | AQ108: 0
B109: VolExpl | C109: OVOLERSADMaCPIP | D109: Volume ERS Admissible InclusActions aCPIP | F109: 0 | G109: 0 | H109: 0 | I109: 0 | J109: 0 | K109: 0 | L109: 0 | M109: 0 | N109: 0 | O109: 0 | P109: 0 | Q109: 0 | R109: 0 | S109: 0 | T109: 0 | U109: 0 | V109: 0 | W109: 0 | X109: 0 | Y109: 0 | Z109: 0 | AA109: 0 | AB109: 0 | AC109: 0 | AD109: 0 | AE109: 0 | AF109: 0 | AG109: 0 | AH109: 0 | AI109: 0 | AJ109: 0 | AK109: 0 | AL109: 0 | AM109: 0 | AN109: 0 | AO109: 0 | AP109: 0 | AQ109: 0
B110: VolExpl | C110: OVOLERSADMaCPFORT | D110: Volume ERS Admissible InclusActions aCPFORT | F110: 0 | G110: 0 | H110: 0 | I110: 0 | J110: 0 | K110: 0 | L110: 0 | M110: 0 | N110: 0 | O110: 0 | P110: 0 | Q110: 0 | R110: 0 | S110: 0 | T110: 0 | U110: 0 | V110: 0 | W110: 0 | X110: 0 | Y110: 0 | Z110: 0 | AA110: 0 | AB110: 0 | AC110: 0 | AD110: 0 | AE110: 0 | AF110: 0 | AG110: 0 | AH110: 0 | AI110: 0 | AJ110: 0 | AK110: 0 | AL110: 0 | AM110: 0 | AN110: 0 | AO110: 0 | AP110: 0 | AQ110: 0
B111: VolExpl | C111: OVOLERSADMaCPFAIBL | D111: Volume ERS Admissible InclusActions aCPFAIBL | F111: 0 | G111: 0 | H111: 0 | I111: 0 | J111: 0 | K111: 0 | L111: 0 | M111: 0 | N111: 0 | O111: 0 | P111: 0 | Q111: 0 | R111: 0 | S111: 0 | T111: 0 | U111: 0 | V111: 0 | W111: 0 | X111: 0 | Y111: 0 | Z111: 0 | AA111: 0 | AB111: 0 | AC111: 0 | AD111: 0 | AE111: 0 | AF111: 0 | AG111: 0 | AH111: 0 | AI111: 0 | AJ111: 0 | AK111: 0 | AL111: 0 | AM111: 0 | AN111: 0 | AO111: 0 | AP111: 0 | AQ111: 0
B112: VolExpl | C112: OVOLERSADMaCP | D112: Volume ERS Admissible InclusActions aCP | F112: 0 | G112: 0 | H112: 0 | I112: 0 | J112: 0 | K112: 0 | L112: 0 | M112: 0 | N112: 0 | O112: 0 | P112: 0 | Q112: 0 | R112: 0 | S112: 0 | T112: 0 | U112: 0 | V112: 0 | W112: 0 | X112: 0 | Y112: 0 | Z112: 0 | AA112: 0 | AB112: 0 | AC112: 0 | AD112: 0 | AE112: 0 | AF112: 0 | AG112: 0 | AH112: 0 | AI112: 0 | AJ112: 0 | AK112: 0 | AL112: 0 | AM112: 0 | AN112: 0 | AO112: 0 | AP112: 0 | AQ112: 0
B113: VolExpl | C113: OVOLERSADMaCPJ | D113: Volume ERS Admissible InclusActions aCPJ | F113: 0 | G113: 0 | H113: 0 | I113: 0 | J113: 0 | K113: 0 | L113: 0 | M113: 0 | N113: 0 | O113: 0 | P113: 0 | Q113: 0 | R113: 0 | S113: 0 | T113: 0 | U113: 0 | V113: 0 | W113: 0 | X113: 0 | Y113: 0 | Z113: 0 | AA113: 0 | AB113: 0 | AC113: 0 | AD113: 0 | AE113: 0 | AF113: 0 | AG113: 0 | AH113: 0 | AI113: 0 | AJ113: 0 | AK113: 0 | AL113: 0 | AM113: 0 | AN113: 0 | AO113: 0 | AP113: 0 | AQ113: 0
B114: VolExpl | C114: OVOLERSADMaCJ | D114: Volume ERS Admissible InclusActions aCJ | F114: 0 | G114: 0 | H114: 0 | I114: 0 | J114: 0 | K114: 0 | L114: 0 | M114: 0 | N114: 0 | O114: 0 | P114: 0 | Q114: 0 | R114: 0 | S114: 0 | T114: 0 | U114: 0 | V114: 0 | W114: 0 | X114: 0 | Y114: 0 | Z114: 0 | AA114: 0 | AB114: 0 | AC114: 0 | AD114: 0 | AE114: 0 | AF114: 0 | AG114: 0 | AH114: 0 | AI114: 0 | AJ114: 0 | AK114: 0 | AL114: 0 | AM114: 0 | AN114: 0 | AO114: 0 | AP114: 0 | AQ114: 0
B115: VolExpl | C115: OVOLERSADMaCRV | D115: Volume ERS Admissible InclusActions aCRV | F115: 0 | G115: 0 | H115: 0 | I115: 0 | J115: 0 | K115: 0 | L115: 0 | M115: 0 | N115: 0 | O115: 0 | P115: 0 | Q115: 0 | R115: 0 | S115: 0 | T115: 0 | U115: 0 | V115: 0 | W115: 0 | X115: 0 | Y115: 0 | Z115: 0 | AA115: 0 | AB115: 0 | AC115: 0 | AD115: 0 | AE115: 0 | AF115: 0 | AG115: 0 | AH115: 0 | AI115: 0 | AJ115: 0 | AK115: 0 | AL115: 0 | AM115: 0 | AN115: 0 | AO115: 0 | AP115: 0 | AQ115: 0
B116: VolExpl | C116: OVOLERSADMaCRS | D116: Volume ERS Admissible InclusActions aCRS | F116: 0 | G116: 0 | H116: 0 | I116: 0 | J116: 0 | K116: 0 | L116: 0 | M116: 0 | N116: 0 | O116: 0 | P116: 0 | Q116: 0 | R116: 0 | S116: 0 | T116: 0 | U116: 0 | V116: 0 | W116: 0 | X116: 0 | Y116: 0 | Z116: 0 | AA116: 0 | AB116: 0 | AC116: 0 | AD116: 0 | AE116: 0 | AF116: 0 | AG116: 0 | AH116: 0 | AI116: 0 | AJ116: 0 | AK116: 0 | AL116: 0 | AM116: 0 | AN116: 0 | AO116: 0 | AP116: 0 | AQ116: 0
B117: VolExpl | C117: OVOLERSADMaCFP | D117: Volume ERS Admissible InclusActions aCFP | F117: 0 | G117: 0 | H117: 0 | I117: 0 | J117: 0 | K117: 0 | L117: 0 | M117: 0 | N117: 0 | O117: 0 | P117: 0 | Q117: 0 | R117: 0 | S117: 0 | T117: 0 | U117: 0 | V117: 0 | W117: 0 | X117: 0 | Y117: 0 | Z117: 0 | AA117: 0 | AB117: 0 | AC117: 0 | AD117: 0 | AE117: 0 | AF117: 0 | AG117: 0 | AH117: 0 | AI117: 0 | AJ117: 0 | AK117: 0 | AL117: 0 | AM117: 0 | AN117: 0 | AO117: 0 | AP117: 0 | AQ117: 0
B118: VolExpl | C118: OVOLERSADMaCPPTM | D118: Volume ERS Admissible InclusActions aCPPTM | F118: 0 | G118: 0 | H118: 0 | I118: 0 | J118: 0 | K118: 0 | L118: 0 | M118: 0 | N118: 0 | O118: 0 | P118: 0 | Q118: 0 | R118: 0 | S118: 0 | T118: 0 | U118: 0 | V118: 0 | W118: 0 | X118: 0 | Y118: 0 | Z118: 0 | AA118: 0 | AB118: 0 | AC118: 0 | AD118: 0 | AE118: 0 | AF118: 0 | AG118: 0 | AH118: 0 | AI118: 0 | AJ118: 0 | AK118: 0 | AL118: 0 | AM118: 0 | AN118: 0 | AO118: 0 | AP118: 0 | AQ118: 0
B119: VolExpl | C119: OVOLERSADMaCT | D119: Volume ERS Admissible InclusActions aCT | F119: 0 | G119: 0 | H119: 0 | I119: 0 | J119: 0 | K119: 0 | L119: 0 | M119: 0 | N119: 0 | O119: 0 | P119: 0 | Q119: 0 | R119: 0 | S119: 0 | T119: 0 | U119: 0 | V119: 0 | W119: 0 | X119: 0 | Y119: 0 | Z119: 0 | AA119: 0 | AB119: 0 | AC119: 0 | AD119: 0 | AE119: 0 | AF119: 0 | AG119: 0 | AH119: 0 | AI119: 0 | AJ119: 0 | AK119: 0 | AL119: 0 | AM119: 0 | AN119: 0 | AO119: 0 | AP119: 0 | AQ119: 0
B120: VolExpl | C120: OVOLERSADMregaPRE | D120: Volume ERS Admissible InclusActions regaPRE | F120: 0 | G120: 0 | H120: 0 | I120: 0 | J120: 0 | K120: 0 | L120: 0 | M120: 0 | N120: 0 | O120: 0 | P120: 0 | Q120: 0 | R120: 0 | S120: 0 | T120: 0 | U120: 0 | V120: 0 | W120: 0 | X120: 0 | Y120: 0 | Z120: 0 | AA120: 0 | AB120: 0 | AC120: 0 | AD120: 0 | AE120: 0 | AF120: 0 | AG120: 0 | AH120: 0 | AI120: 0 | AJ120: 0 | AK120: 0 | AL120: 0 | AM120: 0 | AN120: 0 | AO120: 0 | AP120: 0 | AQ120: 0
B121: VolExpl | C121: OVOLSABADMaEC | D121: Volume SAB Admissible InclusActions aEC | F121: 0 | G121: 7872.91 | H121: 0 | I121: 0 | J121: 132.58 | K121: 2857.34 | L121: 4940.61 | M121: 4215.5 | N121: 3126.63 | O121: 4003.14 | P121: 7872.91 | Q121: 4711.79 | R121: 618.25 | S121: 686.3 | T121: 914.84 | U121: 952.53 | V121: 716.87 | W121: 471.67 | X121: 1092.11 | Y121: 1771.04 | Z121: 1624.04 | AA121: 523.22 | AB121: 864.96 | AC121: 3104.89 | AD121: 3753.08 | AE121: 1192.11 | AF121: 1551.04 | AG121: 1778.05 | AH121: 2573.1 | AI121: 2195.7 | AJ121: 1282.87 | AK121: 1003.22 | AL121: 744.97 | AM121: 3054.532 | AN121: 3578.478 | AO121: 992.3644444 | AP121: 1917.903 | AQ121: 2112.943448
B122: VolExpl | C122: OVOLSABADMaEC2 | D122: Volume SAB Admissible InclusActions aEC2 | F122: 0 | G122: 0 | H122: 0 | I122: 0 | J122: 0 | K122: 0 | L122: 0 | M122: 0 | N122: 0 | O122: 0 | P122: 0 | Q122: 0 | R122: 0 | S122: 0 | T122: 0 | U122: 0 | V122: 0 | W122: 0 | X122: 0 | Y122: 0 | Z122: 0 | AA122: 0 | AB122: 0 | AC122: 0 | AD122: 0 | AE122: 0 | AF122: 0 | AG122: 0 | AH122: 0 | AI122: 0 | AJ122: 0 | AK122: 0 | AL122: 0 | AM122: 0 | AN122: 0 | AO122: 0 | AP122: 0 | AQ122: 0
